Workbook

Sheet Home
A1: Ground Gain - Simulator Spreadsheet
C3: Type of Ground : | J3: 1
C4: Conductivity σ [S/m] : | D4: =VLOOKUP(Home!J3,'Ground Data'!A2:D29,3,0) -> 1e+99
C5: Permittivity εr : | D5: =VLOOKUP(Home!J3,'Ground Data'!A2:D29,4,0) -> 1e+99
C6: Freq [MHz] : | D6: 144
C7: Height [m] : | D7: 17.3
C8: Ground slope [°] : | D8: 0 | E8: Ground Slope in front of Antenna. 0 for Flat or Negative for Downward Slope
C10: Antenna Type : | K10: 4
C11: Maximum F.S. Gain [dBi] : | D11: ='Antenna Data'!B2 -> 16.37 | G11: Other antenna | I11: Type in other antenna type name
J29: Horizontal Pol. | K29: Max | O29: Vertical Pol. | P29: Max
J31: Elevation Angle α [°] | K31: Distance to Reflection Point for Lobe Maximum Building [m] | L31: Ground Gain for Selected Antenna for Horizontal Polarization [dB] | M31: Total Gain for Selected Antenna for Horizontal Polarization [dBi] | O31: Elevation Angle α [°] | P31: Distance to Reflection Point for Lobe Maximum Building [m] | Q31: Ground Gain for Selected Antenna for Vertical Polarization [dB] | R31: Total Gain for Selected Antenna for Vertical Polarization [dBi]
J32: 0.4 | K32: 114.4 | L32: 5.633539346 | M32: 22.00353935 | O32: 0.4 | P32: 114.4 | Q32: 2.15907498 | R32: 18.52907498
J33: 4 | K33: 81 | L33: 5.303685418 | M33: 21.67368542 | O33: 4 | P33: 81 | Q33: 0.8016969887 | R33: 17.17169699
J34: 7.6 | K34: 62.6 | L34: 4.629441571 | M34: 20.99944157 | O34: 7.4 | P34: 63.4 | Q34: -0.7089092935 | R34: 15.66109071
J35: 11.2 | K35: 50.8 | L35: 3.554382111 | M35: 19.92438211 | O35: 9.4 | P35: 56.1 | Q35: -0.6567214155 | R35: 15.71327858
J36: 14.9 | K36: 42.4 | L36: 1.905995259 | M36: 18.27599526 | O36: 13.1 | P36: 46.2 | Q36: -1.167714608 | R36: 15.20228539
J37: 18.7 | K37: 36.1 | L37: -0.616065067 | M37: 15.75393493 | O37: 16.9 | P37: 38.9 | Q37: -2.543400255 | R37: 13.82659975
J38: 22.6 | K38: 31.1 | L38: -4.649378015 | M38: 11.72062199 | O38: 20.8 | P38: 33.3 | Q38: -5.17378498 | R38: 11.19621502
J39: 26.6 | K39: 27 | L39: -11.54893344 | M39: 4.821066558 | O39: 24.9 | P39: 28.7 | Q39: -10.14426954 | R39: 6.225730457
J40: 31.8 | K40: 22.8 | L40: -13.23864605 | M40: 3.131353954 | O40: 29.2 | P40: 24.8 | Q40: -17.16736639 | R40: -0.7973663865
J41: 36.2 | K41: 19.9 | L41: -9.165267734 | M41: 7.204732266 | O41: 33.7 | P41: 21.5 | Q41: -12.2032395 | R41: 4.166760499
J42: 41 | K42: 17.2 | L42: -9.935607043 | M42: 6.434392957 | O42: 38.6 | P42: 18.5 | Q42: -10.05676165 | R42: 6.313238348
J43: 46 | K43: 14.8 | L43: -17.95002731 | M43: -1.580027309 | O43: 44 | P43: 15.7 | Q43: -13.86970434 | R43: 2.500295657
J44: 54.1 | K44: 11.4 | L44: -13.61015649 | M44: 2.759843515 | O44: 50.1 | P44: 13 | Q44: -19.51368356 | R44: -3.143683561
J45: 60.5 | K45: 9.1 | L45: -17.66164718 | M45: -1.291647179 | O45: 57.6 | P45: 10.2 | Q45: -13.65680279 | R45: 2.713197212
J46: 65.9 | K46: 7.3 | L46: -26.0660749 | M46: -9.696074902 | O46: 68.5 | P46: 6.5 | Q46: -16.97679124 | R46: -0.606791237
J47: 73.7 | K47: 4.9 | L47: -18.43244823 | M47: -2.062448234 | O47: 90 | P47: 0 | Q47: -23.25355356 | R47: -6.883553559
J48: 85.9 | K48: 1.2 | L48: -18.26744001 | M48: -1.897440006

Sheet Fresnel Geometry
B2: Fresnel Zone Geometry for the 1stElevation Lobe
B9: ="H="&$F$26&"m" -> H=10m
H13: =" α="&$F$29&"°" -> α=3° | J13: ="α="&$F$29&"°" -> α=3° | K13: ="w="&$F$33&"m" -> w=57m
E17: =" dN="&F31&"m" -> dN=32m | J17: ="L="&F32-F31&"m" -> L=1082m
H20: ="dF="&F32&"m" -> dF=1114m
F23: ="d="&F30&"m" -> d=191m
E26: Antenna height H [m] : | F26: 10
E27: Frequency [MHz] : | F27: 144
E28: λ [m] : | F28: =300/F27 -> 2.083333333
E29: α [°] : | F29: =ROUND((180/PI())*ASIN(F28/(4*F26)),1) -> 3 | G29: Elevation angle of the first lobe (Hor. Polar.)
E30: d [m] : | F30: =ROUND(F26/TAN(F29*(PI()/180)),0) -> 191 | G30: Distance from antenna where the maximum of the first lobe builds
E31: dN [m] : | F31: =ROUND(F30*(3-(((2*SQRT(2))/COS(F29*(PI()/180))))),0) -> 32 | G31: Closest distance from antenna as from which first ground lobe builds
E32: dF [m] : | F32: =ROUND(F30*(3+(((2*SQRT(2))/COS(F29*(PI()/180))))),0) -> 1114 | G32: Furthest distance from antenna up to which first ground lobe builds
E33: w [m] : | F33: =ROUND(4*SQRT(2)*F26,0) -> 57 | G33: "Width" of the Fresnel Ellipsoid
E34: L [m] : | F34: =F32-F31 -> 1082 | G34: "Length" of the Fresnel Ellipsoid
B37: Drawing not to scale.
B38: Calculation based on the article in “Precedings of the IRE – Scatter Propagation Issue”, volume 43, number 10 of October 1955

Sheet Import Other Antenna
A1: ZENITH(DEG) | B1: AZIMUTH(DEG) | C1: VERT(dBi) | D1: HORI(dBi) | E1: TOTAL(dBi) | G1: =MAX(E:E) -> 14.22
A2: 90 | B2: 0 | C2: -109.45 | D2: 14.22 | E2: 14.22 | F2: =A2-90 -> 0 | G2: =E2-$G$1 -> 0
A3: 90.1 | B3: 0 | C3: -109.45 | D3: 14.22 | E3: 14.22 | F3: =A3-90 -> 0.1 | G3: =E3-$G$1 -> 0
A4: 90.2 | B4: 0 | C4: -109.45 | D4: 14.22 | E4: 14.22 | F4: 0.2 | G4: 0
A5: 90.3 | B5: 0 | C5: -109.45 | D5: 14.22 | E5: 14.22 | F5: 0.3 | G5: 0
A6: 90.4 | B6: 0 | C6: -109.45 | D6: 14.22 | E6: 14.22 | F6: 0.4 | G6: 0
A7: 90.5 | B7: 0 | C7: -109.45 | D7: 14.22 | E7: 14.22 | F7: 0.5 | G7: 0
A8: 90.6 | B8: 0 | C8: -109.45 | D8: 14.22 | E8: 14.22 | F8: 0.6 | G8: 0
A9: 90.7 | B9: 0 | C9: -109.44 | D9: 14.22 | E9: 14.22 | F9: 0.7 | G9: 0
A10: 90.8 | B10: 0 | C10: -109.45 | D10: 14.22 | E10: 14.22 | F10: 0.8 | G10: 0
A11: 90.9 | B11: 0 | C11: -109.44 | D11: 14.22 | E11: 14.22 | F11: 0.9 | G11: 0
A12: 91 | B12: 0 | C12: -109.45 | D12: 14.21 | E12: 14.21 | F12: 1 | G12: -0.01
A13: 91.1 | B13: 0 | C13: -109.45 | D13: 14.21 | E13: 14.21 | F13: 1.1 | G13: -0.01
A14: 91.2 | B14: 0 | C14: -109.45 | D14: 14.21 | E14: 14.21 | F14: 1.2 | G14: -0.01
A15: 91.3 | B15: 0 | C15: -109.45 | D15: 14.21 | E15: 14.21 | F15: 1.3 | G15: -0.01
A16: 91.4 | B16: 0 | C16: -109.45 | D16: 14.21 | E16: 14.21 | F16: 1.4 | G16: -0.01
A17: 91.5 | B17: 0 | C17: -109.45 | D17: 14.21 | E17: 14.21 | F17: 1.5 | G17: -0.01
A18: 91.6 | B18: 0 | C18: -109.45 | D18: 14.2 | E18: 14.2 | F18: 1.6 | G18: -0.02
A19: 91.7 | B19: 0 | C19: -109.46 | D19: 14.2 | E19: 14.2 | F19: 1.7 | G19: -0.02
A20: 91.8 | B20: 0 | C20: -109.45 | D20: 14.2 | E20: 14.2 | F20: 1.8 | G20: -0.02
A21: 91.9 | B21: 0 | C21: -109.45 | D21: 14.2 | E21: 14.2 | F21: 1.9 | G21: -0.02
A22: 92 | B22: 0 | C22: -109.45 | D22: 14.19 | E22: 14.19 | F22: 2 | G22: -0.03
A23: 92.1 | B23: 0 | C23: -109.46 | D23: 14.19 | E23: 14.19 | F23: 2.1 | G23: -0.03
A24: 92.2 | B24: 0 | C24: -109.46 | D24: 14.19 | E24: 14.19 | F24: 2.2 | G24: -0.03
A25: 92.3 | B25: 0 | C25: -109.46 | D25: 14.18 | E25: 14.18 | F25: 2.3 | G25: -0.04
A26: 92.4 | B26: 0 | C26: -109.46 | D26: 14.18 | E26: 14.18 | F26: 2.4 | G26: -0.04
A27: 92.5 | B27: 0 | C27: -109.46 | D27: 14.18 | E27: 14.18 | F27: 2.5 | G27: -0.04
A28: 92.6 | B28: 0 | C28: -109.45 | D28: 14.17 | E28: 14.17 | F28: 2.6 | G28: -0.05
A29: 92.7 | B29: 0 | C29: -109.46 | D29: 14.17 | E29: 14.17 | F29: 2.7 | G29: -0.05
A30: 92.8 | B30: 0 | C30: -109.46 | D30: 14.17 | E30: 14.17 | F30: 2.8 | G30: -0.05
A31: 92.9 | B31: 0 | C31: -109.46 | D31: 14.16 | E31: 14.16 | F31: 2.9 | G31: -0.06
A32: 93 | B32: 0 | C32: -109.47 | D32: 14.16 | E32: 14.16 | F32: 3 | G32: -0.06
A33: 93.1 | B33: 0 | C33: -109.46 | D33: 14.15 | E33: 14.15 | F33: 3.1 | G33: -0.07
A34: 93.2 | B34: 0 | C34: -109.47 | D34: 14.15 | E34: 14.15 | F34: 3.2 | G34: -0.07
A35: 93.3 | B35: 0 | C35: -109.46 | D35: 14.15 | E35: 14.15 | F35: 3.3 | G35: -0.07
A36: 93.4 | B36: 0 | C36: -109.46 | D36: 14.14 | E36: 14.14 | F36: 3.4 | G36: -0.08
A37: 93.5 | B37: 0 | C37: -109.47 | D37: 14.14 | E37: 14.14 | F37: 3.5 | G37: -0.08
A38: 93.6 | B38: 0 | C38: -109.46 | D38: 14.13 | E38: 14.13 | F38: 3.6 | G38: -0.09
A39: 93.7 | B39: 0 | C39: -109.47 | D39: 14.13 | E39: 14.13 | F39: 3.7 | G39: -0.09
A40: 93.8 | B40: 0 | C40: -109.46 | D40: 14.12 | E40: 14.12 | F40: 3.8 | G40: -0.1
A41: 93.9 | B41: 0 | C41: -109.47 | D41: 14.12 | E41: 14.12 | F41: 3.9 | G41: -0.1
A42: 94 | B42: 0 | C42: -109.47 | D42: 14.11 | E42: 14.11 | F42: 4 | G42: -0.11
A43: 94.1 | B43: 0 | C43: -109.47 | D43: 14.11 | E43: 14.11 | F43: 4.1 | G43: -0.11
A44: 94.2 | B44: 0 | C44: -109.47 | D44: 14.1 | E44: 14.1 | F44: 4.2 | G44: -0.12
A45: 94.3 | B45: 0 | C45: -109.48 | D45: 14.09 | E45: 14.09 | F45: 4.3 | G45: -0.13
A46: 94.4 | B46: 0 | C46: -109.47 | D46: 14.09 | E46: 14.09 | F46: 4.4 | G46: -0.13
A47: 94.5 | B47: 0 | C47: -109.48 | D47: 14.08 | E47: 14.08 | F47: 4.5 | G47: -0.14
A48: 94.6 | B48: 0 | C48: -109.48 | D48: 14.08 | E48: 14.08 | F48: 4.6 | G48: -0.14
A49: 94.7 | B49: 0 | C49: -109.48 | D49: 14.07 | E49: 14.07 | F49: 4.7 | G49: -0.15
A50: 94.8 | B50: 0 | C50: -109.48 | D50: 14.06 | E50: 14.06 | F50: 4.8 | G50: -0.16
A51: 94.9 | B51: 0 | C51: -109.48 | D51: 14.06 | E51: 14.06 | F51: 4.9 | G51: -0.16
A52: 95 | B52: 0 | C52: -109.49 | D52: 14.05 | E52: 14.05 | F52: 5 | G52: -0.17
A53: 95.1 | B53: 0 | C53: -109.48 | D53: 14.04 | E53: 14.04 | F53: 5.1 | G53: -0.18
A54: 95.2 | B54: 0 | C54: -109.48 | D54: 14.03 | E54: 14.03 | F54: 5.2 | G54: -0.19
A55: 95.3 | B55: 0 | C55: -109.49 | D55: 14.03 | E55: 14.03 | F55: 5.3 | G55: -0.19
A56: 95.4 | B56: 0 | C56: -109.49 | D56: 14.02 | E56: 14.02 | F56: 5.4 | G56: -0.2
A57: 95.5 | B57: 0 | C57: -109.49 | D57: 14.01 | E57: 14.01 | F57: 5.5 | G57: -0.21
A58: 95.6 | B58: 0 | C58: -109.49 | D58: 14 | E58: 14 | F58: 5.6 | G58: -0.22
A59: 95.7 | B59: 0 | C59: -109.49 | D59: 14 | E59: 14 | F59: 5.7 | G59: -0.22
A60: 95.8 | B60: 0 | C60: -109.49 | D60: 13.99 | E60: 13.99 | F60: 5.8 | G60: -0.23
A61: 95.9 | B61: 0 | C61: -109.5 | D61: 13.98 | E61: 13.98 | F61: 5.9 | G61: -0.24
A62: 96 | B62: 0 | C62: -109.49 | D62: 13.97 | E62: 13.97 | F62: 6 | G62: -0.25
A63: 96.1 | B63: 0 | C63: -109.5 | D63: 13.96 | E63: 13.96 | F63: 6.1 | G63: -0.26
A64: 96.2 | B64: 0 | C64: -109.5 | D64: 13.96 | E64: 13.96 | F64: 6.2 | G64: -0.26
A65: 96.3 | B65: 0 | C65: -109.5 | D65: 13.95 | E65: 13.95 | F65: 6.3 | G65: -0.27
A66: 96.4 | B66: 0 | C66: -109.5 | D66: 13.94 | E66: 13.94 | F66: 6.4 | G66: -0.28
A67: 96.5 | B67: 0 | C67: -109.51 | D67: 13.93 | E67: 13.93 | F67: =A67-90 -> 6.5 | G67: =E67-$G$1 -> -0.29
A68: 96.6 | B68: 0 | C68: -109.51 | D68: 13.92 | E68: 13.92 | F68: 6.6 | G68: -0.3
A69: 96.7 | B69: 0 | C69: -109.5 | D69: 13.91 | E69: 13.91 | F69: 6.7 | G69: -0.31
A70: 96.8 | B70: 0 | C70: -109.51 | D70: 13.9 | E70: 13.9 | F70: 6.8 | G70: -0.32
A71: 96.9 | B71: 0 | C71: -109.51 | D71: 13.89 | E71: 13.89 | F71: 6.9 | G71: -0.33
A72: 97 | B72: 0 | C72: -109.51 | D72: 13.88 | E72: 13.88 | F72: 7 | G72: -0.34
A73: 97.1 | B73: 0 | C73: -109.52 | D73: 13.87 | E73: 13.87 | F73: 7.1 | G73: -0.35
A74: 97.2 | B74: 0 | C74: -109.52 | D74: 13.86 | E74: 13.86 | F74: 7.2 | G74: -0.36
A75: 97.3 | B75: 0 | C75: -109.53 | D75: 13.85 | E75: 13.85 | F75: 7.3 | G75: -0.37
A76: 97.4 | B76: 0 | C76: -109.53 | D76: 13.84 | E76: 13.84 | F76: 7.4 | G76: -0.38
A77: 97.5 | B77: 0 | C77: -109.53 | D77: 13.83 | E77: 13.83 | F77: 7.5 | G77: -0.39
A78: 97.6 | B78: 0 | C78: -109.53 | D78: 13.82 | E78: 13.82 | F78: 7.6 | G78: -0.4
A79: 97.7 | B79: 0 | C79: -109.53 | D79: 13.81 | E79: 13.81 | F79: 7.7 | G79: -0.41
A80: 97.8 | B80: 0 | C80: -109.52 | D80: 13.8 | E80: 13.8 | F80: 7.8 | G80: -0.42
A81: 97.9 | B81: 0 | C81: -109.53 | D81: 13.78 | E81: 13.78 | F81: 7.9 | G81: -0.44
A82: 98 | B82: 0 | C82: -109.54 | D82: 13.77 | E82: 13.77 | F82: 8 | G82: -0.45
A83: 98.1 | B83: 0 | C83: -109.53 | D83: 13.76 | E83: 13.76 | F83: 8.1 | G83: -0.46
A84: 98.2 | B84: 0 | C84: -109.54 | D84: 13.75 | E84: 13.75 | F84: 8.2 | G84: -0.47
A85: 98.3 | B85: 0 | C85: -109.54 | D85: 13.74 | E85: 13.74 | F85: 8.3 | G85: -0.48
A86: 98.4 | B86: 0 | C86: -109.54 | D86: 13.73 | E86: 13.73 | F86: 8.4 | G86: -0.49
A87: 98.5 | B87: 0 | C87: -109.55 | D87: 13.71 | E87: 13.71 | F87: 8.5 | G87: -0.51
A88: 98.6 | B88: 0 | C88: -109.54 | D88: 13.7 | E88: 13.7 | F88: 8.6 | G88: -0.52
A89: 98.7 | B89: 0 | C89: -109.55 | D89: 13.69 | E89: 13.69 | F89: 8.7 | G89: -0.53
A90: 98.8 | B90: 0 | C90: -109.55 | D90: 13.68 | E90: 13.68 | F90: 8.8 | G90: -0.54
A91: 98.9 | B91: 0 | C91: -109.55 | D91: 13.66 | E91: 13.66 | F91: 8.9 | G91: -0.56
A92: 99 | B92: 0 | C92: -109.55 | D92: 13.65 | E92: 13.65 | F92: 9 | G92: -0.57
A93: 99.1 | B93: 0 | C93: -109.56 | D93: 13.64 | E93: 13.64 | F93: 9.1 | G93: -0.58
A94: 99.2 | B94: 0 | C94: -109.57 | D94: 13.62 | E94: 13.62 | F94: 9.2 | G94: -0.6
A95: 99.3 | B95: 0 | C95: -109.56 | D95: 13.61 | E95: 13.61 | F95: 9.3 | G95: -0.61
A96: 99.4 | B96: 0 | C96: -109.57 | D96: 13.6 | E96: 13.6 | F96: 9.4 | G96: -0.62
A97: 99.5 | B97: 0 | C97: -109.57 | D97: 13.58 | E97: 13.58 | F97: 9.5 | G97: -0.64
A98: 99.6 | B98: 0 | C98: -109.57 | D98: 13.57 | E98: 13.57 | F98: 9.6 | G98: -0.65
A99: 99.7 | B99: 0 | C99: -109.58 | D99: 13.55 | E99: 13.55 | F99: 9.7 | G99: -0.67
A100: 99.8 | B100: 0 | C100: -109.57 | D100: 13.54 | E100: 13.54 | F100: 9.8 | G100: -0.68
A101: 99.9 | B101: 0 | C101: -109.58 | D101: 13.52 | E101: 13.52 | F101: 9.9 | G101: -0.7
A102: 100 | B102: 0 | C102: -109.58 | D102: 13.51 | E102: 13.51 | F102: 10 | G102: -0.71
A103: 100.1 | B103: 0 | C103: -109.59 | D103: 13.49 | E103: 13.49 | F103: 10.1 | G103: -0.73
A104: 100.2 | B104: 0 | C104: -109.58 | D104: 13.48 | E104: 13.48 | F104: 10.2 | G104: -0.74
A105: 100.3 | B105: 0 | C105: -109.59 | D105: 13.46 | E105: 13.46 | F105: 10.3 | G105: -0.76
A106: 100.4 | B106: 0 | C106: -109.59 | D106: 13.45 | E106: 13.45 | F106: 10.4 | G106: -0.77
A107: 100.5 | B107: 0 | C107: -109.6 | D107: 13.43 | E107: 13.43 | F107: 10.5 | G107: -0.79
A108: 100.6 | B108: 0 | C108: -109.6 | D108: 13.42 | E108: 13.42 | F108: 10.6 | G108: -0.8
A109: 100.7 | B109: 0 | C109: -109.6 | D109: 13.4 | E109: 13.4 | F109: 10.7 | G109: -0.82
A110: 100.8 | B110: 0 | C110: -109.6 | D110: 13.38 | E110: 13.38 | F110: 10.8 | G110: -0.84
A111: 100.9 | B111: 0 | C111: -109.61 | D111: 13.37 | E111: 13.37 | F111: 10.9 | G111: -0.85
A112: 101 | B112: 0 | C112: -109.61 | D112: 13.35 | E112: 13.35 | F112: 11 | G112: -0.87
A113: 101.1 | B113: 0 | C113: -109.61 | D113: 13.33 | E113: 13.33 | F113: 11.1 | G113: -0.89
A114: 101.2 | B114: 0 | C114: -109.61 | D114: 13.32 | E114: 13.32 | F114: 11.2 | G114: -0.9
A115: 101.3 | B115: 0 | C115: -109.62 | D115: 13.3 | E115: 13.3 | F115: 11.3 | G115: -0.92
A116: 101.4 | B116: 0 | C116: -109.62 | D116: 13.28 | E116: 13.28 | F116: 11.4 | G116: -0.94
A117: 101.5 | B117: 0 | C117: -109.62 | D117: 13.26 | E117: 13.26 | F117: 11.5 | G117: -0.96
A118: 101.6 | B118: 0 | C118: -109.63 | D118: 13.25 | E118: 13.25 | F118: 11.6 | G118: -0.97
A119: 101.7 | B119: 0 | C119: -109.63 | D119: 13.23 | E119: 13.23 | F119: 11.7 | G119: -0.99
A120: 101.8 | B120: 0 | C120: -109.64 | D120: 13.21 | E120: 13.21 | F120: 11.8 | G120: -1.01
A121: 101.9 | B121: 0 | C121: -109.64 | D121: 13.19 | E121: 13.19 | F121: 11.9 | G121: -1.03
A122: 102 | B122: 0 | C122: -109.64 | D122: 13.17 | E122: 13.17 | F122: 12 | G122: -1.05
A123: 102.1 | B123: 0 | C123: -109.64 | D123: 13.15 | E123: 13.15 | F123: 12.1 | G123: -1.07
A124: 102.2 | B124: 0 | C124: -109.64 | D124: 13.13 | E124: 13.13 | F124: 12.2 | G124: -1.09
A125: 102.3 | B125: 0 | C125: -109.65 | D125: 13.12 | E125: 13.12 | F125: 12.3 | G125: -1.1
A126: 102.4 | B126: 0 | C126: -109.65 | D126: 13.1 | E126: 13.1 | F126: 12.4 | G126: -1.12
A127: 102.5 | B127: 0 | C127: -109.66 | D127: 13.08 | E127: 13.08 | F127: 12.5 | G127: -1.14
A128: 102.6 | B128: 0 | C128: -109.66 | D128: 13.06 | E128: 13.06 | F128: 12.6 | G128: -1.16
A129: 102.7 | B129: 0 | C129: -109.66 | D129: 13.04 | E129: 13.04 | F129: 12.7 | G129: -1.18
A130: 102.8 | B130: 0 | C130: -109.67 | D130: 13.02 | E130: 13.02 | F130: 12.8 | G130: -1.2
A131: 102.9 | B131: 0 | C131: -109.67 | D131: 12.99 | E131: 12.99 | F131: =A131-90 -> 12.9 | G131: =E131-$G$1 -> -1.23
A132: 103 | B132: 0 | C132: -109.67 | D132: 12.97 | E132: 12.97 | F132: 13 | G132: -1.25
A133: 103.1 | B133: 0 | C133: -109.68 | D133: 12.95 | E133: 12.95 | F133: 13.1 | G133: -1.27
A134: 103.2 | B134: 0 | C134: -109.68 | D134: 12.93 | E134: 12.93 | F134: 13.2 | G134: -1.29
A135: 103.3 | B135: 0 | C135: -109.68 | D135: 12.91 | E135: 12.91 | F135: 13.3 | G135: -1.31
A136: 103.4 | B136: 0 | C136: -109.69 | D136: 12.89 | E136: 12.89 | F136: 13.4 | G136: -1.33
A137: 103.5 | B137: 0 | C137: -109.69 | D137: 12.87 | E137: 12.87 | F137: 13.5 | G137: -1.35
A138: 103.6 | B138: 0 | C138: -109.69 | D138: 12.84 | E138: 12.84 | F138: 13.6 | G138: -1.38
A139: 103.7 | B139: 0 | C139: -109.7 | D139: 12.82 | E139: 12.82 | F139: 13.7 | G139: -1.4
A140: 103.8 | B140: 0 | C140: -109.7 | D140: 12.8 | E140: 12.8 | F140: 13.8 | G140: -1.42
A141: 103.9 | B141: 0 | C141: -109.71 | D141: 12.78 | E141: 12.78 | F141: 13.9 | G141: -1.44
A142: 104 | B142: 0 | C142: -109.71 | D142: 12.75 | E142: 12.75 | F142: 14 | G142: -1.47
A143: 104.1 | B143: 0 | C143: -109.72 | D143: 12.73 | E143: 12.73 | F143: 14.1 | G143: -1.49
A144: 104.2 | B144: 0 | C144: -109.72 | D144: 12.71 | E144: 12.71 | F144: 14.2 | G144: -1.51
A145: 104.3 | B145: 0 | C145: -109.72 | D145: 12.68 | E145: 12.68 | F145: 14.3 | G145: -1.54
A146: 104.4 | B146: 0 | C146: -109.73 | D146: 12.66 | E146: 12.66 | F146: 14.4 | G146: -1.56
A147: 104.5 | B147: 0 | C147: -109.73 | D147: 12.64 | E147: 12.64 | F147: 14.5 | G147: -1.58
A148: 104.6 | B148: 0 | C148: -109.74 | D148: 12.61 | E148: 12.61 | F148: 14.6 | G148: -1.61
A149: 104.7 | B149: 0 | C149: -109.74 | D149: 12.59 | E149: 12.59 | F149: 14.7 | G149: -1.63
A150: 104.8 | B150: 0 | C150: -109.73 | D150: 12.56 | E150: 12.56 | F150: 14.8 | G150: -1.66
A151: 104.9 | B151: 0 | C151: -109.75 | D151: 12.54 | E151: 12.54 | F151: 14.9 | G151: -1.68
A152: 105 | B152: 0 | C152: -109.75 | D152: 12.51 | E152: 12.51 | F152: 15 | G152: -1.71
A153: 105.1 | B153: 0 | C153: -109.75 | D153: 12.49 | E153: 12.49 | F153: 15.1 | G153: -1.73
A154: 105.2 | B154: 0 | C154: -109.75 | D154: 12.46 | E154: 12.46 | F154: 15.2 | G154: -1.76
A155: 105.3 | B155: 0 | C155: -109.76 | D155: 12.43 | E155: 12.43 | F155: 15.3 | G155: -1.79
A156: 105.4 | B156: 0 | C156: -109.77 | D156: 12.41 | E156: 12.41 | F156: 15.4 | G156: -1.81
A157: 105.5 | B157: 0 | C157: -109.77 | D157: 12.38 | E157: 12.38 | F157: 15.5 | G157: -1.84
A158: 105.6 | B158: 0 | C158: -109.77 | D158: 12.35 | E158: 12.35 | F158: 15.6 | G158: -1.87
A159: 105.7 | B159: 0 | C159: -109.78 | D159: 12.33 | E159: 12.33 | F159: 15.7 | G159: -1.89
A160: 105.8 | B160: 0 | C160: -109.78 | D160: 12.3 | E160: 12.3 | F160: 15.8 | G160: -1.92
A161: 105.9 | B161: 0 | C161: -109.79 | D161: 12.27 | E161: 12.27 | F161: 15.9 | G161: -1.95
A162: 106 | B162: 0 | C162: -109.79 | D162: 12.24 | E162: 12.24 | F162: 16 | G162: -1.98
A163: 106.1 | B163: 0 | C163: -109.79 | D163: 12.21 | E163: 12.21 | F163: 16.1 | G163: -2.01
A164: 106.2 | B164: 0 | C164: -109.8 | D164: 12.19 | E164: 12.19 | F164: 16.2 | G164: -2.03
A165: 106.3 | B165: 0 | C165: -109.8 | D165: 12.16 | E165: 12.16 | F165: 16.3 | G165: -2.06
A166: 106.4 | B166: 0 | C166: -109.81 | D166: 12.13 | E166: 12.13 | F166: 16.4 | G166: -2.09
A167: 106.5 | B167: 0 | C167: -109.81 | D167: 12.1 | E167: 12.1 | F167: 16.5 | G167: -2.12
A168: 106.6 | B168: 0 | C168: -109.82 | D168: 12.07 | E168: 12.07 | F168: 16.6 | G168: -2.15
A169: 106.7 | B169: 0 | C169: -109.83 | D169: 12.04 | E169: 12.04 | F169: 16.7 | G169: -2.18
A170: 106.8 | B170: 0 | C170: -109.82 | D170: 12.01 | E170: 12.01 | F170: 16.8 | G170: -2.21
A171: 106.9 | B171: 0 | C171: -109.83 | D171: 11.98 | E171: 11.98 | F171: 16.9 | G171: -2.24
A172: 107 | B172: 0 | C172: -109.84 | D172: 11.95 | E172: 11.95 | F172: 17 | G172: -2.27
A173: 107.1 | B173: 0 | C173: -109.85 | D173: 11.92 | E173: 11.92 | F173: 17.1 | G173: -2.3
A174: 107.2 | B174: 0 | C174: -109.84 | D174: 11.88 | E174: 11.88 | F174: 17.2 | G174: -2.34
A175: 107.3 | B175: 0 | C175: -109.85 | D175: 11.85 | E175: 11.85 | F175: 17.3 | G175: -2.37
A176: 107.4 | B176: 0 | C176: -109.85 | D176: 11.82 | E176: 11.82 | F176: 17.4 | G176: -2.4
A177: 107.5 | B177: 0 | C177: -109.87 | D177: 11.79 | E177: 11.79 | F177: 17.5 | G177: -2.43
A178: 107.6 | B178: 0 | C178: -109.86 | D178: 11.76 | E178: 11.76 | F178: 17.6 | G178: -2.46
A179: 107.7 | B179: 0 | C179: -109.86 | D179: 11.72 | E179: 11.72 | F179: 17.7 | G179: -2.5
A180: 107.8 | B180: 0 | C180: -109.88 | D180: 11.69 | E180: 11.69 | F180: 17.8 | G180: -2.53
A181: 107.9 | B181: 0 | C181: -109.88 | D181: 11.66 | E181: 11.66 | F181: 17.9 | G181: -2.56
A182: 108 | B182: 0 | C182: -109.89 | D182: 11.62 | E182: 11.62 | F182: 18 | G182: -2.6
A183: 108.1 | B183: 0 | C183: -109.89 | D183: 11.59 | E183: 11.59 | F183: 18.1 | G183: -2.63
A184: 108.2 | B184: 0 | C184: -109.89 | D184: 11.55 | E184: 11.55 | F184: 18.2 | G184: -2.67
A185: 108.3 | B185: 0 | C185: -109.9 | D185: 11.52 | E185: 11.52 | F185: 18.3 | G185: -2.7
A186: 108.4 | B186: 0 | C186: -109.91 | D186: 11.48 | E186: 11.48 | F186: 18.4 | G186: -2.74
A187: 108.5 | B187: 0 | C187: -109.91 | D187: 11.45 | E187: 11.45 | F187: 18.5 | G187: -2.77
A188: 108.6 | B188: 0 | C188: -109.92 | D188: 11.41 | E188: 11.41 | F188: 18.6 | G188: -2.81
A189: 108.7 | B189: 0 | C189: -109.92 | D189: 11.38 | E189: 11.38 | F189: 18.7 | G189: -2.84
A190: 108.8 | B190: 0 | C190: -109.92 | D190: 11.34 | E190: 11.34 | F190: 18.8 | G190: -2.88
A191: 108.9 | B191: 0 | C191: -109.93 | D191: 11.3 | E191: 11.3 | F191: 18.9 | G191: -2.92
A192: 109 | B192: 0 | C192: -109.93 | D192: 11.27 | E192: 11.27 | F192: 19 | G192: -2.95
A193: 109.1 | B193: 0 | C193: -109.94 | D193: 11.23 | E193: 11.23 | F193: 19.1 | G193: -2.99
A194: 109.2 | B194: 0 | C194: -109.95 | D194: 11.19 | E194: 11.19 | F194: 19.2 | G194: -3.03
A195: 109.3 | B195: 0 | C195: -109.95 | D195: 11.15 | E195: 11.15 | F195: =A195-90 -> 19.3 | G195: =E195-$G$1 -> -3.07
A196: 109.4 | B196: 0 | C196: -109.96 | D196: 11.11 | E196: 11.11 | F196: 19.4 | G196: -3.11
A197: 109.5 | B197: 0 | C197: -109.97 | D197: 11.07 | E197: 11.07 | F197: 19.5 | G197: -3.15
A198: 109.6 | B198: 0 | C198: -109.97 | D198: 11.03 | E198: 11.03 | F198: 19.6 | G198: -3.19
A199: 109.7 | B199: 0 | C199: -109.97 | D199: 10.99 | E199: 10.99 | F199: 19.7 | G199: -3.23
A200: 109.8 | B200: 0 | C200: -109.97 | D200: 10.95 | E200: 10.95 | F200: 19.8 | G200: -3.27
... 702 more rows

Sheet Antenna Data
B1: =IF(Home!$K$10=1,'Antenna Data'!C1,IF(Home!$K$10=2,'Antenna Data'!D1,IF(Home!$K$10=3,'Antenna Data'!E1,IF(Home!$K$10=4,'Antenna Data'!F1,IF(Home!$K$10=5,'Antenna Data'!G1,IF(Home!$K$10=6,'Antenna Data'!H1,IF(Home!G11=0,"No Name",Home!G11))))))) -> 12el 144 DK7ZB | C1: 5el 144 | D1: 9el 144 DK7ZB Wimo | E1: 10el 144 DK7ZB | F1: 12el 144 DK7ZB | G1: 2x12el Stack 144 DK7ZB | H1: Dipole
B2: =IF(Home!$K$10=1,'Antenna Data'!C2,IF(Home!$K$10=2,'Antenna Data'!D2,IF(Home!$K$10=3,'Antenna Data'!E2,IF(Home!$K$10=4,'Antenna Data'!F2,IF(Home!$K$10=5,'Antenna Data'!G2,IF(Home!$K$10=6,'Antenna Data'!H2,'Import Other Antenna'!G1)))))) -> 16.37 | C2: 10.48 | D2: 14.22 | E2: 15.25 | F2: 16.37 | G2: 19.33 | H2: 2.15
A3: 0 | B3: =IF(Home!$K$10=1,'Antenna Data'!C3,IF(Home!$K$10=2,'Antenna Data'!D3,IF(Home!$K$10=3,'Antenna Data'!E3,IF(Home!$K$10=4,'Antenna Data'!F3,IF(Home!$K$10=5,'Antenna Data'!G3,IF(Home!$K$10=6,'Antenna Data'!H3,'Import Other Antenna'!G2)))))) -> 0 | C3: 0 | D3: 0 | E3: 0 | F3: 0 | G3: 0 | H3: 0
A4: 0.1 | B4: =IF(Home!$K$10=1,'Antenna Data'!C4,IF(Home!$K$10=2,'Antenna Data'!D4,IF(Home!$K$10=3,'Antenna Data'!E4,IF(Home!$K$10=4,'Antenna Data'!F4,IF(Home!$K$10=5,'Antenna Data'!G4,IF(Home!$K$10=6,'Antenna Data'!H4,'Import Other Antenna'!G3)))))) -> 0 | C4: 0 | D4: 0 | E4: 0 | F4: 0 | G4: 0 | H4: 0
A5: 0.2 | B5: =IF(Home!$K$10=1,'Antenna Data'!C5,IF(Home!$K$10=2,'Antenna Data'!D5,IF(Home!$K$10=3,'Antenna Data'!E5,IF(Home!$K$10=4,'Antenna Data'!F5,IF(Home!$K$10=5,'Antenna Data'!G5,IF(Home!$K$10=6,'Antenna Data'!H5,'Import Other Antenna'!G4)))))) -> 0 | C5: 0 | D5: 0 | E5: 0 | F5: 0 | G5: 0 | H5: 0
A6: 0.3 | B6: =IF(Home!$K$10=1,'Antenna Data'!C6,IF(Home!$K$10=2,'Antenna Data'!D6,IF(Home!$K$10=3,'Antenna Data'!E6,IF(Home!$K$10=4,'Antenna Data'!F6,IF(Home!$K$10=5,'Antenna Data'!G6,IF(Home!$K$10=6,'Antenna Data'!H6,'Import Other Antenna'!G5)))))) -> 0 | C6: 0 | D6: 0 | E6: 0 | F6: 0 | G6: 0 | H6: 0
A7: 0.4 | B7: =IF(Home!$K$10=1,'Antenna Data'!C7,IF(Home!$K$10=2,'Antenna Data'!D7,IF(Home!$K$10=3,'Antenna Data'!E7,IF(Home!$K$10=4,'Antenna Data'!F7,IF(Home!$K$10=5,'Antenna Data'!G7,IF(Home!$K$10=6,'Antenna Data'!H7,'Import Other Antenna'!G6)))))) -> 0 | C7: 0 | D7: 0 | E7: 0 | F7: 0 | G7: -0.01 | H7: 0
A8: 0.5 | B8: =IF(Home!$K$10=1,'Antenna Data'!C8,IF(Home!$K$10=2,'Antenna Data'!D8,IF(Home!$K$10=3,'Antenna Data'!E8,IF(Home!$K$10=4,'Antenna Data'!F8,IF(Home!$K$10=5,'Antenna Data'!G8,IF(Home!$K$10=6,'Antenna Data'!H8,'Import Other Antenna'!G7)))))) -> 0 | C8: 0 | D8: 0 | E8: 0 | F8: 0 | G8: -0.01 | H8: 0
A9: 0.6 | B9: =IF(Home!$K$10=1,'Antenna Data'!C9,IF(Home!$K$10=2,'Antenna Data'!D9,IF(Home!$K$10=3,'Antenna Data'!E9,IF(Home!$K$10=4,'Antenna Data'!F9,IF(Home!$K$10=5,'Antenna Data'!G9,IF(Home!$K$10=6,'Antenna Data'!H9,'Import Other Antenna'!G8)))))) -> 0 | C9: 0 | D9: 0 | E9: 0 | F9: 0 | G9: -0.02 | H9: 0
A10: 0.7 | B10: =IF(Home!$K$10=1,'Antenna Data'!C10,IF(Home!$K$10=2,'Antenna Data'!D10,IF(Home!$K$10=3,'Antenna Data'!E10,IF(Home!$K$10=4,'Antenna Data'!F10,IF(Home!$K$10=5,'Antenna Data'!G10,IF(Home!$K$10=6,'Antenna Data'!H10,'Import Other Antenna'!G9)))))) -> 0 | C10: 0 | D10: 0 | E10: -0.01 | F10: 0 | G10: -0.03 | H10: 0
A11: 0.8 | B11: =IF(Home!$K$10=1,'Antenna Data'!C11,IF(Home!$K$10=2,'Antenna Data'!D11,IF(Home!$K$10=3,'Antenna Data'!E11,IF(Home!$K$10=4,'Antenna Data'!F11,IF(Home!$K$10=5,'Antenna Data'!G11,IF(Home!$K$10=6,'Antenna Data'!H11,'Import Other Antenna'!G10)))))) -> -0.01 | C11: 0 | D11: 0 | E11: -0.01 | F11: -0.01 | G11: -0.04 | H11: 0
A12: 0.9 | B12: =IF(Home!$K$10=1,'Antenna Data'!C12,IF(Home!$K$10=2,'Antenna Data'!D12,IF(Home!$K$10=3,'Antenna Data'!E12,IF(Home!$K$10=4,'Antenna Data'!F12,IF(Home!$K$10=5,'Antenna Data'!G12,IF(Home!$K$10=6,'Antenna Data'!H12,'Import Other Antenna'!G11)))))) -> -0.01 | C12: 0 | D12: 0 | E12: -0.01 | F12: -0.01 | G12: -0.05 | H12: 0
A13: 1 | B13: =IF(Home!$K$10=1,'Antenna Data'!C13,IF(Home!$K$10=2,'Antenna Data'!D13,IF(Home!$K$10=3,'Antenna Data'!E13,IF(Home!$K$10=4,'Antenna Data'!F13,IF(Home!$K$10=5,'Antenna Data'!G13,IF(Home!$K$10=6,'Antenna Data'!H13,'Import Other Antenna'!G12)))))) -> -0.01 | C13: 0 | D13: -0.01 | E13: -0.01 | F13: -0.01 | G13: -0.06 | H13: 0
A14: 1.1 | B14: =IF(Home!$K$10=1,'Antenna Data'!C14,IF(Home!$K$10=2,'Antenna Data'!D14,IF(Home!$K$10=3,'Antenna Data'!E14,IF(Home!$K$10=4,'Antenna Data'!F14,IF(Home!$K$10=5,'Antenna Data'!G14,IF(Home!$K$10=6,'Antenna Data'!H14,'Import Other Antenna'!G13)))))) -> -0.01 | C14: 0 | D14: -0.01 | E14: -0.01 | F14: -0.01 | G14: -0.08 | H14: 0
A15: 1.2 | B15: =IF(Home!$K$10=1,'Antenna Data'!C15,IF(Home!$K$10=2,'Antenna Data'!D15,IF(Home!$K$10=3,'Antenna Data'!E15,IF(Home!$K$10=4,'Antenna Data'!F15,IF(Home!$K$10=5,'Antenna Data'!G15,IF(Home!$K$10=6,'Antenna Data'!H15,'Import Other Antenna'!G14)))))) -> -0.02 | C15: 0 | D15: -0.01 | E15: -0.01 | F15: -0.02 | G15: -0.09 | H15: 0
A16: 1.3 | B16: =IF(Home!$K$10=1,'Antenna Data'!C16,IF(Home!$K$10=2,'Antenna Data'!D16,IF(Home!$K$10=3,'Antenna Data'!E16,IF(Home!$K$10=4,'Antenna Data'!F16,IF(Home!$K$10=5,'Antenna Data'!G16,IF(Home!$K$10=6,'Antenna Data'!H16,'Import Other Antenna'!G15)))))) -> -0.02 | C16: 0 | D16: -0.01 | E16: -0.02 | F16: -0.02 | G16: -0.11 | H16: 0
A17: 1.4 | B17: =IF(Home!$K$10=1,'Antenna Data'!C17,IF(Home!$K$10=2,'Antenna Data'!D17,IF(Home!$K$10=3,'Antenna Data'!E17,IF(Home!$K$10=4,'Antenna Data'!F17,IF(Home!$K$10=5,'Antenna Data'!G17,IF(Home!$K$10=6,'Antenna Data'!H17,'Import Other Antenna'!G16)))))) -> -0.02 | C17: 0 | D17: -0.01 | E17: -0.02 | F17: -0.02 | G17: -0.12 | H17: 0
A18: 1.5 | B18: =IF(Home!$K$10=1,'Antenna Data'!C18,IF(Home!$K$10=2,'Antenna Data'!D18,IF(Home!$K$10=3,'Antenna Data'!E18,IF(Home!$K$10=4,'Antenna Data'!F18,IF(Home!$K$10=5,'Antenna Data'!G18,IF(Home!$K$10=6,'Antenna Data'!H18,'Import Other Antenna'!G17)))))) -> -0.03 | C18: 0 | D18: -0.01 | E18: -0.02 | F18: -0.03 | G18: -0.14 | H18: 0
A19: 1.6 | B19: =IF(Home!$K$10=1,'Antenna Data'!C19,IF(Home!$K$10=2,'Antenna Data'!D19,IF(Home!$K$10=3,'Antenna Data'!E19,IF(Home!$K$10=4,'Antenna Data'!F19,IF(Home!$K$10=5,'Antenna Data'!G19,IF(Home!$K$10=6,'Antenna Data'!H19,'Import Other Antenna'!G18)))))) -> -0.03 | C19: 0 | D19: -0.02 | E19: -0.02 | F19: -0.03 | G19: -0.16 | H19: 0
A20: 1.7 | B20: =IF(Home!$K$10=1,'Antenna Data'!C20,IF(Home!$K$10=2,'Antenna Data'!D20,IF(Home!$K$10=3,'Antenna Data'!E20,IF(Home!$K$10=4,'Antenna Data'!F20,IF(Home!$K$10=5,'Antenna Data'!G20,IF(Home!$K$10=6,'Antenna Data'!H20,'Import Other Antenna'!G19)))))) -> -0.03 | C20: 0 | D20: -0.02 | E20: -0.03 | F20: -0.03 | G20: -0.18 | H20: 0
A21: 1.8 | B21: =IF(Home!$K$10=1,'Antenna Data'!C21,IF(Home!$K$10=2,'Antenna Data'!D21,IF(Home!$K$10=3,'Antenna Data'!E21,IF(Home!$K$10=4,'Antenna Data'!F21,IF(Home!$K$10=5,'Antenna Data'!G21,IF(Home!$K$10=6,'Antenna Data'!H21,'Import Other Antenna'!G20)))))) -> -0.04 | C21: 0 | D21: -0.02 | E21: -0.03 | F21: -0.04 | G21: -0.21 | H21: 0
A22: 1.9 | B22: =IF(Home!$K$10=1,'Antenna Data'!C22,IF(Home!$K$10=2,'Antenna Data'!D22,IF(Home!$K$10=3,'Antenna Data'!E22,IF(Home!$K$10=4,'Antenna Data'!F22,IF(Home!$K$10=5,'Antenna Data'!G22,IF(Home!$K$10=6,'Antenna Data'!H22,'Import Other Antenna'!G21)))))) -> -0.04 | C22: 0 | D22: -0.02 | E22: -0.03 | F22: -0.04 | G22: -0.23 | H22: 0
A23: 2 | B23: =IF(Home!$K$10=1,'Antenna Data'!C23,IF(Home!$K$10=2,'Antenna Data'!D23,IF(Home!$K$10=3,'Antenna Data'!E23,IF(Home!$K$10=4,'Antenna Data'!F23,IF(Home!$K$10=5,'Antenna Data'!G23,IF(Home!$K$10=6,'Antenna Data'!H23,'Import Other Antenna'!G22)))))) -> -0.05 | C23: -0.01 | D23: -0.03 | E23: -0.04 | F23: -0.05 | G23: -0.26 | H23: 0
A24: 2.1 | B24: =IF(Home!$K$10=1,'Antenna Data'!C24,IF(Home!$K$10=2,'Antenna Data'!D24,IF(Home!$K$10=3,'Antenna Data'!E24,IF(Home!$K$10=4,'Antenna Data'!F24,IF(Home!$K$10=5,'Antenna Data'!G24,IF(Home!$K$10=6,'Antenna Data'!H24,'Import Other Antenna'!G23)))))) -> -0.05 | C24: -0.01 | D24: -0.03 | E24: -0.04 | F24: -0.05 | G24: -0.28 | H24: 0
A25: 2.2 | B25: =IF(Home!$K$10=1,'Antenna Data'!C25,IF(Home!$K$10=2,'Antenna Data'!D25,IF(Home!$K$10=3,'Antenna Data'!E25,IF(Home!$K$10=4,'Antenna Data'!F25,IF(Home!$K$10=5,'Antenna Data'!G25,IF(Home!$K$10=6,'Antenna Data'!H25,'Import Other Antenna'!G24)))))) -> -0.06 | C25: -0.01 | D25: -0.03 | E25: -0.04 | F25: -0.06 | G25: -0.31 | H25: 0
A26: 2.3 | B26: =IF(Home!$K$10=1,'Antenna Data'!C26,IF(Home!$K$10=2,'Antenna Data'!D26,IF(Home!$K$10=3,'Antenna Data'!E26,IF(Home!$K$10=4,'Antenna Data'!F26,IF(Home!$K$10=5,'Antenna Data'!G26,IF(Home!$K$10=6,'Antenna Data'!H26,'Import Other Antenna'!G25)))))) -> -0.06 | C26: -0.01 | D26: -0.04 | E26: -0.05 | F26: -0.06 | G26: -0.34 | H26: 0
A27: 2.4 | B27: =IF(Home!$K$10=1,'Antenna Data'!C27,IF(Home!$K$10=2,'Antenna Data'!D27,IF(Home!$K$10=3,'Antenna Data'!E27,IF(Home!$K$10=4,'Antenna Data'!F27,IF(Home!$K$10=5,'Antenna Data'!G27,IF(Home!$K$10=6,'Antenna Data'!H27,'Import Other Antenna'!G26)))))) -> -0.07 | C27: -0.01 | D27: -0.04 | E27: -0.05 | F27: -0.07 | G27: -0.37 | H27: 0
A28: 2.5 | B28: =IF(Home!$K$10=1,'Antenna Data'!C28,IF(Home!$K$10=2,'Antenna Data'!D28,IF(Home!$K$10=3,'Antenna Data'!E28,IF(Home!$K$10=4,'Antenna Data'!F28,IF(Home!$K$10=5,'Antenna Data'!G28,IF(Home!$K$10=6,'Antenna Data'!H28,'Import Other Antenna'!G27)))))) -> -0.07 | C28: -0.01 | D28: -0.04 | E28: -0.06 | F28: -0.07 | G28: -0.4 | H28: 0
A29: 2.6 | B29: =IF(Home!$K$10=1,'Antenna Data'!C29,IF(Home!$K$10=2,'Antenna Data'!D29,IF(Home!$K$10=3,'Antenna Data'!E29,IF(Home!$K$10=4,'Antenna Data'!F29,IF(Home!$K$10=5,'Antenna Data'!G29,IF(Home!$K$10=6,'Antenna Data'!H29,'Import Other Antenna'!G28)))))) -> -0.08 | C29: -0.01 | D29: -0.05 | E29: -0.06 | F29: -0.08 | G29: -0.44 | H29: 0
A30: 2.7 | B30: =IF(Home!$K$10=1,'Antenna Data'!C30,IF(Home!$K$10=2,'Antenna Data'!D30,IF(Home!$K$10=3,'Antenna Data'!E30,IF(Home!$K$10=4,'Antenna Data'!F30,IF(Home!$K$10=5,'Antenna Data'!G30,IF(Home!$K$10=6,'Antenna Data'!H30,'Import Other Antenna'!G29)))))) -> -0.09 | C30: -0.01 | D30: -0.05 | E30: -0.07 | F30: -0.09 | G30: -0.47 | H30: 0
A31: 2.8 | B31: =IF(Home!$K$10=1,'Antenna Data'!C31,IF(Home!$K$10=2,'Antenna Data'!D31,IF(Home!$K$10=3,'Antenna Data'!E31,IF(Home!$K$10=4,'Antenna Data'!F31,IF(Home!$K$10=5,'Antenna Data'!G31,IF(Home!$K$10=6,'Antenna Data'!H31,'Import Other Antenna'!G30)))))) -> -0.09 | C31: -0.01 | D31: -0.05 | E31: -0.07 | F31: -0.09 | G31: -0.51 | H31: 0
A32: 2.9 | B32: =IF(Home!$K$10=1,'Antenna Data'!C32,IF(Home!$K$10=2,'Antenna Data'!D32,IF(Home!$K$10=3,'Antenna Data'!E32,IF(Home!$K$10=4,'Antenna Data'!F32,IF(Home!$K$10=5,'Antenna Data'!G32,IF(Home!$K$10=6,'Antenna Data'!H32,'Import Other Antenna'!G31)))))) -> -0.1 | C32: -0.02 | D32: -0.06 | E32: -0.08 | F32: -0.1 | G32: -0.54 | H32: 0
A33: 3 | B33: =IF(Home!$K$10=1,'Antenna Data'!C33,IF(Home!$K$10=2,'Antenna Data'!D33,IF(Home!$K$10=3,'Antenna Data'!E33,IF(Home!$K$10=4,'Antenna Data'!F33,IF(Home!$K$10=5,'Antenna Data'!G33,IF(Home!$K$10=6,'Antenna Data'!H33,'Import Other Antenna'!G32)))))) -> -0.11 | C33: -0.02 | D33: -0.06 | E33: -0.08 | F33: -0.11 | G33: -0.58 | H33: 0
A34: 3.1 | B34: =IF(Home!$K$10=1,'Antenna Data'!C34,IF(Home!$K$10=2,'Antenna Data'!D34,IF(Home!$K$10=3,'Antenna Data'!E34,IF(Home!$K$10=4,'Antenna Data'!F34,IF(Home!$K$10=5,'Antenna Data'!G34,IF(Home!$K$10=6,'Antenna Data'!H34,'Import Other Antenna'!G33)))))) -> -0.11 | C34: -0.02 | D34: -0.07 | E34: -0.09 | F34: -0.11 | G34: -0.62 | H34: 0
A35: 3.2 | B35: =IF(Home!$K$10=1,'Antenna Data'!C35,IF(Home!$K$10=2,'Antenna Data'!D35,IF(Home!$K$10=3,'Antenna Data'!E35,IF(Home!$K$10=4,'Antenna Data'!F35,IF(Home!$K$10=5,'Antenna Data'!G35,IF(Home!$K$10=6,'Antenna Data'!H35,'Import Other Antenna'!G34)))))) -> -0.12 | C35: -0.02 | D35: -0.07 | E35: -0.09 | F35: -0.12 | G35: -0.66 | H35: 0
A36: 3.3 | B36: =IF(Home!$K$10=1,'Antenna Data'!C36,IF(Home!$K$10=2,'Antenna Data'!D36,IF(Home!$K$10=3,'Antenna Data'!E36,IF(Home!$K$10=4,'Antenna Data'!F36,IF(Home!$K$10=5,'Antenna Data'!G36,IF(Home!$K$10=6,'Antenna Data'!H36,'Import Other Antenna'!G35)))))) -> -0.13 | C36: -0.02 | D36: -0.07 | E36: -0.1 | F36: -0.13 | G36: -0.71 | H36: 0
A37: 3.4 | B37: =IF(Home!$K$10=1,'Antenna Data'!C37,IF(Home!$K$10=2,'Antenna Data'!D37,IF(Home!$K$10=3,'Antenna Data'!E37,IF(Home!$K$10=4,'Antenna Data'!F37,IF(Home!$K$10=5,'Antenna Data'!G37,IF(Home!$K$10=6,'Antenna Data'!H37,'Import Other Antenna'!G36)))))) -> -0.14 | C37: -0.02 | D37: -0.08 | E37: -0.1 | F37: -0.14 | G37: -0.75 | H37: 0
A38: 3.5 | B38: =IF(Home!$K$10=1,'Antenna Data'!C38,IF(Home!$K$10=2,'Antenna Data'!D38,IF(Home!$K$10=3,'Antenna Data'!E38,IF(Home!$K$10=4,'Antenna Data'!F38,IF(Home!$K$10=5,'Antenna Data'!G38,IF(Home!$K$10=6,'Antenna Data'!H38,'Import Other Antenna'!G37)))))) -> -0.15 | C38: -0.02 | D38: -0.08 | E38: -0.11 | F38: -0.15 | G38: -0.8 | H38: 0
A39: 3.6 | B39: =IF(Home!$K$10=1,'Antenna Data'!C39,IF(Home!$K$10=2,'Antenna Data'!D39,IF(Home!$K$10=3,'Antenna Data'!E39,IF(Home!$K$10=4,'Antenna Data'!F39,IF(Home!$K$10=5,'Antenna Data'!G39,IF(Home!$K$10=6,'Antenna Data'!H39,'Import Other Antenna'!G38)))))) -> -0.16 | C39: -0.03 | D39: -0.09 | E39: -0.12 | F39: -0.16 | G39: -0.85 | H39: 0
A40: 3.7 | B40: =IF(Home!$K$10=1,'Antenna Data'!C40,IF(Home!$K$10=2,'Antenna Data'!D40,IF(Home!$K$10=3,'Antenna Data'!E40,IF(Home!$K$10=4,'Antenna Data'!F40,IF(Home!$K$10=5,'Antenna Data'!G40,IF(Home!$K$10=6,'Antenna Data'!H40,'Import Other Antenna'!G39)))))) -> -0.16 | C40: -0.03 | D40: -0.09 | E40: -0.12 | F40: -0.16 | G40: -0.89 | H40: 0
A41: 3.8 | B41: =IF(Home!$K$10=1,'Antenna Data'!C41,IF(Home!$K$10=2,'Antenna Data'!D41,IF(Home!$K$10=3,'Antenna Data'!E41,IF(Home!$K$10=4,'Antenna Data'!F41,IF(Home!$K$10=5,'Antenna Data'!G41,IF(Home!$K$10=6,'Antenna Data'!H41,'Import Other Antenna'!G40)))))) -> -0.17 | C41: -0.03 | D41: -0.1 | E41: -0.13 | F41: -0.17 | G41: -0.94 | H41: 0
A42: 3.9 | B42: =IF(Home!$K$10=1,'Antenna Data'!C42,IF(Home!$K$10=2,'Antenna Data'!D42,IF(Home!$K$10=3,'Antenna Data'!E42,IF(Home!$K$10=4,'Antenna Data'!F42,IF(Home!$K$10=5,'Antenna Data'!G42,IF(Home!$K$10=6,'Antenna Data'!H42,'Import Other Antenna'!G41)))))) -> -0.18 | C42: -0.03 | D42: -0.1 | E42: -0.14 | F42: -0.18 | G42: -1 | H42: 0
A43: 4 | B43: =IF(Home!$K$10=1,'Antenna Data'!C43,IF(Home!$K$10=2,'Antenna Data'!D43,IF(Home!$K$10=3,'Antenna Data'!E43,IF(Home!$K$10=4,'Antenna Data'!F43,IF(Home!$K$10=5,'Antenna Data'!G43,IF(Home!$K$10=6,'Antenna Data'!H43,'Import Other Antenna'!G42)))))) -> -0.19 | C43: -0.03 | D43: -0.11 | E43: -0.14 | F43: -0.19 | G43: -1.05 | H43: 0
A44: 4.1 | B44: =IF(Home!$K$10=1,'Antenna Data'!C44,IF(Home!$K$10=2,'Antenna Data'!D44,IF(Home!$K$10=3,'Antenna Data'!E44,IF(Home!$K$10=4,'Antenna Data'!F44,IF(Home!$K$10=5,'Antenna Data'!G44,IF(Home!$K$10=6,'Antenna Data'!H44,'Import Other Antenna'!G43)))))) -> -0.2 | C44: -0.03 | D44: -0.11 | E44: -0.15 | F44: -0.2 | G44: -1.1 | H44: 0
A45: 4.2 | B45: =IF(Home!$K$10=1,'Antenna Data'!C45,IF(Home!$K$10=2,'Antenna Data'!D45,IF(Home!$K$10=3,'Antenna Data'!E45,IF(Home!$K$10=4,'Antenna Data'!F45,IF(Home!$K$10=5,'Antenna Data'!G45,IF(Home!$K$10=6,'Antenna Data'!H45,'Import Other Antenna'!G44)))))) -> -0.21 | C45: -0.04 | D45: -0.12 | E45: -0.16 | F45: -0.21 | G45: -1.16 | H45: 0
A46: 4.3 | B46: =IF(Home!$K$10=1,'Antenna Data'!C46,IF(Home!$K$10=2,'Antenna Data'!D46,IF(Home!$K$10=3,'Antenna Data'!E46,IF(Home!$K$10=4,'Antenna Data'!F46,IF(Home!$K$10=5,'Antenna Data'!G46,IF(Home!$K$10=6,'Antenna Data'!H46,'Import Other Antenna'!G45)))))) -> -0.22 | C46: -0.04 | D46: -0.13 | E46: -0.16 | F46: -0.22 | G46: -1.22 | H46: 0
A47: 4.4 | B47: =IF(Home!$K$10=1,'Antenna Data'!C47,IF(Home!$K$10=2,'Antenna Data'!D47,IF(Home!$K$10=3,'Antenna Data'!E47,IF(Home!$K$10=4,'Antenna Data'!F47,IF(Home!$K$10=5,'Antenna Data'!G47,IF(Home!$K$10=6,'Antenna Data'!H47,'Import Other Antenna'!G46)))))) -> -0.23 | C47: -0.04 | D47: -0.13 | E47: -0.17 | F47: -0.23 | G47: -1.28 | H47: 0
A48: 4.5 | B48: =IF(Home!$K$10=1,'Antenna Data'!C48,IF(Home!$K$10=2,'Antenna Data'!D48,IF(Home!$K$10=3,'Antenna Data'!E48,IF(Home!$K$10=4,'Antenna Data'!F48,IF(Home!$K$10=5,'Antenna Data'!G48,IF(Home!$K$10=6,'Antenna Data'!H48,'Import Other Antenna'!G47)))))) -> -0.24 | C48: -0.04 | D48: -0.14 | E48: -0.18 | F48: -0.24 | G48: -1.34 | H48: 0
A49: 4.6 | B49: =IF(Home!$K$10=1,'Antenna Data'!C49,IF(Home!$K$10=2,'Antenna Data'!D49,IF(Home!$K$10=3,'Antenna Data'!E49,IF(Home!$K$10=4,'Antenna Data'!F49,IF(Home!$K$10=5,'Antenna Data'!G49,IF(Home!$K$10=6,'Antenna Data'!H49,'Import Other Antenna'!G48)))))) -> -0.26 | C49: -0.04 | D49: -0.14 | E49: -0.19 | F49: -0.26 | G49: -1.4 | H49: 0
A50: 4.7 | B50: =IF(Home!$K$10=1,'Antenna Data'!C50,IF(Home!$K$10=2,'Antenna Data'!D50,IF(Home!$K$10=3,'Antenna Data'!E50,IF(Home!$K$10=4,'Antenna Data'!F50,IF(Home!$K$10=5,'Antenna Data'!G50,IF(Home!$K$10=6,'Antenna Data'!H50,'Import Other Antenna'!G49)))))) -> -0.27 | C50: -0.05 | D50: -0.15 | E50: -0.2 | F50: -0.27 | G50: -1.47 | H50: 0
A51: 4.8 | B51: =IF(Home!$K$10=1,'Antenna Data'!C51,IF(Home!$K$10=2,'Antenna Data'!D51,IF(Home!$K$10=3,'Antenna Data'!E51,IF(Home!$K$10=4,'Antenna Data'!F51,IF(Home!$K$10=5,'Antenna Data'!G51,IF(Home!$K$10=6,'Antenna Data'!H51,'Import Other Antenna'!G50)))))) -> -0.28 | C51: -0.05 | D51: -0.16 | E51: -0.21 | F51: -0.28 | G51: -1.53 | H51: 0
A52: 4.9 | B52: =IF(Home!$K$10=1,'Antenna Data'!C52,IF(Home!$K$10=2,'Antenna Data'!D52,IF(Home!$K$10=3,'Antenna Data'!E52,IF(Home!$K$10=4,'Antenna Data'!F52,IF(Home!$K$10=5,'Antenna Data'!G52,IF(Home!$K$10=6,'Antenna Data'!H52,'Import Other Antenna'!G51)))))) -> -0.29 | C52: -0.05 | D52: -0.16 | E52: -0.21 | F52: -0.29 | G52: -1.6 | H52: 0
A53: 5 | B53: =IF(Home!$K$10=1,'Antenna Data'!C53,IF(Home!$K$10=2,'Antenna Data'!D53,IF(Home!$K$10=3,'Antenna Data'!E53,IF(Home!$K$10=4,'Antenna Data'!F53,IF(Home!$K$10=5,'Antenna Data'!G53,IF(Home!$K$10=6,'Antenna Data'!H53,'Import Other Antenna'!G52)))))) -> -0.3 | C53: -0.05 | D53: -0.17 | E53: -0.22 | F53: -0.3 | G53: -1.67 | H53: 0
A54: 5.1 | B54: =IF(Home!$K$10=1,'Antenna Data'!C54,IF(Home!$K$10=2,'Antenna Data'!D54,IF(Home!$K$10=3,'Antenna Data'!E54,IF(Home!$K$10=4,'Antenna Data'!F54,IF(Home!$K$10=5,'Antenna Data'!G54,IF(Home!$K$10=6,'Antenna Data'!H54,'Import Other Antenna'!G53)))))) -> -0.32 | C54: -0.06 | D54: -0.18 | E54: -0.23 | F54: -0.32 | G54: -1.74 | H54: 0
A55: 5.2 | B55: =IF(Home!$K$10=1,'Antenna Data'!C55,IF(Home!$K$10=2,'Antenna Data'!D55,IF(Home!$K$10=3,'Antenna Data'!E55,IF(Home!$K$10=4,'Antenna Data'!F55,IF(Home!$K$10=5,'Antenna Data'!G55,IF(Home!$K$10=6,'Antenna Data'!H55,'Import Other Antenna'!G54)))))) -> -0.33 | C55: -0.06 | D55: -0.19 | E55: -0.24 | F55: -0.33 | G55: -1.81 | H55: 0
A56: 5.3 | B56: =IF(Home!$K$10=1,'Antenna Data'!C56,IF(Home!$K$10=2,'Antenna Data'!D56,IF(Home!$K$10=3,'Antenna Data'!E56,IF(Home!$K$10=4,'Antenna Data'!F56,IF(Home!$K$10=5,'Antenna Data'!G56,IF(Home!$K$10=6,'Antenna Data'!H56,'Import Other Antenna'!G55)))))) -> -0.34 | C56: -0.06 | D56: -0.19 | E56: -0.25 | F56: -0.34 | G56: -1.89 | H56: 0
A57: 5.4 | B57: =IF(Home!$K$10=1,'Antenna Data'!C57,IF(Home!$K$10=2,'Antenna Data'!D57,IF(Home!$K$10=3,'Antenna Data'!E57,IF(Home!$K$10=4,'Antenna Data'!F57,IF(Home!$K$10=5,'Antenna Data'!G57,IF(Home!$K$10=6,'Antenna Data'!H57,'Import Other Antenna'!G56)))))) -> -0.35 | C57: -0.06 | D57: -0.2 | E57: -0.26 | F57: -0.35 | G57: -1.96 | H57: 0
A58: 5.5 | B58: =IF(Home!$K$10=1,'Antenna Data'!C58,IF(Home!$K$10=2,'Antenna Data'!D58,IF(Home!$K$10=3,'Antenna Data'!E58,IF(Home!$K$10=4,'Antenna Data'!F58,IF(Home!$K$10=5,'Antenna Data'!G58,IF(Home!$K$10=6,'Antenna Data'!H58,'Import Other Antenna'!G57)))))) -> -0.37 | C58: -0.07 | D58: -0.21 | E58: -0.27 | F58: -0.37 | G58: -2.04 | H58: 0
A59: 5.6 | B59: =IF(Home!$K$10=1,'Antenna Data'!C59,IF(Home!$K$10=2,'Antenna Data'!D59,IF(Home!$K$10=3,'Antenna Data'!E59,IF(Home!$K$10=4,'Antenna Data'!F59,IF(Home!$K$10=5,'Antenna Data'!G59,IF(Home!$K$10=6,'Antenna Data'!H59,'Import Other Antenna'!G58)))))) -> -0.38 | C59: -0.07 | D59: -0.22 | E59: -0.28 | F59: -0.38 | G59: -2.12 | H59: 0
A60: 5.7 | B60: =IF(Home!$K$10=1,'Antenna Data'!C60,IF(Home!$K$10=2,'Antenna Data'!D60,IF(Home!$K$10=3,'Antenna Data'!E60,IF(Home!$K$10=4,'Antenna Data'!F60,IF(Home!$K$10=5,'Antenna Data'!G60,IF(Home!$K$10=6,'Antenna Data'!H60,'Import Other Antenna'!G59)))))) -> -0.4 | C60: -0.07 | D60: -0.22 | E60: -0.29 | F60: -0.4 | G60: -2.2 | H60: 0
A61: 5.8 | B61: =IF(Home!$K$10=1,'Antenna Data'!C61,IF(Home!$K$10=2,'Antenna Data'!D61,IF(Home!$K$10=3,'Antenna Data'!E61,IF(Home!$K$10=4,'Antenna Data'!F61,IF(Home!$K$10=5,'Antenna Data'!G61,IF(Home!$K$10=6,'Antenna Data'!H61,'Import Other Antenna'!G60)))))) -> -0.41 | C61: -0.07 | D61: -0.23 | E61: -0.3 | F61: -0.41 | G61: -2.28 | H61: 0
A62: 5.9 | B62: =IF(Home!$K$10=1,'Antenna Data'!C62,IF(Home!$K$10=2,'Antenna Data'!D62,IF(Home!$K$10=3,'Antenna Data'!E62,IF(Home!$K$10=4,'Antenna Data'!F62,IF(Home!$K$10=5,'Antenna Data'!G62,IF(Home!$K$10=6,'Antenna Data'!H62,'Import Other Antenna'!G61)))))) -> -0.43 | C62: -0.08 | D62: -0.24 | E62: -0.31 | F62: -0.43 | G62: -2.37 | H62: 0
A63: 6 | B63: =IF(Home!$K$10=1,'Antenna Data'!C63,IF(Home!$K$10=2,'Antenna Data'!D63,IF(Home!$K$10=3,'Antenna Data'!E63,IF(Home!$K$10=4,'Antenna Data'!F63,IF(Home!$K$10=5,'Antenna Data'!G63,IF(Home!$K$10=6,'Antenna Data'!H63,'Import Other Antenna'!G62)))))) -> -0.44 | C63: -0.08 | D63: -0.25 | E63: -0.32 | F63: -0.44 | G63: -2.46 | H63: 0
A64: 6.1 | B64: =IF(Home!$K$10=1,'Antenna Data'!C64,IF(Home!$K$10=2,'Antenna Data'!D64,IF(Home!$K$10=3,'Antenna Data'!E64,IF(Home!$K$10=4,'Antenna Data'!F64,IF(Home!$K$10=5,'Antenna Data'!G64,IF(Home!$K$10=6,'Antenna Data'!H64,'Import Other Antenna'!G63)))))) -> -0.46 | C64: -0.08 | D64: -0.26 | E64: -0.33 | F64: -0.46 | G64: -2.54 | H64: 0
A65: 6.2 | B65: =IF(Home!$K$10=1,'Antenna Data'!C65,IF(Home!$K$10=2,'Antenna Data'!D65,IF(Home!$K$10=3,'Antenna Data'!E65,IF(Home!$K$10=4,'Antenna Data'!F65,IF(Home!$K$10=5,'Antenna Data'!G65,IF(Home!$K$10=6,'Antenna Data'!H65,'Import Other Antenna'!G64)))))) -> -0.47 | C65: -0.08 | D65: -0.26 | E65: -0.35 | F65: -0.47 | G65: -2.64 | H65: 0
A66: 6.3 | B66: =IF(Home!$K$10=1,'Antenna Data'!C66,IF(Home!$K$10=2,'Antenna Data'!D66,IF(Home!$K$10=3,'Antenna Data'!E66,IF(Home!$K$10=4,'Antenna Data'!F66,IF(Home!$K$10=5,'Antenna Data'!G66,IF(Home!$K$10=6,'Antenna Data'!H66,'Import Other Antenna'!G65)))))) -> -0.49 | C66: -0.09 | D66: -0.27 | E66: -0.36 | F66: -0.49 | G66: -2.73 | H66: 0
A67: 6.4 | B67: =IF(Home!$K$10=1,'Antenna Data'!C67,IF(Home!$K$10=2,'Antenna Data'!D67,IF(Home!$K$10=3,'Antenna Data'!E67,IF(Home!$K$10=4,'Antenna Data'!F67,IF(Home!$K$10=5,'Antenna Data'!G67,IF(Home!$K$10=6,'Antenna Data'!H67,'Import Other Antenna'!G66)))))) -> -0.5 | C67: -0.09 | D67: -0.28 | E67: -0.37 | F67: -0.5 | G67: -2.82 | H67: 0
A68: 6.5 | B68: =IF(Home!$K$10=1,'Antenna Data'!C68,IF(Home!$K$10=2,'Antenna Data'!D68,IF(Home!$K$10=3,'Antenna Data'!E68,IF(Home!$K$10=4,'Antenna Data'!F68,IF(Home!$K$10=5,'Antenna Data'!G68,IF(Home!$K$10=6,'Antenna Data'!H68,'Import Other Antenna'!G67)))))) -> -0.52 | C68: -0.09 | D68: -0.29 | E68: -0.38 | F68: -0.52 | G68: -2.92 | H68: 0
A69: 6.6 | B69: =IF(Home!$K$10=1,'Antenna Data'!C69,IF(Home!$K$10=2,'Antenna Data'!D69,IF(Home!$K$10=3,'Antenna Data'!E69,IF(Home!$K$10=4,'Antenna Data'!F69,IF(Home!$K$10=5,'Antenna Data'!G69,IF(Home!$K$10=6,'Antenna Data'!H69,'Import Other Antenna'!G68)))))) -> -0.54 | C69: -0.1 | D69: -0.3 | E69: -0.39 | F69: -0.54 | G69: -3.02 | H69: 0
A70: 6.7 | B70: =IF(Home!$K$10=1,'Antenna Data'!C70,IF(Home!$K$10=2,'Antenna Data'!D70,IF(Home!$K$10=3,'Antenna Data'!E70,IF(Home!$K$10=4,'Antenna Data'!F70,IF(Home!$K$10=5,'Antenna Data'!G70,IF(Home!$K$10=6,'Antenna Data'!H70,'Import Other Antenna'!G69)))))) -> -0.55 | C70: -0.1 | D70: -0.31 | E70: -0.4 | F70: -0.55 | G70: -3.12 | H70: 0
A71: 6.8 | B71: =IF(Home!$K$10=1,'Antenna Data'!C71,IF(Home!$K$10=2,'Antenna Data'!D71,IF(Home!$K$10=3,'Antenna Data'!E71,IF(Home!$K$10=4,'Antenna Data'!F71,IF(Home!$K$10=5,'Antenna Data'!G71,IF(Home!$K$10=6,'Antenna Data'!H71,'Import Other Antenna'!G70)))))) -> -0.57 | C71: -0.1 | D71: -0.32 | E71: -0.42 | F71: -0.57 | G71: -3.22 | H71: 0
A72: 6.9 | B72: =IF(Home!$K$10=1,'Antenna Data'!C72,IF(Home!$K$10=2,'Antenna Data'!D72,IF(Home!$K$10=3,'Antenna Data'!E72,IF(Home!$K$10=4,'Antenna Data'!F72,IF(Home!$K$10=5,'Antenna Data'!G72,IF(Home!$K$10=6,'Antenna Data'!H72,'Import Other Antenna'!G71)))))) -> -0.59 | C72: -0.1 | D72: -0.33 | E72: -0.43 | F72: -0.59 | G72: -3.33 | H72: 0
A73: 7 | B73: =IF(Home!$K$10=1,'Antenna Data'!C73,IF(Home!$K$10=2,'Antenna Data'!D73,IF(Home!$K$10=3,'Antenna Data'!E73,IF(Home!$K$10=4,'Antenna Data'!F73,IF(Home!$K$10=5,'Antenna Data'!G73,IF(Home!$K$10=6,'Antenna Data'!H73,'Import Other Antenna'!G72)))))) -> -0.61 | C73: -0.11 | D73: -0.34 | E73: -0.44 | F73: -0.61 | G73: -3.43 | H73: 0
A74: 7.1 | B74: =IF(Home!$K$10=1,'Antenna Data'!C74,IF(Home!$K$10=2,'Antenna Data'!D74,IF(Home!$K$10=3,'Antenna Data'!E74,IF(Home!$K$10=4,'Antenna Data'!F74,IF(Home!$K$10=5,'Antenna Data'!G74,IF(Home!$K$10=6,'Antenna Data'!H74,'Import Other Antenna'!G73)))))) -> -0.62 | C74: -0.11 | D74: -0.35 | E74: -0.46 | F74: -0.62 | G74: -3.54 | H74: 0
A75: 7.2 | B75: =IF(Home!$K$10=1,'Antenna Data'!C75,IF(Home!$K$10=2,'Antenna Data'!D75,IF(Home!$K$10=3,'Antenna Data'!E75,IF(Home!$K$10=4,'Antenna Data'!F75,IF(Home!$K$10=5,'Antenna Data'!G75,IF(Home!$K$10=6,'Antenna Data'!H75,'Import Other Antenna'!G74)))))) -> -0.64 | C75: -0.11 | D75: -0.36 | E75: -0.47 | F75: -0.64 | G75: -3.66 | H75: 0
A76: 7.3 | B76: =IF(Home!$K$10=1,'Antenna Data'!C76,IF(Home!$K$10=2,'Antenna Data'!D76,IF(Home!$K$10=3,'Antenna Data'!E76,IF(Home!$K$10=4,'Antenna Data'!F76,IF(Home!$K$10=5,'Antenna Data'!G76,IF(Home!$K$10=6,'Antenna Data'!H76,'Import Other Antenna'!G75)))))) -> -0.66 | C76: -0.12 | D76: -0.37 | E76: -0.48 | F76: -0.66 | G76: -3.77 | H76: 0
A77: 7.4 | B77: =IF(Home!$K$10=1,'Antenna Data'!C77,IF(Home!$K$10=2,'Antenna Data'!D77,IF(Home!$K$10=3,'Antenna Data'!E77,IF(Home!$K$10=4,'Antenna Data'!F77,IF(Home!$K$10=5,'Antenna Data'!G77,IF(Home!$K$10=6,'Antenna Data'!H77,'Import Other Antenna'!G76)))))) -> -0.68 | C77: -0.12 | D77: -0.38 | E77: -0.5 | F77: -0.68 | G77: -3.89 | H77: 0
A78: 7.5 | B78: =IF(Home!$K$10=1,'Antenna Data'!C78,IF(Home!$K$10=2,'Antenna Data'!D78,IF(Home!$K$10=3,'Antenna Data'!E78,IF(Home!$K$10=4,'Antenna Data'!F78,IF(Home!$K$10=5,'Antenna Data'!G78,IF(Home!$K$10=6,'Antenna Data'!H78,'Import Other Antenna'!G77)))))) -> -0.7 | C78: -0.12 | D78: -0.39 | E78: -0.51 | F78: -0.7 | G78: -4.01 | H78: 0
A79: 7.6 | B79: =IF(Home!$K$10=1,'Antenna Data'!C79,IF(Home!$K$10=2,'Antenna Data'!D79,IF(Home!$K$10=3,'Antenna Data'!E79,IF(Home!$K$10=4,'Antenna Data'!F79,IF(Home!$K$10=5,'Antenna Data'!G79,IF(Home!$K$10=6,'Antenna Data'!H79,'Import Other Antenna'!G78)))))) -> -0.72 | C79: -0.13 | D79: -0.4 | E79: -0.52 | F79: -0.72 | G79: -4.13 | H79: 0
A80: 7.7 | B80: =IF(Home!$K$10=1,'Antenna Data'!C80,IF(Home!$K$10=2,'Antenna Data'!D80,IF(Home!$K$10=3,'Antenna Data'!E80,IF(Home!$K$10=4,'Antenna Data'!F80,IF(Home!$K$10=5,'Antenna Data'!G80,IF(Home!$K$10=6,'Antenna Data'!H80,'Import Other Antenna'!G79)))))) -> -0.74 | C80: -0.13 | D80: -0.41 | E80: -0.54 | F80: -0.74 | G80: -4.25 | H80: 0
A81: 7.8 | B81: =IF(Home!$K$10=1,'Antenna Data'!C81,IF(Home!$K$10=2,'Antenna Data'!D81,IF(Home!$K$10=3,'Antenna Data'!E81,IF(Home!$K$10=4,'Antenna Data'!F81,IF(Home!$K$10=5,'Antenna Data'!G81,IF(Home!$K$10=6,'Antenna Data'!H81,'Import Other Antenna'!G80)))))) -> -0.76 | C81: -0.14 | D81: -0.42 | E81: -0.55 | F81: -0.76 | G81: -4.38 | H81: 0
A82: 7.9 | B82: =IF(Home!$K$10=1,'Antenna Data'!C82,IF(Home!$K$10=2,'Antenna Data'!D82,IF(Home!$K$10=3,'Antenna Data'!E82,IF(Home!$K$10=4,'Antenna Data'!F82,IF(Home!$K$10=5,'Antenna Data'!G82,IF(Home!$K$10=6,'Antenna Data'!H82,'Import Other Antenna'!G81)))))) -> -0.78 | C82: -0.14 | D82: -0.44 | E82: -0.57 | F82: -0.78 | G82: -4.51 | H82: 0
A83: 8 | B83: =IF(Home!$K$10=1,'Antenna Data'!C83,IF(Home!$K$10=2,'Antenna Data'!D83,IF(Home!$K$10=3,'Antenna Data'!E83,IF(Home!$K$10=4,'Antenna Data'!F83,IF(Home!$K$10=5,'Antenna Data'!G83,IF(Home!$K$10=6,'Antenna Data'!H83,'Import Other Antenna'!G82)))))) -> -0.8 | C83: -0.14 | D83: -0.45 | E83: -0.58 | F83: -0.8 | G83: -4.64 | H83: 0
A84: 8.1 | B84: =IF(Home!$K$10=1,'Antenna Data'!C84,IF(Home!$K$10=2,'Antenna Data'!D84,IF(Home!$K$10=3,'Antenna Data'!E84,IF(Home!$K$10=4,'Antenna Data'!F84,IF(Home!$K$10=5,'Antenna Data'!G84,IF(Home!$K$10=6,'Antenna Data'!H84,'Import Other Antenna'!G83)))))) -> -0.82 | C84: -0.15 | D84: -0.46 | E84: -0.6 | F84: -0.82 | G84: -4.77 | H84: 0
A85: 8.2 | B85: =IF(Home!$K$10=1,'Antenna Data'!C85,IF(Home!$K$10=2,'Antenna Data'!D85,IF(Home!$K$10=3,'Antenna Data'!E85,IF(Home!$K$10=4,'Antenna Data'!F85,IF(Home!$K$10=5,'Antenna Data'!G85,IF(Home!$K$10=6,'Antenna Data'!H85,'Import Other Antenna'!G84)))))) -> -0.84 | C85: -0.15 | D85: -0.47 | E85: -0.61 | F85: -0.84 | G85: -4.91 | H85: 0
A86: 8.3 | B86: =IF(Home!$K$10=1,'Antenna Data'!C86,IF(Home!$K$10=2,'Antenna Data'!D86,IF(Home!$K$10=3,'Antenna Data'!E86,IF(Home!$K$10=4,'Antenna Data'!F86,IF(Home!$K$10=5,'Antenna Data'!G86,IF(Home!$K$10=6,'Antenna Data'!H86,'Import Other Antenna'!G85)))))) -> -0.87 | C86: -0.15 | D86: -0.48 | E86: -0.63 | F86: -0.87 | G86: -5.05 | H86: 0
A87: 8.4 | B87: =IF(Home!$K$10=1,'Antenna Data'!C87,IF(Home!$K$10=2,'Antenna Data'!D87,IF(Home!$K$10=3,'Antenna Data'!E87,IF(Home!$K$10=4,'Antenna Data'!F87,IF(Home!$K$10=5,'Antenna Data'!G87,IF(Home!$K$10=6,'Antenna Data'!H87,'Import Other Antenna'!G86)))))) -> -0.89 | C87: -0.16 | D87: -0.49 | E87: -0.64 | F87: -0.89 | G87: -5.2 | H87: 0
A88: 8.5 | B88: =IF(Home!$K$10=1,'Antenna Data'!C88,IF(Home!$K$10=2,'Antenna Data'!D88,IF(Home!$K$10=3,'Antenna Data'!E88,IF(Home!$K$10=4,'Antenna Data'!F88,IF(Home!$K$10=5,'Antenna Data'!G88,IF(Home!$K$10=6,'Antenna Data'!H88,'Import Other Antenna'!G87)))))) -> -0.91 | C88: -0.16 | D88: -0.51 | E88: -0.66 | F88: -0.91 | G88: -5.34 | H88: 0
A89: 8.6 | B89: =IF(Home!$K$10=1,'Antenna Data'!C89,IF(Home!$K$10=2,'Antenna Data'!D89,IF(Home!$K$10=3,'Antenna Data'!E89,IF(Home!$K$10=4,'Antenna Data'!F89,IF(Home!$K$10=5,'Antenna Data'!G89,IF(Home!$K$10=6,'Antenna Data'!H89,'Import Other Antenna'!G88)))))) -> -0.93 | C89: -0.17 | D89: -0.52 | E89: -0.68 | F89: -0.93 | G89: -5.49 | H89: 0
A90: 8.7 | B90: =IF(Home!$K$10=1,'Antenna Data'!C90,IF(Home!$K$10=2,'Antenna Data'!D90,IF(Home!$K$10=3,'Antenna Data'!E90,IF(Home!$K$10=4,'Antenna Data'!F90,IF(Home!$K$10=5,'Antenna Data'!G90,IF(Home!$K$10=6,'Antenna Data'!H90,'Import Other Antenna'!G89)))))) -> -0.96 | C90: -0.17 | D90: -0.53 | E90: -0.69 | F90: -0.96 | G90: -5.64 | H90: 0
A91: 8.8 | B91: =IF(Home!$K$10=1,'Antenna Data'!C91,IF(Home!$K$10=2,'Antenna Data'!D91,IF(Home!$K$10=3,'Antenna Data'!E91,IF(Home!$K$10=4,'Antenna Data'!F91,IF(Home!$K$10=5,'Antenna Data'!G91,IF(Home!$K$10=6,'Antenna Data'!H91,'Import Other Antenna'!G90)))))) -> -0.98 | C91: -0.17 | D91: -0.54 | E91: -0.71 | F91: -0.98 | G91: -5.8 | H91: 0
A92: 8.9 | B92: =IF(Home!$K$10=1,'Antenna Data'!C92,IF(Home!$K$10=2,'Antenna Data'!D92,IF(Home!$K$10=3,'Antenna Data'!E92,IF(Home!$K$10=4,'Antenna Data'!F92,IF(Home!$K$10=5,'Antenna Data'!G92,IF(Home!$K$10=6,'Antenna Data'!H92,'Import Other Antenna'!G91)))))) -> -1 | C92: -0.18 | D92: -0.56 | E92: -0.73 | F92: -1 | G92: -5.96 | H92: 0
A93: 9 | B93: =IF(Home!$K$10=1,'Antenna Data'!C93,IF(Home!$K$10=2,'Antenna Data'!D93,IF(Home!$K$10=3,'Antenna Data'!E93,IF(Home!$K$10=4,'Antenna Data'!F93,IF(Home!$K$10=5,'Antenna Data'!G93,IF(Home!$K$10=6,'Antenna Data'!H93,'Import Other Antenna'!G92)))))) -> -1.03 | C93: -0.18 | D93: -0.57 | E93: -0.74 | F93: -1.03 | G93: -6.12 | H93: 0
A94: 9.1 | B94: =IF(Home!$K$10=1,'Antenna Data'!C94,IF(Home!$K$10=2,'Antenna Data'!D94,IF(Home!$K$10=3,'Antenna Data'!E94,IF(Home!$K$10=4,'Antenna Data'!F94,IF(Home!$K$10=5,'Antenna Data'!G94,IF(Home!$K$10=6,'Antenna Data'!H94,'Import Other Antenna'!G93)))))) -> -1.05 | C94: -0.19 | D94: -0.58 | E94: -0.76 | F94: -1.05 | G94: -6.29 | H94: 0
A95: 9.2 | B95: =IF(Home!$K$10=1,'Antenna Data'!C95,IF(Home!$K$10=2,'Antenna Data'!D95,IF(Home!$K$10=3,'Antenna Data'!E95,IF(Home!$K$10=4,'Antenna Data'!F95,IF(Home!$K$10=5,'Antenna Data'!G95,IF(Home!$K$10=6,'Antenna Data'!H95,'Import Other Antenna'!G94)))))) -> -1.08 | C95: -0.19 | D95: -0.6 | E95: -0.78 | F95: -1.08 | G95: -6.46 | H95: 0
A96: 9.3 | B96: =IF(Home!$K$10=1,'Antenna Data'!C96,IF(Home!$K$10=2,'Antenna Data'!D96,IF(Home!$K$10=3,'Antenna Data'!E96,IF(Home!$K$10=4,'Antenna Data'!F96,IF(Home!$K$10=5,'Antenna Data'!G96,IF(Home!$K$10=6,'Antenna Data'!H96,'Import Other Antenna'!G95)))))) -> -1.1 | C96: -0.19 | D96: -0.61 | E96: -0.8 | F96: -1.1 | G96: -6.63 | H96: 0
A97: 9.4 | B97: =IF(Home!$K$10=1,'Antenna Data'!C97,IF(Home!$K$10=2,'Antenna Data'!D97,IF(Home!$K$10=3,'Antenna Data'!E97,IF(Home!$K$10=4,'Antenna Data'!F97,IF(Home!$K$10=5,'Antenna Data'!G97,IF(Home!$K$10=6,'Antenna Data'!H97,'Import Other Antenna'!G96)))))) -> -1.13 | C97: -0.2 | D97: -0.62 | E97: -0.81 | F97: -1.13 | G97: -6.81 | H97: 0
A98: 9.5 | B98: =IF(Home!$K$10=1,'Antenna Data'!C98,IF(Home!$K$10=2,'Antenna Data'!D98,IF(Home!$K$10=3,'Antenna Data'!E98,IF(Home!$K$10=4,'Antenna Data'!F98,IF(Home!$K$10=5,'Antenna Data'!G98,IF(Home!$K$10=6,'Antenna Data'!H98,'Import Other Antenna'!G97)))))) -> -1.15 | C98: -0.2 | D98: -0.64 | E98: -0.83 | F98: -1.15 | G98: -6.99 | H98: 0
A99: 9.6 | B99: =IF(Home!$K$10=1,'Antenna Data'!C99,IF(Home!$K$10=2,'Antenna Data'!D99,IF(Home!$K$10=3,'Antenna Data'!E99,IF(Home!$K$10=4,'Antenna Data'!F99,IF(Home!$K$10=5,'Antenna Data'!G99,IF(Home!$K$10=6,'Antenna Data'!H99,'Import Other Antenna'!G98)))))) -> -1.18 | C99: -0.21 | D99: -0.65 | E99: -0.85 | F99: -1.18 | G99: -7.18 | H99: 0
A100: 9.7 | B100: =IF(Home!$K$10=1,'Antenna Data'!C100,IF(Home!$K$10=2,'Antenna Data'!D100,IF(Home!$K$10=3,'Antenna Data'!E100,IF(Home!$K$10=4,'Antenna Data'!F100,IF(Home!$K$10=5,'Antenna Data'!G100,IF(Home!$K$10=6,'Antenna Data'!H100,'Import Other Antenna'!G99)))))) -> -1.21 | C100: -0.21 | D100: -0.67 | E100: -0.87 | F100: -1.21 | G100: -7.37 | H100: 0
A101: 9.8 | B101: =IF(Home!$K$10=1,'Antenna Data'!C101,IF(Home!$K$10=2,'Antenna Data'!D101,IF(Home!$K$10=3,'Antenna Data'!E101,IF(Home!$K$10=4,'Antenna Data'!F101,IF(Home!$K$10=5,'Antenna Data'!G101,IF(Home!$K$10=6,'Antenna Data'!H101,'Import Other Antenna'!G100)))))) -> -1.23 | C101: -0.22 | D101: -0.68 | E101: -0.89 | F101: -1.23 | G101: -7.57 | H101: 0
A102: 9.9 | B102: =IF(Home!$K$10=1,'Antenna Data'!C102,IF(Home!$K$10=2,'Antenna Data'!D102,IF(Home!$K$10=3,'Antenna Data'!E102,IF(Home!$K$10=4,'Antenna Data'!F102,IF(Home!$K$10=5,'Antenna Data'!G102,IF(Home!$K$10=6,'Antenna Data'!H102,'Import Other Antenna'!G101)))))) -> -1.26 | C102: -0.22 | D102: -0.7 | E102: -0.91 | F102: -1.26 | G102: -7.77 | H102: 0
A103: 10 | B103: =IF(Home!$K$10=1,'Antenna Data'!C103,IF(Home!$K$10=2,'Antenna Data'!D103,IF(Home!$K$10=3,'Antenna Data'!E103,IF(Home!$K$10=4,'Antenna Data'!F103,IF(Home!$K$10=5,'Antenna Data'!G103,IF(Home!$K$10=6,'Antenna Data'!H103,'Import Other Antenna'!G102)))))) -> -1.29 | C103: -0.23 | D103: -0.71 | E103: -0.93 | F103: -1.29 | G103: -7.97 | H103: 0
A104: 10.1 | B104: =IF(Home!$K$10=1,'Antenna Data'!C104,IF(Home!$K$10=2,'Antenna Data'!D104,IF(Home!$K$10=3,'Antenna Data'!E104,IF(Home!$K$10=4,'Antenna Data'!F104,IF(Home!$K$10=5,'Antenna Data'!G104,IF(Home!$K$10=6,'Antenna Data'!H104,'Import Other Antenna'!G103)))))) -> -1.31 | C104: -0.23 | D104: -0.73 | E104: -0.95 | F104: -1.31 | G104: -8.18 | H104: 0
A105: 10.2 | B105: =IF(Home!$K$10=1,'Antenna Data'!C105,IF(Home!$K$10=2,'Antenna Data'!D105,IF(Home!$K$10=3,'Antenna Data'!E105,IF(Home!$K$10=4,'Antenna Data'!F105,IF(Home!$K$10=5,'Antenna Data'!G105,IF(Home!$K$10=6,'Antenna Data'!H105,'Import Other Antenna'!G104)))))) -> -1.34 | C105: -0.24 | D105: -0.74 | E105: -0.97 | F105: -1.34 | G105: -8.4 | H105: 0
A106: 10.3 | B106: =IF(Home!$K$10=1,'Antenna Data'!C106,IF(Home!$K$10=2,'Antenna Data'!D106,IF(Home!$K$10=3,'Antenna Data'!E106,IF(Home!$K$10=4,'Antenna Data'!F106,IF(Home!$K$10=5,'Antenna Data'!G106,IF(Home!$K$10=6,'Antenna Data'!H106,'Import Other Antenna'!G105)))))) -> -1.37 | C106: -0.24 | D106: -0.76 | E106: -0.99 | F106: -1.37 | G106: -8.62 | H106: 0
A107: 10.4 | B107: =IF(Home!$K$10=1,'Antenna Data'!C107,IF(Home!$K$10=2,'Antenna Data'!D107,IF(Home!$K$10=3,'Antenna Data'!E107,IF(Home!$K$10=4,'Antenna Data'!F107,IF(Home!$K$10=5,'Antenna Data'!G107,IF(Home!$K$10=6,'Antenna Data'!H107,'Import Other Antenna'!G106)))))) -> -1.4 | C107: -0.24 | D107: -0.77 | E107: -1.01 | F107: -1.4 | G107: -8.84 | H107: 0
A108: 10.5 | B108: =IF(Home!$K$10=1,'Antenna Data'!C108,IF(Home!$K$10=2,'Antenna Data'!D108,IF(Home!$K$10=3,'Antenna Data'!E108,IF(Home!$K$10=4,'Antenna Data'!F108,IF(Home!$K$10=5,'Antenna Data'!G108,IF(Home!$K$10=6,'Antenna Data'!H108,'Import Other Antenna'!G107)))))) -> -1.43 | C108: -0.25 | D108: -0.79 | E108: -1.03 | F108: -1.43 | G108: -9.08 | H108: 0
A109: 10.6 | B109: =IF(Home!$K$10=1,'Antenna Data'!C109,IF(Home!$K$10=2,'Antenna Data'!D109,IF(Home!$K$10=3,'Antenna Data'!E109,IF(Home!$K$10=4,'Antenna Data'!F109,IF(Home!$K$10=5,'Antenna Data'!G109,IF(Home!$K$10=6,'Antenna Data'!H109,'Import Other Antenna'!G108)))))) -> -1.46 | C109: -0.25 | D109: -0.8 | E109: -1.05 | F109: -1.46 | G109: -9.31 | H109: 0
A110: 10.7 | B110: =IF(Home!$K$10=1,'Antenna Data'!C110,IF(Home!$K$10=2,'Antenna Data'!D110,IF(Home!$K$10=3,'Antenna Data'!E110,IF(Home!$K$10=4,'Antenna Data'!F110,IF(Home!$K$10=5,'Antenna Data'!G110,IF(Home!$K$10=6,'Antenna Data'!H110,'Import Other Antenna'!G109)))))) -> -1.49 | C110: -0.26 | D110: -0.82 | E110: -1.07 | F110: -1.49 | G110: -9.56 | H110: 0
A111: 10.8 | B111: =IF(Home!$K$10=1,'Antenna Data'!C111,IF(Home!$K$10=2,'Antenna Data'!D111,IF(Home!$K$10=3,'Antenna Data'!E111,IF(Home!$K$10=4,'Antenna Data'!F111,IF(Home!$K$10=5,'Antenna Data'!G111,IF(Home!$K$10=6,'Antenna Data'!H111,'Import Other Antenna'!G110)))))) -> -1.52 | C111: -0.26 | D111: -0.84 | E111: -1.09 | F111: -1.52 | G111: -9.81 | H111: 0
A112: 10.9 | B112: =IF(Home!$K$10=1,'Antenna Data'!C112,IF(Home!$K$10=2,'Antenna Data'!D112,IF(Home!$K$10=3,'Antenna Data'!E112,IF(Home!$K$10=4,'Antenna Data'!F112,IF(Home!$K$10=5,'Antenna Data'!G112,IF(Home!$K$10=6,'Antenna Data'!H112,'Import Other Antenna'!G111)))))) -> -1.55 | C112: -0.27 | D112: -0.85 | E112: -1.11 | F112: -1.55 | G112: -10.07 | H112: 0
A113: 11 | B113: =IF(Home!$K$10=1,'Antenna Data'!C113,IF(Home!$K$10=2,'Antenna Data'!D113,IF(Home!$K$10=3,'Antenna Data'!E113,IF(Home!$K$10=4,'Antenna Data'!F113,IF(Home!$K$10=5,'Antenna Data'!G113,IF(Home!$K$10=6,'Antenna Data'!H113,'Import Other Antenna'!G112)))))) -> -1.58 | C113: -0.27 | D113: -0.87 | E113: -1.14 | F113: -1.58 | G113: -10.34 | H113: 0
A114: 11.1 | B114: =IF(Home!$K$10=1,'Antenna Data'!C114,IF(Home!$K$10=2,'Antenna Data'!D114,IF(Home!$K$10=3,'Antenna Data'!E114,IF(Home!$K$10=4,'Antenna Data'!F114,IF(Home!$K$10=5,'Antenna Data'!G114,IF(Home!$K$10=6,'Antenna Data'!H114,'Import Other Antenna'!G113)))))) -> -1.61 | C114: -0.28 | D114: -0.89 | E114: -1.16 | F114: -1.61 | G114: -10.61 | H114: 0
A115: 11.2 | B115: =IF(Home!$K$10=1,'Antenna Data'!C115,IF(Home!$K$10=2,'Antenna Data'!D115,IF(Home!$K$10=3,'Antenna Data'!E115,IF(Home!$K$10=4,'Antenna Data'!F115,IF(Home!$K$10=5,'Antenna Data'!G115,IF(Home!$K$10=6,'Antenna Data'!H115,'Import Other Antenna'!G114)))))) -> -1.65 | C115: -0.29 | D115: -0.9 | E115: -1.18 | F115: -1.65 | G115: -10.89 | H115: 0
A116: 11.3 | B116: =IF(Home!$K$10=1,'Antenna Data'!C116,IF(Home!$K$10=2,'Antenna Data'!D116,IF(Home!$K$10=3,'Antenna Data'!E116,IF(Home!$K$10=4,'Antenna Data'!F116,IF(Home!$K$10=5,'Antenna Data'!G116,IF(Home!$K$10=6,'Antenna Data'!H116,'Import Other Antenna'!G115)))))) -> -1.68 | C116: -0.29 | D116: -0.92 | E116: -1.2 | F116: -1.68 | G116: -11.18 | H116: 0
A117: 11.4 | B117: =IF(Home!$K$10=1,'Antenna Data'!C117,IF(Home!$K$10=2,'Antenna Data'!D117,IF(Home!$K$10=3,'Antenna Data'!E117,IF(Home!$K$10=4,'Antenna Data'!F117,IF(Home!$K$10=5,'Antenna Data'!G117,IF(Home!$K$10=6,'Antenna Data'!H117,'Import Other Antenna'!G116)))))) -> -1.71 | C117: -0.3 | D117: -0.94 | E117: -1.23 | F117: -1.71 | G117: -11.49 | H117: 0
A118: 11.5 | B118: =IF(Home!$K$10=1,'Antenna Data'!C118,IF(Home!$K$10=2,'Antenna Data'!D118,IF(Home!$K$10=3,'Antenna Data'!E118,IF(Home!$K$10=4,'Antenna Data'!F118,IF(Home!$K$10=5,'Antenna Data'!G118,IF(Home!$K$10=6,'Antenna Data'!H118,'Import Other Antenna'!G117)))))) -> -1.74 | C118: -0.3 | D118: -0.96 | E118: -1.25 | F118: -1.74 | G118: -11.8 | H118: 0
A119: 11.6 | B119: =IF(Home!$K$10=1,'Antenna Data'!C119,IF(Home!$K$10=2,'Antenna Data'!D119,IF(Home!$K$10=3,'Antenna Data'!E119,IF(Home!$K$10=4,'Antenna Data'!F119,IF(Home!$K$10=5,'Antenna Data'!G119,IF(Home!$K$10=6,'Antenna Data'!H119,'Import Other Antenna'!G118)))))) -> -1.78 | C119: -0.31 | D119: -0.97 | E119: -1.27 | F119: -1.78 | G119: -12.12 | H119: 0
A120: 11.7 | B120: =IF(Home!$K$10=1,'Antenna Data'!C120,IF(Home!$K$10=2,'Antenna Data'!D120,IF(Home!$K$10=3,'Antenna Data'!E120,IF(Home!$K$10=4,'Antenna Data'!F120,IF(Home!$K$10=5,'Antenna Data'!G120,IF(Home!$K$10=6,'Antenna Data'!H120,'Import Other Antenna'!G119)))))) -> -1.81 | C120: -0.31 | D120: -0.99 | E120: -1.3 | F120: -1.81 | G120: -12.45 | H120: 0
A121: 11.8 | B121: =IF(Home!$K$10=1,'Antenna Data'!C121,IF(Home!$K$10=2,'Antenna Data'!D121,IF(Home!$K$10=3,'Antenna Data'!E121,IF(Home!$K$10=4,'Antenna Data'!F121,IF(Home!$K$10=5,'Antenna Data'!G121,IF(Home!$K$10=6,'Antenna Data'!H121,'Import Other Antenna'!G120)))))) -> -1.85 | C121: -0.32 | D121: -1.01 | E121: -1.32 | F121: -1.85 | G121: -12.79 | H121: 0
A122: 11.9 | B122: =IF(Home!$K$10=1,'Antenna Data'!C122,IF(Home!$K$10=2,'Antenna Data'!D122,IF(Home!$K$10=3,'Antenna Data'!E122,IF(Home!$K$10=4,'Antenna Data'!F122,IF(Home!$K$10=5,'Antenna Data'!G122,IF(Home!$K$10=6,'Antenna Data'!H122,'Import Other Antenna'!G121)))))) -> -1.88 | C122: -0.32 | D122: -1.03 | E122: -1.35 | F122: -1.88 | G122: -13.15 | H122: 0
A123: 12 | B123: =IF(Home!$K$10=1,'Antenna Data'!C123,IF(Home!$K$10=2,'Antenna Data'!D123,IF(Home!$K$10=3,'Antenna Data'!E123,IF(Home!$K$10=4,'Antenna Data'!F123,IF(Home!$K$10=5,'Antenna Data'!G123,IF(Home!$K$10=6,'Antenna Data'!H123,'Import Other Antenna'!G122)))))) -> -1.92 | C123: -0.33 | D123: -1.05 | E123: -1.37 | F123: -1.92 | G123: -13.52 | H123: 0
A124: 12.1 | B124: =IF(Home!$K$10=1,'Antenna Data'!C124,IF(Home!$K$10=2,'Antenna Data'!D124,IF(Home!$K$10=3,'Antenna Data'!E124,IF(Home!$K$10=4,'Antenna Data'!F124,IF(Home!$K$10=5,'Antenna Data'!G124,IF(Home!$K$10=6,'Antenna Data'!H124,'Import Other Antenna'!G123)))))) -> -1.95 | C124: -0.33 | D124: -1.07 | E124: -1.39 | F124: -1.95 | G124: -13.91 | H124: 0
A125: 12.2 | B125: =IF(Home!$K$10=1,'Antenna Data'!C125,IF(Home!$K$10=2,'Antenna Data'!D125,IF(Home!$K$10=3,'Antenna Data'!E125,IF(Home!$K$10=4,'Antenna Data'!F125,IF(Home!$K$10=5,'Antenna Data'!G125,IF(Home!$K$10=6,'Antenna Data'!H125,'Import Other Antenna'!G124)))))) -> -1.99 | C125: -0.34 | D125: -1.09 | E125: -1.42 | F125: -1.99 | G125: -14.31 | H125: 0
A126: 12.3 | B126: =IF(Home!$K$10=1,'Antenna Data'!C126,IF(Home!$K$10=2,'Antenna Data'!D126,IF(Home!$K$10=3,'Antenna Data'!E126,IF(Home!$K$10=4,'Antenna Data'!F126,IF(Home!$K$10=5,'Antenna Data'!G126,IF(Home!$K$10=6,'Antenna Data'!H126,'Import Other Antenna'!G125)))))) -> -2.02 | C126: -0.35 | D126: -1.1 | E126: -1.45 | F126: -2.02 | G126: -14.73 | H126: 0
A127: 12.4 | B127: =IF(Home!$K$10=1,'Antenna Data'!C127,IF(Home!$K$10=2,'Antenna Data'!D127,IF(Home!$K$10=3,'Antenna Data'!E127,IF(Home!$K$10=4,'Antenna Data'!F127,IF(Home!$K$10=5,'Antenna Data'!G127,IF(Home!$K$10=6,'Antenna Data'!H127,'Import Other Antenna'!G126)))))) -> -2.06 | C127: -0.35 | D127: -1.12 | E127: -1.47 | F127: -2.06 | G127: -15.17 | H127: 0
A128: 12.5 | B128: =IF(Home!$K$10=1,'Antenna Data'!C128,IF(Home!$K$10=2,'Antenna Data'!D128,IF(Home!$K$10=3,'Antenna Data'!E128,IF(Home!$K$10=4,'Antenna Data'!F128,IF(Home!$K$10=5,'Antenna Data'!G128,IF(Home!$K$10=6,'Antenna Data'!H128,'Import Other Antenna'!G127)))))) -> -2.1 | C128: -0.36 | D128: -1.14 | E128: -1.5 | F128: -2.1 | G128: -15.63 | H128: 0
A129: 12.6 | B129: =IF(Home!$K$10=1,'Antenna Data'!C129,IF(Home!$K$10=2,'Antenna Data'!D129,IF(Home!$K$10=3,'Antenna Data'!E129,IF(Home!$K$10=4,'Antenna Data'!F129,IF(Home!$K$10=5,'Antenna Data'!G129,IF(Home!$K$10=6,'Antenna Data'!H129,'Import Other Antenna'!G128)))))) -> -2.14 | C129: -0.36 | D129: -1.16 | E129: -1.52 | F129: -2.14 | G129: -16.11 | H129: 0
A130: 12.7 | B130: =IF(Home!$K$10=1,'Antenna Data'!C130,IF(Home!$K$10=2,'Antenna Data'!D130,IF(Home!$K$10=3,'Antenna Data'!E130,IF(Home!$K$10=4,'Antenna Data'!F130,IF(Home!$K$10=5,'Antenna Data'!G130,IF(Home!$K$10=6,'Antenna Data'!H130,'Import Other Antenna'!G129)))))) -> -2.17 | C130: -0.37 | D130: -1.18 | E130: -1.55 | F130: -2.17 | G130: -16.62 | H130: 0
A131: 12.8 | B131: =IF(Home!$K$10=1,'Antenna Data'!C131,IF(Home!$K$10=2,'Antenna Data'!D131,IF(Home!$K$10=3,'Antenna Data'!E131,IF(Home!$K$10=4,'Antenna Data'!F131,IF(Home!$K$10=5,'Antenna Data'!G131,IF(Home!$K$10=6,'Antenna Data'!H131,'Import Other Antenna'!G130)))))) -> -2.21 | C131: -0.38 | D131: -1.2 | E131: -1.58 | F131: -2.21 | G131: -17.16 | H131: 0
A132: 12.9 | B132: =IF(Home!$K$10=1,'Antenna Data'!C132,IF(Home!$K$10=2,'Antenna Data'!D132,IF(Home!$K$10=3,'Antenna Data'!E132,IF(Home!$K$10=4,'Antenna Data'!F132,IF(Home!$K$10=5,'Antenna Data'!G132,IF(Home!$K$10=6,'Antenna Data'!H132,'Import Other Antenna'!G131)))))) -> -2.25 | C132: -0.38 | D132: -1.23 | E132: -1.6 | F132: -2.25 | G132: -17.72 | H132: 0
A133: 13 | B133: =IF(Home!$K$10=1,'Antenna Data'!C133,IF(Home!$K$10=2,'Antenna Data'!D133,IF(Home!$K$10=3,'Antenna Data'!E133,IF(Home!$K$10=4,'Antenna Data'!F133,IF(Home!$K$10=5,'Antenna Data'!G133,IF(Home!$K$10=6,'Antenna Data'!H133,'Import Other Antenna'!G132)))))) -> -2.29 | C133: -0.39 | D133: -1.25 | E133: -1.63 | F133: -2.29 | G133: -18.33 | H133: 0
A134: 13.1 | B134: =IF(Home!$K$10=1,'Antenna Data'!C134,IF(Home!$K$10=2,'Antenna Data'!D134,IF(Home!$K$10=3,'Antenna Data'!E134,IF(Home!$K$10=4,'Antenna Data'!F134,IF(Home!$K$10=5,'Antenna Data'!G134,IF(Home!$K$10=6,'Antenna Data'!H134,'Import Other Antenna'!G133)))))) -> -2.33 | C134: -0.39 | D134: -1.27 | E134: -1.66 | F134: -2.33 | G134: -18.97 | H134: 0
A135: 13.2 | B135: =IF(Home!$K$10=1,'Antenna Data'!C135,IF(Home!$K$10=2,'Antenna Data'!D135,IF(Home!$K$10=3,'Antenna Data'!E135,IF(Home!$K$10=4,'Antenna Data'!F135,IF(Home!$K$10=5,'Antenna Data'!G135,IF(Home!$K$10=6,'Antenna Data'!H135,'Import Other Antenna'!G134)))))) -> -2.37 | C135: -0.4 | D135: -1.29 | E135: -1.69 | F135: -2.37 | G135: -19.66 | H135: 0
A136: 13.3 | B136: =IF(Home!$K$10=1,'Antenna Data'!C136,IF(Home!$K$10=2,'Antenna Data'!D136,IF(Home!$K$10=3,'Antenna Data'!E136,IF(Home!$K$10=4,'Antenna Data'!F136,IF(Home!$K$10=5,'Antenna Data'!G136,IF(Home!$K$10=6,'Antenna Data'!H136,'Import Other Antenna'!G135)))))) -> -2.41 | C136: -0.41 | D136: -1.31 | E136: -1.71 | F136: -2.41 | G136: -20.41 | H136: 0
A137: 13.4 | B137: =IF(Home!$K$10=1,'Antenna Data'!C137,IF(Home!$K$10=2,'Antenna Data'!D137,IF(Home!$K$10=3,'Antenna Data'!E137,IF(Home!$K$10=4,'Antenna Data'!F137,IF(Home!$K$10=5,'Antenna Data'!G137,IF(Home!$K$10=6,'Antenna Data'!H137,'Import Other Antenna'!G136)))))) -> -2.46 | C137: -0.41 | D137: -1.33 | E137: -1.74 | F137: -2.46 | G137: -21.21 | H137: 0
A138: 13.5 | B138: =IF(Home!$K$10=1,'Antenna Data'!C138,IF(Home!$K$10=2,'Antenna Data'!D138,IF(Home!$K$10=3,'Antenna Data'!E138,IF(Home!$K$10=4,'Antenna Data'!F138,IF(Home!$K$10=5,'Antenna Data'!G138,IF(Home!$K$10=6,'Antenna Data'!H138,'Import Other Antenna'!G137)))))) -> -2.5 | C138: -0.42 | D138: -1.35 | E138: -1.77 | F138: -2.5 | G138: -22.1 | H138: 0
A139: 13.6 | B139: =IF(Home!$K$10=1,'Antenna Data'!C139,IF(Home!$K$10=2,'Antenna Data'!D139,IF(Home!$K$10=3,'Antenna Data'!E139,IF(Home!$K$10=4,'Antenna Data'!F139,IF(Home!$K$10=5,'Antenna Data'!G139,IF(Home!$K$10=6,'Antenna Data'!H139,'Import Other Antenna'!G138)))))) -> -2.54 | C139: -0.43 | D139: -1.38 | E139: -1.8 | F139: -2.54 | G139: -23.07 | H139: 0
A140: 13.7 | B140: =IF(Home!$K$10=1,'Antenna Data'!C140,IF(Home!$K$10=2,'Antenna Data'!D140,IF(Home!$K$10=3,'Antenna Data'!E140,IF(Home!$K$10=4,'Antenna Data'!F140,IF(Home!$K$10=5,'Antenna Data'!G140,IF(Home!$K$10=6,'Antenna Data'!H140,'Import Other Antenna'!G139)))))) -> -2.58 | C140: -0.43 | D140: -1.4 | E140: -1.83 | F140: -2.58 | G140: -24.16 | H140: 0
A141: 13.8 | B141: =IF(Home!$K$10=1,'Antenna Data'!C141,IF(Home!$K$10=2,'Antenna Data'!D141,IF(Home!$K$10=3,'Antenna Data'!E141,IF(Home!$K$10=4,'Antenna Data'!F141,IF(Home!$K$10=5,'Antenna Data'!G141,IF(Home!$K$10=6,'Antenna Data'!H141,'Import Other Antenna'!G140)))))) -> -2.63 | C141: -0.44 | D141: -1.42 | E141: -1.86 | F141: -2.63 | G141: -25.4 | H141: 0
A142: 13.9 | B142: =IF(Home!$K$10=1,'Antenna Data'!C142,IF(Home!$K$10=2,'Antenna Data'!D142,IF(Home!$K$10=3,'Antenna Data'!E142,IF(Home!$K$10=4,'Antenna Data'!F142,IF(Home!$K$10=5,'Antenna Data'!G142,IF(Home!$K$10=6,'Antenna Data'!H142,'Import Other Antenna'!G141)))))) -> -2.67 | C142: -0.45 | D142: -1.44 | E142: -1.89 | F142: -2.67 | G142: -26.82 | H142: 0
A143: 14 | B143: =IF(Home!$K$10=1,'Antenna Data'!C143,IF(Home!$K$10=2,'Antenna Data'!D143,IF(Home!$K$10=3,'Antenna Data'!E143,IF(Home!$K$10=4,'Antenna Data'!F143,IF(Home!$K$10=5,'Antenna Data'!G143,IF(Home!$K$10=6,'Antenna Data'!H143,'Import Other Antenna'!G142)))))) -> -2.72 | C143: -0.45 | D143: -1.47 | E143: -1.92 | F143: -2.72 | G143: -28.51 | H143: 0
A144: 14.1 | B144: =IF(Home!$K$10=1,'Antenna Data'!C144,IF(Home!$K$10=2,'Antenna Data'!D144,IF(Home!$K$10=3,'Antenna Data'!E144,IF(Home!$K$10=4,'Antenna Data'!F144,IF(Home!$K$10=5,'Antenna Data'!G144,IF(Home!$K$10=6,'Antenna Data'!H144,'Import Other Antenna'!G143)))))) -> -2.76 | C144: -0.46 | D144: -1.49 | E144: -1.95 | F144: -2.76 | G144: -30.58 | H144: 0
A145: 14.2 | B145: =IF(Home!$K$10=1,'Antenna Data'!C145,IF(Home!$K$10=2,'Antenna Data'!D145,IF(Home!$K$10=3,'Antenna Data'!E145,IF(Home!$K$10=4,'Antenna Data'!F145,IF(Home!$K$10=5,'Antenna Data'!G145,IF(Home!$K$10=6,'Antenna Data'!H145,'Import Other Antenna'!G144)))))) -> -2.81 | C145: -0.47 | D145: -1.51 | E145: -1.98 | F145: -2.81 | G145: -33.28 | H145: 0
A146: 14.3 | B146: =IF(Home!$K$10=1,'Antenna Data'!C146,IF(Home!$K$10=2,'Antenna Data'!D146,IF(Home!$K$10=3,'Antenna Data'!E146,IF(Home!$K$10=4,'Antenna Data'!F146,IF(Home!$K$10=5,'Antenna Data'!G146,IF(Home!$K$10=6,'Antenna Data'!H146,'Import Other Antenna'!G145)))))) -> -2.85 | C146: -0.47 | D146: -1.54 | E146: -2.01 | F146: -2.85 | G146: -37.16 | H146: 0
A147: 14.4 | B147: =IF(Home!$K$10=1,'Antenna Data'!C147,IF(Home!$K$10=2,'Antenna Data'!D147,IF(Home!$K$10=3,'Antenna Data'!E147,IF(Home!$K$10=4,'Antenna Data'!F147,IF(Home!$K$10=5,'Antenna Data'!G147,IF(Home!$K$10=6,'Antenna Data'!H147,'Import Other Antenna'!G146)))))) -> -2.9 | C147: -0.48 | D147: -1.56 | E147: -2.05 | F147: -2.9 | G147: -44.26 | H147: 0
A148: 14.5 | B148: =IF(Home!$K$10=1,'Antenna Data'!C148,IF(Home!$K$10=2,'Antenna Data'!D148,IF(Home!$K$10=3,'Antenna Data'!E148,IF(Home!$K$10=4,'Antenna Data'!F148,IF(Home!$K$10=5,'Antenna Data'!G148,IF(Home!$K$10=6,'Antenna Data'!H148,'Import Other Antenna'!G147)))))) -> -2.95 | C148: -0.49 | D148: -1.58 | E148: -2.08 | F148: -2.95 | G148: -56.32 | H148: 0
A149: 14.6 | B149: =IF(Home!$K$10=1,'Antenna Data'!C149,IF(Home!$K$10=2,'Antenna Data'!D149,IF(Home!$K$10=3,'Antenna Data'!E149,IF(Home!$K$10=4,'Antenna Data'!F149,IF(Home!$K$10=5,'Antenna Data'!G149,IF(Home!$K$10=6,'Antenna Data'!H149,'Import Other Antenna'!G148)))))) -> -2.99 | C149: -0.49 | D149: -1.61 | E149: -2.11 | F149: -2.99 | G149: -40.83 | H149: 0
A150: 14.7 | B150: =IF(Home!$K$10=1,'Antenna Data'!C150,IF(Home!$K$10=2,'Antenna Data'!D150,IF(Home!$K$10=3,'Antenna Data'!E150,IF(Home!$K$10=4,'Antenna Data'!F150,IF(Home!$K$10=5,'Antenna Data'!G150,IF(Home!$K$10=6,'Antenna Data'!H150,'Import Other Antenna'!G149)))))) -> -3.04 | C150: -0.5 | D150: -1.63 | E150: -2.14 | F150: -3.04 | G150: -35.61 | H150: 0
A151: 14.8 | B151: =IF(Home!$K$10=1,'Antenna Data'!C151,IF(Home!$K$10=2,'Antenna Data'!D151,IF(Home!$K$10=3,'Antenna Data'!E151,IF(Home!$K$10=4,'Antenna Data'!F151,IF(Home!$K$10=5,'Antenna Data'!G151,IF(Home!$K$10=6,'Antenna Data'!H151,'Import Other Antenna'!G150)))))) -> -3.09 | C151: -0.51 | D151: -1.66 | E151: -2.18 | F151: -3.09 | G151: -32.41 | H151: 0
A152: 14.9 | B152: =IF(Home!$K$10=1,'Antenna Data'!C152,IF(Home!$K$10=2,'Antenna Data'!D152,IF(Home!$K$10=3,'Antenna Data'!E152,IF(Home!$K$10=4,'Antenna Data'!F152,IF(Home!$K$10=5,'Antenna Data'!G152,IF(Home!$K$10=6,'Antenna Data'!H152,'Import Other Antenna'!G151)))))) -> -3.14 | C152: -0.51 | D152: -1.68 | E152: -2.21 | F152: -3.14 | G152: -30.1 | H152: 0
A153: 15 | B153: =IF(Home!$K$10=1,'Antenna Data'!C153,IF(Home!$K$10=2,'Antenna Data'!D153,IF(Home!$K$10=3,'Antenna Data'!E153,IF(Home!$K$10=4,'Antenna Data'!F153,IF(Home!$K$10=5,'Antenna Data'!G153,IF(Home!$K$10=6,'Antenna Data'!H153,'Import Other Antenna'!G152)))))) -> -3.19 | C153: -0.52 | D153: -1.71 | E153: -2.24 | F153: -3.19 | G153: -28.29 | H153: 0
A154: 15.1 | B154: =IF(Home!$K$10=1,'Antenna Data'!C154,IF(Home!$K$10=2,'Antenna Data'!D154,IF(Home!$K$10=3,'Antenna Data'!E154,IF(Home!$K$10=4,'Antenna Data'!F154,IF(Home!$K$10=5,'Antenna Data'!G154,IF(Home!$K$10=6,'Antenna Data'!H154,'Import Other Antenna'!G153)))))) -> -3.24 | C154: -0.53 | D154: -1.73 | E154: -2.28 | F154: -3.24 | G154: -26.82 | H154: 0
A155: 15.2 | B155: =IF(Home!$K$10=1,'Antenna Data'!C155,IF(Home!$K$10=2,'Antenna Data'!D155,IF(Home!$K$10=3,'Antenna Data'!E155,IF(Home!$K$10=4,'Antenna Data'!F155,IF(Home!$K$10=5,'Antenna Data'!G155,IF(Home!$K$10=6,'Antenna Data'!H155,'Import Other Antenna'!G154)))))) -> -3.29 | C155: -0.54 | D155: -1.76 | E155: -2.31 | F155: -3.29 | G155: -25.58 | H155: 0
A156: 15.3 | B156: =IF(Home!$K$10=1,'Antenna Data'!C156,IF(Home!$K$10=2,'Antenna Data'!D156,IF(Home!$K$10=3,'Antenna Data'!E156,IF(Home!$K$10=4,'Antenna Data'!F156,IF(Home!$K$10=5,'Antenna Data'!G156,IF(Home!$K$10=6,'Antenna Data'!H156,'Import Other Antenna'!G155)))))) -> -3.34 | C156: -0.54 | D156: -1.79 | E156: -2.35 | F156: -3.34 | G156: -24.5 | H156: 0
A157: 15.4 | B157: =IF(Home!$K$10=1,'Antenna Data'!C157,IF(Home!$K$10=2,'Antenna Data'!D157,IF(Home!$K$10=3,'Antenna Data'!E157,IF(Home!$K$10=4,'Antenna Data'!F157,IF(Home!$K$10=5,'Antenna Data'!G157,IF(Home!$K$10=6,'Antenna Data'!H157,'Import Other Antenna'!G156)))))) -> -3.39 | C157: -0.55 | D157: -1.81 | E157: -2.38 | F157: -3.39 | G157: -23.56 | H157: 0
A158: 15.5 | B158: =IF(Home!$K$10=1,'Antenna Data'!C158,IF(Home!$K$10=2,'Antenna Data'!D158,IF(Home!$K$10=3,'Antenna Data'!E158,IF(Home!$K$10=4,'Antenna Data'!F158,IF(Home!$K$10=5,'Antenna Data'!G158,IF(Home!$K$10=6,'Antenna Data'!H158,'Import Other Antenna'!G157)))))) -> -3.45 | C158: -0.56 | D158: -1.84 | E158: -2.42 | F158: -3.45 | G158: -22.72 | H158: 0
A159: 15.6 | B159: =IF(Home!$K$10=1,'Antenna Data'!C159,IF(Home!$K$10=2,'Antenna Data'!D159,IF(Home!$K$10=3,'Antenna Data'!E159,IF(Home!$K$10=4,'Antenna Data'!F159,IF(Home!$K$10=5,'Antenna Data'!G159,IF(Home!$K$10=6,'Antenna Data'!H159,'Import Other Antenna'!G158)))))) -> -3.5 | C159: -0.57 | D159: -1.87 | E159: -2.45 | F159: -3.5 | G159: -21.96 | H159: 0
A160: 15.7 | B160: =IF(Home!$K$10=1,'Antenna Data'!C160,IF(Home!$K$10=2,'Antenna Data'!D160,IF(Home!$K$10=3,'Antenna Data'!E160,IF(Home!$K$10=4,'Antenna Data'!F160,IF(Home!$K$10=5,'Antenna Data'!G160,IF(Home!$K$10=6,'Antenna Data'!H160,'Import Other Antenna'!G159)))))) -> -3.55 | C160: -0.57 | D160: -1.89 | E160: -2.49 | F160: -3.55 | G160: -21.28 | H160: 0
A161: 15.8 | B161: =IF(Home!$K$10=1,'Antenna Data'!C161,IF(Home!$K$10=2,'Antenna Data'!D161,IF(Home!$K$10=3,'Antenna Data'!E161,IF(Home!$K$10=4,'Antenna Data'!F161,IF(Home!$K$10=5,'Antenna Data'!G161,IF(Home!$K$10=6,'Antenna Data'!H161,'Import Other Antenna'!G160)))))) -> -3.61 | C161: -0.58 | D161: -1.92 | E161: -2.52 | F161: -3.61 | G161: -20.65 | H161: 0
A162: 15.9 | B162: =IF(Home!$K$10=1,'Antenna Data'!C162,IF(Home!$K$10=2,'Antenna Data'!D162,IF(Home!$K$10=3,'Antenna Data'!E162,IF(Home!$K$10=4,'Antenna Data'!F162,IF(Home!$K$10=5,'Antenna Data'!G162,IF(Home!$K$10=6,'Antenna Data'!H162,'Import Other Antenna'!G161)))))) -> -3.66 | C162: -0.59 | D162: -1.95 | E162: -2.56 | F162: -3.66 | G162: -20.08 | H162: 0
A163: 16 | B163: =IF(Home!$K$10=1,'Antenna Data'!C163,IF(Home!$K$10=2,'Antenna Data'!D163,IF(Home!$K$10=3,'Antenna Data'!E163,IF(Home!$K$10=4,'Antenna Data'!F163,IF(Home!$K$10=5,'Antenna Data'!G163,IF(Home!$K$10=6,'Antenna Data'!H163,'Import Other Antenna'!G162)))))) -> -3.72 | C163: -0.6 | D163: -1.98 | E163: -2.6 | F163: -3.72 | G163: -19.55 | H163: 0
A164: 16.1 | B164: =IF(Home!$K$10=1,'Antenna Data'!C164,IF(Home!$K$10=2,'Antenna Data'!D164,IF(Home!$K$10=3,'Antenna Data'!E164,IF(Home!$K$10=4,'Antenna Data'!F164,IF(Home!$K$10=5,'Antenna Data'!G164,IF(Home!$K$10=6,'Antenna Data'!H164,'Import Other Antenna'!G163)))))) -> -3.78 | C164: -0.6 | D164: -2.01 | E164: -2.64 | F164: -3.78 | G164: -19.06 | H164: 0
A165: 16.2 | B165: =IF(Home!$K$10=1,'Antenna Data'!C165,IF(Home!$K$10=2,'Antenna Data'!D165,IF(Home!$K$10=3,'Antenna Data'!E165,IF(Home!$K$10=4,'Antenna Data'!F165,IF(Home!$K$10=5,'Antenna Data'!G165,IF(Home!$K$10=6,'Antenna Data'!H165,'Import Other Antenna'!G164)))))) -> -3.83 | C165: -0.61 | D165: -2.03 | E165: -2.67 | F165: -3.83 | G165: -18.6 | H165: 0
A166: 16.3 | B166: =IF(Home!$K$10=1,'Antenna Data'!C166,IF(Home!$K$10=2,'Antenna Data'!D166,IF(Home!$K$10=3,'Antenna Data'!E166,IF(Home!$K$10=4,'Antenna Data'!F166,IF(Home!$K$10=5,'Antenna Data'!G166,IF(Home!$K$10=6,'Antenna Data'!H166,'Import Other Antenna'!G165)))))) -> -3.89 | C166: -0.62 | D166: -2.06 | E166: -2.71 | F166: -3.89 | G166: -18.17 | H166: 0
A167: 16.4 | B167: =IF(Home!$K$10=1,'Antenna Data'!C167,IF(Home!$K$10=2,'Antenna Data'!D167,IF(Home!$K$10=3,'Antenna Data'!E167,IF(Home!$K$10=4,'Antenna Data'!F167,IF(Home!$K$10=5,'Antenna Data'!G167,IF(Home!$K$10=6,'Antenna Data'!H167,'Import Other Antenna'!G166)))))) -> -3.95 | C167: -0.63 | D167: -2.09 | E167: -2.75 | F167: -3.95 | G167: -17.77 | H167: 0
A168: 16.5 | B168: =IF(Home!$K$10=1,'Antenna Data'!C168,IF(Home!$K$10=2,'Antenna Data'!D168,IF(Home!$K$10=3,'Antenna Data'!E168,IF(Home!$K$10=4,'Antenna Data'!F168,IF(Home!$K$10=5,'Antenna Data'!G168,IF(Home!$K$10=6,'Antenna Data'!H168,'Import Other Antenna'!G167)))))) -> -4.01 | C168: -0.64 | D168: -2.12 | E168: -2.79 | F168: -4.01 | G168: -17.4 | H168: 0
A169: 16.6 | B169: =IF(Home!$K$10=1,'Antenna Data'!C169,IF(Home!$K$10=2,'Antenna Data'!D169,IF(Home!$K$10=3,'Antenna Data'!E169,IF(Home!$K$10=4,'Antenna Data'!F169,IF(Home!$K$10=5,'Antenna Data'!G169,IF(Home!$K$10=6,'Antenna Data'!H169,'Import Other Antenna'!G168)))))) -> -4.07 | C169: -0.64 | D169: -2.15 | E169: -2.83 | F169: -4.07 | G169: -17.05 | H169: 0
A170: 16.7 | B170: =IF(Home!$K$10=1,'Antenna Data'!C170,IF(Home!$K$10=2,'Antenna Data'!D170,IF(Home!$K$10=3,'Antenna Data'!E170,IF(Home!$K$10=4,'Antenna Data'!F170,IF(Home!$K$10=5,'Antenna Data'!G170,IF(Home!$K$10=6,'Antenna Data'!H170,'Import Other Antenna'!G169)))))) -> -4.13 | C170: -0.65 | D170: -2.18 | E170: -2.87 | F170: -4.13 | G170: -16.72 | H170: 0
A171: 16.8 | B171: =IF(Home!$K$10=1,'Antenna Data'!C171,IF(Home!$K$10=2,'Antenna Data'!D171,IF(Home!$K$10=3,'Antenna Data'!E171,IF(Home!$K$10=4,'Antenna Data'!F171,IF(Home!$K$10=5,'Antenna Data'!G171,IF(Home!$K$10=6,'Antenna Data'!H171,'Import Other Antenna'!G170)))))) -> -4.19 | C171: -0.66 | D171: -2.21 | E171: -2.91 | F171: -4.19 | G171: -16.4 | H171: 0
A172: 16.9 | B172: =IF(Home!$K$10=1,'Antenna Data'!C172,IF(Home!$K$10=2,'Antenna Data'!D172,IF(Home!$K$10=3,'Antenna Data'!E172,IF(Home!$K$10=4,'Antenna Data'!F172,IF(Home!$K$10=5,'Antenna Data'!G172,IF(Home!$K$10=6,'Antenna Data'!H172,'Import Other Antenna'!G171)))))) -> -4.25 | C172: -0.67 | D172: -2.24 | E172: -2.95 | F172: -4.25 | G172: -16.1 | H172: 0
A173: 17 | B173: =IF(Home!$K$10=1,'Antenna Data'!C173,IF(Home!$K$10=2,'Antenna Data'!D173,IF(Home!$K$10=3,'Antenna Data'!E173,IF(Home!$K$10=4,'Antenna Data'!F173,IF(Home!$K$10=5,'Antenna Data'!G173,IF(Home!$K$10=6,'Antenna Data'!H173,'Import Other Antenna'!G172)))))) -> -4.31 | C173: -0.68 | D173: -2.27 | E173: -2.99 | F173: -4.31 | G173: -15.82 | H173: 0
A174: 17.1 | B174: =IF(Home!$K$10=1,'Antenna Data'!C174,IF(Home!$K$10=2,'Antenna Data'!D174,IF(Home!$K$10=3,'Antenna Data'!E174,IF(Home!$K$10=4,'Antenna Data'!F174,IF(Home!$K$10=5,'Antenna Data'!G174,IF(Home!$K$10=6,'Antenna Data'!H174,'Import Other Antenna'!G173)))))) -> -4.38 | C174: -0.69 | D174: -2.3 | E174: -3.03 | F174: -4.38 | G174: -15.56 | H174: 0
A175: 17.2 | B175: =IF(Home!$K$10=1,'Antenna Data'!C175,IF(Home!$K$10=2,'Antenna Data'!D175,IF(Home!$K$10=3,'Antenna Data'!E175,IF(Home!$K$10=4,'Antenna Data'!F175,IF(Home!$K$10=5,'Antenna Data'!G175,IF(Home!$K$10=6,'Antenna Data'!H175,'Import Other Antenna'!G174)))))) -> -4.44 | C175: -0.69 | D175: -2.34 | E175: -3.08 | F175: -4.44 | G175: -15.31 | H175: 0
A176: 17.3 | B176: =IF(Home!$K$10=1,'Antenna Data'!C176,IF(Home!$K$10=2,'Antenna Data'!D176,IF(Home!$K$10=3,'Antenna Data'!E176,IF(Home!$K$10=4,'Antenna Data'!F176,IF(Home!$K$10=5,'Antenna Data'!G176,IF(Home!$K$10=6,'Antenna Data'!H176,'Import Other Antenna'!G175)))))) -> -4.51 | C176: -0.7 | D176: -2.37 | E176: -3.12 | F176: -4.51 | G176: -15.07 | H176: 0
A177: 17.4 | B177: =IF(Home!$K$10=1,'Antenna Data'!C177,IF(Home!$K$10=2,'Antenna Data'!D177,IF(Home!$K$10=3,'Antenna Data'!E177,IF(Home!$K$10=4,'Antenna Data'!F177,IF(Home!$K$10=5,'Antenna Data'!G177,IF(Home!$K$10=6,'Antenna Data'!H177,'Import Other Antenna'!G176)))))) -> -4.57 | C177: -0.71 | D177: -2.4 | E177: -3.16 | F177: -4.57 | G177: -14.84 | H177: 0
A178: 17.5 | B178: =IF(Home!$K$10=1,'Antenna Data'!C178,IF(Home!$K$10=2,'Antenna Data'!D178,IF(Home!$K$10=3,'Antenna Data'!E178,IF(Home!$K$10=4,'Antenna Data'!F178,IF(Home!$K$10=5,'Antenna Data'!G178,IF(Home!$K$10=6,'Antenna Data'!H178,'Import Other Antenna'!G177)))))) -> -4.64 | C178: -0.72 | D178: -2.43 | E178: -3.2 | F178: -4.64 | G178: -14.62 | H178: 0
A179: 17.6 | B179: =IF(Home!$K$10=1,'Antenna Data'!C179,IF(Home!$K$10=2,'Antenna Data'!D179,IF(Home!$K$10=3,'Antenna Data'!E179,IF(Home!$K$10=4,'Antenna Data'!F179,IF(Home!$K$10=5,'Antenna Data'!G179,IF(Home!$K$10=6,'Antenna Data'!H179,'Import Other Antenna'!G178)))))) -> -4.7 | C179: -0.73 | D179: -2.46 | E179: -3.25 | F179: -4.7 | G179: -14.42 | H179: 0
A180: 17.7 | B180: =IF(Home!$K$10=1,'Antenna Data'!C180,IF(Home!$K$10=2,'Antenna Data'!D180,IF(Home!$K$10=3,'Antenna Data'!E180,IF(Home!$K$10=4,'Antenna Data'!F180,IF(Home!$K$10=5,'Antenna Data'!G180,IF(Home!$K$10=6,'Antenna Data'!H180,'Import Other Antenna'!G179)))))) -> -4.77 | C180: -0.74 | D180: -2.5 | E180: -3.29 | F180: -4.77 | G180: -14.22 | H180: 0
A181: 17.8 | B181: =IF(Home!$K$10=1,'Antenna Data'!C181,IF(Home!$K$10=2,'Antenna Data'!D181,IF(Home!$K$10=3,'Antenna Data'!E181,IF(Home!$K$10=4,'Antenna Data'!F181,IF(Home!$K$10=5,'Antenna Data'!G181,IF(Home!$K$10=6,'Antenna Data'!H181,'Import Other Antenna'!G180)))))) -> -4.84 | C181: -0.75 | D181: -2.53 | E181: -3.34 | F181: -4.84 | G181: -14.04 | H181: 0
A182: 17.9 | B182: =IF(Home!$K$10=1,'Antenna Data'!C182,IF(Home!$K$10=2,'Antenna Data'!D182,IF(Home!$K$10=3,'Antenna Data'!E182,IF(Home!$K$10=4,'Antenna Data'!F182,IF(Home!$K$10=5,'Antenna Data'!G182,IF(Home!$K$10=6,'Antenna Data'!H182,'Import Other Antenna'!G181)))))) -> -4.91 | C182: -0.75 | D182: -2.56 | E182: -3.38 | F182: -4.91 | G182: -13.86 | H182: 0
A183: 18 | B183: =IF(Home!$K$10=1,'Antenna Data'!C183,IF(Home!$K$10=2,'Antenna Data'!D183,IF(Home!$K$10=3,'Antenna Data'!E183,IF(Home!$K$10=4,'Antenna Data'!F183,IF(Home!$K$10=5,'Antenna Data'!G183,IF(Home!$K$10=6,'Antenna Data'!H183,'Import Other Antenna'!G182)))))) -> -4.98 | C183: -0.76 | D183: -2.6 | E183: -3.43 | F183: -4.98 | G183: -13.69 | H183: 0
A184: 18.1 | B184: =IF(Home!$K$10=1,'Antenna Data'!C184,IF(Home!$K$10=2,'Antenna Data'!D184,IF(Home!$K$10=3,'Antenna Data'!E184,IF(Home!$K$10=4,'Antenna Data'!F184,IF(Home!$K$10=5,'Antenna Data'!G184,IF(Home!$K$10=6,'Antenna Data'!H184,'Import Other Antenna'!G183)))))) -> -5.05 | C184: -0.77 | D184: -2.63 | E184: -3.47 | F184: -5.05 | G184: -13.53 | H184: 0
A185: 18.2 | B185: =IF(Home!$K$10=1,'Antenna Data'!C185,IF(Home!$K$10=2,'Antenna Data'!D185,IF(Home!$K$10=3,'Antenna Data'!E185,IF(Home!$K$10=4,'Antenna Data'!F185,IF(Home!$K$10=5,'Antenna Data'!G185,IF(Home!$K$10=6,'Antenna Data'!H185,'Import Other Antenna'!G184)))))) -> -5.12 | C185: -0.78 | D185: -2.67 | E185: -3.52 | F185: -5.12 | G185: -13.38 | H185: 0
A186: 18.3 | B186: =IF(Home!$K$10=1,'Antenna Data'!C186,IF(Home!$K$10=2,'Antenna Data'!D186,IF(Home!$K$10=3,'Antenna Data'!E186,IF(Home!$K$10=4,'Antenna Data'!F186,IF(Home!$K$10=5,'Antenna Data'!G186,IF(Home!$K$10=6,'Antenna Data'!H186,'Import Other Antenna'!G185)))))) -> -5.19 | C186: -0.79 | D186: -2.7 | E186: -3.56 | F186: -5.19 | G186: -13.23 | H186: 0
A187: 18.4 | B187: =IF(Home!$K$10=1,'Antenna Data'!C187,IF(Home!$K$10=2,'Antenna Data'!D187,IF(Home!$K$10=3,'Antenna Data'!E187,IF(Home!$K$10=4,'Antenna Data'!F187,IF(Home!$K$10=5,'Antenna Data'!G187,IF(Home!$K$10=6,'Antenna Data'!H187,'Import Other Antenna'!G186)))))) -> -5.27 | C187: -0.8 | D187: -2.74 | E187: -3.61 | F187: -5.27 | G187: -13.09 | H187: 0
A188: 18.5 | B188: =IF(Home!$K$10=1,'Antenna Data'!C188,IF(Home!$K$10=2,'Antenna Data'!D188,IF(Home!$K$10=3,'Antenna Data'!E188,IF(Home!$K$10=4,'Antenna Data'!F188,IF(Home!$K$10=5,'Antenna Data'!G188,IF(Home!$K$10=6,'Antenna Data'!H188,'Import Other Antenna'!G187)))))) -> -5.34 | C188: -0.81 | D188: -2.77 | E188: -3.66 | F188: -5.34 | G188: -12.96 | H188: 0
A189: 18.6 | B189: =IF(Home!$K$10=1,'Antenna Data'!C189,IF(Home!$K$10=2,'Antenna Data'!D189,IF(Home!$K$10=3,'Antenna Data'!E189,IF(Home!$K$10=4,'Antenna Data'!F189,IF(Home!$K$10=5,'Antenna Data'!G189,IF(Home!$K$10=6,'Antenna Data'!H189,'Import Other Antenna'!G188)))))) -> -5.42 | C189: -0.82 | D189: -2.81 | E189: -3.71 | F189: -5.42 | G189: -12.84 | H189: 0
A190: 18.7 | B190: =IF(Home!$K$10=1,'Antenna Data'!C190,IF(Home!$K$10=2,'Antenna Data'!D190,IF(Home!$K$10=3,'Antenna Data'!E190,IF(Home!$K$10=4,'Antenna Data'!F190,IF(Home!$K$10=5,'Antenna Data'!G190,IF(Home!$K$10=6,'Antenna Data'!H190,'Import Other Antenna'!G189)))))) -> -5.49 | C190: -0.83 | D190: -2.84 | E190: -3.76 | F190: -5.49 | G190: -12.72 | H190: 0
A191: 18.8 | B191: =IF(Home!$K$10=1,'Antenna Data'!C191,IF(Home!$K$10=2,'Antenna Data'!D191,IF(Home!$K$10=3,'Antenna Data'!E191,IF(Home!$K$10=4,'Antenna Data'!F191,IF(Home!$K$10=5,'Antenna Data'!G191,IF(Home!$K$10=6,'Antenna Data'!H191,'Import Other Antenna'!G190)))))) -> -5.57 | C191: -0.84 | D191: -2.88 | E191: -3.8 | F191: -5.57 | G191: -12.6 | H191: 0
A192: 18.9 | B192: =IF(Home!$K$10=1,'Antenna Data'!C192,IF(Home!$K$10=2,'Antenna Data'!D192,IF(Home!$K$10=3,'Antenna Data'!E192,IF(Home!$K$10=4,'Antenna Data'!F192,IF(Home!$K$10=5,'Antenna Data'!G192,IF(Home!$K$10=6,'Antenna Data'!H192,'Import Other Antenna'!G191)))))) -> -5.65 | C192: -0.85 | D192: -2.92 | E192: -3.85 | F192: -5.65 | G192: -12.5 | H192: 0
A193: 19 | B193: =IF(Home!$K$10=1,'Antenna Data'!C193,IF(Home!$K$10=2,'Antenna Data'!D193,IF(Home!$K$10=3,'Antenna Data'!E193,IF(Home!$K$10=4,'Antenna Data'!F193,IF(Home!$K$10=5,'Antenna Data'!G193,IF(Home!$K$10=6,'Antenna Data'!H193,'Import Other Antenna'!G192)))))) -> -5.73 | C193: -0.86 | D193: -2.95 | E193: -3.9 | F193: -5.73 | G193: -12.4 | H193: 0
A194: 19.1 | B194: =IF(Home!$K$10=1,'Antenna Data'!C194,IF(Home!$K$10=2,'Antenna Data'!D194,IF(Home!$K$10=3,'Antenna Data'!E194,IF(Home!$K$10=4,'Antenna Data'!F194,IF(Home!$K$10=5,'Antenna Data'!G194,IF(Home!$K$10=6,'Antenna Data'!H194,'Import Other Antenna'!G193)))))) -> -5.81 | C194: -0.87 | D194: -2.99 | E194: -3.95 | F194: -5.81 | G194: -12.3 | H194: 0
A195: 19.2 | B195: =IF(Home!$K$10=1,'Antenna Data'!C195,IF(Home!$K$10=2,'Antenna Data'!D195,IF(Home!$K$10=3,'Antenna Data'!E195,IF(Home!$K$10=4,'Antenna Data'!F195,IF(Home!$K$10=5,'Antenna Data'!G195,IF(Home!$K$10=6,'Antenna Data'!H195,'Import Other Antenna'!G194)))))) -> -5.89 | C195: -0.87 | D195: -3.03 | E195: -4.01 | F195: -5.89 | G195: -12.21 | H195: 0
A196: 19.3 | B196: =IF(Home!$K$10=1,'Antenna Data'!C196,IF(Home!$K$10=2,'Antenna Data'!D196,IF(Home!$K$10=3,'Antenna Data'!E196,IF(Home!$K$10=4,'Antenna Data'!F196,IF(Home!$K$10=5,'Antenna Data'!G196,IF(Home!$K$10=6,'Antenna Data'!H196,'Import Other Antenna'!G195)))))) -> -5.97 | C196: -0.88 | D196: -3.07 | E196: -4.06 | F196: -5.97 | G196: -12.12 | H196: 0
A197: 19.4 | B197: =IF(Home!$K$10=1,'Antenna Data'!C197,IF(Home!$K$10=2,'Antenna Data'!D197,IF(Home!$K$10=3,'Antenna Data'!E197,IF(Home!$K$10=4,'Antenna Data'!F197,IF(Home!$K$10=5,'Antenna Data'!G197,IF(Home!$K$10=6,'Antenna Data'!H197,'Import Other Antenna'!G196)))))) -> -6.05 | C197: -0.89 | D197: -3.11 | E197: -4.11 | F197: -6.05 | G197: -12.04 | H197: 0
A198: 19.5 | B198: =IF(Home!$K$10=1,'Antenna Data'!C198,IF(Home!$K$10=2,'Antenna Data'!D198,IF(Home!$K$10=3,'Antenna Data'!E198,IF(Home!$K$10=4,'Antenna Data'!F198,IF(Home!$K$10=5,'Antenna Data'!G198,IF(Home!$K$10=6,'Antenna Data'!H198,'Import Other Antenna'!G197)))))) -> -6.13 | C198: -0.9 | D198: -3.15 | E198: -4.16 | F198: -6.13 | G198: -11.97 | H198: 0
A199: 19.6 | B199: =IF(Home!$K$10=1,'Antenna Data'!C199,IF(Home!$K$10=2,'Antenna Data'!D199,IF(Home!$K$10=3,'Antenna Data'!E199,IF(Home!$K$10=4,'Antenna Data'!F199,IF(Home!$K$10=5,'Antenna Data'!G199,IF(Home!$K$10=6,'Antenna Data'!H199,'Import Other Antenna'!G198)))))) -> -6.22 | C199: -0.91 | D199: -3.19 | E199: -4.21 | F199: -6.22 | G199: -11.9 | H199: 0
A200: 19.7 | B200: =IF(Home!$K$10=1,'Antenna Data'!C200,IF(Home!$K$10=2,'Antenna Data'!D200,IF(Home!$K$10=3,'Antenna Data'!E200,IF(Home!$K$10=4,'Antenna Data'!F200,IF(Home!$K$10=5,'Antenna Data'!G200,IF(Home!$K$10=6,'Antenna Data'!H200,'Import Other Antenna'!G199)))))) -> -6.3 | C200: -0.92 | D200: -3.23 | E200: -4.27 | F200: -6.3 | G200: -11.83 | H200: 0
... 703 more rows

Sheet Main Calculation Sheet
A1: Height [m] : | B1: =Home!D7 -> 17.3 | E1: Freq [MHz] : | F1: =Home!D6 -> 144 | K1: =F1 -> 144 | O1: =300/K1 -> 2.083333333
A2: Ground slope [°] : | B2: =Home!D8 -> 0 | C2: =B2*(PI()/180) -> 0 | Q2: =ATAN(7/300) -> 0.02332910015 | AD2: =Home!D11 -> 16.37
A4: Elevation Angle α [°] | B4: α [rad] | C4: δ [m] | D4: δ [°] | E4: θ Horizontal [°] | F4: θ Vertical [°] | G4: ρ Horizontal | H4: ρ Vertical | I4: Δ Hor. [°] = δ+θ (reflection) | J4: Δ Vert. [°] = δ+θ (reflection) | K4: A | L4: B | M4: C | N4: D | O4: E | P4: F | Q4: G | R4: Distance to Reflection Point for Lobe Maximum Building [m] | S4: Antenna Pattern [dB vs Max Gain] | T4: E Horizontal [V/m] | U4: Ground Gain for Isotropic/Dipole Antenna for Horizontal Polarization [dB] | V4: Maxima Horizontal | W4: E Vertical [V/m] | X4: Ground Gain for Isotropic/Dipole Antenna for Vertical Polarization [dB] | Y4: Maxima Vertical | Z4: Ground Gain for Selected Antenna for Horizontal Polarization [dB] | AA4: Maxima Ground Gain Horizontal [dB] taking into account actual antenna | AB4: Ground Gain for Selected Antenna for Vertical Polarization [dB] | AC4: Maxima Ground Gain Vertical [dB] taking into account actual antenna | AD4: Total Gain for Isotropic/Dipole Antenna for Horizontal Polarization [dBi] | AE4: Total Gain for Isotropic/Dipole Antenna for Vertical Polarization [dBi] | AF4: Total Gain for Selected Antenna for Horizontal Polarization [dBi] | AG4: Total Gain for Selected Antenna for Vertical Polarization [dBi]
A5: 0 | B5: =A5*(PI()/180) -> 0 | C5: =(2*$B$1*SIN(B5-$C$2)*COS($C$2)) -> 0 | D5: =(C5/$O$1)*360 -> 0 | E5: =VLOOKUP(A5-$B$2,'Ref. Coeff. Horiz.'!A:X,24) -> 180 | F5: =VLOOKUP(A5-$B$2,'Ref. Coeff. Vertical'!A:X,24) -> 180 | G5: =VLOOKUP(A5-$B$2,'Ref. Coeff. Horiz.'!A:X,23) -> 1 | H5: =VLOOKUP(A5-$B$2,'Ref. Coeff. Vertical'!A:X,23) -> 1 | I5: =D5+E5 -> 180 | J5: =D5+F5 -> 180 | Q5: =(((COS($C$2))/(TAN(B5-$C$2)))-(SIN($C$2)))*$B$1 ->  | R5: =ROUND(Q5,1) ->  | S5: ='Antenna Data'!B3 -> 0 | T5: =SQRT((1+(2*G5*COS(I5*PI()/180)))+(G5^2)) -> 0 | U5: =IF(T5=0,-99,10*LOG(T5^2)) -> -99 | V5: =IF(AND((U6<U5),(U5>U4)),"Max","") ->  | W5: =SQRT((1+(2*H5*COS(J5*PI()/180)))+(H5^2)) -> 0 | X5: =IF(W5=0,-99,10*LOG(W5^2)) -> -99 | Y5: =IF(AND((X6<X5),(X5>X4)),"Max","") ->  | Z5: =U5+S5 -> -99 | AA5: =IF(AND((Z6<Z5),(Z5>Z4)),"Max","") ->  | AB5: =X5+S5 -> -99 | AC5: =IF(AND((AB6<AB5),(AB5>AB4)),"Max","") ->  | AD5: =U5+$AD$2 -> -82.63 | AE5: =X5+$AD$2 -> -82.63 | AF5: =Z5+$AD$2 -> -82.63 | AG5: =AB5+$AD$2 -> -82.63
A6: =A5+0.1 -> 0.1 | B6: =A6*(PI()/180) -> 0.001745329252 | C6: =(2*$B$1*SIN(B6-$C$2)*COS($C$2)) -> 0.06038836146 | D6: =(C6/$O$1)*360 -> 10.43510886 | E6: =VLOOKUP(A6-$B$2,'Ref. Coeff. Horiz.'!A:X,24) -> 180 | F6: =VLOOKUP(A6-$B$2,'Ref. Coeff. Vertical'!A:X,24) -> 0 | G6: =VLOOKUP(A6-$B$2,'Ref. Coeff. Horiz.'!A:X,23) -> 1 | H6: =VLOOKUP(A6-$B$2,'Ref. Coeff. Vertical'!A:X,23) -> 1 | I6: =D6+E6 -> 190.4351089 | J6: =D6+F6 -> 10.43510886 | Q6: =(((COS($C$2))/(TAN(B6-$C$2)))-(SIN($C$2)))*$B$1 -> 9912.159791 | R6: =ROUND(Q6,1) -> 9912.2 | S6: ='Antenna Data'!B4 -> 0 | T6: =SQRT((1+(2*G6*COS(I6*PI()/180)))+(G6^2)) -> 0.1818753952 | U6: =IF(T6=0,-99,10*LOG(T6^2)) -> -14.804521 | V6: =IF(AND((U7<U6),(U6>U5)),"Max","") ->  | W6: =SQRT((1+(2*H6*COS(J6*PI()/180)))+(H6^2)) -> 1.991713167 | X6: =IF(W6=0,-99,10*LOG(W6^2)) -> 5.98453589 | Y6: =IF(AND((X7<X6),(X6>X5)),"Max","") -> Max | Z6: =U6+S6 -> -14.804521 | AA6: =IF(AND((Z7<Z6),(Z6>Z5)),"Max","") ->  | AB6: =X6+S6 -> 5.98453589 | AC6: =IF(AND((AB7<AB6),(AB6>AB5)),"Max","") -> Max | AD6: =U6+$AD$2 -> 1.565479 | AE6: =X6+$AD$2 -> 22.35453589 | AF6: =Z6+$AD$2 -> 1.565479 | AG6: =AB6+$AD$2 -> 22.35453589
A7: 0.2 | B7: 0.003490658504 | C7: 0.120776539 | D7: 20.87018593 | E7: =VLOOKUP(A7-$B$2,'Ref. Coeff. Horiz.'!A:X,24) -> 180 | F7: =VLOOKUP(A7-$B$2,'Ref. Coeff. Vertical'!A:X,24) -> 0 | G7: =VLOOKUP(A7-$B$2,'Ref. Coeff. Horiz.'!A:X,23) -> 1 | H7: =VLOOKUP(A7-$B$2,'Ref. Coeff. Vertical'!A:X,23) -> 1 | I7: 200.8701859 | J7: 20.87018593 | Q7: 4956.064798 | R7: 4956.1 | S7: ='Antenna Data'!B5 -> 0 | T7: 0.3622430738 | U7: -8.819998193 | W7: 1.966921441 | X7: 5.875740291 | Z7: -8.819998193 | AB7: 5.875740291 | AD7: 7.550001807 | AE7: 22.24574029 | AF7: 7.550001807 | AG7: 22.24574029
A8: 0.3 | B8: 0.005235987756 | C8: 0.1811643486 | D8: 31.30519943 | E8: =VLOOKUP(A8-$B$2,'Ref. Coeff. Horiz.'!A:X,24) -> 180 | F8: =VLOOKUP(A8-$B$2,'Ref. Coeff. Vertical'!A:X,24) -> 0 | G8: =VLOOKUP(A8-$B$2,'Ref. Coeff. Horiz.'!A:X,23) -> 1 | H8: =VLOOKUP(A8-$B$2,'Ref. Coeff. Vertical'!A:X,23) -> 1 | I8: 211.3051994 | J8: 31.30519943 | Q8: 3304.026424 | R8: 3304 | S8: ='Antenna Data'!B6 -> 0 | T8: 0.5396078545 | U8: -5.358434748 | W8: 1.925830565 | X8: 5.692361501 | Z8: -5.358434748 | AB8: 5.692361501 | AD8: 11.01156525 | AE8: 22.0623615 | AF8: 11.01156525 | AG8: 22.0623615
A9: 0.4 | B9: 0.006981317008 | C9: 0.2415516063 | D9: 41.74011757 | E9: =VLOOKUP(A9-$B$2,'Ref. Coeff. Horiz.'!A:X,24) -> 180 | F9: =VLOOKUP(A9-$B$2,'Ref. Coeff. Vertical'!A:X,24) -> 0 | G9: =VLOOKUP(A9-$B$2,'Ref. Coeff. Horiz.'!A:X,23) -> 1 | H9: =VLOOKUP(A9-$B$2,'Ref. Coeff. Vertical'!A:X,23) -> 1 | I9: 221.7401176 | J9: 41.74011757 | Q9: 2478.002205 | R9: 2478 | S9: ='Antenna Data'!B7 -> 0 | T9: 0.7124995216 | U9: -2.944308458 | W9: 1.868781537 | X9: 5.431170693 | Z9: -2.944308458 | AB9: 5.431170693 | AD9: 13.42569154 | AE9: 21.80117069 | AF9: 13.42569154 | AG9: 21.80117069
A10: 0.5 | B10: 0.00872664626 | C10: 0.3019381282 | D10: 52.17490856 | E10: =VLOOKUP(A10-$B$2,'Ref. Coeff. Horiz.'!A:X,24) -> 180 | F10: =VLOOKUP(A10-$B$2,'Ref. Coeff. Vertical'!A:X,24) -> 0 | G10: =VLOOKUP(A10-$B$2,'Ref. Coeff. Horiz.'!A:X,23) -> 1 | H10: =VLOOKUP(A10-$B$2,'Ref. Coeff. Vertical'!A:X,23) -> 1 | I10: 232.1749086 | J10: 52.17490856 | Q10: 1982.383647 | R10: 1982.4 | S10: ='Antenna Data'!B8 -> 0 | T10: 0.879485047 | U10: -1.1154308 | W10: 1.79624777 | X10: 5.087324841 | Z10: -1.1154308 | AB10: 5.087324841 | AD10: 15.2545692 | AE10: 21.45732484 | AF10: 15.2545692 | AG10: 21.45732484
A11: 0.6 | B11: 0.01047197551 | C11: 0.3623237304 | D11: 62.60954062 | E11: =VLOOKUP(A11-$B$2,'Ref. Coeff. Horiz.'!A:X,24) -> 180 | F11: =VLOOKUP(A11-$B$2,'Ref. Coeff. Vertical'!A:X,24) -> 0 | G11: =VLOOKUP(A11-$B$2,'Ref. Coeff. Horiz.'!A:X,23) -> 1 | H11: =VLOOKUP(A11-$B$2,'Ref. Coeff. Vertical'!A:X,23) -> 1 | I11: 242.6095406 | J11: 62.60954062 | Q11: 1651.96792 | R11: 1652 | S11: ='Antenna Data'!B9 -> 0 | T11: 1.039180501 | U11: 0.3338197783 | W11: 1.708831147 | X11: 4.653983024 | Z11: 0.3338197783 | AB11: 4.653983024 | AD11: 16.70381978 | AE11: 21.02398302 | AF11: 16.70381978 | AG11: 21.02398302
A12: 0.7 | B12: 0.01221730476 | C12: 0.4227082289 | D12: 73.04398195 | E12: =VLOOKUP(A12-$B$2,'Ref. Coeff. Horiz.'!A:X,24) -> 180 | F12: =VLOOKUP(A12-$B$2,'Ref. Coeff. Vertical'!A:X,24) -> 0 | G12: =VLOOKUP(A12-$B$2,'Ref. Coeff. Horiz.'!A:X,23) -> 1 | H12: =VLOOKUP(A12-$B$2,'Ref. Coeff. Vertical'!A:X,23) -> 1 | I12: 253.043982 | J12: 73.04398195 | Q12: 1415.953811 | R12: 1416 | S12: ='Antenna Data'!B10 -> 0 | T12: 1.19026255 | U12: 1.51285539 | W12: 1.607256999 | X12: 4.121706513 | Z12: 1.51285539 | AB12: 4.121706513 | AD12: 17.88285539 | AE12: 20.49170651 | AF12: 17.88285539 | AG12: 20.49170651
A13: 0.8 | B13: 0.01396263402 | C13: 0.4830914397 | D13: 83.47820079 | E13: =VLOOKUP(A13-$B$2,'Ref. Coeff. Horiz.'!A:X,24) -> 180 | F13: =VLOOKUP(A13-$B$2,'Ref. Coeff. Vertical'!A:X,24) -> 0 | G13: =VLOOKUP(A13-$B$2,'Ref. Coeff. Horiz.'!A:X,23) -> 1 | H13: =VLOOKUP(A13-$B$2,'Ref. Coeff. Vertical'!A:X,23) -> 1 | I13: 263.4782008 | J13: 83.47820079 | Q13: 1238.940713 | R13: 1238.9 | S13: ='Antenna Data'!B11 -> -0.01 | T13: 1.331479457 | U13: 2.486689404 | W13: 1.49236807 | X13: 3.477518969 | Z13: 2.476689404 | AB13: 3.467518969 | AD13: 18.8566894 | AE13: 19.84751897 | AF13: 18.8466894 | AG13: 19.83751897
A14: 0.9 | B14: 0.01570796327 | C14: 0.543473179 | D14: 93.91216533 | E14: =VLOOKUP(A14-$B$2,'Ref. Coeff. Horiz.'!A:X,24) -> 180 | F14: =VLOOKUP(A14-$B$2,'Ref. Coeff. Vertical'!A:X,24) -> 0 | G14: =VLOOKUP(A14-$B$2,'Ref. Coeff. Horiz.'!A:X,23) -> 1 | H14: =VLOOKUP(A14-$B$2,'Ref. Coeff. Vertical'!A:X,23) -> 1 | I14: 273.9121653 | J14: 93.91216533 | Q14: 1101.261622 | R14: 1101.3 | S14: ='Antenna Data'!B12 -> -0.01 | T14: 1.461661467 | U14: 3.296935963 | W14: 1.365117488 | X14: 2.703400603 | Z14: 3.286935963 | AB14: 2.693400603 | AD14: 19.66693596 | AE14: 19.0734006 | AF14: 19.65693596 | AG14: 19.0634006
A15: 1 | B15: 0.01745329252 | C15: 0.6038532627 | D15: 104.3458438 | E15: =VLOOKUP(A15-$B$2,'Ref. Coeff. Horiz.'!A:X,24) -> 180 | F15: =VLOOKUP(A15-$B$2,'Ref. Coeff. Vertical'!A:X,24) -> 0 | G15: =VLOOKUP(A15-$B$2,'Ref. Coeff. Horiz.'!A:X,23) -> 1 | H15: =VLOOKUP(A15-$B$2,'Ref. Coeff. Vertical'!A:X,23) -> 1 | I15: 284.3458438 | J15: 104.3458438 | Q15: 991.1163362 | R15: 991.1 | S15: ='Antenna Data'!B13 -> -0.01 | T15: 1.579730526 | U15: 3.971660207 | W15: 1.226560828 | X15: 1.773781815 | Z15: 3.961660207 | AB15: 1.763781815 | AD15: 20.34166021 | AE15: 18.14378182 | AF15: 20.33166021 | AG15: 18.13378182
A16: 1.1 | B16: 0.01919862177 | C16: 0.664231507 | D16: 114.7792044 | E16: =VLOOKUP(A16-$B$2,'Ref. Coeff. Horiz.'!A:X,24) -> 180 | F16: =VLOOKUP(A16-$B$2,'Ref. Coeff. Vertical'!A:X,24) -> 0 | G16: =VLOOKUP(A16-$B$2,'Ref. Coeff. Horiz.'!A:X,23) -> 1 | H16: =VLOOKUP(A16-$B$2,'Ref. Coeff. Vertical'!A:X,23) -> 1 | I16: 294.7792044 | J16: 114.7792044 | Q16: 900.9956358 | R16: 901 | S16: ='Antenna Data'!B14 -> -0.01 | T16: 1.684709219 | U16: 4.530499046 | W16: 1.077847322 | X16: 0.651144937 | Z16: 4.520499046 | AB16: 0.641144937 | AD16: 20.90049905 | AE16: 17.02114494 | AF16: 20.89049905 | AG16: 17.01114494
A17: 1.2 | B17: 0.02094395102 | C17: 0.724607728 | D17: 125.2122154 | E17: =VLOOKUP(A17-$B$2,'Ref. Coeff. Horiz.'!A:X,24) -> 180 | F17: =VLOOKUP(A17-$B$2,'Ref. Coeff. Vertical'!A:X,24) -> 0 | G17: =VLOOKUP(A17-$B$2,'Ref. Coeff. Horiz.'!A:X,23) -> 1 | H17: =VLOOKUP(A17-$B$2,'Ref. Coeff. Vertical'!A:X,23) -> 1 | I17: 305.2122154 | J17: 125.2122154 | Q17: 825.8933743 | R17: 825.9 | S17: ='Antenna Data'!B15 -> -0.02 | T17: 1.775728874 | U17: 4.987533132 | W17: 0.9202102832 | X17: -0.7222583579 | Z17: 4.967533132 | AB17: -0.7422583579 | AD17: 21.35753313 | AE17: 15.64774164 | AF17: 21.33753313 | AG17: 15.62774164
A18: 1.3 | B18: 0.02268928028 | C18: 0.7849817416 | D18: 135.644845 | E18: =VLOOKUP(A18-$B$2,'Ref. Coeff. Horiz.'!A:X,24) -> 180 | F18: =VLOOKUP(A18-$B$2,'Ref. Coeff. Vertical'!A:X,24) -> 0 | G18: =VLOOKUP(A18-$B$2,'Ref. Coeff. Horiz.'!A:X,23) -> 1 | H18: =VLOOKUP(A18-$B$2,'Ref. Coeff. Vertical'!A:X,23) -> 1 | I18: 315.644845 | J18: 135.644845 | Q18: 762.3437583 | R18: 762.3 | S18: ='Antenna Data'!B16 -> -0.02 | T18: 1.852036761 | U18: 5.352992054 | W18: 0.7549568442 | X18: -2.441557467 | Z18: 5.332992054 | AB18: -2.461557467 | AD18: 21.72299205 | AE18: 13.92844253 | AF18: 21.70299205 | AG18: 13.90844253
A19: 1.4 | B19: 0.02443460953 | C19: 0.8453533641 | D19: 146.0770613 | E19: =VLOOKUP(A19-$B$2,'Ref. Coeff. Horiz.'!A:X,24) -> 180 | F19: =VLOOKUP(A19-$B$2,'Ref. Coeff. Vertical'!A:X,24) -> 0 | G19: =VLOOKUP(A19-$B$2,'Ref. Coeff. Horiz.'!A:X,23) -> 1 | H19: =VLOOKUP(A19-$B$2,'Ref. Coeff. Vertical'!A:X,23) -> 1 | I19: 326.0770613 | J19: 146.0770613 | Q19: 707.8712207 | R19: 707.9 | S19: ='Antenna Data'!B17 -> -0.02 | T19: 1.913002312 | U19: 5.634309897 | W19: 0.5834570726 | X19: -4.679821826 | Z19: 5.614309897 | AB19: -4.699821826 | AD19: 22.0043099 | AE19: 11.69017817 | AF19: 21.9843099 | AG19: 11.67017817
A20: 1.5 | B20: 0.02617993878 | C20: 0.9057224115 | D20: 156.5088327 | E20: =VLOOKUP(A20-$B$2,'Ref. Coeff. Horiz.'!A:X,24) -> 180 | F20: =VLOOKUP(A20-$B$2,'Ref. Coeff. Vertical'!A:X,24) -> 0 | G20: =VLOOKUP(A20-$B$2,'Ref. Coeff. Horiz.'!A:X,23) -> 1 | H20: =VLOOKUP(A20-$B$2,'Ref. Coeff. Vertical'!A:X,23) -> 1 | I20: 336.5088327 | J20: 156.5088327 | Q20: 660.6603458 | R20: 660.7 | S20: ='Antenna Data'!B18 -> -0.03 | T20: 1.958122332 | U20: 5.836796412 | W20: 0.4071325717 | X20: -7.805283029 | Z20: 5.806796412 | AB20: -7.835283029 | AD20: 22.20679641 | AE20: 8.564716971 | AF20: 22.17679641 | AG20: 8.534716971
A21: 1.6 | B21: 0.02792526803 | C21: 0.9660886998 | D21: 166.9401273 | E21: =VLOOKUP(A21-$B$2,'Ref. Coeff. Horiz.'!A:X,24) -> 180 | F21: =VLOOKUP(A21-$B$2,'Ref. Coeff. Vertical'!A:X,24) -> 0 | G21: =VLOOKUP(A21-$B$2,'Ref. Coeff. Horiz.'!A:X,23) -> 1 | H21: =VLOOKUP(A21-$B$2,'Ref. Coeff. Vertical'!A:X,23) -> 1 | I21: 346.9401273 | J21: 166.9401273 | Q21: 619.3495719 | R21: 619.3 | S21: ='Antenna Data'!B19 -> -0.03 | T21: 1.987025146 | U21: 5.964067262 | W21: 0.2274446545 | X21: -12.86248531 | Z21: 5.934067262 | AB21: -12.89248531 | AD21: 22.33406726 | AE21: 3.507514687 | AF21: 22.30406726 | AG21: 3.477514687
A22: 1.7 | B22: 0.02967059728 | C22: 1.026452045 | D22: 177.3709134 | E22: =VLOOKUP(A22-$B$2,'Ref. Coeff. Horiz.'!A:X,24) -> 180 | F22: =VLOOKUP(A22-$B$2,'Ref. Coeff. Vertical'!A:X,24) -> 0 | G22: =VLOOKUP(A22-$B$2,'Ref. Coeff. Horiz.'!A:X,23) -> 1 | H22: =VLOOKUP(A22-$B$2,'Ref. Coeff. Vertical'!A:X,23) -> 1 | I22: 357.3709134 | J22: 177.3709134 | Q22: 582.8977046 | R22: 582.9 | S22: ='Antenna Data'!B20 -> -0.03 | T22: 1.999473637 | U22: 6.018313646 | V22: Max | W22: 0.04588219133 | X22: -26.76711697 | Z22: 5.988313646 | AA22: Max | AB22: -26.79711697 | AD22: 22.38831365 | AE22: -10.39711697 | AF22: 22.35831365 | AG22: -10.42711697
A23: 1.8 | B23: 0.03141592654 | C23: 1.086812264 | D23: 187.8011592 | E23: =VLOOKUP(A23-$B$2,'Ref. Coeff. Horiz.'!A:X,24) -> 180 | F23: =VLOOKUP(A23-$B$2,'Ref. Coeff. Vertical'!A:X,24) -> 0 | G23: =VLOOKUP(A23-$B$2,'Ref. Coeff. Horiz.'!A:X,23) -> 1 | H23: =VLOOKUP(A23-$B$2,'Ref. Coeff. Vertical'!A:X,23) -> 1 | I23: 367.8011592 | J23: 187.8011592 | Q23: 550.494926 | R23: 550.5 | S23: ='Antenna Data'!B21 -> -0.04 | T23: 1.995367181 | U23: 6.000456499 | W23: 0.136050767 | X23: -17.32598011 | Z23: 5.960456499 | AB23: -17.36598011 | AD23: 22.3704565 | AE23: -0.9559801116 | AF23: 22.3304565 | AG23: -0.9959801116
A24: 1.9 | B24: 0.03316125579 | C24: 1.147169172 | D24: 198.230833 | E24: =VLOOKUP(A24-$B$2,'Ref. Coeff. Horiz.'!A:X,24) -> 180 | F24: =VLOOKUP(A24-$B$2,'Ref. Coeff. Vertical'!A:X,24) -> 0 | G24: =VLOOKUP(A24-$B$2,'Ref. Coeff. Horiz.'!A:X,23) -> 1 | H24: =VLOOKUP(A24-$B$2,'Ref. Coeff. Vertical'!A:X,23) -> 1 | I24: 378.230833 | J24: 198.230833 | Q24: 521.5019064 | R24: 521.5 | S24: ='Antenna Data'!B22 -> -0.04 | T24: 1.974742431 | U24: 5.910209159 | W24: 0.3168474867 | X24: -9.982994669 | Z24: 5.870209159 | AB24: -10.02299467 | AD24: 22.28020916 | AE24: 6.387005331 | AF24: 22.24020916 | AG24: 6.347005331
A25: 2 | B25: 0.03490658504 | C25: 1.207522586 | D25: 208.6599028 | E25: =VLOOKUP(A25-$B$2,'Ref. Coeff. Horiz.'!A:X,24) -> 180 | F25: =VLOOKUP(A25-$B$2,'Ref. Coeff. Vertical'!A:X,24) -> 0 | G25: =VLOOKUP(A25-$B$2,'Ref. Coeff. Horiz.'!A:X,23) -> 1 | H25: =VLOOKUP(A25-$B$2,'Ref. Coeff. Vertical'!A:X,23) -> 1 | I25: 388.6599028 | J25: 208.6599028 | Q25: 495.4071818 | R25: 495.4 | S25: ='Antenna Data'!B23 -> -0.05 | T25: 1.93777296 | U25: 5.746057828 | W25: 0.4950110657 | X25: -6.107701852 | Z25: 5.696057828 | AB25: -6.157701852 | AD25: 22.11605783 | AE25: 10.26229815 | AF25: 22.06605783 | AG25: 10.21229815
A26: 2.1 | B26: 0.03665191429 | C26: 1.267872321 | D26: 219.0883371 | E26: =VLOOKUP(A26-$B$2,'Ref. Coeff. Horiz.'!A:X,24) -> 180 | F26: =VLOOKUP(A26-$B$2,'Ref. Coeff. Vertical'!A:X,24) -> 0 | G26: =VLOOKUP(A26-$B$2,'Ref. Coeff. Horiz.'!A:X,23) -> 1 | H26: =VLOOKUP(A26-$B$2,'Ref. Coeff. Vertical'!A:X,23) -> 1 | I26: 399.0883371 | J26: 219.0883371 | Q26: 471.7967101 | R26: 471.8 | S26: ='Antenna Data'!B24 -> -0.05 | T26: 1.884767768 | U26: 5.505156921 | W26: 0.6690668596 | X26: -3.490609624 | Z26: 5.455156921 | AB26: -3.540609624 | AD26: 21.87515692 | AE26: 12.87939038 | AF26: 21.82515692 | AG26: 12.82939038
A27: 2.2 | B27: 0.03839724354 | C27: 1.328218194 | D27: 229.516104 | E27: =VLOOKUP(A27-$B$2,'Ref. Coeff. Horiz.'!A:X,24) -> 180 | F27: =VLOOKUP(A27-$B$2,'Ref. Coeff. Vertical'!A:X,24) -> 0 | G27: =VLOOKUP(A27-$B$2,'Ref. Coeff. Horiz.'!A:X,23) -> 1 | H27: =VLOOKUP(A27-$B$2,'Ref. Coeff. Vertical'!A:X,23) -> 1 | I27: 409.516104 | J27: 229.516104 | Q27: 450.3317294 | R27: 450.3 | S27: ='Antenna Data'!B25 -> -0.06 | T27: 1.816168658 | U27: 5.183123534 | W27: 0.8375747166 | X27: -1.539528819 | Z27: 5.123123534 | AB27: -1.599528819 | AD27: 21.55312353 | AE27: 14.83047118 | AF27: 21.49312353 | AG27: 14.77047118
A28: 2.3 | B28: 0.0401425728 | C28: 1.388560022 | D28: 239.9431717 | E28: =VLOOKUP(A28-$B$2,'Ref. Coeff. Horiz.'!A:X,24) -> 180 | F28: =VLOOKUP(A28-$B$2,'Ref. Coeff. Vertical'!A:X,24) -> 0 | G28: =VLOOKUP(A28-$B$2,'Ref. Coeff. Horiz.'!A:X,23) -> 1 | H28: =VLOOKUP(A28-$B$2,'Ref. Coeff. Vertical'!A:X,23) -> 1 | I28: 419.9431717 | J28: 239.9431717 | Q28: 430.7323931 | R28: 430.7 | S28: ='Antenna Data'!B26 -> -0.06 | T28: 1.732546515 | U28: 4.773698064 | W28: 0.9991409182 | X28: -0.007465096957 | Z28: 4.713698064 | AB28: -0.06746509696 | AD28: 21.14369806 | AE28: 16.3625349 | AF28: 21.08369806 | AG28: 16.3025349
A29: 2.4 | B29: 0.04188790205 | C29: 1.448897619 | D29: 250.3695086 | E29: =VLOOKUP(A29-$B$2,'Ref. Coeff. Horiz.'!A:X,24) -> 180 | F29: =VLOOKUP(A29-$B$2,'Ref. Coeff. Vertical'!A:X,24) -> 0 | G29: =VLOOKUP(A29-$B$2,'Ref. Coeff. Horiz.'!A:X,23) -> 1 | H29: =VLOOKUP(A29-$B$2,'Ref. Coeff. Vertical'!A:X,23) -> 1 | I29: 430.3695086 | J29: 250.3695086 | Q29: 412.7654955 | R29: 412.8 | S29: ='Antenna Data'!B27 -> -0.07 | T29: 1.634596502 | U29: 4.268211305 | W29: 1.152429727 | X29: 1.232289046 | Z29: 4.198211305 | AB29: 1.162289046 | AD29: 20.63821131 | AE29: 17.60228905 | AF29: 20.56821131 | AG29: 17.53228905
A30: 2.5 | B30: 0.0436332313 | C30: 1.509230803 | D30: 260.7950827 | E30: =VLOOKUP(A30-$B$2,'Ref. Coeff. Horiz.'!A:X,24) -> 180 | F30: =VLOOKUP(A30-$B$2,'Ref. Coeff. Vertical'!A:X,24) -> 0 | G30: =VLOOKUP(A30-$B$2,'Ref. Coeff. Horiz.'!A:X,23) -> 1 | H30: =VLOOKUP(A30-$B$2,'Ref. Coeff. Vertical'!A:X,23) -> 1 | I30: 440.7950827 | J30: 260.7950827 | Q30: 396.235144 | R30: 396.2 | S30: ='Antenna Data'!B28 -> -0.07 | T30: 1.523132237 | U30: 3.654752201 | W30: 1.296174444 | X30: 2.253269087 | Z30: 3.584752201 | AB30: 2.183269087 | AD30: 20.0247522 | AE30: 18.62326909 | AF30: 19.9547522 | AG30: 18.55326909
A31: 2.6 | B31: 0.04537856055 | C31: 1.569559389 | D31: 271.2198625 | E31: =VLOOKUP(A31-$B$2,'Ref. Coeff. Horiz.'!A:X,24) -> 180 | F31: =VLOOKUP(A31-$B$2,'Ref. Coeff. Vertical'!A:X,24) -> 0 | G31: =VLOOKUP(A31-$B$2,'Ref. Coeff. Horiz.'!A:X,23) -> 1 | H31: =VLOOKUP(A31-$B$2,'Ref. Coeff. Vertical'!A:X,23) -> 1 | I31: 451.2198625 | J31: 271.2198625 | Q31: 380.9755832 | R31: 381 | S31: ='Antenna Data'!B29 -> -0.08 | T31: 1.399078977 | U31: 2.916844616 | W31: 1.429187887 | X31: 3.101786534 | Z31: 2.836844616 | AB31: 3.021786534 | AD31: 19.28684462 | AE31: 19.47178653 | AF31: 19.20684462 | AG31: 19.39178653
A32: 2.7 | B32: 0.0471238898 | C32: 1.629883195 | D32: 281.643816 | E32: =VLOOKUP(A32-$B$2,'Ref. Coeff. Horiz.'!A:X,24) -> 180 | F32: =VLOOKUP(A32-$B$2,'Ref. Coeff. Vertical'!A:X,24) -> 0 | G32: =VLOOKUP(A32-$B$2,'Ref. Coeff. Horiz.'!A:X,23) -> 1 | H32: =VLOOKUP(A32-$B$2,'Ref. Coeff. Vertical'!A:X,23) -> 1 | I32: 461.643816 | J32: 281.643816 | Q32: 366.8456141 | R32: 366.8 | S32: ='Antenna Data'!B30 -> -0.09 | T32: 1.263465887 | U32: 2.031270411 | W32: 1.550372198 | X32: 3.808719438 | Z32: 1.941270411 | AB32: 3.718719438 | AD32: 18.40127041 | AE32: 20.17871944 | AF32: 18.31127041 | AG32: 20.08871944
A33: 2.8 | B33: 0.04886921906 | C33: 1.690202035 | D33: 292.0669116 | E33: =VLOOKUP(A33-$B$2,'Ref. Coeff. Horiz.'!A:X,24) -> 180 | F33: =VLOOKUP(A33-$B$2,'Ref. Coeff. Vertical'!A:X,24) -> 0 | G33: =VLOOKUP(A33-$B$2,'Ref. Coeff. Horiz.'!A:X,23) -> 1 | H33: =VLOOKUP(A33-$B$2,'Ref. Coeff. Vertical'!A:X,23) -> 1 | I33: 472.0669116 | J33: 292.0669116 | Q33: 353.7242089 | R33: 353.7 | S33: ='Antenna Data'!B31 -> -0.09 | T33: 1.117417443 | U33: 0.9643089273 | W33: 1.658727904 | X33: 4.395503012 | Z33: 0.8743089273 | AB33: 4.305503012 | AD33: 17.33430893 | AE33: 20.76550301 | AF33: 17.24430893 | AG33: 20.67550301
A34: 2.9 | B34: 0.05061454831 | C34: 1.750515727 | D34: 302.4891176 | E34: =VLOOKUP(A34-$B$2,'Ref. Coeff. Horiz.'!A:X,24) -> 180 | F34: =VLOOKUP(A34-$B$2,'Ref. Coeff. Vertical'!A:X,24) -> 0 | G34: =VLOOKUP(A34-$B$2,'Ref. Coeff. Horiz.'!A:X,23) -> 1 | H34: =VLOOKUP(A34-$B$2,'Ref. Coeff. Vertical'!A:X,23) -> 1 | I34: 482.4891176 | J34: 302.4891176 | Q34: 341.5070335 | R34: 341.5 | S34: ='Antenna Data'!B32 -> -0.1 | T34: 0.962144054 | U34: -0.3351979944 | W34: 1.753362147 | X34: 4.87743253 | Z34: -0.4351979944 | AB34: 4.77743253 | AD34: 16.03480201 | AE34: 21.24743253 | AF34: 15.93480201 | AG34: 21.14743253
A35: 3 | B35: 0.05235987756 | C35: 1.810824086 | D35: 312.9104021 | E35: =VLOOKUP(A35-$B$2,'Ref. Coeff. Horiz.'!A:X,24) -> 180 | F35: =VLOOKUP(A35-$B$2,'Ref. Coeff. Vertical'!A:X,24) -> 0 | G35: =VLOOKUP(A35-$B$2,'Ref. Coeff. Horiz.'!A:X,23) -> 1 | H35: =VLOOKUP(A35-$B$2,'Ref. Coeff. Vertical'!A:X,23) -> 1 | I35: 492.9104021 | J35: 312.9104021 | Q35: 330.1036647 | R35: 330.1 | S35: ='Antenna Data'!B33 -> -0.11 | T35: 0.7989319732 | U35: -1.949803961 | W35: 1.833496033 | X35: 5.265599492 | Z35: -2.059803961 | AB35: 5.155599492 | AD35: 14.42019604 | AE35: 21.63559949 | AF35: 14.31019604 | AG35: 21.52559949
A36: 3.1 | B36: 0.05410520681 | C36: 1.871126929 | D36: 323.3307334 | E36: =VLOOKUP(A36-$B$2,'Ref. Coeff. Horiz.'!A:X,24) -> 180 | F36: =VLOOKUP(A36-$B$2,'Ref. Coeff. Vertical'!A:X,24) -> 0 | G36: =VLOOKUP(A36-$B$2,'Ref. Coeff. Horiz.'!A:X,23) -> 1 | H36: =VLOOKUP(A36-$B$2,'Ref. Coeff. Vertical'!A:X,23) -> 1 | I36: 503.3307334 | J36: 323.3307334 | Q36: 319.4353471 | R36: 319.4 | S36: ='Antenna Data'!B34 -> -0.11 | T36: 0.6291325867 | U36: -4.025156389 | W36: 1.898471013 | X36: 5.568079411 | Z36: -4.135156389 | AB36: 5.458079411 | AD36: 12.34484361 | AE36: 21.93807941 | AF36: 12.23484361 | AG36: 21.82807941
A37: 3.2 | B37: 0.05585053606 | C37: 1.931424073 | D37: 333.7500798 | E37: =VLOOKUP(A37-$B$2,'Ref. Coeff. Horiz.'!A:X,24) -> 180 | F37: =VLOOKUP(A37-$B$2,'Ref. Coeff. Vertical'!A:X,24) -> 0 | G37: =VLOOKUP(A37-$B$2,'Ref. Coeff. Horiz.'!A:X,23) -> 1 | H37: =VLOOKUP(A37-$B$2,'Ref. Coeff. Vertical'!A:X,23) -> 1 | I37: 513.7500798 | J37: 333.7500798 | Q37: 309.4331696 | R37: 309.4 | S37: ='Antenna Data'!B35 -> -0.12 | T37: 0.4541511701 | U37: -6.85599125 | W37: 1.947754275 | X37: 5.790683323 | Z37: -6.97599125 | AB37: 5.670683323 | AD37: 9.51400875 | AE37: 22.16068332 | AF37: 9.39400875 | AG37: 22.04068332
A38: 3.3 | B38: 0.05759586532 | C38: 1.991715333 | D38: 344.1684095 | E38: =VLOOKUP(A38-$B$2,'Ref. Coeff. Horiz.'!A:X,24) -> 180 | F38: =VLOOKUP(A38-$B$2,'Ref. Coeff. Vertical'!A:X,24) -> 0 | G38: =VLOOKUP(A38-$B$2,'Ref. Coeff. Horiz.'!A:X,23) -> 1 | H38: =VLOOKUP(A38-$B$2,'Ref. Coeff. Vertical'!A:X,23) -> 1 | I38: 524.1684095 | J38: 344.1684095 | Q38: 300.0365739 | R38: 300 | S38: ='Antenna Data'!B36 -> -0.13 | T38: 0.275435207 | U38: -11.19961095 | W38: 1.98094307 | X38: 5.937439892 | Z38: -11.32961095 | AB38: 5.807439892 | AD38: 5.170389048 | AE38: 22.30743989 | AF38: 5.040389048 | AG38: 22.17743989
A39: 3.4 | B39: 0.05934119457 | C39: 2.052000526 | D39: 354.5856908 | E39: =VLOOKUP(A39-$B$2,'Ref. Coeff. Horiz.'!A:X,24) -> 180 | F39: =VLOOKUP(A39-$B$2,'Ref. Coeff. Vertical'!A:X,24) -> 0 | G39: =VLOOKUP(A39-$B$2,'Ref. Coeff. Horiz.'!A:X,23) -> 1 | H39: =VLOOKUP(A39-$B$2,'Ref. Coeff. Vertical'!A:X,23) -> 1 | I39: 534.5856908 | J39: 354.5856908 | Q39: 291.1921263 | R39: 291.2 | S39: ='Antenna Data'!B37 -> -0.14 | T39: 0.09446236529 | U39: -20.49482368 | W39: 1.99776797 | X39: 6.010900917 | Z39: -20.63482368 | AB39: 5.870900917 | AC39: Max | AD39: -4.124823682 | AE39: 22.38090092 | AF39: -4.264823682 | AG39: 22.24090092
A40: 3.5 | B40: 0.06108652382 | C40: 2.112279468 | D40: 365.0018921 | E40: =VLOOKUP(A40-$B$2,'Ref. Coeff. Horiz.'!A:X,24) -> 180 | F40: =VLOOKUP(A40-$B$2,'Ref. Coeff. Vertical'!A:X,24) -> 0 | G40: =VLOOKUP(A40-$B$2,'Ref. Coeff. Horiz.'!A:X,23) -> 1 | H40: =VLOOKUP(A40-$B$2,'Ref. Coeff. Vertical'!A:X,23) -> 1 | I40: 545.0018921 | J40: 365.0018921 | Q40: 282.8524997 | R40: 282.9 | S40: ='Antenna Data'!B38 -> -0.15 | T40: 0.08727176586 | U40: -21.18252473 | W40: 1.998095002 | X40: 6.012322671 | Y40: Max | Z40: -21.33252473 | AB40: 5.862322671 | AD40: -4.812524728 | AE40: 22.38232267 | AF40: -4.962524728 | AG40: 22.23232267
A41: 3.6 | B41: 0.06283185307 | C41: 2.172551976 | D41: 375.4169814 | E41: =VLOOKUP(A41-$B$2,'Ref. Coeff. Horiz.'!A:X,24) -> 180 | F41: =VLOOKUP(A41-$B$2,'Ref. Coeff. Vertical'!A:X,24) -> 0 | G41: =VLOOKUP(A41-$B$2,'Ref. Coeff. Horiz.'!A:X,23) -> 1 | H41: =VLOOKUP(A41-$B$2,'Ref. Coeff. Vertical'!A:X,23) -> 1 | I41: 555.4169814 | J41: 375.4169814 | Q41: 274.9756258 | R41: 275 | S41: ='Antenna Data'!B39 -> -0.16 | T41: 0.2682660769 | U41: -11.42868484 | W41: 1.981926667 | X41: 5.941751622 | Z41: -11.58868484 | AB41: 5.781751622 | AD41: 4.941315164 | AE41: 22.31175162 | AF41: 4.781315164 | AG41: 22.15175162
A42: 3.7 | B42: 0.06457718232 | C42: 2.232817866 | D42: 385.8309272 | E42: =VLOOKUP(A42-$B$2,'Ref. Coeff. Horiz.'!A:X,24) -> 180 | F42: =VLOOKUP(A42-$B$2,'Ref. Coeff. Vertical'!A:X,24) -> 0 | G42: =VLOOKUP(A42-$B$2,'Ref. Coeff. Horiz.'!A:X,23) -> 1 | H42: =VLOOKUP(A42-$B$2,'Ref. Coeff. Vertical'!A:X,23) -> 1 | I42: 565.8309272 | J42: 385.8309272 | Q42: 267.5239839 | R42: 267.5 | S42: ='Antenna Data'!B40 -> -0.16 | T42: 0.4470263732 | U42: -6.993337081 | W42: 1.949401811 | X42: 5.798027305 | Z42: -7.153337081 | AB42: 5.638027305 | AD42: 9.376662919 | AE42: 22.1680273 | AF42: 9.216662919 | AG42: 22.0080273
A43: 3.8 | B43: 0.06632251158 | C43: 2.293076954 | D43: 396.2436976 | E43: =VLOOKUP(A43-$B$2,'Ref. Coeff. Horiz.'!A:X,24) -> 180 | F43: =VLOOKUP(A43-$B$2,'Ref. Coeff. Vertical'!A:X,24) -> 0 | G43: =VLOOKUP(A43-$B$2,'Ref. Coeff. Horiz.'!A:X,23) -> 1 | H43: =VLOOKUP(A43-$B$2,'Ref. Coeff. Vertical'!A:X,23) -> 1 | I43: 576.2436976 | J43: 396.2436976 | Q43: 260.4640031 | R43: 260.5 | S43: ='Antenna Data'!B41 -> -0.17 | T43: 0.6220777414 | U43: -4.123106757 | W43: 1.900794382 | X43: 5.578702795 | Z43: -4.293106757 | AB43: 5.408702795 | AD43: 12.24689324 | AE43: 21.9487028 | AF43: 12.07689324 | AG43: 21.7787028
A44: 3.9 | B44: 0.06806784083 | C44: 2.353329057 | D44: 406.6552611 | E44: =VLOOKUP(A44-$B$2,'Ref. Coeff. Horiz.'!A:X,24) -> 180 | F44: =VLOOKUP(A44-$B$2,'Ref. Coeff. Vertical'!A:X,24) -> 0 | G44: =VLOOKUP(A44-$B$2,'Ref. Coeff. Horiz.'!A:X,23) -> 1 | H44: =VLOOKUP(A44-$B$2,'Ref. Coeff. Vertical'!A:X,23) -> 1 | I44: 586.6552611 | J44: 406.6552611 | Q44: 253.7655556 | R44: 253.8 | S44: ='Antenna Data'!B42 -> -0.18 | T44: 0.791976743 | U44: -2.025751432 | W44: 1.83651105 | X44: 5.279870918 | Z44: -2.205751432 | AB44: 5.099870918 | AD44: 14.34424857 | AE44: 21.64987092 | AF44: 14.16424857 | AG44: 21.46987092
A45: 4 | B45: 0.06981317008 | C45: 2.413573992 | D45: 417.0655857 | E45: =VLOOKUP(A45-$B$2,'Ref. Coeff. Horiz.'!A:X,24) -> 180 | F45: =VLOOKUP(A45-$B$2,'Ref. Coeff. Vertical'!A:X,24) -> 0 | G45: =VLOOKUP(A45-$B$2,'Ref. Coeff. Horiz.'!A:X,23) -> 1 | H45: =VLOOKUP(A45-$B$2,'Ref. Coeff. Vertical'!A:X,23) -> 1 | I45: 597.0655857 | J45: 417.0655857 | Q45: 247.4015262 | R45: 247.4 | S45: ='Antenna Data'!B43 -> -0.19 | T45: 0.9553233348 | U45: -0.3969922806 | W45: 1.75708774 | X45: 4.89586897 | Z45: -0.5869922806 | AB45: 4.70586897 | AD45: 15.97300772 | AE45: 21.26586897 | AF45: 15.78300772 | AG45: 21.07586897
A46: 4.1 | B46: 0.07155849933 | C46: 2.473811574 | D46: 427.47464 | E46: =VLOOKUP(A46-$B$2,'Ref. Coeff. Horiz.'!A:X,24) -> 180 | F46: =VLOOKUP(A46-$B$2,'Ref. Coeff. Vertical'!A:X,24) -> 0 | G46: =VLOOKUP(A46-$B$2,'Ref. Coeff. Horiz.'!A:X,23) -> 1 | H46: =VLOOKUP(A46-$B$2,'Ref. Coeff. Vertical'!A:X,23) -> 1 | I46: 607.47464 | J46: 427.47464 | Q46: 241.3474454 | R46: 241.3 | S46: ='Antenna Data'!B44 -> -0.2 | T46: 1.110772417 | U46: 0.9125017346 | W46: 1.663185088 | X46: 4.418811651 | Z46: 0.7125017346 | AB46: 4.218811651 | AD46: 17.28250173 | AE46: 20.78881165 | AF46: 17.08250173 | AG46: 20.58881165
A47: 4.2 | B47: 0.07330382858 | C47: 2.534041621 | D47: 437.882392 | E47: =VLOOKUP(A47-$B$2,'Ref. Coeff. Horiz.'!A:X,24) -> 180 | F47: =VLOOKUP(A47-$B$2,'Ref. Coeff. Vertical'!A:X,24) -> 0 | G47: =VLOOKUP(A47-$B$2,'Ref. Coeff. Horiz.'!A:X,23) -> 1 | H47: =VLOOKUP(A47-$B$2,'Ref. Coeff. Vertical'!A:X,23) -> 1 | I47: 617.882392 | J47: 437.882392 | Q47: 235.5811739 | R47: 235.6 | S47: ='Antenna Data'!B45 -> -0.21 | T47: 1.257044914 | U47: 1.987015904 | W47: 1.555582876 | X47: 3.837863076 | Z47: 1.777015904 | AB47: 3.627863076 | AD47: 18.3570159 | AE47: 20.20786308 | AF47: 18.1470159 | AG47: 19.99786308
A48: 4.3 | B48: 0.07504915784 | C48: 2.594263948 | D48: 448.2888102 | E48: =VLOOKUP(A48-$B$2,'Ref. Coeff. Horiz.'!A:X,24) -> 180 | F48: =VLOOKUP(A48-$B$2,'Ref. Coeff. Vertical'!A:X,24) -> 0 | G48: =VLOOKUP(A48-$B$2,'Ref. Coeff. Horiz.'!A:X,23) -> 1 | H48: =VLOOKUP(A48-$B$2,'Ref. Coeff. Vertical'!A:X,23) -> 1 | I48: 628.2888102 | J48: 448.2888102 | Q48: 230.082632 | R48: 230.1 | S48: ='Antenna Data'!B46 -> -0.22 | T48: 1.392938293 | U48: 2.878637555 | W48: 1.435173478 | X48: 3.138087999 | Z48: 2.658637555 | AB48: 2.918087999 | AD48: 19.24863755 | AE48: 19.508088 | AF48: 19.02863755 | AG48: 19.288088
A49: 4.4 | B49: 0.07679448709 | C49: 2.654478373 | D49: 458.6938629 | E49: =VLOOKUP(A49-$B$2,'Ref. Coeff. Horiz.'!A:X,24) -> 180 | F49: =VLOOKUP(A49-$B$2,'Ref. Coeff. Vertical'!A:X,24) -> 0 | G49: =VLOOKUP(A49-$B$2,'Ref. Coeff. Horiz.'!A:X,23) -> 1 | H49: =VLOOKUP(A49-$B$2,'Ref. Coeff. Vertical'!A:X,23) -> 1 | I49: 638.6938629 | J49: 458.6938629 | Q49: 224.8335652 | R49: 224.8 | S49: ='Antenna Data'!B47 -> -0.23 | T49: 1.517336442 | U49: 3.621637768 | W49: 1.302954382 | X49: 2.298584217 | Z49: 3.391637768 | AB49: 2.068584217 | AD49: 19.99163777 | AE49: 18.66858422 | AF49: 19.76163777 | AG49: 18.43858422
A50: 4.5 | B50: 0.07853981634 | C50: 2.714684712 | D50: 469.0975183 | E50: =VLOOKUP(A50-$B$2,'Ref. Coeff. Horiz.'!A:X,24) -> 180 | F50: =VLOOKUP(A50-$B$2,'Ref. Coeff. Vertical'!A:X,24) -> 0 | G50: =VLOOKUP(A50-$B$2,'Ref. Coeff. Horiz.'!A:X,23) -> 1 | H50: =VLOOKUP(A50-$B$2,'Ref. Coeff. Vertical'!A:X,23) -> 1 | I50: 649.0975183 | J50: 469.0975183 | Q50: 219.8173419 | R50: 219.8 | S50: ='Antenna Data'!B48 -> -0.24 | T50: 1.629218812 | U50: 4.239588322 | W50: 1.160019854 | X50: 1.28930845 | Z50: 3.999588322 | AB50: 1.04930845 | AD50: 20.60958832 | AE50: 17.65930845 | AF50: 20.36958832 | AG50: 17.41930845
A51: 4.6 | B51: 0.08028514559 | C51: 2.774882782 | D51: 479.4997447 | E51: =VLOOKUP(A51-$B$2,'Ref. Coeff. Horiz.'!A:X,24) -> 180 | F51: =VLOOKUP(A51-$B$2,'Ref. Coeff. Vertical'!A:X,24) -> 0 | G51: =VLOOKUP(A51-$B$2,'Ref. Coeff. Horiz.'!A:X,23) -> 1 | H51: =VLOOKUP(A51-$B$2,'Ref. Coeff. Vertical'!A:X,23) -> 1 | I51: 659.4997447 | J51: 479.4997447 | Q51: 215.0187766 | R51: 215 | S51: ='Antenna Data'!B49 -> -0.26 | T51: 1.727668766 | U51: 4.749209635 | W51: 1.007551803 | X51: 0.06534769314 | Z51: 4.489209635 | AB51: -0.1946523069 | AD51: 21.11920963 | AE51: 16.43534769 | AF51: 20.85920963 | AG51: 16.17534769
A52: 4.7 | B52: 0.08203047484 | C52: 2.835072399 | D52: 489.9005105 | E52: =VLOOKUP(A52-$B$2,'Ref. Coeff. Horiz.'!A:X,24) -> 180 | F52: =VLOOKUP(A52-$B$2,'Ref. Coeff. Vertical'!A:X,24) -> 0 | G52: =VLOOKUP(A52-$B$2,'Ref. Coeff. Horiz.'!A:X,23) -> 1 | H52: =VLOOKUP(A52-$B$2,'Ref. Coeff. Vertical'!A:X,23) -> 1 | I52: 669.9005105 | J52: 489.9005105 | Q52: 210.4239762 | R52: 210.4 | S52: ='Antenna Data'!B50 -> -0.27 | T52: 1.811881048 | U52: 5.162593649 | W52: 0.8468099354 | X52: -1.444281103 | Z52: 4.892593649 | AB52: -1.714281103 | AD52: 21.53259365 | AE52: 14.9257189 | AF52: 21.26259365 | AG52: 14.6557189
A53: 4.8 | B53: 0.0837758041 | C53: 2.895253379 | D53: 500.2997839 | E53: =VLOOKUP(A53-$B$2,'Ref. Coeff. Horiz.'!A:X,24) -> 180 | F53: =VLOOKUP(A53-$B$2,'Ref. Coeff. Vertical'!A:X,24) -> 0 | G53: =VLOOKUP(A53-$B$2,'Ref. Coeff. Horiz.'!A:X,23) -> 1 | H53: =VLOOKUP(A53-$B$2,'Ref. Coeff. Vertical'!A:X,23) -> 1 | I53: 680.2997839 | J53: 500.2997839 | Q53: 206.0202053 | R53: 206 | S53: ='Antenna Data'!B51 -> -0.28 | T53: 1.881168332 | U53: 5.488553182 | W53: 0.6791212759 | X53: -3.36105327 | Z53: 5.208553182 | AB53: -3.64105327 | AD53: 21.85855318 | AE53: 13.00894673 | AF53: 21.57855318 | AG53: 12.72894673
A54: 4.9 | B54: 0.08552113335 | C54: 2.955425541 | D54: 510.6975334 | E54: =VLOOKUP(A54-$B$2,'Ref. Coeff. Horiz.'!A:X,24) -> 180 | F54: =VLOOKUP(A54-$B$2,'Ref. Coeff. Vertical'!A:X,24) -> 0 | G54: =VLOOKUP(A54-$B$2,'Ref. Coeff. Horiz.'!A:X,23) -> 1 | H54: =VLOOKUP(A54-$B$2,'Ref. Coeff. Vertical'!A:X,23) -> 1 | I54: 690.6975334 | J54: 510.6975334 | Q54: 201.7957682 | R54: 201.8 | S54: ='Antenna Data'!B52 -> -0.29 | T54: 1.934966772 | U54: 5.733470229 | W54: 0.5058691459 | X54: -5.919236168 | Z54: 5.443470229 | AB54: -6.209236168 | AD54: 22.10347023 | AE54: 10.45076383 | AF54: 21.81347023 | AG54: 10.16076383
A55: 5 | B55: 0.0872664626 | C55: 3.015588699 | D55: 521.0937272 | E55: =VLOOKUP(A55-$B$2,'Ref. Coeff. Horiz.'!A:X,24) -> 180 | F55: =VLOOKUP(A55-$B$2,'Ref. Coeff. Vertical'!A:X,24) -> 0 | G55: =VLOOKUP(A55-$B$2,'Ref. Coeff. Horiz.'!A:X,23) -> 1 | H55: =VLOOKUP(A55-$B$2,'Ref. Coeff. Vertical'!A:X,23) -> 1 | I55: 701.0937272 | J55: 521.0937272 | Q55: 197.7399048 | R55: 197.7 | S55: ='Antenna Data'!B53 -> -0.3 | T55: 1.972840536 | U55: 5.901839656 | W55: 0.3284816879 | X55: -9.669776726 | Z55: 5.601839656 | AB55: -9.969776726 | AD55: 22.27183966 | AE55: 6.700223274 | AF55: 21.97183966 | AG55: 6.400223274
A56: 5.1 | B56: 0.08901179185 | C56: 3.075742672 | D56: 531.4883336 | E56: =VLOOKUP(A56-$B$2,'Ref. Coeff. Horiz.'!A:X,24) -> 180 | F56: =VLOOKUP(A56-$B$2,'Ref. Coeff. Vertical'!A:X,24) -> 0 | G56: =VLOOKUP(A56-$B$2,'Ref. Coeff. Horiz.'!A:X,23) -> 1 | H56: =VLOOKUP(A56-$B$2,'Ref. Coeff. Vertical'!A:X,23) -> 1 | I56: 711.4883336 | J56: 531.4883336 | Q56: 193.842699 | R56: 193.8 | S56: ='Antenna Data'!B54 -> -0.32 | T56: 1.99448527 | U56: 5.996616665 | W56: 0.148420036 | X56: -16.57014935 | Z56: 5.676616665 | AB56: -16.89014935 | AD56: 22.36661667 | AE56: -0.2001493508 | AF56: 22.04661667 | AG56: -0.5201493508
A57: 5.2 | B57: 0.0907571211 | C57: 3.135887275 | D57: 541.8813211 | E57: =VLOOKUP(A57-$B$2,'Ref. Coeff. Horiz.'!A:X,24) -> 180 | F57: =VLOOKUP(A57-$B$2,'Ref. Coeff. Vertical'!A:X,24) -> 0 | G57: =VLOOKUP(A57-$B$2,'Ref. Coeff. Horiz.'!A:X,23) -> 1 | H57: =VLOOKUP(A57-$B$2,'Ref. Coeff. Vertical'!A:X,23) -> 1 | I57: 721.8813211 | J57: 541.8813211 | Q57: 190.0949974 | R57: 190.1 | S57: ='Antenna Data'!B55 -> -0.33 | T57: 1.999730468 | U57: 6.01942927 | V57: Max | W57: 0.03283377232 | X57: -29.67358435 | Z57: 5.68942927 | AA57: Max | AB57: -30.00358435 | AD57: 22.38942927 | AE57: -13.30358435 | AF57: 22.05942927 | AG57: -13.63358435
A58: 5.3 | B58: 0.09250245036 | C58: 3.196022326 | D58: 552.2726579 | E58: =VLOOKUP(A58-$B$2,'Ref. Coeff. Horiz.'!A:X,24) -> 180 | F58: =VLOOKUP(A58-$B$2,'Ref. Coeff. Vertical'!A:X,24) -> 0 | G58: =VLOOKUP(A58-$B$2,'Ref. Coeff. Horiz.'!A:X,23) -> 1 | H58: =VLOOKUP(A58-$B$2,'Ref. Coeff. Vertical'!A:X,23) -> 1 | I58: 732.2726579 | J58: 552.2726579 | Q58: 186.4883374 | R58: 186.5 | S58: ='Antenna Data'!B56 -> -0.34 | T58: 1.988540733 | U58: 5.970689829 | W58: 0.2137890388 | X58: -13.40029131 | Z58: 5.630689829 | AB58: -13.74029131 | AD58: 22.34068983 | AE58: 2.969708694 | AF58: 22.00068983 | AG58: 2.629708694
A59: 5.4 | B59: 0.09424777961 | C59: 3.256147641 | D59: 562.6623123 | E59: =VLOOKUP(A59-$B$2,'Ref. Coeff. Horiz.'!A:X,24) -> 180 | F59: =VLOOKUP(A59-$B$2,'Ref. Coeff. Vertical'!A:X,24) -> 0 | G59: =VLOOKUP(A59-$B$2,'Ref. Coeff. Horiz.'!A:X,23) -> 1 | H59: =VLOOKUP(A59-$B$2,'Ref. Coeff. Vertical'!A:X,23) -> 1 | I59: 742.6623123 | J59: 562.6623123 | Q59: 183.0148834 | R59: 183 | S59: ='Antenna Data'!B57 -> -0.35 | T59: 1.961015925 | U59: 5.849622409 | W59: 0.3929587032 | X59: -8.113061761 | Z59: 5.499622409 | AB59: -8.463061761 | AD59: 22.21962241 | AE59: 8.256938239 | AF59: 21.86962241 | AG59: 7.906938239
A60: 5.5 | B60: 0.09599310886 | C60: 3.316263037 | D60: 573.0502528 | E60: =VLOOKUP(A60-$B$2,'Ref. Coeff. Horiz.'!A:X,24) -> 180 | F60: =VLOOKUP(A60-$B$2,'Ref. Coeff. Vertical'!A:X,24) -> 0 | G60: =VLOOKUP(A60-$B$2,'Ref. Coeff. Horiz.'!A:X,23) -> 1 | H60: =VLOOKUP(A60-$B$2,'Ref. Coeff. Vertical'!A:X,23) -> 1 | I60: 753.0502528 | J60: 573.0502528 | Q60: 179.6673695 | R60: 179.7 | S60: ='Antenna Data'!B58 -> -0.37 | T60: 1.917390182 | U60: 5.654209984 | W60: 0.5688715938 | X60: -4.899715038 | Z60: 5.284209984 | AB60: -5.269715038 | AD60: 22.02420998 | AE60: 11.47028496 | AF60: 21.65420998 | AG60: 11.10028496
A61: 5.6 | B61: 0.09773843811 | C61: 3.376368332 | D61: 583.4364477 | E61: =VLOOKUP(A61-$B$2,'Ref. Coeff. Horiz.'!A:X,24) -> 180 | F61: =VLOOKUP(A61-$B$2,'Ref. Coeff. Vertical'!A:X,24) -> 0 | G61: =VLOOKUP(A61-$B$2,'Ref. Coeff. Horiz.'!A:X,23) -> 1 | H61: =VLOOKUP(A61-$B$2,'Ref. Coeff. Vertical'!A:X,23) -> 1 | I61: 763.4364477 | J61: 583.4364477 | Q61: 176.4390489 | R61: 176.4 | S61: ='Antenna Data'!B59 -> -0.38 | T61: 1.858029841 | U61: 5.381053695 | W61: 0.7400845286 | X61: -2.614373491 | Z61: 5.001053695 | AB61: -2.994373491 | AD61: 21.7510537 | AE61: 13.75562651 | AF61: 21.3710537 | AG61: 13.37562651
A62: 5.7 | B62: 0.09948376736 | C62: 3.436463341 | D62: 593.8208653 | E62: =VLOOKUP(A62-$B$2,'Ref. Coeff. Horiz.'!A:X,24) -> 180 | F62: =VLOOKUP(A62-$B$2,'Ref. Coeff. Vertical'!A:X,24) -> 0 | G62: =VLOOKUP(A62-$B$2,'Ref. Coeff. Horiz.'!A:X,23) -> 1 | H62: =VLOOKUP(A62-$B$2,'Ref. Coeff. Vertical'!A:X,23) -> 1 | I62: 773.8208653 | J62: 593.8208653 | Q62: 173.3236482 | R62: 173.3 | S62: ='Antenna Data'!B60 -> -0.4 | T62: 1.783430267 | U62: 5.025122657 | W62: 0.9051941686 | X62: -0.8651650496 | Z62: 4.625122657 | AB62: -1.26516505 | AD62: 21.39512266 | AE62: 15.50483495 | AF62: 20.99512266 | AG62: 15.10483495
A63: 5.8 | B63: 0.1012290966 | C63: 3.496547883 | D63: 604.2034741 | E63: =VLOOKUP(A63-$B$2,'Ref. Coeff. Horiz.'!A:X,24) -> 180 | F63: =VLOOKUP(A63-$B$2,'Ref. Coeff. Vertical'!A:X,24) -> 0 | G63: =VLOOKUP(A63-$B$2,'Ref. Coeff. Horiz.'!A:X,23) -> 1 | H63: =VLOOKUP(A63-$B$2,'Ref. Coeff. Vertical'!A:X,23) -> 1 | I63: 784.2034741 | J63: 604.2034741 | Q63: 170.3153266 | R63: 170.3 | S63: ='Antenna Data'!B61 -> -0.41 | T63: 1.694211621 | U63: 4.579353126 | W63: 1.062848523 | X63: 0.5294274701 | Z63: 4.169353126 | AB63: 0.1194274701 | AD63: 20.94935313 | AE63: 16.89942747 | AF63: 20.53935313 | AG63: 16.48942747
A64: 5.9 | B64: 0.1029744259 | C64: 3.556621773 | D64: 614.5842423 | E64: =VLOOKUP(A64-$B$2,'Ref. Coeff. Horiz.'!A:X,24) -> 180 | F64: =VLOOKUP(A64-$B$2,'Ref. Coeff. Vertical'!A:X,24) -> 0 | G64: =VLOOKUP(A64-$B$2,'Ref. Coeff. Horiz.'!A:X,23) -> 1 | H64: =VLOOKUP(A64-$B$2,'Ref. Coeff. Vertical'!A:X,23) -> 1 | I64: 794.5842423 | J64: 614.5842423 | Q64: 167.4086395 | R64: 167.4 | S64: ='Antenna Data'!B62 -> -0.43 | T64: 1.591113607 | U64: 4.034023798 | W64: 1.211758016 | X64: 1.668318024 | Z64: 3.604023798 | AB64: 1.238318024 | AD64: 20.4040238 | AE64: 18.03831802 | AF64: 19.9740238 | AG64: 17.60831802
A65: 6 | B65: 0.1047197551 | C65: 3.616684829 | D65: 624.9631385 | E65: =VLOOKUP(A65-$B$2,'Ref. Coeff. Horiz.'!A:X,24) -> 180 | F65: =VLOOKUP(A65-$B$2,'Ref. Coeff. Vertical'!A:X,24) -> 0 | G65: =VLOOKUP(A65-$B$2,'Ref. Coeff. Horiz.'!A:X,23) -> 1 | H65: =VLOOKUP(A65-$B$2,'Ref. Coeff. Vertical'!A:X,23) -> 1 | I65: 804.9631385 | J65: 624.9631385 | Q65: 164.5985051 | R65: 164.6 | S65: ='Antenna Data'!B63 -> -0.44 | T65: 1.474989242 | U65: 3.375777054 | W65: 1.350706014 | X65: 2.611216672 | Z65: 2.935777054 | AB65: 2.171216672 | AD65: 19.74577705 | AE65: 18.98121667 | AF65: 19.30577705 | AG65: 18.54121667
A66: 6.1 | B66: 0.1064650844 | C66: 3.676736868 | D66: 635.3401308 | E66: =VLOOKUP(A66-$B$2,'Ref. Coeff. Horiz.'!A:X,24) -> 180 | F66: =VLOOKUP(A66-$B$2,'Ref. Coeff. Vertical'!A:X,24) -> 0 | G66: =VLOOKUP(A66-$B$2,'Ref. Coeff. Horiz.'!A:X,23) -> 1 | H66: =VLOOKUP(A66-$B$2,'Ref. Coeff. Vertical'!A:X,23) -> 1 | I66: 815.3401308 | J66: 635.3401308 | Q66: 161.8801747 | R66: 161.9 | S66: ='Antenna Data'!B64 -> -0.46 | T66: 1.346797694 | U66: 2.586047284 | W66: 1.478558748 | X66: 3.396771702 | Z66: 2.126047284 | AB66: 2.936771702 | AD66: 18.95604728 | AE66: 19.7667717 | AF66: 18.49604728 | AG66: 19.3067717
A67: 6.2 | B67: 0.1082104136 | C67: 3.736777707 | D67: 645.7151878 | E67: =VLOOKUP(A67-$B$2,'Ref. Coeff. Horiz.'!A:X,24) -> 180 | F67: =VLOOKUP(A67-$B$2,'Ref. Coeff. Vertical'!A:X,24) -> 0 | G67: =VLOOKUP(A67-$B$2,'Ref. Coeff. Horiz.'!A:X,23) -> 1 | H67: =VLOOKUP(A67-$B$2,'Ref. Coeff. Vertical'!A:X,23) -> 1 | I67: 825.7151878 | J67: 645.7151878 | Q67: 159.2492063 | R67: 159.2 | S67: ='Antenna Data'!B65 -> -0.47 | T67: 1.20759627 | U67: 1.638435256 | W67: 1.594274521 | X67: 4.051262111 | Z67: 1.168435256 | AB67: 3.581262111 | AD67: 18.00843526 | AE67: 20.42126211 | AF67: 17.53843526 | AG67: 19.95126211
A68: 6.3 | B68: 0.1099557429 | C68: 3.796807164 | D68: 656.0882779 | E68: =VLOOKUP(A68-$B$2,'Ref. Coeff. Horiz.'!A:X,24) -> 180 | F68: =VLOOKUP(A68-$B$2,'Ref. Coeff. Vertical'!A:X,24) -> 0 | G68: =VLOOKUP(A68-$B$2,'Ref. Coeff. Horiz.'!A:X,23) -> 1 | H68: =VLOOKUP(A68-$B$2,'Ref. Coeff. Vertical'!A:X,23) -> 1 | I68: 836.0882779 | J68: 656.0882779 | Q68: 156.7014397 | R68: 156.7 | S68: ='Antenna Data'!B66 -> -0.49 | T68: 1.058531593 | U68: 0.4940764867 | W68: 1.696912157 | X68: 4.593187219 | Z68: 0.004076486723 | AB68: 4.103187219 | AD68: 16.86407649 | AE68: 20.96318722 | AF68: 16.37407649 | AG68: 20.47318722
A69: 6.4 | B69: 0.1117010721 | C69: 3.856825054 | D69: 666.4593694 | E69: =VLOOKUP(A69-$B$2,'Ref. Coeff. Horiz.'!A:X,24) -> 180 | F69: =VLOOKUP(A69-$B$2,'Ref. Coeff. Vertical'!A:X,24) -> 0 | G69: =VLOOKUP(A69-$B$2,'Ref. Coeff. Horiz.'!A:X,23) -> 1 | H69: =VLOOKUP(A69-$B$2,'Ref. Coeff. Vertical'!A:X,23) -> 1 | I69: 846.4593694 | J69: 666.4593694 | Q69: 154.2329747 | R69: 154.2 | S69: ='Antenna Data'!B67 -> -0.5 | T69: 0.9008300707 | U69: -0.9071425003 | W69: 1.785638593 | X69: 5.035871274 | Z69: -1.4071425 | AB69: 4.535871274 | AD69: 15.4628575 | AE69: 21.40587127 | AF69: 14.9628575 | AG69: 20.90587127
A70: =A69+0.1 -> 6.5 | B70: =A70*(PI()/180) -> 0.1134464014 | C70: =(2*$B$1*SIN(B70-$C$2)*COS($C$2)) -> 3.916831196 | D70: =(C70/$O$1)*360 -> 676.8284307 | E70: =VLOOKUP(A70-$B$2,'Ref. Coeff. Horiz.'!A:X,24) -> 180 | F70: =VLOOKUP(A70-$B$2,'Ref. Coeff. Vertical'!A:X,24) -> 0 | G70: =VLOOKUP(A70-$B$2,'Ref. Coeff. Horiz.'!A:X,23) -> 1 | H70: =VLOOKUP(A70-$B$2,'Ref. Coeff. Vertical'!A:X,23) -> 1 | I70: =D70+E70 -> 856.8284307 | J70: =D70+F70 -> 676.8284307 | Q70: =(((COS($C$2))/(TAN(B70-$C$2)))-(SIN($C$2)))*$B$1 -> 151.8401513 | R70: =ROUND(Q70,1) -> 151.8 | S70: ='Antenna Data'!B68 -> -0.52 | T70: =SQRT((1+(2*G70*COS(I70*PI()/180)))+(G70^2)) -> 0.7357877184 | U70: =IF(T70=0,-99,10*LOG(T70^2)) -> -2.664949312 | V70: =IF(AND((U71<U70),(U70>U69)),"Max","") ->  | W70: =SQRT((1+(2*H70*COS(J70*PI()/180)))+(H70^2)) -> 1.859735582 | X70: =IF(W70=0,-99,10*LOG(W70^2)) -> 5.389024007 | Y70: =IF(AND((X71<X70),(X70>X69)),"Max","") ->  | Z70: =U70+S70 -> -3.184949312 | AA70: =IF(AND((Z71<Z70),(Z70>Z69)),"Max","") ->  | AB70: =X70+S70 -> 4.869024007 | AC70: =IF(AND((AB71<AB70),(AB70>AB69)),"Max","") ->  | AD70: =U70+$AD$2 -> 13.70505069 | AE70: =X70+$AD$2 -> 21.75902401 | AF70: =Z70+$AD$2 -> 13.18505069 | AG70: =AB70+$AD$2 -> 21.23902401
A71: 6.6 | B71: 0.1151917306 | C71: 3.976825407 | D71: 687.1954303 | E71: =VLOOKUP(A71-$B$2,'Ref. Coeff. Horiz.'!A:X,24) -> 180 | F71: =VLOOKUP(A71-$B$2,'Ref. Coeff. Vertical'!A:X,24) -> 0 | G71: =VLOOKUP(A71-$B$2,'Ref. Coeff. Horiz.'!A:X,23) -> 1 | H71: =VLOOKUP(A71-$B$2,'Ref. Coeff. Vertical'!A:X,23) -> 1 | I71: 867.1954303 | J71: 687.1954303 | Q71: 149.5195311 | R71: 149.5 | S71: ='Antenna Data'!B69 -> -0.54 | T71: 0.5647594239 | U71: -4.962730269 | W71: 1.918605429 | X71: 5.659713382 | Z71: -5.502730269 | AB71: 5.119713382 | AD71: 11.40726973 | AE71: 22.02971338 | AF71: 10.86726973 | AG71: 21.48971338
A72: 6.7 | B72: 0.1169370599 | C72: 4.036807504 | D72: 697.5603366 | E72: =VLOOKUP(A72-$B$2,'Ref. Coeff. Horiz.'!A:X,24) -> 180 | F72: =VLOOKUP(A72-$B$2,'Ref. Coeff. Vertical'!A:X,24) -> 0 | G72: =VLOOKUP(A72-$B$2,'Ref. Coeff. Horiz.'!A:X,23) -> 1 | H72: =VLOOKUP(A72-$B$2,'Ref. Coeff. Vertical'!A:X,23) -> 1 | I72: 877.5603366 | J72: 697.5603366 | Q72: 147.2678811 | R72: 147.3 | S72: ='Antenna Data'!B70 -> -0.55 | T72: 0.3891477517 | U72: -8.197709488 | W72: 1.961775733 | X72: 5.852987162 | Z72: -8.747709488 | AB72: 5.302987162 | AD72: 8.172290512 | AE72: 22.22298716 | AF72: 7.622290512 | AG72: 21.67298716
A73: 6.8 | B73: 0.1186823891 | C73: 4.096777303 | D73: 707.923118 | E73: =VLOOKUP(A73-$B$2,'Ref. Coeff. Horiz.'!A:X,24) -> 180 | F73: =VLOOKUP(A73-$B$2,'Ref. Coeff. Vertical'!A:X,24) -> 0 | G73: =VLOOKUP(A73-$B$2,'Ref. Coeff. Horiz.'!A:X,23) -> 1 | H73: =VLOOKUP(A73-$B$2,'Ref. Coeff. Vertical'!A:X,23) -> 1 | I73: 887.923118 | J73: 707.923118 | Q73: 145.0821584 | R73: 145.1 | S73: ='Antenna Data'!B71 -> -0.57 | T73: 0.2103913722 | U73: -13.53944148 | W73: 1.988903082 | X73: 5.972272416 | Z73: -14.10944148 | AB73: 5.402272416 | AD73: 2.830558522 | AE73: 22.34227242 | AF73: 2.260558522 | AG73: 21.77227242
A74: 6.9 | B74: 0.1204277184 | C74: 4.156734624 | D74: 718.283743 | E74: =VLOOKUP(A74-$B$2,'Ref. Coeff. Horiz.'!A:X,24) -> 180 | F74: =VLOOKUP(A74-$B$2,'Ref. Coeff. Vertical'!A:X,24) -> 0 | G74: =VLOOKUP(A74-$B$2,'Ref. Coeff. Horiz.'!A:X,23) -> 1 | H74: =VLOOKUP(A74-$B$2,'Ref. Coeff. Vertical'!A:X,23) -> 1 | I74: 898.283743 | J74: 718.283743 | Q74: 142.9594967 | R74: 143 | S74: ='Antenna Data'!B72 -> -0.59 | T74: 0.0299532161 | U74: -30.47113081 | W74: 1.999775689 | X74: 6.019625687 | Y74: Max | Z74: -31.06113081 | AB74: 5.429625687 | AC74: Max | AD74: -14.10113081 | AE74: 22.38962569 | AF74: -14.69113081 | AG74: 21.79962569
A75: 7 | B75: 0.1221730476 | C75: 4.216679282 | D75: 728.6421799 | E75: =VLOOKUP(A75-$B$2,'Ref. Coeff. Horiz.'!A:X,24) -> 180 | F75: =VLOOKUP(A75-$B$2,'Ref. Coeff. Vertical'!A:X,24) -> 0 | G75: =VLOOKUP(A75-$B$2,'Ref. Coeff. Horiz.'!A:X,23) -> 1 | H75: =VLOOKUP(A75-$B$2,'Ref. Coeff. Vertical'!A:X,23) -> 1 | I75: 908.6421799 | J75: 728.6421799 | Q75: 140.8971932 | R75: 140.9 | S75: ='Antenna Data'!B73 -> -0.61 | T75: 0.1506915493 | U75: -16.43822204 | W75: 1.994314934 | X75: 5.995874829 | Z75: -17.04822204 | AB75: 5.385874829 | AD75: -0.06822203797 | AE75: 22.36587483 | AF75: -0.678222038 | AG75: 21.75587483
A76: 7.1 | B76: 0.1239183769 | C76: 4.276611095 | D76: 738.9983973 | E76: =VLOOKUP(A76-$B$2,'Ref. Coeff. Horiz.'!A:X,24) -> 180 | F76: =VLOOKUP(A76-$B$2,'Ref. Coeff. Vertical'!A:X,24) -> 0 | G76: =VLOOKUP(A76-$B$2,'Ref. Coeff. Horiz.'!A:X,23) -> 1 | H76: =VLOOKUP(A76-$B$2,'Ref. Coeff. Vertical'!A:X,23) -> 1 | I76: 918.9983973 | J76: 738.9983973 | Q76: 138.8926975 | R76: 138.9 | S76: ='Antenna Data'!B74 -> -0.62 | T76: 0.3300676221 | U76: -9.627941511 | W76: 1.97257582 | X76: 5.900674103 | Z76: -10.24794151 | AB76: 5.280674103 | AD76: 6.742058489 | AE76: 22.2706741 | AF76: 6.122058489 | AG76: 21.6506741
A77: 7.2 | B77: 0.1256637061 | C77: 4.336529881 | D77: 749.3523635 | E77: =VLOOKUP(A77-$B$2,'Ref. Coeff. Horiz.'!A:X,24) -> 180 | F77: =VLOOKUP(A77-$B$2,'Ref. Coeff. Vertical'!A:X,24) -> 0 | G77: =VLOOKUP(A77-$B$2,'Ref. Coeff. Horiz.'!A:X,23) -> 1 | H77: =VLOOKUP(A77-$B$2,'Ref. Coeff. Vertical'!A:X,23) -> 1 | I77: 929.3523635 | J77: 749.3523635 | Q77: 136.943601 | R77: 136.9 | S77: ='Antenna Data'!B75 -> -0.64 | T77: 0.5067116455 | U77: -5.904782289 | W77: 1.934746316 | X77: 5.732480569 | Z77: -6.544782289 | AB77: 5.092480569 | AD77: 10.46521771 | AE77: 22.10248057 | AF77: 9.825217711 | AG77: 21.46248057
A78: 7.3 | B78: 0.1274090354 | C78: 4.396435458 | D78: 759.7040471 | E78: =VLOOKUP(A78-$B$2,'Ref. Coeff. Horiz.'!A:X,24) -> 180 | F78: =VLOOKUP(A78-$B$2,'Ref. Coeff. Vertical'!A:X,24) -> 0 | G78: =VLOOKUP(A78-$B$2,'Ref. Coeff. Horiz.'!A:X,23) -> 1 | H78: =VLOOKUP(A78-$B$2,'Ref. Coeff. Vertical'!A:X,23) -> 1 | I78: 939.7040471 | J78: 759.7040471 | Q78: 135.0476269 | R78: 135 | S78: ='Antenna Data'!B76 -> -0.66 | T78: 0.6791841666 | U78: -3.360248941 | W78: 1.881145626 | X78: 5.488448344 | Z78: -4.020248941 | AB78: 4.828448344 | AD78: 13.00975106 | AE78: 21.85844834 | AF78: 12.34975106 | AG78: 21.19844834
A79: 7.4 | B79: 0.1291543646 | C79: 4.456327642 | D79: 770.0534165 | E79: =VLOOKUP(A79-$B$2,'Ref. Coeff. Horiz.'!A:X,24) -> 180 | F79: =VLOOKUP(A79-$B$2,'Ref. Coeff. Vertical'!A:X,24) -> 0 | G79: =VLOOKUP(A79-$B$2,'Ref. Coeff. Horiz.'!A:X,23) -> 1 | H79: =VLOOKUP(A79-$B$2,'Ref. Coeff. Vertical'!A:X,23) -> 1 | I79: 950.0534165 | J79: 770.0534165 | Q79: 133.2026216 | R79: 133.2 | S79: ='Antenna Data'!B77 -> -0.68 | T79: 0.8460813762 | U79: -1.451757289 | W79: 1.812221373 | X79: 5.164224962 | Z79: -2.131757289 | AB79: 4.484224962 | AD79: 14.91824271 | AE79: 21.53422496 | AF79: 14.23824271 | AG79: 20.85422496
A80: 7.5 | B80: 0.1308996939 | C80: 4.516206251 | D80: 780.4004401 | E80: =VLOOKUP(A80-$B$2,'Ref. Coeff. Horiz.'!A:X,24) -> 180 | F80: =VLOOKUP(A80-$B$2,'Ref. Coeff. Vertical'!A:X,24) -> 0 | G80: =VLOOKUP(A80-$B$2,'Ref. Coeff. Horiz.'!A:X,23) -> 1 | H80: =VLOOKUP(A80-$B$2,'Ref. Coeff. Vertical'!A:X,23) -> 1 | I80: 960.4004401 | J80: 780.4004401 | Q80: 131.4065462 | R80: 131.4 | S80: ='Antenna Data'!B78 -> -0.7 | T80: 1.006046533 | U80: 0.05236137092 | W80: 1.72854574 | X80: 4.753617521 | Z80: -0.6476386291 | AB80: 4.053617521 | AD80: 16.42236137 | AE80: 21.12361752 | AF80: 15.72236137 | AG80: 20.42361752
A81: 7.6 | B81: 0.1326450232 | C81: 4.576071103 | D81: 790.7450866 | E81: =VLOOKUP(A81-$B$2,'Ref. Coeff. Horiz.'!A:X,24) -> 180 | F81: =VLOOKUP(A81-$B$2,'Ref. Coeff. Vertical'!A:X,24) -> 0 | G81: =VLOOKUP(A81-$B$2,'Ref. Coeff. Horiz.'!A:X,23) -> 1 | H81: =VLOOKUP(A81-$B$2,'Ref. Coeff. Vertical'!A:X,23) -> 1 | I81: 970.7450866 | J81: 790.7450866 | Q81: 129.6574692 | R81: 129.7 | S81: ='Antenna Data'!B79 -> -0.72 | T81: 1.157780977 | U81: 1.272528191 | W81: 1.630810599 | X81: 4.248070507 | Z81: 0.5525281911 | AB81: 3.528070507 | AD81: 17.64252819 | AE81: 20.61807051 | AF81: 16.92252819 | AG81: 19.89807051
A82: 7.7 | B82: 0.1343903524 | C82: 4.635922015 | D82: 801.0873243 | E82: =VLOOKUP(A82-$B$2,'Ref. Coeff. Horiz.'!A:X,24) -> 180 | F82: =VLOOKUP(A82-$B$2,'Ref. Coeff. Vertical'!A:X,24) -> 0 | G82: =VLOOKUP(A82-$B$2,'Ref. Coeff. Horiz.'!A:X,23) -> 1 | H82: =VLOOKUP(A82-$B$2,'Ref. Coeff. Vertical'!A:X,23) -> 1 | I82: 981.0873243 | J82: 801.0873243 | Q82: 127.9535596 | R82: 128 | S82: ='Antenna Data'!B80 -> -0.74 | T82: 1.300054651 | U82: 2.279232188 | W82: 1.519821668 | X82: 3.635852641 | Z82: 1.539232188 | AB82: 2.895852641 | AD82: 18.64923219 | AE82: 20.00585264 | AF82: 17.90923219 | AG82: 19.26585264
A83: 7.8 | B83: 0.1361356817 | C83: 4.695758806 | D83: 811.4271217 | E83: =VLOOKUP(A83-$B$2,'Ref. Coeff. Horiz.'!A:X,24) -> 180 | F83: =VLOOKUP(A83-$B$2,'Ref. Coeff. Vertical'!A:X,24) -> 0 | G83: =VLOOKUP(A83-$B$2,'Ref. Coeff. Horiz.'!A:X,23) -> 1 | H83: =VLOOKUP(A83-$B$2,'Ref. Coeff. Vertical'!A:X,23) -> 1 | I83: 991.4271217 | J83: 811.4271217 | Q83: 126.29308 | R83: 126.3 | S83: ='Antenna Data'!B81 -> -0.76 | T83: 1.431716031 | U83: 3.117137759 | W83: 1.396491749 | X83: 2.900767482 | Z83: 2.357137759 | AB83: 2.140767482 | AD83: 19.48713776 | AE83: 19.27076748 | AF83: 18.72713776 | AG83: 18.51076748
A84: 7.9 | B84: 0.1378810109 | C84: 4.755581293 | D84: 821.7644474 | E84: =VLOOKUP(A84-$B$2,'Ref. Coeff. Horiz.'!A:X,24) -> 180 | F84: =VLOOKUP(A84-$B$2,'Ref. Coeff. Vertical'!A:X,24) -> 0 | G84: =VLOOKUP(A84-$B$2,'Ref. Coeff. Horiz.'!A:X,23) -> 1 | H84: =VLOOKUP(A84-$B$2,'Ref. Coeff. Vertical'!A:X,23) -> 1 | I84: 1001.764447 | J84: 821.7644474 | Q84: 124.6743811 | R84: 124.7 | S84: ='Antenna Data'!B82 -> -0.78 | T84: 1.551701399 | U84: 3.816163034 | W84: 1.261833099 | X84: 2.0200383 | Z84: 3.036163034 | AB84: 1.2400383 | AD84: 20.18616303 | AE84: 18.3900383 | AF84: 19.40616303 | AG84: 17.6100383
A85: 8 | B85: 0.1396263402 | C85: 4.815389293 | D85: 832.0992699 | E85: =VLOOKUP(A85-$B$2,'Ref. Coeff. Horiz.'!A:X,24) -> 180 | F85: =VLOOKUP(A85-$B$2,'Ref. Coeff. Vertical'!A:X,24) -> 0 | G85: =VLOOKUP(A85-$B$2,'Ref. Coeff. Horiz.'!A:X,23) -> 1 | H85: =VLOOKUP(A85-$B$2,'Ref. Coeff. Vertical'!A:X,23) -> 1 | I85: 1012.09927 | J85: 832.0992699 | Q85: 123.0958962 | R85: 123.1 | S85: ='Antenna Data'!B83 -> -0.8 | T85: 1.659043373 | U85: 4.3971548 | W85: 1.116949009 | X85: 0.9606669392 | Z85: 3.5971548 | AB85: 0.1606669392 | AD85: 20.7671548 | AE85: 17.33066694 | AF85: 19.9671548 | AG85: 16.53066694
A86: 8.1 | B86: 0.1413716694 | C86: 4.875182625 | D86: 842.4315576 | E86: =VLOOKUP(A86-$B$2,'Ref. Coeff. Horiz.'!A:X,24) -> 180 | F86: =VLOOKUP(A86-$B$2,'Ref. Coeff. Vertical'!A:X,24) -> 0 | G86: =VLOOKUP(A86-$B$2,'Ref. Coeff. Horiz.'!A:X,23) -> 1 | H86: =VLOOKUP(A86-$B$2,'Ref. Coeff. Vertical'!A:X,23) -> 1 | I86: 1022.431558 | J86: 842.4315576 | Q86: 121.5561358 | R86: 121.6 | S86: ='Antenna Data'!B84 -> -0.82 | T86: 1.752878636 | U86: 4.875036958 | W86: 0.9630246558 | X86: -0.3272518741 | Z86: 4.055036958 | AB86: -1.147251874 | AD86: 21.24503696 | AE86: 16.04274813 | AF86: 20.42503696 | AG86: 15.22274813
A87: 8.2 | B87: 0.1431169987 | C87: 4.934961106 | D87: 852.7612792 | E87: =VLOOKUP(A87-$B$2,'Ref. Coeff. Horiz.'!A:X,24) -> 180 | F87: =VLOOKUP(A87-$B$2,'Ref. Coeff. Vertical'!A:X,24) -> 0 | G87: =VLOOKUP(A87-$B$2,'Ref. Coeff. Horiz.'!A:X,23) -> 1 | H87: =VLOOKUP(A87-$B$2,'Ref. Coeff. Vertical'!A:X,23) -> 1 | I87: 1032.761279 | J87: 852.7612792 | Q87: 120.053683 | R87: 120.1 | S87: ='Antenna Data'!B85 -> -0.84 | T87: 1.832454796 | U87: 5.260665401 | W87: 0.8013173031 | X87: -1.923909586 | Z87: 4.420665401 | AB87: -2.763909586 | AD87: 21.6306654 | AE87: 14.44609041 | AF87: 20.7906654 | AG87: 13.60609041
A88: 8.3 | B88: 0.1448623279 | C88: 4.994724555 | D88: 863.088403 | E88: =VLOOKUP(A88-$B$2,'Ref. Coeff. Horiz.'!A:X,24) -> 180 | F88: =VLOOKUP(A88-$B$2,'Ref. Coeff. Vertical'!A:X,24) -> 0 | G88: =VLOOKUP(A88-$B$2,'Ref. Coeff. Horiz.'!A:X,23) -> 1 | H88: =VLOOKUP(A88-$B$2,'Ref. Coeff. Vertical'!A:X,23) -> 1 | I88: 1043.088403 | J88: 863.088403 | Q88: 118.5871894 | R88: 118.6 | S88: ='Antenna Data'!B86 -> -0.87 | T88: 1.897136323 | U88: 5.561970784 | W88: 0.6331459327 | X88: -3.969923574 | Z88: 4.691970784 | AB88: -4.839923574 | AD88: 21.93197078 | AE88: 12.40007643 | AF88: 21.06197078 | AG88: 11.53007643
A89: 8.4 | B89: 0.1466076572 | C89: 5.054472788 | D89: 873.4128978 | E89: =VLOOKUP(A89-$B$2,'Ref. Coeff. Horiz.'!A:X,24) -> 180 | F89: =VLOOKUP(A89-$B$2,'Ref. Coeff. Vertical'!A:X,24) -> 0 | G89: =VLOOKUP(A89-$B$2,'Ref. Coeff. Horiz.'!A:X,23) -> 1 | H89: =VLOOKUP(A89-$B$2,'Ref. Coeff. Vertical'!A:X,23) -> 1 | I89: 1053.412898 | J89: 873.4128978 | Q89: 117.1553707 | R89: 117.2 | S89: ='Antenna Data'!B87 -> -0.89 | T89: 1.94640952 | U89: 5.7846844 | W89: 0.4598803999 | X89: -6.747101994 | Z89: 4.8946844 | AB89: -7.637101994 | AD89: 22.1546844 | AE89: 9.622898006 | AF89: 21.2646844 | AG89: 8.732898006
A90: 8.5 | B90: 0.1483529864 | C90: 5.114205625 | D90: 883.734732 | E90: =VLOOKUP(A90-$B$2,'Ref. Coeff. Horiz.'!A:X,24) -> 180 | F90: =VLOOKUP(A90-$B$2,'Ref. Coeff. Vertical'!A:X,24) -> 0 | G90: =VLOOKUP(A90-$B$2,'Ref. Coeff. Horiz.'!A:X,23) -> 1 | H90: =VLOOKUP(A90-$B$2,'Ref. Coeff. Vertical'!A:X,23) -> 1 | I90: 1063.734732 | J90: 883.734732 | Q90: 115.7570029 | R90: 115.8 | S90: ='Antenna Data'!B88 -> -0.91 | T90: 1.979886488 | U90: 5.932805834 | W90: 0.2829301949 | X90: -10.96641403 | Z90: 5.022805834 | AB90: -11.87641403 | AD90: 22.30280583 | AE90: 5.403585974 | AF90: 21.39280583 | AG90: 4.493585974
A91: 8.6 | B91: 0.1500983157 | C91: 5.173922883 | D91: 894.0538742 | E91: =VLOOKUP(A91-$B$2,'Ref. Coeff. Horiz.'!A:X,24) -> 180 | F91: =VLOOKUP(A91-$B$2,'Ref. Coeff. Vertical'!A:X,24) -> 0 | G91: =VLOOKUP(A91-$B$2,'Ref. Coeff. Horiz.'!A:X,23) -> 1 | H91: =VLOOKUP(A91-$B$2,'Ref. Coeff. Vertical'!A:X,23) -> 1 | I91: 1074.053874 | J91: 894.0538742 | Q91: 114.3909192 | R91: 114.4 | S91: ='Antenna Data'!B89 -> -0.93 | T91: 1.997308059 | U91: 6.008901089 | W91: 0.1037329073 | X91: -19.68166901 | Z91: 5.078901089 | AA91: Max | AB91: -20.61166901 | AD91: 22.37890109 | AE91: -3.311669005 | AF91: 21.44890109 | AG91: -4.241669005
A92: 8.7 | B92: 0.1518436449 | C92: 5.233624381 | D92: 904.370293 | E92: =VLOOKUP(A92-$B$2,'Ref. Coeff. Horiz.'!A:X,24) -> 180 | F92: =VLOOKUP(A92-$B$2,'Ref. Coeff. Vertical'!A:X,24) -> 0 | G92: =VLOOKUP(A92-$B$2,'Ref. Coeff. Horiz.'!A:X,23) -> 1 | H92: =VLOOKUP(A92-$B$2,'Ref. Coeff. Vertical'!A:X,23) -> 1 | I92: 1084.370293 | J92: 904.370293 | Q92: 113.0560063 | R92: 113.1 | S92: ='Antenna Data'!B90 -> -0.96 | T92: 1.998545669 | U92: 6.014281537 | V92: Max | W92: 0.0762575121 | X92: -22.35434735 | Z92: 5.054281537 | AB92: -23.31434735 | AD92: 22.38428154 | AE92: -5.984347353 | AF92: 21.42428154 | AG92: -6.944347353
A93: 8.8 | B93: 0.1535889742 | C93: 5.293309935 | D93: 914.6839568 | E93: =VLOOKUP(A93-$B$2,'Ref. Coeff. Horiz.'!A:X,24) -> 180 | F93: =VLOOKUP(A93-$B$2,'Ref. Coeff. Vertical'!A:X,24) -> 0 | G93: =VLOOKUP(A93-$B$2,'Ref. Coeff. Horiz.'!A:X,23) -> 1 | H93: =VLOOKUP(A93-$B$2,'Ref. Coeff. Vertical'!A:X,23) -> 1 | I93: 1094.683957 | J93: 914.6839568 | Q93: 111.7512014 | R93: 111.8 | S93: ='Antenna Data'!B91 -> -0.98 | T93: 1.983602162 | U93: 5.94909146 | W93: 0.2555825949 | X93: -11.8493745 | Z93: 4.96909146 | AB93: -12.8293745 | AD93: 22.31909146 | AE93: 4.520625504 | AF93: 21.33909146 | AG93: 3.540625504
A94: 8.9 | B94: 0.1553343034 | C94: 5.352979366 | D94: 924.9948344 | E94: =VLOOKUP(A94-$B$2,'Ref. Coeff. Horiz.'!A:X,24) -> 180 | F94: =VLOOKUP(A94-$B$2,'Ref. Coeff. Vertical'!A:X,24) -> 0 | G94: =VLOOKUP(A94-$B$2,'Ref. Coeff. Horiz.'!A:X,23) -> 1 | H94: =VLOOKUP(A94-$B$2,'Ref. Coeff. Vertical'!A:X,23) -> 1 | I94: 1104.994834 | J94: 924.9948344 | Q94: 110.4754896 | R94: 110.5 | S94: ='Antenna Data'!B92 -> -1 | T94: 1.952611526 | U94: 5.812316969 | W94: 0.4327912084 | X94: -7.274431398 | Z94: 4.812316969 | AB94: -8.274431398 | AD94: 22.18231697 | AE94: 9.095568602 | AF94: 21.18231697 | AG94: 8.095568602
A95: 9 | B95: 0.1570796327 | C95: 5.41263249 | D95: 935.3028943 | E95: =VLOOKUP(A95-$B$2,'Ref. Coeff. Horiz.'!A:X,24) -> 180 | F95: =VLOOKUP(A95-$B$2,'Ref. Coeff. Vertical'!A:X,24) -> 0 | G95: =VLOOKUP(A95-$B$2,'Ref. Coeff. Horiz.'!A:X,23) -> 1 | H95: =VLOOKUP(A95-$B$2,'Ref. Coeff. Vertical'!A:X,23) -> 1 | I95: 1115.302894 | J95: 935.3028943 | Q95: 109.2279012 | R95: 109.2 | S95: ='Antenna Data'!B93 -> -1.03 | T95: 1.905837558 | U95: 5.601717624 | W95: 0.6064513202 | X95: -4.344081084 | Z95: 4.571717624 | AB95: -5.374081084 | AD95: 21.97171762 | AE95: 12.02591892 | AF95: 20.94171762 | AG95: 10.99591892
A96: 9.1 | B96: 0.1588249619 | C96: 5.472269127 | D96: 945.6081051 | E96: =VLOOKUP(A96-$B$2,'Ref. Coeff. Horiz.'!A:X,24) -> 180 | F96: =VLOOKUP(A96-$B$2,'Ref. Coeff. Vertical'!A:X,24) -> 0 | G96: =VLOOKUP(A96-$B$2,'Ref. Coeff. Horiz.'!A:X,23) -> 1 | H96: =VLOOKUP(A96-$B$2,'Ref. Coeff. Vertical'!A:X,23) -> 1 | I96: 1125.608105 | J96: 945.6081051 | Q96: 108.0075089 | R96: 108 | S96: ='Antenna Data'!B94 -> -1.05 | T96: 1.84367148 | U96: 5.313670752 | W96: 0.7751615791 | X96: -2.212155225 | Z96: 4.263670752 | AB96: -3.262155225 | AD96: 21.68367075 | AE96: 14.15784478 | AF96: 20.63367075 | AG96: 13.10784478
A97: 9.2 | B97: 0.1605702912 | C97: 5.531889094 | D97: 955.9104355 | E97: =VLOOKUP(A97-$B$2,'Ref. Coeff. Horiz.'!A:X,24) -> 180 | F97: =VLOOKUP(A97-$B$2,'Ref. Coeff. Vertical'!A:X,24) -> 0 | G97: =VLOOKUP(A97-$B$2,'Ref. Coeff. Horiz.'!A:X,23) -> 1 | H97: =VLOOKUP(A97-$B$2,'Ref. Coeff. Vertical'!A:X,23) -> 1 | I97: 1135.910435 | J97: 955.9104355 | Q97: 106.8134258 | R97: 106.8 | S97: ='Antenna Data'!B95 -> -1.08 | T97: 1.766628522 | U97: 4.942904757 | W97: 0.9375626188 | X97: -0.5599943316 | Z97: 3.862904757 | AB97: -1.639994332 | AD97: 21.31290476 | AE97: 15.81000567 | AF97: 20.23290476 | AG97: 14.73000567
A98: 9.3 | B98: 0.1623156204 | C98: 5.59149221 | D98: 966.2098539 | E98: =VLOOKUP(A98-$B$2,'Ref. Coeff. Horiz.'!A:X,24) -> 180 | F98: =VLOOKUP(A98-$B$2,'Ref. Coeff. Vertical'!A:X,24) -> 0 | G98: =VLOOKUP(A98-$B$2,'Ref. Coeff. Horiz.'!A:X,23) -> 1 | H98: =VLOOKUP(A98-$B$2,'Ref. Coeff. Vertical'!A:X,23) -> 1 | I98: 1146.209854 | J98: 966.2098539 | Q98: 105.6448033 | R98: 105.6 | S98: ='Antenna Data'!B96 -> -1.1 | T98: 1.675343507 | U98: 4.482077335 | W98: 1.092347992 | X98: 0.7672202907 | Z98: 3.382077335 | AB98: -0.3327797093 | AD98: 20.85207733 | AE98: 17.13722029 | AF98: 19.75207733 | AG98: 16.03722029
A99: 9.4 | B99: 0.1640609497 | C99: 5.651078294 | D99: 976.5063291 | E99: =VLOOKUP(A99-$B$2,'Ref. Coeff. Horiz.'!A:X,24) -> 180 | F99: =VLOOKUP(A99-$B$2,'Ref. Coeff. Vertical'!A:X,24) -> 0 | G99: =VLOOKUP(A99-$B$2,'Ref. Coeff. Horiz.'!A:X,23) -> 1 | H99: =VLOOKUP(A99-$B$2,'Ref. Coeff. Vertical'!A:X,23) -> 1 | I99: 1156.506329 | J99: 976.5063291 | Q99: 104.5008287 | R99: 104.5 | S99: ='Antenna Data'!B97 -> -1.13 | T99: 1.570565472 | U99: 3.921120908 | W99: 1.238274646 | X99: 1.856339615 | Z99: 2.791120908 | AB99: 0.7263396149 | AD99: 20.29112091 | AE99: 18.22633961 | AF99: 19.16112091 | AG99: 17.09633961
A100: 9.5 | B100: 0.1658062789 | C100: 5.710647163 | D100: 986.7998297 | E100: =VLOOKUP(A100-$B$2,'Ref. Coeff. Horiz.'!A:X,24) -> 180 | F100: =VLOOKUP(A100-$B$2,'Ref. Coeff. Vertical'!A:X,24) -> 0 | G100: =VLOOKUP(A100-$B$2,'Ref. Coeff. Horiz.'!A:X,23) -> 1 | H100: =VLOOKUP(A100-$B$2,'Ref. Coeff. Vertical'!A:X,23) -> 1 | I100: 1166.79983 | J100: 986.7998297 | Q100: 103.3807235 | R100: 103.4 | S100: ='Antenna Data'!B98 -> -1.15 | T100: 1.453151384 | U100: 3.246217196 | W100: 1.374172862 | X100: 2.760827354 | Z100: 2.096217196 | AB100: 1.610827354 | AD100: 19.6162172 | AE100: 19.13082735 | AF100: 18.4662172 | AG100: 17.98082735
A101: 9.6 | B101: 0.1675516082 | C101: 5.770198636 | D101: 997.0903244 | E101: =VLOOKUP(A101-$B$2,'Ref. Coeff. Horiz.'!A:X,24) -> 180 | F101: =VLOOKUP(A101-$B$2,'Ref. Coeff. Vertical'!A:X,24) -> 0 | G101: =VLOOKUP(A101-$B$2,'Ref. Coeff. Horiz.'!A:X,23) -> 1 | H101: =VLOOKUP(A101-$B$2,'Ref. Coeff. Vertical'!A:X,23) -> 1 | I101: 1177.090324 | J101: 997.0903244 | Q101: 102.2837419 | R101: 102.3 | S101: ='Antenna Data'!B99 -> -1.18 | T101: 1.324058988 | U101: 2.438146674 | W101: 1.498955569 | X101: 3.515775197 | Z101: 1.258146674 | AB101: 2.335775197 | AD101: 18.80814667 | AE101: 19.8857752 | AF101: 17.62814667 | AG101: 18.7057752
A102: 9.7 | B102: 0.1692969374 | C102: 5.829732533 | D102: 1007.377782 | E102: =VLOOKUP(A102-$B$2,'Ref. Coeff. Horiz.'!A:X,24) -> 180 | F102: =VLOOKUP(A102-$B$2,'Ref. Coeff. Vertical'!A:X,24) -> 0 | G102: =VLOOKUP(A102-$B$2,'Ref. Coeff. Horiz.'!A:X,23) -> 1 | H102: =VLOOKUP(A102-$B$2,'Ref. Coeff. Vertical'!A:X,23) -> 1 | I102: 1187.377782 | J102: 1007.377782 | Q102: 101.2091685 | R102: 101.2 | S102: ='Antenna Data'!B100 -> -1.21 | T102: 1.18433886 | U102: 1.46951959 | W102: 1.611626962 | X102: 4.145290487 | Z102: 0.2595195901 | AB102: 2.935290487 | AD102: 17.83951959 | AE102: 20.51529049 | AF102: 16.62951959 | AG102: 19.30529049
A103: 9.8 | B103: 0.1710422667 | C103: 5.889248671 | D103: 1017.66217 | E103: =VLOOKUP(A103-$B$2,'Ref. Coeff. Horiz.'!A:X,24) -> 180 | F103: =VLOOKUP(A103-$B$2,'Ref. Coeff. Vertical'!A:X,24) -> 0 | G103: =VLOOKUP(A103-$B$2,'Ref. Coeff. Horiz.'!A:X,23) -> 1 | H103: =VLOOKUP(A103-$B$2,'Ref. Coeff. Vertical'!A:X,23) -> 1 | I103: 1197.66217 | J103: 1017.66217 | Q103: 100.1563175 | R103: 100.2 | S103: ='Antenna Data'!B101 -> -1.23 | T103: 1.03512573 | U103: 0.2998620753 | W103: 1.711290368 | X103: 4.666474119 | Z103: -0.9301379247 | AB103: 3.436474119 | AD103: 16.66986208 | AE103: 21.03647412 | AF103: 15.43986208 | AG103: 19.80647412
A104: 9.9 | B104: 0.1727875959 | C104: 5.94874687 | D104: 1027.943459 | E104: =VLOOKUP(A104-$B$2,'Ref. Coeff. Horiz.'!A:X,24) -> 180 | F104: =VLOOKUP(A104-$B$2,'Ref. Coeff. Vertical'!A:X,24) -> 0 | G104: =VLOOKUP(A104-$B$2,'Ref. Coeff. Horiz.'!A:X,23) -> 1 | H104: =VLOOKUP(A104-$B$2,'Ref. Coeff. Vertical'!A:X,23) -> 1 | I104: 1207.943459 | J104: 1027.943459 | Q104: 99.12453049 | R104: 99.1 | S104: ='Antenna Data'!B102 -> -1.26 | T104: 0.8776291395 | U104: -1.133779311 | W104: 1.797155278 | X104: 5.091712054 | Z104: -2.393779311 | AB104: 3.831712054 | AD104: 15.23622069 | AE104: 21.46171205 | AF104: 13.97622069 | AG104: 20.20171205
A105: 10 | B105: 0.1745329252 | C105: 6.008226947 | D105: 1038.221616 | E105: =VLOOKUP(A105-$B$2,'Ref. Coeff. Horiz.'!A:X,24) -> 180 | F105: =VLOOKUP(A105-$B$2,'Ref. Coeff. Vertical'!A:X,24) -> 0 | G105: =VLOOKUP(A105-$B$2,'Ref. Coeff. Horiz.'!A:X,23) -> 1 | H105: =VLOOKUP(A105-$B$2,'Ref. Coeff. Vertical'!A:X,23) -> 1 | I105: 1218.221616 | J105: 1038.221616 | Q105: 98.11317548 | R105: 98.1 | S105: ='Antenna Data'!B103 -> -1.29 | T105: 0.7131235303 | U105: -2.936704666 | W105: 1.868543505 | X105: 5.430064279 | Z105: -4.226704666 | AB105: 4.140064279 | AD105: 13.43329533 | AE105: 21.80006428 | AF105: 12.14329533 | AG105: 20.51006428
A106: 10.1 | B106: 0.1762782545 | C106: 6.067688723 | D106: 1048.496611 | E106: =VLOOKUP(A106-$B$2,'Ref. Coeff. Horiz.'!A:X,24) -> 180 | F106: =VLOOKUP(A106-$B$2,'Ref. Coeff. Vertical'!A:X,24) -> 0 | G106: =VLOOKUP(A106-$B$2,'Ref. Coeff. Horiz.'!A:X,23) -> 1 | H106: =VLOOKUP(A106-$B$2,'Ref. Coeff. Vertical'!A:X,23) -> 1 | I106: 1228.496611 | J106: 1048.496611 | Q106: 97.12164555 | R106: 97.1 | S106: ='Antenna Data'!B104 -> -1.31 | T106: 0.542937823 | U106: -5.304998056 | W106: 1.924894418 | X106: 5.688138262 | Z106: -6.614998056 | AB106: 4.378138262 | AD106: 11.06500194 | AE106: 22.05813826 | AF106: 9.755001944 | AG106: 20.74813826
A107: 10.2 | B107: 0.1780235837 | C107: 6.127132015 | D107: 1058.768412 | E107: =VLOOKUP(A107-$B$2,'Ref. Coeff. Horiz.'!A:X,24) -> 180 | F107: =VLOOKUP(A107-$B$2,'Ref. Coeff. Vertical'!A:X,24) -> 0 | G107: =VLOOKUP(A107-$B$2,'Ref. Coeff. Horiz.'!A:X,23) -> 1 | H107: =VLOOKUP(A107-$B$2,'Ref. Coeff. Vertical'!A:X,23) -> 1 | I107: 1238.768412 | J107: 1058.768412 | Q107: 96.14935757 | R107: 96.1 | S107: ='Antenna Data'!B105 -> -1.34 | T107: 0.3684445904 | U107: -8.672556311 | W107: 1.965769209 | X107: 5.870650564 | Z107: -10.01255631 | AB107: 4.530650564 | AD107: 7.697443689 | AE107: 22.24065056 | AF107: 6.357443689 | AG107: 20.90065056
A108: 10.3 | B108: 0.179768913 | C108: 6.186556643 | D108: 1069.036988 | E108: =VLOOKUP(A108-$B$2,'Ref. Coeff. Horiz.'!A:X,24) -> 180 | F108: =VLOOKUP(A108-$B$2,'Ref. Coeff. Vertical'!A:X,24) -> 0 | G108: =VLOOKUP(A108-$B$2,'Ref. Coeff. Horiz.'!A:X,23) -> 1 | H108: =VLOOKUP(A108-$B$2,'Ref. Coeff. Vertical'!A:X,23) -> 1 | I108: 1249.036988 | J108: 1069.036988 | Q108: 95.19575104 | R108: 95.2 | S108: ='Antenna Data'!B106 -> -1.37 | T108: 0.1910489062 | U108: -14.37710889 | W108: 1.990854167 | X108: 5.980788971 | Z108: -15.74710889 | AB108: 4.610788971 | AD108: 1.992891112 | AE108: 22.35078897 | AF108: 0.622891112 | AG108: 20.98078897
A109: 10.4 | B109: 0.1815142422 | C109: 6.245962426 | D109: 1079.302307 | E109: =VLOOKUP(A109-$B$2,'Ref. Coeff. Horiz.'!A:X,24) -> 180 | F109: =VLOOKUP(A109-$B$2,'Ref. Coeff. Vertical'!A:X,24) -> 0 | G109: =VLOOKUP(A109-$B$2,'Ref. Coeff. Horiz.'!A:X,23) -> 1 | H109: =VLOOKUP(A109-$B$2,'Ref. Coeff. Vertical'!A:X,23) -> 1 | I109: 1259.302307 | J109: 1079.302307 | Q109: 94.26028703 | R109: 94.3 | S109: ='Antenna Data'!B107 -> -1.4 | T109: 0.01217696207 | U109: -38.28922094 | W109: 1.99996293 | X109: 6.020438919 | Y109: Max | Z109: -39.68922094 | AB109: 4.620438919 | AC109: Max | AD109: -21.91922094 | AE109: 22.39043892 | AF109: -23.31922094 | AG109: 20.99043892
A110: 10.5 | B110: 0.1832595715 | C110: 6.305349182 | D110: 1089.564339 | E110: =VLOOKUP(A110-$B$2,'Ref. Coeff. Horiz.'!A:X,24) -> 180 | F110: =VLOOKUP(A110-$B$2,'Ref. Coeff. Vertical'!A:X,24) -> 0 | G110: =VLOOKUP(A110-$B$2,'Ref. Coeff. Horiz.'!A:X,23) -> 1 | H110: =VLOOKUP(A110-$B$2,'Ref. Coeff. Vertical'!A:X,23) -> 1 | I110: 1269.564339 | J110: 1089.564339 | Q110: 93.34244712 | R110: 93.3 | S110: ='Antenna Data'!B108 -> -1.43 | T110: 0.1667354535 | U110: -15.5594409 | W110: 1.993037704 | X110: 5.990310293 | Z110: -16.9894409 | AB110: 4.560310293 | AD110: 0.8105591043 | AE110: 22.36031029 | AF110: -0.6194408957 | AG110: 20.93031029
A111: 10.6 | B111: 0.1850049007 | C111: 6.364716731 | D111: 1099.823051 | E111: =VLOOKUP(A111-$B$2,'Ref. Coeff. Horiz.'!A:X,24) -> 180 | F111: =VLOOKUP(A111-$B$2,'Ref. Coeff. Vertical'!A:X,24) -> 0 | G111: =VLOOKUP(A111-$B$2,'Ref. Coeff. Horiz.'!A:X,23) -> 1 | H111: =VLOOKUP(A111-$B$2,'Ref. Coeff. Vertical'!A:X,23) -> 1 | I111: 1279.823051 | J111: 1099.823051 | Q111: 92.44173247 | R111: 92.4 | S111: ='Antenna Data'!B109 -> -1.46 | T111: 0.3442545213 | U111: -9.262406944 | W111: 1.970149442 | X111: 5.889983401 | Z111: -10.72240694 | AB111: 4.429983401 | AD111: 7.107593056 | AE111: 22.2599834 | AF111: 5.647593056 | AG111: 20.7999834
A112: 10.7 | B112: 0.18675023 | C112: 6.424064892 | D112: 1110.078413 | E112: =VLOOKUP(A112-$B$2,'Ref. Coeff. Horiz.'!A:X,24) -> 180 | F112: =VLOOKUP(A112-$B$2,'Ref. Coeff. Vertical'!A:X,24) -> 0 | G112: =VLOOKUP(A112-$B$2,'Ref. Coeff. Horiz.'!A:X,23) -> 1 | H112: =VLOOKUP(A112-$B$2,'Ref. Coeff. Vertical'!A:X,23) -> 1 | I112: 1290.078413 | J112: 1110.078413 | Q112: 91.55766288 | R112: 91.6 | S112: ='Antenna Data'!B110 -> -1.49 | T112: 0.5189599079 | U112: -5.697323843 | W112: 1.931496988 | X112: 5.717880704 | Z112: -7.187323843 | AB112: 4.227880704 | AD112: 10.67267616 | AE112: 22.0878807 | AF112: 9.182676157 | AG112: 20.5978807
A113: 10.8 | B113: 0.1884955592 | C113: 6.483393485 | D113: 1120.330394 | E113: =VLOOKUP(A113-$B$2,'Ref. Coeff. Horiz.'!A:X,24) -> 180 | F113: =VLOOKUP(A113-$B$2,'Ref. Coeff. Vertical'!A:X,24) -> 0 | G113: =VLOOKUP(A113-$B$2,'Ref. Coeff. Horiz.'!A:X,23) -> 1 | H113: =VLOOKUP(A113-$B$2,'Ref. Coeff. Vertical'!A:X,23) -> 1 | I113: 1300.330394 | J113: 1120.330394 | Q113: 90.68977595 | R113: 90.7 | S113: ='Antenna Data'!B111 -> -1.52 | T113: 0.6894561412 | U113: -3.229867113 | W113: 1.877405185 | X113: 5.47116026 | Z113: -4.749867113 | AB113: 3.95116026 | AD113: 13.14013289 | AE113: 21.84116026 | AF113: 11.62013289 | AG113: 20.32116026
A114: 10.9 | B114: 0.1902408885 | C114: 6.542702327 | D114: 1130.578962 | E114: =VLOOKUP(A114-$B$2,'Ref. Coeff. Horiz.'!A:X,24) -> 180 | F114: =VLOOKUP(A114-$B$2,'Ref. Coeff. Vertical'!A:X,24) -> 0 | G114: =VLOOKUP(A114-$B$2,'Ref. Coeff. Horiz.'!A:X,23) -> 1 | H114: =VLOOKUP(A114-$B$2,'Ref. Coeff. Vertical'!A:X,23) -> 1 | I114: 1310.578962 | J114: 1130.578962 | Q114: 89.83762623 | R114: 89.8 | S114: ='Antenna Data'!B112 -> -1.55 | T114: 0.8543837521 | U114: -1.366940385 | W114: 1.808321986 | X114: 5.145515251 | Z114: -2.916940385 | AB114: 3.595515251 | AD114: 15.00305961 | AE114: 21.51551525 | AF114: 13.45305961 | AG114: 19.96551525
A115: 11 | B115: 0.1919862177 | C115: 6.60199124 | D115: 1140.824086 | E115: =VLOOKUP(A115-$B$2,'Ref. Coeff. Horiz.'!A:X,24) -> 180 | F115: =VLOOKUP(A115-$B$2,'Ref. Coeff. Vertical'!A:X,24) -> 0 | G115: =VLOOKUP(A115-$B$2,'Ref. Coeff. Horiz.'!A:X,23) -> 1 | H115: =VLOOKUP(A115-$B$2,'Ref. Coeff. Vertical'!A:X,23) -> 1 | I115: 1320.824086 | J115: 1140.824086 | Q115: 89.00078448 | R115: 89 | S115: ='Antenna Data'!B113 -> -1.58 | T115: 1.012430094 | U115: 0.1073009136 | W115: 1.724814571 | X115: 4.73484825 | Z115: -1.472699086 | AB115: 3.15484825 | AD115: 16.47730091 | AE115: 21.10484825 | AF115: 14.89730091 | AG115: 19.52484825
A116: 11.1 | B116: 0.193731547 | C116: 6.661260042 | D116: 1151.065735 | E116: =VLOOKUP(A116-$B$2,'Ref. Coeff. Horiz.'!A:X,24) -> 180 | F116: =VLOOKUP(A116-$B$2,'Ref. Coeff. Vertical'!A:X,24) -> 0 | G116: =VLOOKUP(A116-$B$2,'Ref. Coeff. Horiz.'!A:X,23) -> 1 | H116: =VLOOKUP(A116-$B$2,'Ref. Coeff. Vertical'!A:X,23) -> 1 | I116: 1331.065735 | J116: 1151.065735 | Q116: 88.17883691 | R116: 88.2 | S116: ='Antenna Data'!B114 -> -1.61 | T116: 1.162339752 | U116: 1.306661817 | W116: 1.627564531 | X116: 4.230764335 | Z116: -0.303338183 | AB116: 2.620764335 | AD116: 17.67666182 | AE116: 20.60076433 | AF116: 16.06666182 | AG116: 18.99076433
A117: 11.2 | B117: 0.1954768762 | C117: 6.720508552 | D117: 1161.303878 | E117: =VLOOKUP(A117-$B$2,'Ref. Coeff. Horiz.'!A:X,24) -> 180 | F117: =VLOOKUP(A117-$B$2,'Ref. Coeff. Vertical'!A:X,24) -> 0 | G117: =VLOOKUP(A117-$B$2,'Ref. Coeff. Horiz.'!A:X,23) -> 1 | H117: =VLOOKUP(A117-$B$2,'Ref. Coeff. Vertical'!A:X,23) -> 1 | I117: 1341.303878 | J117: 1161.303878 | Q117: 87.37138452 | R117: 87.4 | S117: ='Antenna Data'!B115 -> -1.65 | T117: 1.302924466 | U117: 2.298384785 | W117: 1.517362131 | X117: 3.621784821 | Z117: 0.6483847851 | AB117: 1.971784821 | AD117: 18.66838479 | AE117: 19.99178482 | AF117: 17.01838479 | AG117: 18.34178482
A118: 11.3 | B118: 0.1972222055 | C118: 6.779736591 | D118: 1171.538483 | E118: =VLOOKUP(A118-$B$2,'Ref. Coeff. Horiz.'!A:X,24) -> 180 | F118: =VLOOKUP(A118-$B$2,'Ref. Coeff. Vertical'!A:X,24) -> 0 | G118: =VLOOKUP(A118-$B$2,'Ref. Coeff. Horiz.'!A:X,23) -> 1 | H118: =VLOOKUP(A118-$B$2,'Ref. Coeff. Vertical'!A:X,23) -> 1 | I118: 1351.538483 | J118: 1171.538483 | Q118: 86.57804244 | R118: 86.6 | S118: ='Antenna Data'!B116 -> -1.68 | T118: 1.433072479 | U118: 3.125363117 | W118: 1.395099735 | X118: 2.892105122 | Z118: 1.445363117 | AB118: 1.212105122 | AD118: 19.49536312 | AE118: 19.26210512 | AF118: 17.81536312 | AG118: 17.58210512
A119: 11.4 | B119: 0.1989675347 | C119: 6.838943977 | D119: 1181.769519 | E119: =VLOOKUP(A119-$B$2,'Ref. Coeff. Horiz.'!A:X,24) -> 180 | F119: =VLOOKUP(A119-$B$2,'Ref. Coeff. Vertical'!A:X,24) -> 0 | G119: =VLOOKUP(A119-$B$2,'Ref. Coeff. Horiz.'!A:X,23) -> 1 | H119: =VLOOKUP(A119-$B$2,'Ref. Coeff. Vertical'!A:X,23) -> 1 | I119: 1361.769519 | J119: 1181.769519 | Q119: 85.7984393 | R119: 85.8 | S119: ='Antenna Data'!B117 -> -1.71 | T119: 1.551757246 | U119: 3.816475642 | W119: 1.261764419 | X119: 2.019565527 | Z119: 2.106475642 | AB119: 0.3095655265 | AD119: 20.18647564 | AE119: 18.38956553 | AF119: 18.47647564 | AG119: 16.67956553
A120: 11.5 | B120: 0.200712864 | C120: 6.898130531 | D120: 1191.996956 | E120: =VLOOKUP(A120-$B$2,'Ref. Coeff. Horiz.'!A:X,24) -> 180 | F120: =VLOOKUP(A120-$B$2,'Ref. Coeff. Vertical'!A:X,24) -> 0 | G120: =VLOOKUP(A120-$B$2,'Ref. Coeff. Horiz.'!A:X,23) -> 1 | H120: =VLOOKUP(A120-$B$2,'Ref. Coeff. Vertical'!A:X,23) -> 1 | I120: 1371.996956 | J120: 1191.996956 | Q120: 85.03221664 | R120: 85 | S120: ='Antenna Data'!B118 -> -1.74 | T120: 1.658045433 | U120: 4.391928535 | W120: 1.118429855 | X120: 0.9721750328 | Z120: 2.651928535 | AB120: -0.7678249672 | AD120: 20.76192854 | AE120: 17.34217503 | AF120: 19.02192854 | AG120: 15.60217503
A121: 11.6 | B121: 0.2024581932 | C121: 6.957296072 | D121: 1202.220761 | E121: =VLOOKUP(A121-$B$2,'Ref. Coeff. Horiz.'!A:X,24) -> 180 | F121: =VLOOKUP(A121-$B$2,'Ref. Coeff. Vertical'!A:X,24) -> 0 | G121: =VLOOKUP(A121-$B$2,'Ref. Coeff. Horiz.'!A:X,23) -> 1 | H121: =VLOOKUP(A121-$B$2,'Ref. Coeff. Vertical'!A:X,23) -> 1 | I121: 1382.220761 | J121: 1202.220761 | Q121: 84.27902836 | R121: 84.3 | S121: ='Antenna Data'!B119 -> -1.78 | T121: 1.751104143 | U121: 4.866239511 | W121: 0.9662475252 | X121: -0.2982321079 | Z121: 3.086239511 | AB121: -2.078232108 | AD121: 21.23623951 | AE121: 16.07176789 | AF121: 19.45623951 | AG121: 14.29176789
A122: 11.7 | B122: 0.2042035225 | C122: 7.016440419 | D122: 1212.440904 | E122: =VLOOKUP(A122-$B$2,'Ref. Coeff. Horiz.'!A:X,24) -> 180 | F122: =VLOOKUP(A122-$B$2,'Ref. Coeff. Vertical'!A:X,24) -> 0 | G122: =VLOOKUP(A122-$B$2,'Ref. Coeff. Horiz.'!A:X,23) -> 1 | H122: =VLOOKUP(A122-$B$2,'Ref. Coeff. Vertical'!A:X,23) -> 1 | I122: 1392.440904 | J122: 1212.440904 | Q122: 83.53854019 | R122: 83.5 | S122: ='Antenna Data'!B120 -> -1.81 | T122: 1.830207317 | U122: 5.250005747 | W122: 0.8064373356 | X122: -1.868587479 | Z122: 3.440005747 | AB122: -3.678587479 | AD122: 21.62000575 | AE122: 14.50141252 | AF122: 19.81000575 | AG122: 12.69141252
A123: 11.8 | B123: 0.2059488517 | C123: 7.075563394 | D123: 1222.657354 | E123: =VLOOKUP(A123-$B$2,'Ref. Coeff. Horiz.'!A:X,24) -> 180 | F123: =VLOOKUP(A123-$B$2,'Ref. Coeff. Vertical'!A:X,24) -> 0 | G123: =VLOOKUP(A123-$B$2,'Ref. Coeff. Horiz.'!A:X,23) -> 1 | H123: =VLOOKUP(A123-$B$2,'Ref. Coeff. Vertical'!A:X,23) -> 1 | I123: 1402.657354 | J123: 1222.657354 | Q123: 82.81042921 | R123: 82.8 | S123: ='Antenna Data'!B121 -> -1.85 | T123: 1.894741259 | U123: 5.550998246 | W123: 0.6402777209 | X123: -3.872632192 | Z123: 3.700998246 | AB123: -5.722632192 | AD123: 21.92099825 | AE123: 12.49736781 | AF123: 20.07099825 | AG123: 10.64736781
A124: 11.9 | B124: 0.207694181 | C124: 7.134664815 | D124: 1232.87008 | E124: =VLOOKUP(A124-$B$2,'Ref. Coeff. Horiz.'!A:X,24) -> 180 | F124: =VLOOKUP(A124-$B$2,'Ref. Coeff. Vertical'!A:X,24) -> 0 | G124: =VLOOKUP(A124-$B$2,'Ref. Coeff. Horiz.'!A:X,23) -> 1 | H124: =VLOOKUP(A124-$B$2,'Ref. Coeff. Vertical'!A:X,23) -> 1 | I124: 1412.87008 | J124: 1232.87008 | Q124: 82.09438334 | R124: 82.1 | S124: ='Antenna Data'!B122 -> -1.88 | T124: 1.944209246 | U124: 5.774860084 | W124: 0.4690953071 | X124: -6.574778235 | Z124: 3.894860084 | AB124: -8.454778235 | AD124: 22.14486008 | AE124: 9.795221765 | AF124: 20.26486008 | AG124: 7.915221765
A125: 12 | B125: 0.2094395102 | C125: 7.193744502 | D125: 1243.07905 | E125: =VLOOKUP(A125-$B$2,'Ref. Coeff. Horiz.'!A:X,24) -> 180 | F125: =VLOOKUP(A125-$B$2,'Ref. Coeff. Vertical'!A:X,24) -> 0 | G125: =VLOOKUP(A125-$B$2,'Ref. Coeff. Horiz.'!A:X,23) -> 1 | H125: =VLOOKUP(A125-$B$2,'Ref. Coeff. Vertical'!A:X,23) -> 1 | I125: 1423.07905 | J125: 1243.07905 | Q125: 81.39010089 | R125: 81.4 | S125: ='Antenna Data'!B123 -> -1.92 | T125: 1.978235186 | U125: 5.925558445 | W125: 0.2942542239 | X125: -10.62554589 | Z125: 4.005558445 | AB125: -12.54554589 | AD125: 22.29555844 | AE125: 5.744454115 | AF125: 20.37555844 | AG125: 3.824454115
A126: 12.1 | B126: 0.2111848395 | C126: 7.252802276 | D126: 1253.284233 | E126: =VLOOKUP(A126-$B$2,'Ref. Coeff. Horiz.'!A:X,24) -> 180 | F126: =VLOOKUP(A126-$B$2,'Ref. Coeff. Vertical'!A:X,24) -> 0 | G126: =VLOOKUP(A126-$B$2,'Ref. Coeff. Horiz.'!A:X,23) -> 1 | H126: =VLOOKUP(A126-$B$2,'Ref. Coeff. Vertical'!A:X,23) -> 1 | I126: 1433.284233 | J126: 1253.284233 | Q126: 80.69729017 | R126: 80.7 | S126: ='Antenna Data'!B124 -> -1.95 | T126: 1.996566306 | U126: 6.005674753 | W126: 0.1171451532 | X126: -18.6255135 | Z126: 4.055674753 | AA126: Max | AB126: -20.5755135 | AD126: 22.37567475 | AE126: -2.255513504 | AF126: 20.42567475 | AG126: -4.205513504
A127: 12.2 | B127: 0.2129301687 | C127: 7.311837957 | D127: 1263.485599 | E127: =VLOOKUP(A127-$B$2,'Ref. Coeff. Horiz.'!A:X,24) -> 180 | F127: =VLOOKUP(A127-$B$2,'Ref. Coeff. Vertical'!A:X,24) -> 0 | G127: =VLOOKUP(A127-$B$2,'Ref. Coeff. Horiz.'!A:X,23) -> 1 | H127: =VLOOKUP(A127-$B$2,'Ref. Coeff. Vertical'!A:X,23) -> 1 | I127: 1443.485599 | J127: 1263.485599 | Q127: 80.01566903 | R127: 80 | S127: ='Antenna Data'!B125 -> -1.99 | T127: 1.999074842 | U127: 6.016581072 | V127: Max | W127: 0.06082579885 | X127: -24.31824357 | Z127: 4.026581072 | AB127: -26.30824357 | AD127: 22.38658107 | AE127: -7.948243572 | AF127: 20.39658107 | AG127: -9.938243572
A128: 12.3 | B128: 0.214675498 | C128: 7.370851365 | D128: 1273.683116 | E128: =VLOOKUP(A128-$B$2,'Ref. Coeff. Horiz.'!A:X,24) -> 180 | F128: =VLOOKUP(A128-$B$2,'Ref. Coeff. Vertical'!A:X,24) -> 0 | G128: =VLOOKUP(A128-$B$2,'Ref. Coeff. Horiz.'!A:X,23) -> 1 | H128: =VLOOKUP(A128-$B$2,'Ref. Coeff. Vertical'!A:X,23) -> 1 | I128: 1453.683116 | J128: 1273.683116 | Q128: 79.34496451 | R128: 79.3 | S128: ='Antenna Data'!B126 -> -2.02 | T128: 1.985758732 | U128: 5.958529617 | W128: 0.2382483156 | X128: -12.45940322 | Z128: 3.938529617 | AB128: -14.47940322 | AD128: 22.32852962 | AE128: 3.910596778 | AF128: 20.30852962 | AG128: 1.890596778
A129: 12.4 | B129: 0.2164208272 | C129: 7.42984232 | D129: 1283.876753 | E129: =VLOOKUP(A129-$B$2,'Ref. Coeff. Horiz.'!A:X,24) -> 180 | F129: =VLOOKUP(A129-$B$2,'Ref. Coeff. Vertical'!A:X,24) -> 0 | G129: =VLOOKUP(A129-$B$2,'Ref. Coeff. Horiz.'!A:X,23) -> 1 | H129: =VLOOKUP(A129-$B$2,'Ref. Coeff. Vertical'!A:X,23) -> 1 | I129: 1463.876753 | J129: 1283.876753 | Q129: 78.68491244 | R129: 78.7 | S129: ='Antenna Data'!B127 -> -2.06 | T129: 1.956741302 | U129: 5.83066824 | W129: 0.4137190797 | X129: -7.665889001 | Z129: 3.77066824 | AB129: -9.725889001 | AD129: 22.20066824 | AE129: 8.704110999 | AF129: 20.14066824 | AG129: 6.644110999
A130: 12.5 | B130: 0.2181661565 | C130: 7.488810642 | D130: 1294.066479 | E130: =VLOOKUP(A130-$B$2,'Ref. Coeff. Horiz.'!A:X,24) -> 180 | F130: =VLOOKUP(A130-$B$2,'Ref. Coeff. Vertical'!A:X,24) -> 0 | G130: =VLOOKUP(A130-$B$2,'Ref. Coeff. Horiz.'!A:X,23) -> 1 | H130: =VLOOKUP(A130-$B$2,'Ref. Coeff. Vertical'!A:X,23) -> 1 | I130: 1474.066479 | J130: 1294.066479 | Q130: 78.03525711 | R130: 78 | S130: ='Antenna Data'!B128 -> -2.1 | T130: 1.912269958 | U130: 5.630984045 | W130: 0.5858528895 | X130: -4.644228475 | Z130: 3.530984045 | AB130: -6.744228475 | AD130: 22.00098404 | AE130: 11.72577153 | AF130: 19.90098404 | AG130: 9.625771525
A131: 12.6 | B131: 0.2199114858 | C131: 7.547756152 | D131: 1304.252263 | E131: =VLOOKUP(A131-$B$2,'Ref. Coeff. Horiz.'!A:X,24) -> 180 | F131: =VLOOKUP(A131-$B$2,'Ref. Coeff. Vertical'!A:X,24) -> 0 | G131: =VLOOKUP(A131-$B$2,'Ref. Coeff. Horiz.'!A:X,23) -> 1 | H131: =VLOOKUP(A131-$B$2,'Ref. Coeff. Vertical'!A:X,23) -> 1 | I131: 1484.252263 | J131: 1304.252263 | Q131: 77.39575095 | R131: 77.4 | S131: ='Antenna Data'!B129 -> -2.14 | T131: 1.852713891 | U131: 5.356167154 | W131: 0.7532935936 | X131: -2.46071452 | Z131: 3.216167154 | AB131: -4.60071452 | AD131: 21.72616715 | AE131: 13.90928548 | AF131: 19.58616715 | AG131: 11.76928548
A132: 12.7 | B132: 0.221656815 | C132: 7.606678671 | D132: 1314.434074 | E132: =VLOOKUP(A132-$B$2,'Ref. Coeff. Horiz.'!A:X,24) -> 180 | F132: =VLOOKUP(A132-$B$2,'Ref. Coeff. Vertical'!A:X,24) -> 0 | G132: =VLOOKUP(A132-$B$2,'Ref. Coeff. Horiz.'!A:X,23) -> 1 | H132: =VLOOKUP(A132-$B$2,'Ref. Coeff. Vertical'!A:X,23) -> 1 | I132: 1494.434074 | J132: 1314.434074 | Q132: 76.76615414 | R132: 76.8 | S132: ='Antenna Data'!B130 -> -2.17 | T132: 1.778560828 | U132: 5.001374459 | W132: 0.9147247571 | X132: -0.774191331 | Z132: 2.831374459 | AB132: -2.944191331 | AD132: 21.37137446 | AE132: 15.59580867 | AF132: 19.20137446 | AG132: 13.42580867
A133: 12.8 | B133: 0.2234021443 | C133: 7.665578018 | D133: 1324.611881 | E133: =VLOOKUP(A133-$B$2,'Ref. Coeff. Horiz.'!A:X,24) -> 180 | F133: =VLOOKUP(A133-$B$2,'Ref. Coeff. Vertical'!A:X,24) -> 0 | G133: =VLOOKUP(A133-$B$2,'Ref. Coeff. Horiz.'!A:X,23) -> 1 | H133: =VLOOKUP(A133-$B$2,'Ref. Coeff. Vertical'!A:X,23) -> 1 | I133: 1504.611881 | J133: 1324.611881 | Q133: 76.14623439 | R133: 76.1 | S133: ='Antenna Data'!B131 -> -2.21 | T133: 1.690412849 | U133: 4.559855701 | W133: 1.068879975 | X133: 0.578578819 | Z133: 2.349855701 | AB133: -1.631421181 | AD133: 20.9298557 | AE133: 16.94857882 | AF133: 18.7198557 | AG133: 14.73857882
A134: =A133+0.1 -> 12.9 | B134: =A134*(PI()/180) -> 0.2251474735 | C134: =(2*$B$1*SIN(B134-$C$2)*COS($C$2)) -> 7.724454014 | D134: =(C134/$O$1)*360 -> 1334.785654 | E134: =VLOOKUP(A134-$B$2,'Ref. Coeff. Horiz.'!A:X,24) -> 180 | F134: =VLOOKUP(A134-$B$2,'Ref. Coeff. Vertical'!A:X,24) -> 0 | G134: =VLOOKUP(A134-$B$2,'Ref. Coeff. Horiz.'!A:X,23) -> 1 | H134: =VLOOKUP(A134-$B$2,'Ref. Coeff. Vertical'!A:X,23) -> 1 | I134: =D134+E134 -> 1514.785654 | J134: =D134+F134 -> 1334.785654 | Q134: =(((COS($C$2))/(TAN(B134-$C$2)))-(SIN($C$2)))*$B$1 -> 75.53576661 | R134: =ROUND(Q134,1) -> 75.5 | S134: ='Antenna Data'!B132 -> -2.25 | T134: =SQRT((1+(2*G134*COS(I134*PI()/180)))+(G134^2)) -> 1.58898131 | U134: =IF(T134=0,-99,10*LOG(T134^2)) -> 4.022375782 | V134: =IF(AND((U135<U134),(U134>U133)),"Max","") ->  | W134: =SQRT((1+(2*H134*COS(J134*PI()/180)))+(H134^2)) -> 1.214552755 | X134: =IF(W134=0,-99,10*LOG(W134^2)) -> 1.68832767 | Y134: =IF(AND((X135<X134),(X134>X133)),"Max","") ->  | Z134: =U134+S134 -> 1.772375782 | AA134: =IF(AND((Z135<Z134),(Z134>Z133)),"Max","") ->  | AB134: =X134+S134 -> -0.5616723299 | AC134: =IF(AND((AB135<AB134),(AB134>AB133)),"Max","") ->  | AD134: =U134+$AD$2 -> 20.39237578 | AE134: =X134+$AD$2 -> 18.05832767 | AF134: =Z134+$AD$2 -> 18.14237578 | AG134: =AB134+$AD$2 -> 15.80832767
A135: 13 | B135: 0.2268928028 | C135: 7.78330648 | D135: 1344.95536 | E135: =VLOOKUP(A135-$B$2,'Ref. Coeff. Horiz.'!A:X,24) -> 180 | F135: =VLOOKUP(A135-$B$2,'Ref. Coeff. Vertical'!A:X,24) -> 0 | G135: =VLOOKUP(A135-$B$2,'Ref. Coeff. Horiz.'!A:X,23) -> 1 | H135: =VLOOKUP(A135-$B$2,'Ref. Coeff. Vertical'!A:X,23) -> 1 | I135: 1524.95536 | J135: 1344.95536 | Q135: 74.93453263 | R135: 74.9 | S135: ='Antenna Data'!B133 -> -2.29 | T135: 1.475080927 | U135: 3.376316949 | W135: 1.350605886 | X135: 2.610572763 | Z135: 1.086316949 | AB135: 0.320572763 | AD135: 19.74631695 | AE135: 18.98057276 | AF135: 17.45631695 | AG135: 16.69057276
A136: 13.1 | B136: 0.228638132 | C136: 7.842135237 | D136: 1355.120969 | E136: =VLOOKUP(A136-$B$2,'Ref. Coeff. Horiz.'!A:X,24) -> 180 | F136: =VLOOKUP(A136-$B$2,'Ref. Coeff. Vertical'!A:X,24) -> 0 | G136: =VLOOKUP(A136-$B$2,'Ref. Coeff. Horiz.'!A:X,23) -> 1 | H136: =VLOOKUP(A136-$B$2,'Ref. Coeff. Vertical'!A:X,23) -> 1 | I136: 1535.120969 | J136: 1355.120969 | Q136: 74.34232092 | R136: 74.3 | S136: ='Antenna Data'!B134 -> -2.33 | T136: 1.349623043 | U136: 2.604249696 | W136: 1.47598023 | X136: 3.38161081 | Z136: 0.2742496959 | AB136: 1.05161081 | AD136: 18.9742497 | AE136: 19.75161081 | AF136: 16.6442497 | AG136: 17.42161081
A137: 13.2 | B137: 0.2303834613 | C137: 7.900940106 | D137: 1365.28245 | E137: =VLOOKUP(A137-$B$2,'Ref. Coeff. Horiz.'!A:X,24) -> 180 | F137: =VLOOKUP(A137-$B$2,'Ref. Coeff. Vertical'!A:X,24) -> 0 | G137: =VLOOKUP(A137-$B$2,'Ref. Coeff. Horiz.'!A:X,23) -> 1 | H137: =VLOOKUP(A137-$B$2,'Ref. Coeff. Vertical'!A:X,23) -> 1 | I137: 1545.28245 | J137: 1365.28245 | Q137: 73.75892639 | R137: 73.8 | S137: ='Antenna Data'!B135 -> -2.37 | T137: 1.213608179 | U137: 1.681569897 | W137: 1.589702861 | X137: 4.026319118 | Z137: -0.6884301033 | AB137: 1.656319118 | AD137: 18.0515699 | AE137: 20.39631912 | AF137: 15.6815699 | AG137: 18.02631912
A138: 13.3 | B138: 0.2321287905 | C138: 7.959720907 | D138: 1375.439773 | E138: =VLOOKUP(A138-$B$2,'Ref. Coeff. Horiz.'!A:X,24) -> 180 | F138: =VLOOKUP(A138-$B$2,'Ref. Coeff. Vertical'!A:X,24) -> 0 | G138: =VLOOKUP(A138-$B$2,'Ref. Coeff. Horiz.'!A:X,23) -> 1 | H138: =VLOOKUP(A138-$B$2,'Ref. Coeff. Vertical'!A:X,23) -> 1 | I138: 1555.439773 | J138: 1375.439773 | Q138: 73.18415011 | R138: 73.2 | S138: ='Antenna Data'!B136 -> -2.41 | T138: 1.068117884 | U138: 0.5723837338 | W138: 1.690894493 | X138: 4.562330193 | Z138: -1.837616266 | AB138: 2.152330193 | AD138: 16.94238373 | AE138: 20.93233019 | AF138: 14.53238373 | AG138: 18.52233019
A139: 13.4 | B139: 0.2338741198 | C139: 8.018477461 | D139: 1385.592905 | E139: =VLOOKUP(A139-$B$2,'Ref. Coeff. Horiz.'!A:X,24) -> 180 | F139: =VLOOKUP(A139-$B$2,'Ref. Coeff. Vertical'!A:X,24) -> 0 | G139: =VLOOKUP(A139-$B$2,'Ref. Coeff. Horiz.'!A:X,23) -> 1 | H139: =VLOOKUP(A139-$B$2,'Ref. Coeff. Vertical'!A:X,23) -> 1 | I139: 1565.592905 | J139: 1385.592905 | Q139: 72.61779908 | R139: 72.6 | S139: ='Antenna Data'!B137 -> -2.46 | T139: 0.914305986 | U139: -0.7781687375 | W139: 1.778776142 | X139: 5.002425917 | Z139: -3.238168737 | AB139: 2.542425917 | AD139: 15.59183126 | AE139: 21.37242592 | AF139: 13.13183126 | AG139: 18.91242592
A140: 13.5 | B140: 0.235619449 | C140: 8.077209589 | D140: 1395.741817 | E140: =VLOOKUP(A140-$B$2,'Ref. Coeff. Horiz.'!A:X,24) -> 180 | F140: =VLOOKUP(A140-$B$2,'Ref. Coeff. Vertical'!A:X,24) -> 0 | G140: =VLOOKUP(A140-$B$2,'Ref. Coeff. Horiz.'!A:X,23) -> 1 | H140: =VLOOKUP(A140-$B$2,'Ref. Coeff. Vertical'!A:X,23) -> 1 | I140: 1575.741817 | J140: 1395.741817 | Q140: 72.05968602 | R140: 72.1 | S140: ='Antenna Data'!B138 -> -2.5 | T140: 0.7533893043 | U140: -2.459610994 | W140: 1.852674973 | X140: 5.355984698 | Z140: -4.959610994 | AB140: 2.855984698 | AD140: 13.91038901 | AE140: 21.7259847 | AF140: 11.41038901 | AG140: 19.2259847
A141: 13.6 | B141: 0.2373647783 | C141: 8.135917113 | D141: 1405.886477 | E141: =VLOOKUP(A141-$B$2,'Ref. Coeff. Horiz.'!A:X,24) -> 180 | F141: =VLOOKUP(A141-$B$2,'Ref. Coeff. Vertical'!A:X,24) -> 0 | G141: =VLOOKUP(A141-$B$2,'Ref. Coeff. Horiz.'!A:X,23) -> 1 | H141: =VLOOKUP(A141-$B$2,'Ref. Coeff. Vertical'!A:X,23) -> 1 | I141: 1585.886477 | J141: 1405.886477 | Q141: 71.50962917 | R141: 71.5 | S141: ='Antenna Data'!B139 -> -2.54 | T141: 0.5866378936 | U141: -4.632597748 | W141: 1.912029284 | X141: 5.629890789 | Z141: -7.172597748 | AB141: 3.089890789 | AD141: 11.73740225 | AE141: 21.99989079 | AF141: 9.197402252 | AG141: 19.45989079
A142: 13.7 | B142: 0.2391101075 | C142: 8.194599854 | D142: 1416.026855 | E142: =VLOOKUP(A142-$B$2,'Ref. Coeff. Horiz.'!A:X,24) -> 180 | F142: =VLOOKUP(A142-$B$2,'Ref. Coeff. Vertical'!A:X,24) -> 0 | G142: =VLOOKUP(A142-$B$2,'Ref. Coeff. Horiz.'!A:X,23) -> 1 | H142: =VLOOKUP(A142-$B$2,'Ref. Coeff. Vertical'!A:X,23) -> 1 | I142: 1596.026855 | J142: 1416.026855 | Q142: 70.96745206 | R142: 71 | S142: ='Antenna Data'!B140 -> -2.58 | T142: 0.4153649087 | U142: -7.631403935 | W142: 1.956392597 | X142: 5.829120214 | Z142: -10.21140393 | AB142: 3.249120214 | AD142: 8.738596065 | AE142: 22.19912021 | AF142: 6.158596065 | AG142: 19.61912021
A143: 13.8 | B143: 0.2408554368 | C143: 8.253257632 | D143: 1426.162919 | E143: =VLOOKUP(A143-$B$2,'Ref. Coeff. Horiz.'!A:X,24) -> 180 | F143: =VLOOKUP(A143-$B$2,'Ref. Coeff. Vertical'!A:X,24) -> 0 | G143: =VLOOKUP(A143-$B$2,'Ref. Coeff. Horiz.'!A:X,23) -> 1 | H143: =VLOOKUP(A143-$B$2,'Ref. Coeff. Vertical'!A:X,23) -> 1 | I143: 1606.162919 | J143: 1426.162919 | Q143: 70.43298333 | R143: 70.4 | S143: ='Antenna Data'!B141 -> -2.63 | T143: 0.2409161659 | U143: -12.36268114 | W143: 1.985436829 | X143: 5.957121471 | Z143: -14.99268114 | AB143: 3.327121471 | AD143: 4.007318859 | AE143: 22.32712147 | AF143: 1.377318859 | AG143: 19.69712147
A144: 13.9 | B144: 0.242600766 | C144: 8.31189027 | D144: 1436.294639 | E144: =VLOOKUP(A144-$B$2,'Ref. Coeff. Horiz.'!A:X,24) -> 180 | F144: =VLOOKUP(A144-$B$2,'Ref. Coeff. Vertical'!A:X,24) -> 0 | G144: =VLOOKUP(A144-$B$2,'Ref. Coeff. Horiz.'!A:X,23) -> 1 | H144: =VLOOKUP(A144-$B$2,'Ref. Coeff. Vertical'!A:X,23) -> 1 | I144: 1616.294639 | J144: 1436.294639 | Q144: 69.90605659 | R144: 69.9 | S144: ='Antenna Data'!B142 -> -2.67 | T144: 0.06465948718 | U144: -23.78735488 | W144: 1.998954514 | X144: 6.01605824 | Y144: Max | Z144: -26.45735488 | AB144: 3.34605824 | AC144: Max | AD144: -7.417354883 | AE144: 22.38605824 | AF144: -10.08735488 | AG144: 19.71605824
A145: 14 | B145: 0.2443460953 | C145: 8.370497588 | D145: 1446.421983 | E145: =VLOOKUP(A145-$B$2,'Ref. Coeff. Horiz.'!A:X,24) -> 180 | F145: =VLOOKUP(A145-$B$2,'Ref. Coeff. Vertical'!A:X,24) -> 0 | G145: =VLOOKUP(A145-$B$2,'Ref. Coeff. Horiz.'!A:X,23) -> 1 | H145: =VLOOKUP(A145-$B$2,'Ref. Coeff. Vertical'!A:X,23) -> 1 | I145: 1626.421983 | J145: 1446.421983 | Q145: 69.38651015 | R145: 69.4 | S145: ='Antenna Data'!B143 -> -2.72 | T145: 0.1120260883 | U145: -19.01361657 | W145: 1.996860074 | X145: 6.006952673 | Z145: -21.73361657 | AB145: 3.286952673 | AD145: -2.64361657 | AE145: 22.37695267 | AF145: -5.36361657 | AG145: 19.65695267
A146: 14.1 | B146: 0.2460914245 | C146: 8.429079408 | D146: 1456.544922 | E146: =VLOOKUP(A146-$B$2,'Ref. Coeff. Horiz.'!A:X,24) -> 180 | F146: =VLOOKUP(A146-$B$2,'Ref. Coeff. Vertical'!A:X,24) -> 0 | G146: =VLOOKUP(A146-$B$2,'Ref. Coeff. Horiz.'!A:X,23) -> 1 | H146: =VLOOKUP(A146-$B$2,'Ref. Coeff. Vertical'!A:X,23) -> 1 | I146: 1636.544922 | J146: 1456.544922 | Q146: 68.87418695 | R146: 68.9 | S146: ='Antenna Data'!B144 -> -2.76 | T146: 0.2877611393 | U146: -10.81935712 | W146: 1.979190119 | X146: 5.929750282 | Z146: -13.57935712 | AB146: 3.169750282 | AD146: 5.550642885 | AE146: 22.29975028 | AF146: 2.790642885 | AG146: 19.53975028
A147: 14.2 | B147: 0.2478367538 | C147: 8.487635551 | D147: 1466.663423 | E147: =VLOOKUP(A147-$B$2,'Ref. Coeff. Horiz.'!A:X,24) -> 180 | F147: =VLOOKUP(A147-$B$2,'Ref. Coeff. Vertical'!A:X,24) -> 0 | G147: =VLOOKUP(A147-$B$2,'Ref. Coeff. Horiz.'!A:X,23) -> 1 | H147: =VLOOKUP(A147-$B$2,'Ref. Coeff. Vertical'!A:X,23) -> 1 | I147: 1646.663423 | J147: 1466.663423 | Q147: 68.36893432 | R147: 68.4 | S147: ='Antenna Data'!B145 -> -2.81 | T147: 0.4611766594 | U147: -6.722653617 | W147: 1.946102795 | X147: 5.783315528 | Z147: -9.532653617 | AB147: 2.973315528 | AD147: 9.647346383 | AE147: 22.15331553 | AF147: 6.837346383 | AG147: 19.34331553
A148: 14.3 | B148: 0.249582083 | C148: 8.54616584 | D148: 1476.777457 | E148: =VLOOKUP(A148-$B$2,'Ref. Coeff. Horiz.'!A:X,24) -> 180 | F148: =VLOOKUP(A148-$B$2,'Ref. Coeff. Vertical'!A:X,24) -> 0 | G148: =VLOOKUP(A148-$B$2,'Ref. Coeff. Horiz.'!A:X,23) -> 1 | H148: =VLOOKUP(A148-$B$2,'Ref. Coeff. Vertical'!A:X,23) -> 1 | I148: 1656.777457 | J148: 1476.777457 | Q148: 67.87060389 | R148: 67.9 | S148: ='Antenna Data'!B146 -> -2.85 | T148: 0.6309247299 | U148: -4.00044899 | W148: 1.897876178 | X148: 5.56535749 | Z148: -6.85044899 | AB148: 2.71535749 | AD148: 12.36955101 | AE148: 21.93535749 | AF148: 9.51955101 | AG148: 19.08535749
A149: 14.4 | B149: 0.2513274123 | C149: 8.604670096 | D149: 1486.886993 | E149: =VLOOKUP(A149-$B$2,'Ref. Coeff. Horiz.'!A:X,24) -> 180 | F149: =VLOOKUP(A149-$B$2,'Ref. Coeff. Vertical'!A:X,24) -> 0 | G149: =VLOOKUP(A149-$B$2,'Ref. Coeff. Horiz.'!A:X,23) -> 1 | H149: =VLOOKUP(A149-$B$2,'Ref. Coeff. Vertical'!A:X,23) -> 1 | I149: 1666.886993 | J149: 1486.886993 | Q149: 67.37905139 | R149: 67.4 | S149: ='Antenna Data'!B147 -> -2.9 | T149: 0.7956889854 | U149: -1.985133076 | W149: 1.83490573 | X149: 5.272275138 | Z149: -4.885133076 | AB149: 2.372275138 | AD149: 14.38486692 | AE149: 21.64227514 | AF149: 11.48486692 | AG149: 18.74227514
A150: 14.5 | B150: 0.2530727415 | C150: 8.66314814 | D150: 1496.991999 | E150: =VLOOKUP(A150-$B$2,'Ref. Coeff. Horiz.'!A:X,24) -> 180 | F150: =VLOOKUP(A150-$B$2,'Ref. Coeff. Vertical'!A:X,24) -> 0 | G150: =VLOOKUP(A150-$B$2,'Ref. Coeff. Horiz.'!A:X,23) -> 1 | H150: =VLOOKUP(A150-$B$2,'Ref. Coeff. Vertical'!A:X,23) -> 1 | I150: 1676.991999 | J150: 1496.991999 | Q150: 66.89413654 | R150: 66.9 | S150: ='Antenna Data'!B148 -> -2.95 | T150: 0.9541947913 | U150: -0.4072591691 | W150: 1.757700856 | X150: 4.898899286 | Z150: -3.357259169 | AB150: 1.948899286 | AD150: 15.96274083 | AE150: 21.26889929 | AF150: 13.01274083 | AG150: 18.31889929
A151: 14.6 | B151: 0.2548180708 | C151: 8.721599795 | D151: 1507.092445 | E151: =VLOOKUP(A151-$B$2,'Ref. Coeff. Horiz.'!A:X,24) -> 180 | F151: =VLOOKUP(A151-$B$2,'Ref. Coeff. Vertical'!A:X,24) -> 0 | G151: =VLOOKUP(A151-$B$2,'Ref. Coeff. Horiz.'!A:X,23) -> 1 | H151: =VLOOKUP(A151-$B$2,'Ref. Coeff. Vertical'!A:X,23) -> 1 | I151: 1687.092445 | J151: 1507.092445 | Q151: 66.4157229 | R151: 66.4 | S151: ='Antenna Data'!B149 -> -2.99 | T151: 1.105219055 | U151: 0.8689672796 | W151: 1.666880572 | X151: 4.438089694 | Z151: -2.12103272 | AB151: 1.448089694 | AD151: 17.23896728 | AE151: 20.80808969 | AF151: 14.24896728 | AG151: 17.81808969
A152: 14.7 | B152: 0.2565634 | C152: 8.780024883 | D152: 1517.1883 | E152: =VLOOKUP(A152-$B$2,'Ref. Coeff. Horiz.'!A:X,24) -> 180 | F152: =VLOOKUP(A152-$B$2,'Ref. Coeff. Vertical'!A:X,24) -> 0 | G152: =VLOOKUP(A152-$B$2,'Ref. Coeff. Horiz.'!A:X,23) -> 1 | H152: =VLOOKUP(A152-$B$2,'Ref. Coeff. Vertical'!A:X,23) -> 1 | I152: 1697.1883 | J152: 1517.1883 | Q152: 65.94367775 | R152: 65.9 | S152: ='Antenna Data'!B150 -> -3.04 | T152: 1.247599594 | U152: 1.921504494 | W152: 1.563168338 | X152: 3.880114997 | Z152: -1.118495506 | AB152: 0.8401149973 | AD152: 18.29150449 | AE152: 20.250115 | AF152: 15.25150449 | AG152: 17.210115
A153: 14.8 | B153: 0.2583087293 | C153: 8.838423225 | D153: 1527.279533 | E153: =VLOOKUP(A153-$B$2,'Ref. Coeff. Horiz.'!A:X,24) -> 180 | F153: =VLOOKUP(A153-$B$2,'Ref. Coeff. Vertical'!A:X,24) -> 0 | G153: =VLOOKUP(A153-$B$2,'Ref. Coeff. Horiz.'!A:X,23) -> 1 | H153: =VLOOKUP(A153-$B$2,'Ref. Coeff. Vertical'!A:X,23) -> 1 | I153: 1707.279533 | J153: 1527.279533 | Q153: 65.47787193 | R153: 65.5 | S153: ='Antenna Data'!B151 -> -3.09 | T153: 1.38024399 | U153: 2.799117295 | W153: 1.447386102 | X153: 3.211687963 | Z153: -0.2908827048 | AB153: 0.1216879628 | AD153: 19.1691173 | AE153: 19.58168796 | AF153: 16.0791173 | AG153: 16.49168796
A154: 14.9 | B154: 0.2600540585 | C154: 8.896794643 | D154: 1537.366114 | E154: =VLOOKUP(A154-$B$2,'Ref. Coeff. Horiz.'!A:X,24) -> 180 | F154: =VLOOKUP(A154-$B$2,'Ref. Coeff. Vertical'!A:X,24) -> 0 | G154: =VLOOKUP(A154-$B$2,'Ref. Coeff. Horiz.'!A:X,23) -> 1 | H154: =VLOOKUP(A154-$B$2,'Ref. Coeff. Vertical'!A:X,23) -> 1 | I154: 1717.366114 | J154: 1537.366114 | Q154: 65.01817978 | R154: 65 | S154: ='Antenna Data'!B152 -> -3.14 | T154: 1.502137866 | U154: 3.534195877 | W154: 1.320447588 | X154: 2.414423353 | Z154: 0.3941958769 | AB154: -0.725576647 | AD154: 19.90419588 | AE154: 18.78442335 | AF154: 16.76419588 | AG154: 15.64442335
A155: 15 | B155: 0.2617993878 | C155: 8.955138961 | D155: 1547.448012 | E155: =VLOOKUP(A155-$B$2,'Ref. Coeff. Horiz.'!A:X,24) -> 180 | F155: =VLOOKUP(A155-$B$2,'Ref. Coeff. Vertical'!A:X,24) -> 0 | G155: =VLOOKUP(A155-$B$2,'Ref. Coeff. Horiz.'!A:X,23) -> 1 | H155: =VLOOKUP(A155-$B$2,'Ref. Coeff. Vertical'!A:X,23) -> 1 | I155: 1727.448012 | J155: 1547.448012 | Q155: 64.56447897 | R155: 64.6 | S155: ='Antenna Data'!B153 -> -3.19 | T155: 1.612352515 | U155: 4.149199986 | W155: 1.183350907 | X155: 1.462270957 | Z155: 0.959199986 | AB155: -1.727729043 | AD155: 20.51919999 | AE155: 17.83227096 | AF155: 17.32919999 | AG155: 14.64227096
A156: 15.1 | B156: 0.2635447171 | C156: 9.013455999 | D156: 1557.525197 | E156: =VLOOKUP(A156-$B$2,'Ref. Coeff. Horiz.'!A:X,24) -> 180 | F156: =VLOOKUP(A156-$B$2,'Ref. Coeff. Vertical'!A:X,24) -> 0 | G156: =VLOOKUP(A156-$B$2,'Ref. Coeff. Horiz.'!A:X,23) -> 1 | H156: =VLOOKUP(A156-$B$2,'Ref. Coeff. Vertical'!A:X,23) -> 1 | I156: 1737.525197 | J156: 1557.525197 | Q156: 64.11665042 | R156: 64.1 | S156: ='Antenna Data'!B154 -> -3.24 | T156: 1.710051838 | U156: 4.660185513 | W156: 1.037170532 | X156: 0.3170033793 | Z156: 1.420185513 | AB156: -2.922996621 | AD156: 21.03018551 | AE156: 16.68700338 | AF156: 17.79018551 | AG156: 13.44700338
A157: 15.2 | B157: 0.2652900463 | C157: 9.071745581 | D157: 1567.597636 | E157: =VLOOKUP(A157-$B$2,'Ref. Coeff. Horiz.'!A:X,24) -> 180 | F157: =VLOOKUP(A157-$B$2,'Ref. Coeff. Vertical'!A:X,24) -> 0 | G157: =VLOOKUP(A157-$B$2,'Ref. Coeff. Horiz.'!A:X,23) -> 1 | H157: =VLOOKUP(A157-$B$2,'Ref. Coeff. Vertical'!A:X,23) -> 1 | I157: 1747.597636 | J157: 1567.597636 | Q157: 63.67457818 | R157: 63.7 | S157: ='Antenna Data'!B155 -> -3.29 | T157: 1.794498526 | U157: 5.078862117 | W157: 0.8830487198 | X157: -1.080306695 | Z157: 1.788862117 | AB157: -4.370306695 | AD157: 21.44886212 | AE157: 15.2896933 | AF157: 18.15886212 | AG157: 11.9996933
A158: 15.3 | B158: 0.2670353756 | C158: 9.130007529 | D158: 1577.665301 | E158: =VLOOKUP(A158-$B$2,'Ref. Coeff. Horiz.'!A:X,24) -> 180 | F158: =VLOOKUP(A158-$B$2,'Ref. Coeff. Vertical'!A:X,24) -> 0 | G158: =VLOOKUP(A158-$B$2,'Ref. Coeff. Horiz.'!A:X,23) -> 1 | H158: =VLOOKUP(A158-$B$2,'Ref. Coeff. Vertical'!A:X,23) -> 1 | I158: 1757.665301 | J158: 1577.665301 | Q158: 63.23814934 | R158: 63.2 | S158: ='Antenna Data'!B156 -> -3.34 | T158: 1.865059449 | U158: 5.413853593 | W158: 0.7221864375 | X158: -2.827013436 | Z158: 2.073853593 | AB158: -6.167013436 | AD158: 21.78385359 | AE158: 13.54298656 | AF158: 18.44385359 | AG158: 10.20298656
A159: 15.4 | B159: 0.2687807048 | C159: 9.188241665 | D159: 1587.72816 | E159: =VLOOKUP(A159-$B$2,'Ref. Coeff. Horiz.'!A:X,24) -> 180 | F159: =VLOOKUP(A159-$B$2,'Ref. Coeff. Vertical'!A:X,24) -> 0 | G159: =VLOOKUP(A159-$B$2,'Ref. Coeff. Horiz.'!A:X,23) -> 1 | H159: =VLOOKUP(A159-$B$2,'Ref. Coeff. Vertical'!A:X,23) -> 1 | I159: 1767.72816 | J159: 1587.72816 | Q159: 62.80725389 | R159: 62.8 | S159: ='Antenna Data'!B157 -> -3.39 | T159: 1.92121022 | U159: 5.671497764 | W159: 0.5558338699 | X159: -5.101099857 | Z159: 2.281497764 | AB159: -8.491099857 | AD159: 22.04149776 | AE159: 11.26890014 | AF159: 18.65149776 | AG159: 7.878900143
A160: 15.5 | B160: 0.2705260341 | C160: 9.246447812 | D160: 1597.786182 | E160: =VLOOKUP(A160-$B$2,'Ref. Coeff. Horiz.'!A:X,24) -> 180 | F160: =VLOOKUP(A160-$B$2,'Ref. Coeff. Vertical'!A:X,24) -> 0 | G160: =VLOOKUP(A160-$B$2,'Ref. Coeff. Horiz.'!A:X,23) -> 1 | H160: =VLOOKUP(A160-$B$2,'Ref. Coeff. Vertical'!A:X,23) -> 1 | I160: 1777.786182 | J160: 1597.786182 | Q160: 62.3817847 | R160: 62.4 | S160: ='Antenna Data'!B158 -> -3.45 | T160: 1.962538883 | U160: 5.856365401 | W160: 0.3852805888 | X160: -8.284457422 | Z160: 2.406365401 | AB160: -11.73445742 | AD160: 22.2263654 | AE160: 8.085542578 | AF160: 18.7763654 | AG160: 4.635542578
A161: 15.6 | B161: 0.2722713633 | C161: 9.304625793 | D161: 1607.839337 | E161: =VLOOKUP(A161-$B$2,'Ref. Coeff. Horiz.'!A:X,24) -> 180 | F161: =VLOOKUP(A161-$B$2,'Ref. Coeff. Vertical'!A:X,24) -> 0 | G161: =VLOOKUP(A161-$B$2,'Ref. Coeff. Horiz.'!A:X,23) -> 1 | H161: =VLOOKUP(A161-$B$2,'Ref. Coeff. Vertical'!A:X,23) -> 1 | I161: 1787.839337 | J161: 1607.839337 | Q161: 61.96163737 | R161: 62 | S161: ='Antenna Data'!B159 -> -3.5 | T161: 1.988748728 | U161: 5.971598297 | W161: 0.2118454559 | X161: -13.47961694 | Z161: 2.471598297 | AA161: Max | AB161: -16.97961694 | AD161: 22.3415983 | AE161: 2.890383058 | AF161: 18.8415983 | AG161: -0.6096169423
A162: 15.7 | B162: 0.2740166926 | C162: 9.362775431 | D162: 1617.887594 | E162: =VLOOKUP(A162-$B$2,'Ref. Coeff. Horiz.'!A:X,24) -> 180 | F162: =VLOOKUP(A162-$B$2,'Ref. Coeff. Vertical'!A:X,24) -> 0 | G162: =VLOOKUP(A162-$B$2,'Ref. Coeff. Horiz.'!A:X,23) -> 1 | H162: =VLOOKUP(A162-$B$2,'Ref. Coeff. Vertical'!A:X,23) -> 1 | I162: 1797.887594 | J162: 1617.887594 | Q162: 61.54671014 | R162: 61.5 | S162: ='Antenna Data'!B160 -> -3.55 | T162: 1.999660189 | U162: 6.019124009 | V162: Max | W162: 0.03686634415 | X162: -28.66739854 | Z162: 2.469124009 | AB162: -32.21739854 | AD162: 22.38912401 | AE162: -12.29739854 | AF162: 18.83912401 | AG162: -15.84739854
A163: 15.8 | B163: 0.2757620218 | C163: 9.420896548 | D163: 1627.930923 | E163: =VLOOKUP(A163-$B$2,'Ref. Coeff. Horiz.'!A:X,24) -> 180 | F163: =VLOOKUP(A163-$B$2,'Ref. Coeff. Vertical'!A:X,24) -> 0 | G163: =VLOOKUP(A163-$B$2,'Ref. Coeff. Horiz.'!A:X,23) -> 1 | H163: =VLOOKUP(A163-$B$2,'Ref. Coeff. Vertical'!A:X,23) -> 1 | I163: 1807.930923 | J163: 1627.930923 | Q163: 61.13690387 | R163: 61.1 | S163: ='Antenna Data'!B161 -> -3.61 | T163: 1.995211837 | U163: 5.999780255 | W163: 0.1383102454 | X163: -17.18291296 | Z163: 2.389780255 | AB163: -20.79291296 | AD163: 22.36978026 | AE163: -0.812912964 | AF163: 18.75978026 | AG163: -4.422912964
A164: 15.9 | B164: 0.2775073511 | C164: 9.478988967 | D164: 1637.969293 | E164: =VLOOKUP(A164-$B$2,'Ref. Coeff. Horiz.'!A:X,24) -> 180 | F164: =VLOOKUP(A164-$B$2,'Ref. Coeff. Vertical'!A:X,24) -> 0 | G164: =VLOOKUP(A164-$B$2,'Ref. Coeff. Horiz.'!A:X,23) -> 1 | H164: =VLOOKUP(A164-$B$2,'Ref. Coeff. Vertical'!A:X,23) -> 1 | I164: 1817.969293 | J164: 1637.969293 | Q164: 60.73212186 | R164: 60.7 | S164: ='Antenna Data'!B162 -> -3.66 | T164: 1.975460448 | U164: 5.913366777 | W164: 0.3123395867 | X164: -10.10745937 | Z164: 2.253366777 | AB164: -13.76745937 | AD164: 22.28336678 | AE164: 6.262540627 | AF164: 18.62336678 | AG164: 2.602540627
A165: 16 | B165: 0.2792526803 | C165: 9.537052511 | D165: 1648.002674 | E165: =VLOOKUP(A165-$B$2,'Ref. Coeff. Horiz.'!A:X,24) -> 180 | F165: =VLOOKUP(A165-$B$2,'Ref. Coeff. Vertical'!A:X,24) -> 0 | G165: =VLOOKUP(A165-$B$2,'Ref. Coeff. Horiz.'!A:X,23) -> 1 | H165: =VLOOKUP(A165-$B$2,'Ref. Coeff. Vertical'!A:X,23) -> 1 | I165: 1828.002674 | J165: 1648.002674 | Q165: 60.33226988 | R165: 60.3 | S165: ='Antenna Data'!B163 -> -3.72 | T165: 1.940580162 | U165: 5.758631747 | W165: 0.483889074 | X165: -6.30508368 | Z165: 2.038631747 | AB165: -10.02508368 | AD165: 22.12863175 | AE165: 10.06491632 | AF165: 18.40863175 | AG165: 6.34491632
A166: 16.1 | B166: 0.2809980096 | C166: 9.595087004 | D166: 1658.031034 | E166: =VLOOKUP(A166-$B$2,'Ref. Coeff. Horiz.'!A:X,24) -> 180 | F166: =VLOOKUP(A166-$B$2,'Ref. Coeff. Vertical'!A:X,24) -> 0 | G166: =VLOOKUP(A166-$B$2,'Ref. Coeff. Horiz.'!A:X,23) -> 1 | H166: =VLOOKUP(A166-$B$2,'Ref. Coeff. Vertical'!A:X,23) -> 1 | I166: 1838.031034 | J166: 1658.031034 | Q166: 59.937256 | R166: 59.9 | S166: ='Antenna Data'!B164 -> -3.78 | T166: 1.890860737 | U166: 5.533190882 | W166: 0.6516484264 | X166: -3.719732982 | Z166: 1.753190882 | AB166: -7.499732982 | AD166: 21.90319088 | AE166: 12.65026702 | AF166: 18.12319088 | AG166: 8.870267018
A167: 16.2 | B167: 0.2827433388 | C167: 9.653092269 | D167: 1668.054344 | E167: =VLOOKUP(A167-$B$2,'Ref. Coeff. Horiz.'!A:X,24) -> 180 | F167: =VLOOKUP(A167-$B$2,'Ref. Coeff. Vertical'!A:X,24) -> 0 | G167: =VLOOKUP(A167-$B$2,'Ref. Coeff. Horiz.'!A:X,23) -> 1 | H167: =VLOOKUP(A167-$B$2,'Ref. Coeff. Vertical'!A:X,23) -> 1 | I167: 1848.054344 | J167: 1668.054344 | Q167: 59.54699058 | R167: 59.5 | S167: ='Antenna Data'!B165 -> -3.83 | T167: 1.826704927 | U167: 5.233368003 | W167: 0.814339677 | X167: -1.783888092 | Z167: 1.403368003 | AB167: -5.613888092 | AD167: 21.603368 | AE167: 14.58611191 | AF167: 17.773368 | AG167: 10.75611191
A168: 16.3 | B168: 0.2844886681 | C168: 9.711068129 | D168: 1678.072573 | E168: =VLOOKUP(A168-$B$2,'Ref. Coeff. Horiz.'!A:X,24) -> 180 | F168: =VLOOKUP(A168-$B$2,'Ref. Coeff. Vertical'!A:X,24) -> 0 | G168: =VLOOKUP(A168-$B$2,'Ref. Coeff. Horiz.'!A:X,23) -> 1 | H168: =VLOOKUP(A168-$B$2,'Ref. Coeff. Vertical'!A:X,23) -> 1 | I168: 1858.072573 | J168: 1678.072573 | Q168: 59.16138617 | R168: 59.2 | S168: ='Antenna Data'!B166 -> -3.89 | T168: 1.748624988 | U168: 4.853933606 | W168: 0.9707268667 | X168: -0.2580590055 | Z168: 0.9639336062 | AB168: -4.148059005 | AD168: 21.22393361 | AE168: 16.11194099 | AF168: 17.33393361 | AG168: 12.22194099
A169: 16.4 | B169: 0.2862339973 | C169: 9.769014407 | D169: 1688.085689 | E169: =VLOOKUP(A169-$B$2,'Ref. Coeff. Horiz.'!A:X,24) -> 180 | F169: =VLOOKUP(A169-$B$2,'Ref. Coeff. Vertical'!A:X,24) -> 0 | G169: =VLOOKUP(A169-$B$2,'Ref. Coeff. Horiz.'!A:X,23) -> 1 | H169: =VLOOKUP(A169-$B$2,'Ref. Coeff. Vertical'!A:X,23) -> 1 | I169: 1868.085689 | J169: 1688.085689 | Q169: 58.78035746 | R169: 58.8 | S169: ='Antenna Data'!B167 -> -3.95 | T169: 1.657238373 | U169: 4.387699615 | W169: 1.119625373 | X169: 0.9814546354 | Z169: 0.4376996147 | AB169: -2.968545365 | AD169: 20.75769961 | AE169: 17.35145464 | AF169: 16.80769961 | AG169: 13.40145464
A170: 16.5 | B170: 0.2879793266 | C170: 9.826930927 | D170: 1698.093664 | E170: =VLOOKUP(A170-$B$2,'Ref. Coeff. Horiz.'!A:X,24) -> 180 | F170: =VLOOKUP(A170-$B$2,'Ref. Coeff. Vertical'!A:X,24) -> 0 | G170: =VLOOKUP(A170-$B$2,'Ref. Coeff. Horiz.'!A:X,23) -> 1 | H170: =VLOOKUP(A170-$B$2,'Ref. Coeff. Vertical'!A:X,23) -> 1 | I170: 1878.093664 | J170: 1698.093664 | Q170: 58.40382121 | R170: 58.4 | S170: ='Antenna Data'!B168 -> -4.01 | T170: 1.553262624 | U170: 3.824897838 | W170: 1.259910799 | X170: 2.006795968 | Z170: -0.1851021616 | AB170: -2.003204032 | AD170: 20.19489784 | AE170: 18.37679597 | AF170: 16.18489784 | AG170: 14.36679597
A171: 16.6 | B171: 0.2897246558 | C171: 9.884817512 | D171: 1708.096466 | E171: =VLOOKUP(A171-$B$2,'Ref. Coeff. Horiz.'!A:X,24) -> 180 | F171: =VLOOKUP(A171-$B$2,'Ref. Coeff. Vertical'!A:X,24) -> 0 | G171: =VLOOKUP(A171-$B$2,'Ref. Coeff. Horiz.'!A:X,23) -> 1 | H171: =VLOOKUP(A171-$B$2,'Ref. Coeff. Vertical'!A:X,23) -> 1 | I171: 1888.096466 | J171: 1708.096466 | Q171: 58.03169618 | R171: 58 | S171: ='Antenna Data'!B169 -> -4.07 | T171: 1.437509529 | U171: 3.152214642 | W171: 1.390527366 | X171: 2.863590806 | Z171: -0.9177853577 | AB171: -1.206409194 | AD171: 19.52221464 | AE171: 19.23359081 | AF171: 15.45221464 | AG171: 15.16359081
A172: 16.7 | B172: 0.2914699851 | C172: 9.942673987 | D172: 1718.094065 | E172: =VLOOKUP(A172-$B$2,'Ref. Coeff. Horiz.'!A:X,24) -> 180 | F172: =VLOOKUP(A172-$B$2,'Ref. Coeff. Vertical'!A:X,24) -> 0 | G172: =VLOOKUP(A172-$B$2,'Ref. Coeff. Horiz.'!A:X,23) -> 1 | H172: =VLOOKUP(A172-$B$2,'Ref. Coeff. Vertical'!A:X,23) -> 1 | I172: 1898.094065 | J172: 1718.094065 | Q172: 57.66390306 | R172: 57.7 | S172: ='Antenna Data'!B170 -> -4.13 | T172: 1.310878577 | U172: 2.351249323 | W172: 1.510495732 | X172: 3.582390049 | Z172: -1.778750677 | AB172: -0.5476099514 | AD172: 18.72124932 | AE172: 19.95239005 | AF172: 14.59124932 | AG172: 15.82239005
A173: 16.8 | B173: 0.2932153143 | C173: 10.00050017 | D173: 1728.08643 | E173: =VLOOKUP(A173-$B$2,'Ref. Coeff. Horiz.'!A:X,24) -> 180 | F173: =VLOOKUP(A173-$B$2,'Ref. Coeff. Vertical'!A:X,24) -> 0 | G173: =VLOOKUP(A173-$B$2,'Ref. Coeff. Horiz.'!A:X,23) -> 1 | H173: =VLOOKUP(A173-$B$2,'Ref. Coeff. Vertical'!A:X,23) -> 1 | I173: 1908.08643 | J173: 1728.08643 | Q173: 57.30036447 | R173: 57.3 | S173: ='Antenna Data'!B171 -> -4.19 | T173: 1.174349776 | U173: 1.395949387 | W173: 1.618920197 | X173: 4.184508822 | Z173: -2.794050613 | AB173: -0.005491178203 | AD173: 17.76594939 | AE173: 20.55450882 | AF173: 13.57594939 | AG173: 16.36450882
A174: 16.9 | B174: 0.2949606436 | C174: 10.0582959 | D174: 1738.073531 | E174: =VLOOKUP(A174-$B$2,'Ref. Coeff. Horiz.'!A:X,24) -> 180 | F174: =VLOOKUP(A174-$B$2,'Ref. Coeff. Vertical'!A:X,24) -> 0 | G174: =VLOOKUP(A174-$B$2,'Ref. Coeff. Horiz.'!A:X,23) -> 1 | H174: =VLOOKUP(A174-$B$2,'Ref. Coeff. Vertical'!A:X,23) -> 1 | I174: 1918.073531 | J174: 1738.073531 | Q174: 56.94100481 | R174: 56.9 | S174: ='Antenna Data'!B172 -> -4.25 | T174: 1.028975881 | U174: 0.2481039051 | W174: 1.714995229 | X174: 4.685258324 | Z174: -4.001896095 | AB174: 0.4352583242 | AD174: 16.61810391 | AE174: 21.05525832 | AF174: 12.36810391 | AG174: 16.80525832
A175: 17 | B175: 0.2967059728 | C175: 10.11606098 | D175: 1748.055338 | E175: =VLOOKUP(A175-$B$2,'Ref. Coeff. Horiz.'!A:X,24) -> 180 | F175: =VLOOKUP(A175-$B$2,'Ref. Coeff. Vertical'!A:X,24) -> 0 | G175: =VLOOKUP(A175-$B$2,'Ref. Coeff. Horiz.'!A:X,23) -> 1 | H175: =VLOOKUP(A175-$B$2,'Ref. Coeff. Vertical'!A:X,23) -> 1 | I175: 1928.055338 | J175: 1748.055338 | Q175: 56.5857503 | R175: 56.6 | S175: ='Antenna Data'!B173 -> -4.31 | T175: 0.8758741099 | U175: -1.151166217 | W175: 1.798011275 | X175: 5.095848214 | Z175: -5.461166217 | AB175: 0.7858482138 | AD175: 15.21883378 | AE175: 21.46584821 | AF175: 10.90883378 | AG175: 17.15584821
A176: 17.1 | B176: 0.2984513021 | C176: 10.17379525 | D176: 1758.03182 | E176: =VLOOKUP(A176-$B$2,'Ref. Coeff. Horiz.'!A:X,24) -> 180 | F176: =VLOOKUP(A176-$B$2,'Ref. Coeff. Vertical'!A:X,24) -> 0 | G176: =VLOOKUP(A176-$B$2,'Ref. Coeff. Horiz.'!A:X,23) -> 1 | H176: =VLOOKUP(A176-$B$2,'Ref. Coeff. Vertical'!A:X,23) -> 1 | I176: 1938.03182 | J176: 1758.03182 | Q176: 56.23452886 | R176: 56.2 | S176: ='Antenna Data'!B174 -> -4.38 | T176: 0.7162173992 | U176: -2.899102656 | W176: 1.867359804 | X176: 5.424560122 | Z176: -7.279102656 | AB176: 1.044560122 | AD176: 13.47089734 | AE176: 21.79456012 | AF176: 9.090897344 | AG176: 17.41456012
A177: 17.2 | B177: 0.3001966313 | C177: 10.23149853 | D177: 1768.002946 | E177: =VLOOKUP(A177-$B$2,'Ref. Coeff. Horiz.'!A:X,24) -> 180 | F177: =VLOOKUP(A177-$B$2,'Ref. Coeff. Vertical'!A:X,24) -> 0 | G177: =VLOOKUP(A177-$B$2,'Ref. Coeff. Horiz.'!A:X,23) -> 1 | H177: =VLOOKUP(A177-$B$2,'Ref. Coeff. Vertical'!A:X,23) -> 1 | I177: 1948.002946 | J177: 1768.002946 | Q177: 55.8872701 | R177: 55.9 | S177: ='Antenna Data'!B175 -> -4.44 | T177: 0.5512252817 | U177: -5.173417438 | W177: 1.922537565 | X177: 5.677496687 | Z177: -9.613417438 | AB177: 1.237496687 | AD177: 11.19658256 | AE177: 22.04749669 | AF177: 6.756582562 | AG177: 17.60749669
A178: 17.3 | B178: 0.3019419606 | C178: 10.28917064 | D178: 1777.968687 | E178: =VLOOKUP(A178-$B$2,'Ref. Coeff. Horiz.'!A:X,24) -> 180 | F178: =VLOOKUP(A178-$B$2,'Ref. Coeff. Vertical'!A:X,24) -> 0 | G178: =VLOOKUP(A178-$B$2,'Ref. Coeff. Horiz.'!A:X,23) -> 1 | H178: =VLOOKUP(A178-$B$2,'Ref. Coeff. Vertical'!A:X,23) -> 1 | I178: 1957.968687 | J178: 1777.968687 | Q178: 55.54390526 | R178: 55.5 | S178: ='Antenna Data'!B176 -> -4.51 | T178: 0.3821544483 | U178: -8.355221617 | W178: 1.963150014 | X178: 5.859069749 | Z178: -12.86522162 | AB178: 1.349069749 | AD178: 8.014778383 | AE178: 22.22906975 | AF178: 3.504778383 | AG178: 17.71906975
A179: 17.4 | B179: 0.3036872898 | C179: 10.34681141 | D179: 1787.929012 | E179: =VLOOKUP(A179-$B$2,'Ref. Coeff. Horiz.'!A:X,24) -> 180 | F179: =VLOOKUP(A179-$B$2,'Ref. Coeff. Vertical'!A:X,24) -> 0 | G179: =VLOOKUP(A179-$B$2,'Ref. Coeff. Horiz.'!A:X,23) -> 1 | H179: =VLOOKUP(A179-$B$2,'Ref. Coeff. Vertical'!A:X,23) -> 1 | I179: 1967.929012 | J179: 1787.929012 | Q179: 55.20436713 | R179: 55.2 | S179: ='Antenna Data'!B177 -> -4.57 | T179: 0.2102890734 | U179: -13.54366585 | W179: 1.988913901 | X179: 5.972319663 | Z179: -18.11366585 | AB179: 1.402319663 | AC179: Max | AD179: 2.826334146 | AE179: 22.34231966 | AF179: -1.743665854 | AG179: 17.77231966
A180: 17.5 | B180: 0.3054326191 | C180: 10.40442066 | D180: 1797.883891 | E180: =VLOOKUP(A180-$B$2,'Ref. Coeff. Horiz.'!A:X,24) -> 180 | F180: =VLOOKUP(A180-$B$2,'Ref. Coeff. Vertical'!A:X,24) -> 0 | G180: =VLOOKUP(A180-$B$2,'Ref. Coeff. Horiz.'!A:X,23) -> 1 | H180: =VLOOKUP(A180-$B$2,'Ref. Coeff. Vertical'!A:X,23) -> 1 | I180: 1977.883891 | J180: 1797.883891 | Q180: 54.86859008 | R180: 54.9 | S180: ='Antenna Data'!B178 -> -4.64 | T180: 0.03693097833 | U180: -28.65218375 | W180: 1.999658997 | X180: 6.019118828 | Y180: Max | Z180: -33.29218375 | AB180: 1.379118828 | AD180: -12.28218375 | AE180: 22.38911883 | AF180: -16.92218375 | AG180: 17.74911883
A181: 17.6 | B181: 0.3071779484 | C181: 10.46199822 | D181: 1807.833292 | E181: =VLOOKUP(A181-$B$2,'Ref. Coeff. Horiz.'!A:X,24) -> 180 | F181: =VLOOKUP(A181-$B$2,'Ref. Coeff. Vertical'!A:X,24) -> 0 | G181: =VLOOKUP(A181-$B$2,'Ref. Coeff. Horiz.'!A:X,23) -> 1 | H181: =VLOOKUP(A181-$B$2,'Ref. Coeff. Vertical'!A:X,23) -> 1 | I181: 1987.833292 | J181: 1807.833292 | Q181: 54.53650994 | R181: 54.5 | S181: ='Antenna Data'!B179 -> -4.7 | T181: 0.1366102922 | U181: -17.2903316 | W181: 1.995328952 | X181: 6.000290085 | Z181: -21.9903316 | AB181: 1.300290085 | AD181: -0.9203315964 | AE181: 22.37029008 | AF181: -5.620331596 | AG181: 17.67029008
A182: 17.7 | B182: 0.3089232776 | C182: 10.51954391 | D182: 1817.777187 | E182: =VLOOKUP(A182-$B$2,'Ref. Coeff. Horiz.'!A:X,24) -> 180 | F182: =VLOOKUP(A182-$B$2,'Ref. Coeff. Vertical'!A:X,24) -> 0 | G182: =VLOOKUP(A182-$B$2,'Ref. Coeff. Horiz.'!A:X,23) -> 1 | H182: =VLOOKUP(A182-$B$2,'Ref. Coeff. Vertical'!A:X,23) -> 1 | I182: 1997.777187 | J182: 1817.777187 | Q182: 54.208064 | R182: 54.2 | S182: ='Antenna Data'!B180 -> -4.77 | T182: 0.3090274037 | U182: -10.20006014 | W182: 1.975981291 | X182: 5.915656567 | Z182: -14.97006014 | AB182: 1.145656567 | AD182: 6.169939864 | AE182: 22.28565657 | AF182: 1.399939864 | AG182: 17.51565657
A183: 17.8 | B183: 0.3106686069 | C183: 10.57705755 | D183: 1827.715545 | E183: =VLOOKUP(A183-$B$2,'Ref. Coeff. Horiz.'!A:X,24) -> 180 | F183: =VLOOKUP(A183-$B$2,'Ref. Coeff. Vertical'!A:X,24) -> 0 | G183: =VLOOKUP(A183-$B$2,'Ref. Coeff. Horiz.'!A:X,23) -> 1 | H183: =VLOOKUP(A183-$B$2,'Ref. Coeff. Vertical'!A:X,23) -> 1 | I183: 2007.715545 | J183: 1827.715545 | Q183: 53.88319097 | R183: 53.9 | S183: ='Antenna Data'!B181 -> -4.84 | T183: 0.4790251002 | U183: -6.392834593 | W183: 1.941786537 | X183: 5.764029711 | Z183: -11.23283459 | AB183: 0.9240297112 | AD183: 9.977165407 | AE183: 22.13402971 | AF183: 5.137165407 | AG183: 17.29402971
A184: 17.9 | B184: 0.3124139361 | C184: 10.63453898 | D184: 1837.648335 | E184: =VLOOKUP(A184-$B$2,'Ref. Coeff. Horiz.'!A:X,24) -> 180 | F184: =VLOOKUP(A184-$B$2,'Ref. Coeff. Vertical'!A:X,24) -> 0 | G184: =VLOOKUP(A184-$B$2,'Ref. Coeff. Horiz.'!A:X,23) -> 1 | H184: =VLOOKUP(A184-$B$2,'Ref. Coeff. Vertical'!A:X,23) -> 1 | I184: 2017.648335 | J184: 1837.648335 | Q184: 53.5618309 | R184: 53.6 | S184: ='Antenna Data'!B182 -> -4.91 | T184: 0.6453299316 | U184: -3.804363821 | W184: 1.893026487 | X184: 5.543133811 | Z184: -8.714363821 | AB184: 0.6331338108 | AD184: 12.56563618 | AE184: 21.91313381 | AF184: 7.655636179 | AG184: 17.00313381
A185: 18 | B185: 0.3141592654 | C185: 10.69198801 | D185: 1847.575527 | E185: =VLOOKUP(A185-$B$2,'Ref. Coeff. Horiz.'!A:X,24) -> 180 | F185: =VLOOKUP(A185-$B$2,'Ref. Coeff. Vertical'!A:X,24) -> 0 | G185: =VLOOKUP(A185-$B$2,'Ref. Coeff. Horiz.'!A:X,23) -> 1 | H185: =VLOOKUP(A185-$B$2,'Ref. Coeff. Vertical'!A:X,23) -> 1 | I185: 2027.575527 | J185: 1847.575527 | Q185: 53.24392519 | R185: 53.2 | S185: ='Antenna Data'!B183 -> -4.98 | T185: 0.8066997688 | U185: -1.865761351 | W185: 1.83009166 | X185: 5.249456836 | Z185: -6.845761351 | AB185: 0.2694568364 | AD185: 14.50423865 | AE185: 21.61945684 | AF185: 9.524238649 | AG185: 16.63945684
A186: 18.1 | B186: 0.3159045946 | C186: 10.74940447 | D186: 1857.497092 | E186: =VLOOKUP(A186-$B$2,'Ref. Coeff. Horiz.'!A:X,24) -> 180 | F186: =VLOOKUP(A186-$B$2,'Ref. Coeff. Vertical'!A:X,24) -> 0 | G186: =VLOOKUP(A186-$B$2,'Ref. Coeff. Horiz.'!A:X,23) -> 1 | H186: =VLOOKUP(A186-$B$2,'Ref. Coeff. Vertical'!A:X,23) -> 1 | I186: 2037.497092 | J186: 1857.497092 | Q186: 52.92941655 | R186: 52.9 | S186: ='Antenna Data'!B184 -> -5.05 | T186: 0.9619330337 | U186: -0.3371032182 | W186: 1.753477926 | X186: 4.878006063 | Z186: -5.387103218 | AB186: -0.1719939366 | AD186: 16.03289678 | AE186: 21.24800606 | AF186: 10.98289678 | AG186: 16.19800606
A187: 18.2 | B187: 0.3176499239 | C187: 10.80678818 | D187: 1867.412998 | E187: =VLOOKUP(A187-$B$2,'Ref. Coeff. Horiz.'!A:X,24) -> 180 | F187: =VLOOKUP(A187-$B$2,'Ref. Coeff. Vertical'!A:X,24) -> 0 | G187: =VLOOKUP(A187-$B$2,'Ref. Coeff. Horiz.'!A:X,23) -> 1 | H187: =VLOOKUP(A187-$B$2,'Ref. Coeff. Vertical'!A:X,23) -> 1 | I187: 2047.412998 | J187: 1867.412998 | Q187: 52.61824893 | R187: 52.6 | S187: ='Antenna Data'!B185 -> -5.12 | T187: 1.109877577 | U187: 0.9055015493 | W187: 1.663782367 | X187: 4.421930344 | Z187: -4.214498451 | AB187: -0.6980696564 | AD187: 17.27550155 | AE187: 20.79193034 | AF187: 12.15550155 | AG187: 15.67193034
A188: 18.3 | B188: 0.3193952531 | C188: 10.86413898 | D188: 1877.323215 | E188: =VLOOKUP(A188-$B$2,'Ref. Coeff. Horiz.'!A:X,24) -> 180 | F188: =VLOOKUP(A188-$B$2,'Ref. Coeff. Vertical'!A:X,24) -> 0 | G188: =VLOOKUP(A188-$B$2,'Ref. Coeff. Horiz.'!A:X,23) -> 1 | H188: =VLOOKUP(A188-$B$2,'Ref. Coeff. Vertical'!A:X,23) -> 1 | I188: 2057.323215 | J188: 1877.323215 | Q188: 52.3103675 | R188: 52.3 | S188: ='Antenna Data'!B186 -> -5.19 | T188: 1.249439139 | U188: 1.934302126 | W188: 1.561698382 | X188: 3.871943209 | Z188: -3.255697874 | AB188: -1.318056791 | AD188: 18.30430213 | AE188: 20.24194321 | AF188: 13.11430213 | AG188: 15.05194321
A189: 18.4 | B189: 0.3211405824 | C189: 10.92145668 | D189: 1887.227714 | E189: =VLOOKUP(A189-$B$2,'Ref. Coeff. Horiz.'!A:X,24) -> 180 | F189: =VLOOKUP(A189-$B$2,'Ref. Coeff. Vertical'!A:X,24) -> 0 | G189: =VLOOKUP(A189-$B$2,'Ref. Coeff. Horiz.'!A:X,23) -> 1 | H189: =VLOOKUP(A189-$B$2,'Ref. Coeff. Vertical'!A:X,23) -> 1 | I189: 2067.227714 | J189: 1887.227714 | Q189: 52.00571863 | R189: 52 | S189: ='Antenna Data'!B187 -> -5.27 | T189: 1.37958933 | U189: 2.794996534 | W189: 1.448010111 | X189: 3.215431888 | Z189: -2.475003466 | AB189: -2.054568112 | AD189: 19.16499653 | AE189: 19.58543189 | AF189: 13.89499653 | AG189: 14.31543189
A190: 18.5 | B190: 0.3228859116 | C190: 10.97874111 | D190: 1897.126464 | E190: =VLOOKUP(A190-$B$2,'Ref. Coeff. Horiz.'!A:X,24) -> 180 | F190: =VLOOKUP(A190-$B$2,'Ref. Coeff. Vertical'!A:X,24) -> 0 | G190: =VLOOKUP(A190-$B$2,'Ref. Coeff. Horiz.'!A:X,23) -> 1 | H190: =VLOOKUP(A190-$B$2,'Ref. Coeff. Vertical'!A:X,23) -> 1 | I190: 2077.126464 | J190: 1897.126464 | Q190: 51.70424986 | R190: 51.7 | S190: ='Antenna Data'!B188 -> -5.34 | T190: 1.499373074 | U190: 3.518194148 | W190: 1.323586184 | X190: 2.435044502 | Z190: -1.821805852 | AB190: -2.904955498 | AD190: 19.88819415 | AE190: 18.8050445 | AF190: 14.54819415 | AG190: 13.4650445
A191: 18.6 | B191: 0.3246312409 | C191: 11.0359921 | D191: 1907.019435 | E191: =VLOOKUP(A191-$B$2,'Ref. Coeff. Horiz.'!A:X,24) -> 180 | F191: =VLOOKUP(A191-$B$2,'Ref. Coeff. Vertical'!A:X,24) -> 0 | G191: =VLOOKUP(A191-$B$2,'Ref. Coeff. Horiz.'!A:X,23) -> 1 | H191: =VLOOKUP(A191-$B$2,'Ref. Coeff. Vertical'!A:X,23) -> 1 | I191: 2087.019435 | J191: 1907.019435 | Q191: 51.40590983 | R191: 51.4 | S191: ='Antenna Data'!B189 -> -5.42 | T191: 1.607915467 | U191: 4.125264255 | W191: 1.189372882 | X191: 1.506360644 | Z191: -1.294735745 | AB191: -3.913639356 | AD191: 20.49526425 | AE191: 17.87636064 | AF191: 15.07526425 | AG191: 12.45636064
A192: 18.7 | B192: 0.3263765701 | C192: 11.09320947 | D192: 1916.906597 | E192: =VLOOKUP(A192-$B$2,'Ref. Coeff. Horiz.'!A:X,24) -> 180 | F192: =VLOOKUP(A192-$B$2,'Ref. Coeff. Vertical'!A:X,24) -> 0 | G192: =VLOOKUP(A192-$B$2,'Ref. Coeff. Horiz.'!A:X,23) -> 1 | H192: =VLOOKUP(A192-$B$2,'Ref. Coeff. Vertical'!A:X,23) -> 1 | I192: 2096.906597 | J192: 1916.906597 | Q192: 51.11064831 | R192: 51.1 | S192: ='Antenna Data'!B190 -> -5.49 | T192: 1.704427992 | U192: 4.63157316 | W192: 1.046386745 | X192: 0.3938445946 | Z192: -0.8584268398 | AB192: -5.096155405 | AD192: 21.00157316 | AE192: 16.76384459 | AF192: 15.51157316 | AG192: 11.27384459
A193: 18.8 | B193: 0.3281218994 | C193: 11.15039305 | D193: 1926.78792 | E193: =VLOOKUP(A193-$B$2,'Ref. Coeff. Horiz.'!A:X,24) -> 180 | F193: =VLOOKUP(A193-$B$2,'Ref. Coeff. Vertical'!A:X,24) -> 0 | G193: =VLOOKUP(A193-$B$2,'Ref. Coeff. Horiz.'!A:X,23) -> 1 | H193: =VLOOKUP(A193-$B$2,'Ref. Coeff. Vertical'!A:X,23) -> 1 | I193: 2106.78792 | J193: 1926.78792 | Q193: 50.81841612 | R193: 50.8 | S193: ='Antenna Data'!B191 -> -5.57 | T193: 1.788214059 | U193: 5.048390101 | W193: 0.895706692 | X193: -0.9566836218 | Z193: -0.5216098985 | AB193: -6.526683622 | AD193: 21.4183901 | AE193: 15.41331638 | AF193: 15.8483901 | AG193: 9.843316378
A194: 18.9 | B194: 0.3298672286 | C194: 11.20754267 | D194: 1936.663373 | E194: =VLOOKUP(A194-$B$2,'Ref. Coeff. Horiz.'!A:X,24) -> 180 | F194: =VLOOKUP(A194-$B$2,'Ref. Coeff. Vertical'!A:X,24) -> 0 | G194: =VLOOKUP(A194-$B$2,'Ref. Coeff. Horiz.'!A:X,23) -> 1 | H194: =VLOOKUP(A194-$B$2,'Ref. Coeff. Vertical'!A:X,23) -> 1 | I194: 2116.663373 | J194: 1936.663373 | Q194: 50.52916511 | R194: 50.5 | S194: ='Antenna Data'!B192 -> -5.65 | T194: 1.858673826 | U194: 5.384063663 | W194: 0.738465713 | X194: -2.633393284 | Z194: -0.2659363368 | AB194: -8.283393284 | AD194: 21.75406366 | AE194: 13.73660672 | AF194: 16.10406366 | AG194: 8.086606716
A195: 19 | B195: 0.3316125579 | C195: 11.26465814 | D195: 1946.532927 | E195: =VLOOKUP(A195-$B$2,'Ref. Coeff. Horiz.'!A:X,24) -> 180 | F195: =VLOOKUP(A195-$B$2,'Ref. Coeff. Vertical'!A:X,24) -> 0 | G195: =VLOOKUP(A195-$B$2,'Ref. Coeff. Horiz.'!A:X,23) -> 1 | H195: =VLOOKUP(A195-$B$2,'Ref. Coeff. Vertical'!A:X,23) -> 1 | I195: 2126.532927 | J195: 1946.532927 | Q195: 50.24284818 | R195: 50.2 | S195: ='Antenna Data'!B193 -> -5.73 | T195: 1.915308266 | U195: 5.64477366 | W195: 0.5758422056 | X195: -4.793930144 | Z195: -0.08522633998 | AB195: -10.52393014 | AD195: 22.01477366 | AE195: 11.57606986 | AF195: 16.28477366 | AG195: 5.846069856
A196: 19.1 | B196: 0.3333578871 | C196: 11.3217393 | D196: 1956.396552 | E196: =VLOOKUP(A196-$B$2,'Ref. Coeff. Horiz.'!A:X,24) -> 180 | F196: =VLOOKUP(A196-$B$2,'Ref. Coeff. Vertical'!A:X,24) -> 0 | G196: =VLOOKUP(A196-$B$2,'Ref. Coeff. Horiz.'!A:X,23) -> 1 | H196: =VLOOKUP(A196-$B$2,'Ref. Coeff. Vertical'!A:X,23) -> 1 | I196: 2136.396552 | J196: 1956.396552 | Q196: 49.95941919 | R196: 50 | S196: ='Antenna Data'!B194 -> -5.81 | T196: 1.95772247 | U196: 5.835022509 | W196: 0.4090510133 | X196: -7.764450543 | Z196: 0.02502250925 | AB196: -13.57445054 | AD196: 22.20502251 | AE196: 8.605549457 | AF196: 16.39502251 | AG196: 2.795549457
A197: 19.2 | B197: 0.3351032164 | C197: 11.37878598 | D197: 1966.254217 | E197: =VLOOKUP(A197-$B$2,'Ref. Coeff. Horiz.'!A:X,24) -> 180 | F197: =VLOOKUP(A197-$B$2,'Ref. Coeff. Vertical'!A:X,24) -> 0 | G197: =VLOOKUP(A197-$B$2,'Ref. Coeff. Horiz.'!A:X,23) -> 1 | H197: =VLOOKUP(A197-$B$2,'Ref. Coeff. Vertical'!A:X,23) -> 1 | I197: 2146.254217 | J197: 1966.254217 | Q197: 49.67883295 | R197: 49.7 | S197: ='Antenna Data'!B195 -> -5.89 | T197: 1.985628143 | U197: 5.95795839 | W197: 0.2393342417 | X197: -12.41990324 | Z197: 0.06795839044 | AA197: Max | AB197: -18.30990324 | AD197: 22.32795839 | AE197: 3.950096756 | AF197: 16.43795839 | AG197: -1.939903244
A198: =A197+0.1 -> 19.3 | B198: =A198*(PI()/180) -> 0.3368485456 | C198: =(2*$B$1*SIN(B198-$C$2)*COS($C$2)) -> 11.43579799 | D198: =(C198/$O$1)*360 -> 1976.105892 | E198: =VLOOKUP(A198-$B$2,'Ref. Coeff. Horiz.'!A:X,24) -> 180 | F198: =VLOOKUP(A198-$B$2,'Ref. Coeff. Vertical'!A:X,24) -> 0 | G198: =VLOOKUP(A198-$B$2,'Ref. Coeff. Horiz.'!A:X,23) -> 1 | H198: =VLOOKUP(A198-$B$2,'Ref. Coeff. Vertical'!A:X,23) -> 1 | I198: =D198+E198 -> 2156.105892 | J198: =D198+F198 -> 1976.105892 | Q198: =(((COS($C$2))/(TAN(B198-$C$2)))-(SIN($C$2)))*$B$1 -> 49.40104523 | R198: =ROUND(Q198,1) -> 49.4 | S198: ='Antenna Data'!B196 -> -5.97 | T198: =SQRT((1+(2*G198*COS(I198*PI()/180)))+(G198^2)) -> 1.998845301 | U198: =IF(T198=0,-99,10*LOG(T198^2)) -> 6.01558367 | V198: =IF(AND((U199<U198),(U198>U197)),"Max","") -> Max | W198: =SQRT((1+(2*H198*COS(J198*PI()/180)))+(H198^2)) -> 0.06795192034 | X198: =IF(W198=0,-99,10*LOG(W198^2)) -> -23.35596531 | Y198: =IF(AND((X199<X198),(X198>X197)),"Max","") ->  | Z198: =U198+S198 -> 0.04558367016 | AA198: =IF(AND((Z199<Z198),(Z198>Z197)),"Max","") ->  | AB198: =X198+S198 -> -29.32596531 | AC198: =IF(AND((AB199<AB198),(AB198>AB197)),"Max","") ->  | AD198: =U198+$AD$2 -> 22.38558367 | AE198: =X198+$AD$2 -> -6.985965309 | AF198: =Z198+$AD$2 -> 16.41558367 | AG198: =AB198+$AD$2 -> -12.95596531
A199: 19.4 | B199: 0.3385938749 | C199: 11.49277516 | D199: 1985.951548 | E199: =VLOOKUP(A199-$B$2,'Ref. Coeff. Horiz.'!A:X,24) -> 180 | F199: =VLOOKUP(A199-$B$2,'Ref. Coeff. Vertical'!A:X,24) -> 0 | G199: =VLOOKUP(A199-$B$2,'Ref. Coeff. Horiz.'!A:X,23) -> 1 | H199: =VLOOKUP(A199-$B$2,'Ref. Coeff. Vertical'!A:X,23) -> 1 | I199: 2165.951548 | J199: 1985.951548 | Q199: 49.1260127 | R199: 49.1 | S199: ='Antenna Data'!B197 -> -6.05 | T199: 1.997303149 | U199: 6.008879733 | W199: 0.1038274186 | X199: -19.67375887 | Z199: -0.04112026749 | AB199: -25.72375887 | AD199: 22.37887973 | AE199: -3.30375887 | AF199: 16.32887973 | AG199: -9.35375887
A200: 19.5 | B200: 0.3403392041 | C200: 11.54971733 | D200: 1995.791155 | E200: =VLOOKUP(A200-$B$2,'Ref. Coeff. Horiz.'!A:X,24) -> 180 | F200: =VLOOKUP(A200-$B$2,'Ref. Coeff. Vertical'!A:X,24) -> 0 | G200: =VLOOKUP(A200-$B$2,'Ref. Coeff. Horiz.'!A:X,23) -> 1 | H200: =VLOOKUP(A200-$B$2,'Ref. Coeff. Vertical'!A:X,23) -> 1 | I200: 2175.791155 | J200: 1995.791155 | Q200: 48.85369292 | R200: 48.9 | S200: ='Antenna Data'!B198 -> -6.13 | T200: 1.98104014 | U200: 5.937865505 | W200: 0.274736174 | X200: -11.22168308 | Z200: -0.192134495 | AB200: -17.35168308 | AD200: 22.30786551 | AE200: 5.148316917 | AF200: 16.17786551 | AG200: -0.981683083
A201: 19.6 | B201: 0.3420845334 | C201: 11.60662431 | D201: 2005.624681 | E201: =VLOOKUP(A201-$B$2,'Ref. Coeff. Horiz.'!A:X,24) -> 180 | F201: =VLOOKUP(A201-$B$2,'Ref. Coeff. Vertical'!A:X,24) -> 0 | G201: =VLOOKUP(A201-$B$2,'Ref. Coeff. Horiz.'!A:X,23) -> 1 | H201: =VLOOKUP(A201-$B$2,'Ref. Coeff. Vertical'!A:X,23) -> 1 | I201: 2185.624681 | J201: 2005.624681 | Q201: 48.58404432 | R201: 48.6 | S201: ='Antenna Data'!B199 -> -6.22 | T201: 1.950203227 | U201: 5.801597413 | W201: 0.4435170508 | X201: -7.061793585 | Z201: -0.4184025865 | AB201: -13.28179358 | AD201: 22.17159741 | AE201: 9.308206415 | AF201: 15.95159741 | AG201: 3.088206415
... 704 more rows

Sheet Ref. Coeff. Vertical
C1: Permittivity εr | D1: =Home!D5 -> 1e+99 | F1: Conductivity σ | G1: =Home!D4 -> 1e+99 | M1: Frequency (MHz) | N1: =Home!D6 -> 144
A3: Angle α | C3: ε' | I3: ε'*SIN(α) | M3: SQRT [ε'-COS²(α)] | Q3: Numerator | S3: Denominator | U3: Num/Denom
A4: Degree | B4: Radian | C4: Re | D4: Im | G4: SIN(α) | H4: -COS²(α) | K4: Re | L4: Im | O4: Re | P4: Im | Q4: Re | R4: Im | S4: Re | T4: Im | U4: Re | V4: Im | W4: ρ | X4: θ
A5: 0 | B5: =A5*PI()/180 -> 0 | C5: =$D$1 -> 1e+99 | D5: =-(18000*$G$1/$N$1) -> -1.25e+101 | E5: =(C5^2+D5^2)^0.5 -> 1.250039999e+101 | F5: =(180/PI())*ATAN(D5/C5) -> -89.54164354 | G5: =SIN(B5) -> 0 | H5: =-((COS(B5))^2) -> -1 | I5: =E5*G5 -> 0 | J5: =F5 -> -89.54164354 | K5: =(((I5^2)/(1+(TAN(J5*(PI()/180)))^2))^0.5) -> 0 | L5: =K5*TAN(J5*(PI()/180)) -> 0 | M5: =-(((((C5+H5)^2)+(D5)^2)^0.5)^0.5) -> -3.535590473e+50 | N5: =((ATAN(D5/(C5+H5)))*(180/PI()))/2 -> -44.77082177 | O5: =-(((M5^2)/(1+(TAN(N5*(PI()/180)))^2))^0.5) -> -2.51001992e+50 | P5: =O5*TAN(N5*(PI()/180)) -> 2.49002008e+50 | Q5: =K5+O5 -> -2.51001992e+50 | R5: =L5+P5 -> 2.49002008e+50 | S5: =-O5+K5 -> 2.51001992e+50 | T5: =L5-P5 -> -2.49002008e+50 | U5: =(Q5*S5+T5*R5)/((S5^2)+(T5^2)) -> -1 | V5: =(R5*S5-Q5*T5)/((S5^2)+(T5^2)) -> 0 | W5: =((U5^2)+(V5^2))^0.5 -> 1 | X5: =(ACOS(U5/W5))*(180/PI()) -> 180
A6: =A5+0.1 -> 0.1 | B6: =A6*PI()/180 -> 0.001745329252 | C6: =$D$1 -> 1e+99 | D6: =-(18000*$G$1/$N$1) -> -1.25e+101 | E6: =(C6^2+D6^2)^0.5 -> 1.250039999e+101 | F6: =(180/PI())*ATAN(D6/C6) -> -89.54164354 | G6: =SIN(B6) -> 0.001745328366 | H6: =-((COS(B6))^2) -> -0.9999969538 | I6: =E6*G6 -> 2.181730269e+98 | J6: =F6 -> -89.54164354 | K6: =(((I6^2)/(1+(TAN(J6*(PI()/180)))^2))^0.5) -> 1.745328366e+96 | L6: =K6*TAN(J6*(PI()/180)) -> -2.181660457e+98 | M6: =-(((((C6+H6)^2)+(D6)^2)^0.5)^0.5) -> -3.535590473e+50 | N6: =((ATAN(D6/(C6+H6)))*(180/PI()))/2 -> -44.77082177 | O6: =-(((M6^2)/(1+(TAN(N6*(PI()/180)))^2))^0.5) -> -2.51001992e+50 | P6: =O6*TAN(N6*(PI()/180)) -> 2.49002008e+50 | Q6: =K6+O6 -> 1.745328366e+96 | R6: -2.181660457e+98 | S6: =-O6+K6 -> 1.745328366e+96 | T6: =L6-P6 -> -2.181660457e+98 | U6: 1 | V6: =(R6*S6-Q6*T6)/((S6^2)+(T6^2)) -> 0 | W6: =((U6^2)+(V6^2))^0.5 -> 1 | X6: =(ACOS(U6/W6))*(180/PI()) -> 0
A7: =A6+0.1 -> 0.2 | B7: 0.003490658504 | C7: 1e+99 | D7: -1.25e+101 | E7: 1.250039999e+101 | F7: -89.54164354 | G7: 0.003490651415 | H7: -0.9999878154 | I7: 4.363453893e+98 | J7: -89.54164354 | K7: 3.490651415e+96 | L7: -4.363314269e+98 | M7: -3.535590473e+50 | N7: -44.77082177 | O7: -2.51001992e+50 | P7: 2.49002008e+50 | Q7: 3.490651415e+96 | R7: -4.363314269e+98 | S7: 3.490651415e+96 | T7: -4.363314269e+98 | U7: 1 | V7: 0 | W7: 1 | X7: 0
A8: 0.3 | B8: 0.005235987756 | C8: 1e+99 | D8: -1.25e+101 | E8: 1.250039999e+101 | F8: -89.54164354 | G8: 0.005235963831 | H8: -0.9999725847 | I8: 6.545164224e+98 | J8: -89.54164354 | K8: 5.235963831e+96 | L8: -6.544954789e+98 | M8: -3.535590473e+50 | N8: -44.77082177 | O8: -2.51001992e+50 | P8: 2.49002008e+50 | Q8: 5.235963831e+96 | R8: -6.544954789e+98 | S8: 5.235963831e+96 | T8: -6.544954789e+98 | U8: 1 | V8: 0 | W8: 1 | X8: 0
A9: 0.4 | B9: 0.006981317008 | C9: 1e+99 | D9: -1.25e+101 | E9: 1.250039999e+101 | F9: -89.54164354 | G9: 0.006981260298 | H9: -0.999951262 | I9: 8.726854618e+98 | J9: -89.54164354 | K9: 6.981260298e+96 | L9: -8.726575372e+98 | M9: -3.535590473e+50 | N9: -44.77082177 | O9: -2.51001992e+50 | P9: 2.49002008e+50 | Q9: 6.981260298e+96 | R9: -8.726575372e+98 | S9: 6.981260298e+96 | T9: -8.726575372e+98 | U9: 1 | V9: 0 | W9: 1 | X9: 0
A10: 0.5 | B10: 0.00872664626 | C10: 1e+99 | D10: -1.25e+101 | E10: 1.250039999e+101 | F10: -89.54164354 | G10: 0.008726535498 | H10: -0.9999238476 | I10: 1.090851843e+99 | J10: -89.54164354 | K10: 8.726535498e+96 | L10: -1.090816937e+99 | M10: -3.535590473e+50 | N10: -44.77082177 | O10: -2.51001992e+50 | P10: 2.49002008e+50 | Q10: 8.726535498e+96 | R10: -1.090816937e+99 | S10: 8.726535498e+96 | T10: -1.090816937e+99 | U10: 1 | V10: 0 | W10: 1 | X10: 0
A11: 0.6 | B11: 0.01047197551 | C11: 1e+99 | D11: -1.25e+101 | E11: 1.250039999e+101 | F11: -89.54164354 | G11: 0.01047178412 | H11: -0.9998903417 | I11: 1.309014901e+99 | J11: -89.54164354 | K11: 1.047178412e+97 | L11: -1.308973015e+99 | M11: -3.535590473e+50 | N11: -44.77082177 | O11: -2.51001992e+50 | P11: 2.49002008e+50 | Q11: 1.047178412e+97 | R11: -1.308973015e+99 | S11: 1.047178412e+97 | T11: -1.308973015e+99 | U11: 1 | V11: 0 | W11: 1 | X11: 0
A12: 0.7 | B12: 0.01221730476 | C12: 1e+99 | D12: -1.25e+101 | E12: 1.250039999e+101 | F12: -89.54164354 | G12: 0.01221700084 | H12: -0.9998507449 | I12: 1.527173972e+99 | J12: -89.54164354 | K12: 1.221700084e+97 | L12: -1.527125104e+99 | M12: -3.535590473e+50 | N12: -44.77082177 | O12: -2.51001992e+50 | P12: 2.49002008e+50 | Q12: 1.221700084e+97 | R12: -1.527125104e+99 | S12: 1.221700084e+97 | T12: -1.527125104e+99 | U12: 1 | V12: 0 | W12: 1 | X12: 0
A13: 0.8 | B13: 0.01396263402 | C13: 1e+99 | D13: -1.25e+101 | E13: 1.250039999e+101 | F13: -89.54164354 | G13: 0.01396218034 | H13: -0.9998050575 | I13: 1.74532839e+99 | J13: -89.54164354 | K13: 1.396218034e+97 | L13: -1.745272542e+99 | M13: -3.535590473e+50 | N13: -44.77082177 | O13: -2.51001992e+50 | P13: 2.49002008e+50 | Q13: 1.396218034e+97 | R13: -1.745272542e+99 | S13: 1.396218034e+97 | T13: -1.745272542e+99 | U13: 1 | V13: 0 | W13: 1 | X13: 0
A14: 0.9 | B14: 0.01570796327 | C14: 1e+99 | D14: -1.25e+101 | E14: 1.250039999e+101 | F14: -89.54164354 | G14: 0.01570731731 | H14: -0.9997532802 | I14: 1.963477492e+99 | J14: -89.54164354 | K14: 1.570731731e+97 | L14: -1.963414664e+99 | M14: -3.535590473e+50 | N14: -44.77082177 | O14: -2.51001992e+50 | P14: 2.49002008e+50 | Q14: 1.570731731e+97 | R14: -1.963414664e+99 | S14: 1.570731731e+97 | T14: -1.963414664e+99 | U14: 1 | V14: 0 | W14: 1 | X14: 0
A15: 1 | B15: 0.01745329252 | C15: 1e+99 | D15: -1.25e+101 | E15: 1.250039999e+101 | F15: -89.54164354 | G15: 0.01745240644 | H15: -0.9996954135 | I15: 2.181620613e+99 | J15: -89.54164354 | K15: 1.745240644e+97 | L15: -2.181550805e+99 | M15: -3.535590473e+50 | N15: -44.77082177 | O15: -2.51001992e+50 | P15: 2.49002008e+50 | Q15: 1.745240644e+97 | R15: -2.181550805e+99 | S15: 1.745240644e+97 | T15: -2.181550805e+99 | U15: 1 | V15: 0 | W15: 1 | X15: 0
A16: 1.1 | B16: 0.01919862177 | C16: 1e+99 | D16: -1.25e+101 | E16: 1.250039999e+101 | F16: -89.54164354 | G16: 0.0191974424 | H16: -0.9996314582 | I16: 2.399757089e+99 | J16: -89.54164354 | K16: 1.91974424e+97 | L16: -2.3996803e+99 | M16: -3.535590473e+50 | N16: -44.77082177 | O16: -2.51001992e+50 | P16: 2.49002008e+50 | Q16: 1.91974424e+97 | R16: -2.3996803e+99 | S16: 1.91974424e+97 | T16: -2.3996803e+99 | U16: 1 | V16: 0 | W16: 1 | X16: 0
A17: 1.2 | B17: 0.02094395102 | C17: 1e+99 | D17: -1.25e+101 | E17: 1.250039999e+101 | F17: -89.54164354 | G17: 0.02094241988 | H17: -0.999561415 | I17: 2.617886254e+99 | J17: -89.54164354 | K17: 2.094241988e+97 | L17: -2.617802485e+99 | M17: -3.535590473e+50 | N17: -44.77082177 | O17: -2.51001992e+50 | P17: 2.49002008e+50 | Q17: 2.094241988e+97 | R17: -2.617802485e+99 | S17: 2.094241988e+97 | T17: -2.617802485e+99 | U17: 1 | V17: 0 | W17: 1 | X17: 0
A18: 1.3 | B18: 0.02268928028 | C18: 1e+99 | D18: -1.25e+101 | E18: 1.250039999e+101 | F18: -89.54164354 | G18: 0.02268733357 | H18: -0.9994852849 | I18: 2.836007444e+99 | J18: -89.54164354 | K18: 2.268733357e+97 | L18: -2.835916697e+99 | M18: -3.535590473e+50 | N18: -44.77082177 | O18: -2.51001992e+50 | P18: 2.49002008e+50 | Q18: 2.268733357e+97 | R18: -2.835916697e+99 | S18: 2.268733357e+97 | T18: -2.835916697e+99 | U18: 1 | V18: 0 | W18: 1 | X18: 0
A19: 1.4 | B19: 0.02443460953 | C19: 1e+99 | D19: -1.25e+101 | E19: 1.250039999e+101 | F19: -89.54164354 | G19: 0.02443217815 | H19: -0.9994030687 | I19: 3.054119996e+99 | J19: -89.54164354 | K19: 2.443217815e+97 | L19: -3.054022269e+99 | M19: -3.535590473e+50 | N19: -44.77082177 | O19: -2.51001992e+50 | P19: 2.49002008e+50 | Q19: 2.443217815e+97 | R19: -3.054022269e+99 | S19: 2.443217815e+97 | T19: -3.054022269e+99 | U19: 1 | V19: 0 | W19: 1 | X19: 0
A20: 1.5 | B20: 0.02617993878 | C20: 1e+99 | D20: -1.25e+101 | E20: 1.250039999e+101 | F20: -89.54164354 | G20: 0.02617694831 | H20: -0.9993147674 | I20: 3.272223245e+99 | J20: -89.54164354 | K20: 2.617694831e+97 | L20: -3.272118538e+99 | M20: -3.535590473e+50 | N20: -44.77082177 | O20: -2.51001992e+50 | P20: 2.49002008e+50 | Q20: 2.617694831e+97 | R20: -3.272118538e+99 | S20: 2.617694831e+97 | T20: -3.272118538e+99 | U20: 1 | V20: 0 | W20: 1 | X20: 0
A21: 1.6 | B21: 0.02792526803 | C21: 1e+99 | D21: -1.25e+101 | E21: 1.250039999e+101 | F21: -89.54164354 | G21: 0.02792163872 | H21: -0.9992203821 | I21: 3.490316525e+99 | J21: -89.54164354 | K21: 2.792163872e+97 | L21: -3.49020484e+99 | M21: -3.535590473e+50 | N21: -44.77082177 | O21: -2.51001992e+50 | P21: 2.49002008e+50 | Q21: 2.792163872e+97 | R21: -3.49020484e+99 | S21: 2.792163872e+97 | T21: -3.49020484e+99 | U21: 1 | V21: 0 | W21: 1 | X21: 0
A22: 1.7 | B22: 0.02967059728 | C22: 1e+99 | D22: -1.25e+101 | E22: 1.250039999e+101 | F22: -89.54164354 | G22: 0.02966624409 | H22: -0.999119914 | I22: 3.708399174e+99 | J22: -89.54164354 | K22: 2.966624409e+97 | L22: -3.708280511e+99 | M22: -3.535590473e+50 | N22: -44.77082177 | O22: -2.51001992e+50 | P22: 2.49002008e+50 | Q22: 2.966624409e+97 | R22: -3.708280511e+99 | S22: 2.966624409e+97 | T22: -3.708280511e+99 | U22: 1 | V22: 0 | W22: 1 | X22: 0
A23: 1.8 | B23: 0.03141592654 | C23: 1e+99 | D23: -1.25e+101 | E23: 1.250039999e+101 | F23: -89.54164354 | G23: 0.03141075908 | H23: -0.9990133642 | I23: 3.926470526e+99 | J23: -89.54164354 | K23: 3.141075908e+97 | L23: -3.926344885e+99 | M23: -3.535590473e+50 | N23: -44.77082177 | O23: -2.51001992e+50 | P23: 2.49002008e+50 | Q23: 3.141075908e+97 | R23: -3.926344885e+99 | S23: 3.141075908e+97 | T23: -3.926344885e+99 | U23: 1 | V23: 0 | W23: 1 | X23: 0
A24: 1.9 | B24: 0.03316125579 | C24: 1e+99 | D24: -1.25e+101 | E24: 1.250039999e+101 | F24: -89.54164354 | G24: 0.03315517839 | H24: -0.9989007341 | I24: 4.144529917e+99 | J24: -89.54164354 | K24: 3.315517839e+97 | L24: -4.144397299e+99 | M24: -3.535590473e+50 | N24: -44.77082177 | O24: -2.51001992e+50 | P24: 2.49002008e+50 | Q24: 3.315517839e+97 | R24: -4.144397299e+99 | S24: 3.315517839e+97 | T24: -4.144397299e+99 | U24: 1 | V24: 0 | W24: 1 | X24: 0
A25: 2 | B25: 0.03490658504 | C25: 1e+99 | D25: -1.25e+101 | E25: 1.250039999e+101 | F25: -89.54164354 | G25: 0.0348994967 | H25: -0.9987820251 | I25: 4.362576684e+99 | J25: -89.54164354 | K25: 3.48994967e+97 | L25: -4.362437088e+99 | M25: -3.535590473e+50 | N25: -44.77082177 | O25: -2.51001992e+50 | P25: 2.49002008e+50 | Q25: 3.48994967e+97 | R25: -4.362437088e+99 | S25: 3.48994967e+97 | T25: -4.362437088e+99 | U25: 1 | V25: 0 | W25: 1 | X25: 0
A26: 2.1 | B26: 0.03665191429 | C26: 1e+99 | D26: -1.25e+101 | E26: 1.250039999e+101 | F26: -89.54164354 | G26: 0.03664370871 | H26: -0.9986572386 | I26: 4.580610161e+99 | J26: -89.54164354 | K26: 3.664370871e+97 | L26: -4.580463588e+99 | M26: -3.535590473e+50 | N26: -44.77082177 | O26: -2.51001992e+50 | P26: 2.49002008e+50 | Q26: 3.664370871e+97 | R26: -4.580463588e+99 | S26: 3.664370871e+97 | T26: -4.580463588e+99 | U26: 1 | V26: 0 | W26: 1 | X26: 0
A27: 2.2 | B27: 0.03839724354 | C27: 1e+99 | D27: -1.25e+101 | E27: 1.250039999e+101 | F27: -89.54164354 | G27: 0.03838780909 | H27: -0.9985263761 | I27: 4.798629685e+99 | J27: -89.54164354 | K27: 3.838780909e+97 | L27: -4.798476136e+99 | M27: -3.535590473e+50 | N27: -44.77082177 | O27: -2.51001992e+50 | P27: 2.49002008e+50 | Q27: 3.838780909e+97 | R27: -4.798476136e+99 | S27: 3.838780909e+97 | T27: -4.798476136e+99 | U27: 1 | V27: 0 | W27: 1 | X27: 0
A28: 2.3 | B28: 0.0401425728 | C28: 1e+99 | D28: -1.25e+101 | E28: 1.250039999e+101 | F28: -89.54164354 | G28: 0.04013179253 | H28: -0.9983894392 | I28: 5.016634591e+99 | J28: -89.54164354 | K28: 4.013179253e+97 | L28: -5.016474067e+99 | M28: -3.535590473e+50 | N28: -44.77082177 | O28: -2.51001992e+50 | P28: 2.49002008e+50 | Q28: 4.013179253e+97 | R28: -5.016474067e+99 | S28: 4.013179253e+97 | T28: -5.016474067e+99 | U28: 1 | V28: 0 | W28: 1 | X28: 0
A29: 2.4 | B29: 0.04188790205 | C29: 1e+99 | D29: -1.25e+101 | E29: 1.250039999e+101 | F29: -89.54164354 | G29: 0.04187565373 | H29: -0.9982464296 | I29: 5.234624216e+99 | J29: -89.54164354 | K29: 4.187565373e+97 | L29: -5.234456716e+99 | M29: -3.535590473e+50 | N29: -44.77082177 | O29: -2.51001992e+50 | P29: 2.49002008e+50 | Q29: 4.187565373e+97 | R29: -5.234456716e+99 | S29: 4.187565373e+97 | T29: -5.234456716e+99 | U29: 1 | V29: 0 | W29: 1 | X29: 0
A30: 2.5 | B30: 0.0436332313 | C30: 1e+99 | D30: -1.25e+101 | E30: 1.250039999e+101 | F30: -89.54164354 | G30: 0.04361938737 | H30: -0.998097349 | I30: 5.452597895e+99 | J30: -89.54164354 | K30: 4.361938737e+97 | L30: -5.452423421e+99 | M30: -3.535590473e+50 | N30: -44.77082177 | O30: -2.51001992e+50 | P30: 2.49002008e+50 | Q30: 4.361938737e+97 | R30: -5.452423421e+99 | S30: 4.361938737e+97 | T30: -5.452423421e+99 | U30: 1 | V30: 0 | W30: 1 | X30: 0
A31: 2.6 | B31: 0.04537856055 | C31: 1e+99 | D31: -1.25e+101 | E31: 1.250039999e+101 | F31: -89.54164354 | G31: 0.04536298813 | H31: -0.9979421993 | I31: 5.670554965e+99 | J31: -89.54164354 | K31: 4.536298813e+97 | L31: -5.670373516e+99 | M31: -3.535590473e+50 | N31: -44.77082177 | O31: -2.51001992e+50 | P31: 2.49002008e+50 | Q31: 4.536298813e+97 | R31: -5.670373516e+99 | S31: 4.536298813e+97 | T31: -5.670373516e+99 | U31: 1 | V31: 0 | W31: 1 | X31: 0
A32: 2.7 | B32: 0.0471238898 | C32: 1e+99 | D32: -1.25e+101 | E32: 1.250039999e+101 | F32: -89.54164354 | G32: 0.04710645071 | H32: -0.9977809823 | I32: 5.888494761e+99 | J32: -89.54164354 | K32: 4.710645071e+97 | L32: -5.888306339e+99 | M32: -3.535590473e+50 | N32: -44.77082177 | O32: -2.51001992e+50 | P32: 2.49002008e+50 | Q32: 4.710645071e+97 | R32: -5.888306339e+99 | S32: 4.710645071e+97 | T32: -5.888306339e+99 | U32: 1 | V32: 0 | W32: 1 | X32: 0
A33: 2.8 | B33: 0.04886921906 | C33: 1e+99 | D33: -1.25e+101 | E33: 1.250039999e+101 | F33: -89.54164354 | G33: 0.0488497698 | H33: -0.9976137 | I33: 6.10641662e+99 | J33: -89.54164354 | K33: 4.88497698e+97 | L33: -6.106221224e+99 | M33: -3.535590473e+50 | N33: -44.77082177 | O33: -2.51001992e+50 | P33: 2.49002008e+50 | Q33: 4.88497698e+97 | R33: -6.106221224e+99 | S33: 4.88497698e+97 | T33: -6.106221224e+99 | U33: 1 | V33: 0 | W33: 1 | X33: 0
A34: 2.9 | B34: 0.05061454831 | C34: 1e+99 | D34: -1.25e+101 | E34: 1.250039999e+101 | F34: -89.54164354 | G34: 0.05059294008 | H34: -0.9974403544 | I34: 6.324319878e+99 | J34: -89.54164354 | K34: 5.059294008e+97 | L34: -6.32411751e+99 | M34: -3.535590473e+50 | N34: -44.77082177 | O34: -2.51001992e+50 | P34: 2.49002008e+50 | Q34: 5.059294008e+97 | R34: -6.32411751e+99 | S34: 5.059294008e+97 | T34: -6.32411751e+99 | U34: 1 | V34: 0 | W34: 1 | X34: 0
A35: 3 | B35: 0.05235987756 | C35: 1e+99 | D35: -1.25e+101 | E35: 1.250039999e+101 | F35: -89.54164354 | G35: 0.05233595624 | H35: -0.9972609477 | I35: 6.542203871e+99 | J35: -89.54164354 | K35: 5.233595624e+97 | L35: -6.54199453e+99 | M35: -3.535590473e+50 | N35: -44.77082177 | O35: -2.51001992e+50 | P35: 2.49002008e+50 | Q35: 5.233595624e+97 | R35: -6.54199453e+99 | S35: 5.233595624e+97 | T35: -6.54199453e+99 | U35: 1 | V35: 0 | W35: 1 | X35: 0
A36: 3.1 | B36: 0.05410520681 | C36: 1e+99 | D36: -1.25e+101 | E36: 1.250039999e+101 | F36: -89.54164354 | G36: 0.05407881298 | H36: -0.997075482 | I36: 6.760067935e+99 | J36: -89.54164354 | K36: 5.407881298e+97 | L36: -6.759851623e+99 | M36: -3.535590473e+50 | N36: -44.77082177 | O36: -2.51001992e+50 | P36: 2.49002008e+50 | Q36: 5.407881298e+97 | R36: -6.759851623e+99 | S36: 5.407881298e+97 | T36: -6.759851623e+99 | U36: 1 | V36: 0 | W36: 1 | X36: 0
A37: 3.2 | B37: 0.05585053606 | C37: 1e+99 | D37: -1.25e+101 | E37: 1.250039999e+101 | F37: -89.54164354 | G37: 0.05582150499 | H37: -0.9968839596 | I37: 6.977911407e+99 | J37: -89.54164354 | K37: 5.582150499e+97 | L37: -6.977688124e+99 | M37: -3.535590473e+50 | N37: -44.77082177 | O37: -2.51001992e+50 | P37: 2.49002008e+50 | Q37: 5.582150499e+97 | R37: -6.977688124e+99 | S37: 5.582150499e+97 | T37: -6.977688124e+99 | U37: 1 | V37: 0 | W37: 1 | X37: 0
A38: 3.3 | B38: 0.05759586532 | C38: 1e+99 | D38: -1.25e+101 | E38: 1.250039999e+101 | F38: -89.54164354 | G38: 0.05756402696 | H38: -0.9966863828 | I38: 7.195733622e+99 | J38: -89.54164354 | K38: 5.756402696e+97 | L38: -7.19550337e+99 | M38: -3.535590473e+50 | N38: -44.77082177 | O38: -2.51001992e+50 | P38: 2.49002008e+50 | Q38: 5.756402696e+97 | R38: -7.19550337e+99 | S38: 5.756402696e+97 | T38: -7.19550337e+99 | U38: 1 | V38: 0 | W38: 1 | X38: 0
A39: 3.4 | B39: 0.05934119457 | C39: 1e+99 | D39: -1.25e+101 | E39: 1.250039999e+101 | F39: -89.54164354 | G39: 0.05930637358 | H39: -0.9964827541 | I39: 7.413533919e+99 | J39: -89.54164354 | K39: 5.930637358e+97 | L39: -7.413296697e+99 | M39: -3.535590473e+50 | N39: -44.77082177 | O39: -2.51001992e+50 | P39: 2.49002008e+50 | Q39: 5.930637358e+97 | R39: -7.413296697e+99 | S39: 5.930637358e+97 | T39: -7.413296697e+99 | U39: 1 | V39: 0 | W39: 1 | X39: 0
A40: 3.5 | B40: 0.06108652382 | C40: 1e+99 | D40: -1.25e+101 | E40: 1.250039999e+101 | F40: -89.54164354 | G40: 0.06104853953 | H40: -0.9962730758 | I40: 7.631311632e+99 | J40: -89.54164354 | K40: 6.104853953e+97 | L40: -7.631067442e+99 | M40: -3.535590473e+50 | N40: -44.77082177 | O40: -2.51001992e+50 | P40: 2.49002008e+50 | Q40: 6.104853953e+97 | R40: -7.631067442e+99 | S40: 6.104853953e+97 | T40: -7.631067442e+99 | U40: 1 | V40: 0 | W40: 1 | X40: 0
A41: 3.6 | B41: 0.06283185307 | C41: 1e+99 | D41: -1.25e+101 | E41: 1.250039999e+101 | F41: -89.54164354 | G41: 0.06279051953 | H41: -0.9960573507 | I41: 7.849066099e+99 | J41: -89.54164354 | K41: 6.279051953e+97 | L41: -7.848814941e+99 | M41: -3.535590473e+50 | N41: -44.77082177 | O41: -2.51001992e+50 | P41: 2.49002008e+50 | Q41: 6.279051953e+97 | R41: -7.848814941e+99 | S41: 6.279051953e+97 | T41: -7.848814941e+99 | U41: 1 | V41: 0 | W41: 1 | X41: 0
A42: 3.7 | B42: 0.06457718232 | C42: 1e+99 | D42: -1.25e+101 | E42: 1.250039999e+101 | F42: -89.54164354 | G42: 0.06453230825 | H42: -0.9958355812 | I42: 8.066796657e+99 | J42: -89.54164354 | K42: 6.453230825e+97 | L42: -8.066538532e+99 | M42: -3.535590473e+50 | N42: -44.77082177 | O42: -2.51001992e+50 | P42: 2.49002008e+50 | Q42: 6.453230825e+97 | R42: -8.066538532e+99 | S42: 6.453230825e+97 | T42: -8.066538532e+99 | U42: 1 | V42: 0 | W42: 1 | X42: 0
A43: 3.8 | B43: 0.06632251158 | C43: 1e+99 | D43: -1.25e+101 | E43: 1.250039999e+101 | F43: -89.54164354 | G43: 0.0662739004 | H43: -0.9956077701 | I43: 8.284502641e+99 | J43: -89.54164354 | K43: 6.62739004e+97 | L43: -8.28423755e+99 | M43: -3.535590473e+50 | N43: -44.77082177 | O43: -2.51001992e+50 | P43: 2.49002008e+50 | Q43: 6.62739004e+97 | R43: -8.28423755e+99 | S43: 6.62739004e+97 | T43: -8.28423755e+99 | U43: 1 | V43: 0 | W43: 1 | X43: 0
A44: 3.9 | B44: 0.06806784083 | C44: 1e+99 | D44: -1.25e+101 | E44: 1.250039999e+101 | F44: -89.54164354 | G44: 0.06801529067 | H44: -0.9953739202 | I44: 8.50218339e+99 | J44: -89.54164354 | K44: 6.801529067e+97 | L44: -8.501911333e+99 | M44: -3.535590473e+50 | N44: -44.77082177 | O44: -2.51001992e+50 | P44: 2.49002008e+50 | Q44: 6.801529067e+97 | R44: -8.501911333e+99 | S44: 6.801529067e+97 | T44: -8.501911333e+99 | U44: 1 | V44: 0 | W44: 1 | X44: 0
A45: 4 | B45: 0.06981317008 | C45: 1e+99 | D45: -1.25e+101 | E45: 1.250039999e+101 | F45: -89.54164354 | G45: 0.06975647374 | H45: -0.9951340344 | I45: 8.719838239e+99 | J45: -89.54164354 | K45: 6.975647374e+97 | L45: -8.719559218e+99 | M45: -3.535590473e+50 | N45: -44.77082177 | O45: -2.51001992e+50 | P45: 2.49002008e+50 | Q45: 6.975647374e+97 | R45: -8.719559218e+99 | S45: 6.975647374e+97 | T45: -8.719559218e+99 | U45: 1 | V45: 0 | W45: 1 | X45: 0
A46: 4.1 | B46: 0.07155849933 | C46: 1e+99 | D46: -1.25e+101 | E46: 1.250039999e+101 | F46: -89.54164354 | G46: 0.07149744433 | H46: -0.9948881155 | I46: 8.937466527e+99 | J46: -89.54164354 | K46: 7.149744433e+97 | L46: -8.937180542e+99 | M46: -3.535590473e+50 | N46: -44.77082177 | O46: -2.51001992e+50 | P46: 2.49002008e+50 | Q46: 7.149744433e+97 | R46: -8.937180542e+99 | S46: 7.149744433e+97 | T46: -8.937180542e+99 | U46: 1 | V46: 0 | W46: 1 | X46: 0
A47: 4.2 | B47: 0.07330382858 | C47: 1e+99 | D47: -1.25e+101 | E47: 1.250039999e+101 | F47: -89.54164354 | G47: 0.07323819713 | H47: -0.9946361665 | I47: 9.155067589e+99 | J47: -89.54164354 | K47: 7.323819713e+97 | L47: -9.154774641e+99 | M47: -3.535590473e+50 | N47: -44.77082177 | O47: -2.51001992e+50 | P47: 2.49002008e+50 | Q47: 7.323819713e+97 | R47: -9.154774641e+99 | S47: 7.323819713e+97 | T47: -9.154774641e+99 | U47: 1 | V47: 0 | W47: 1 | X47: 0
A48: 4.3 | B48: 0.07504915784 | C48: 1e+99 | D48: -1.25e+101 | E48: 1.250039999e+101 | F48: -89.54164354 | G48: 0.07497872683 | H48: -0.9943781905 | I48: 9.372640763e+99 | J48: -89.54164354 | K48: 7.497872683e+97 | L48: -9.372340853e+99 | M48: -3.535590473e+50 | N48: -44.77082177 | O48: -2.51001992e+50 | P48: 2.49002008e+50 | Q48: 7.497872683e+97 | R48: -9.372340853e+99 | S48: 7.497872683e+97 | T48: -9.372340853e+99 | U48: 1 | V48: 0 | W48: 1 | X48: 0
A49: 4.4 | B49: 0.07679448709 | C49: 1e+99 | D49: -1.25e+101 | E49: 1.250039999e+101 | F49: -89.54164354 | G49: 0.07671902813 | H49: -0.9941141907 | I49: 9.590185387e+99 | J49: -89.54164354 | K49: 7.671902813e+97 | L49: -9.589878516e+99 | M49: -3.535590473e+50 | N49: -44.77082177 | O49: -2.51001992e+50 | P49: 2.49002008e+50 | Q49: 7.671902813e+97 | R49: -9.589878516e+99 | S49: 7.671902813e+97 | T49: -9.589878516e+99 | U49: 1 | V49: 0 | W49: 1 | X49: 0
A50: 4.5 | B50: 0.07853981634 | C50: 1e+99 | D50: -1.25e+101 | E50: 1.250039999e+101 | F50: -89.54164354 | G50: 0.07845909573 | H50: -0.9938441703 | I50: 9.807700797e+99 | J50: -89.54164354 | K50: 7.845909573e+97 | L50: -9.807386966e+99 | M50: -3.535590473e+50 | N50: -44.77082177 | O50: -2.51001992e+50 | P50: 2.49002008e+50 | Q50: 7.845909573e+97 | R50: -9.807386966e+99 | S50: 7.845909573e+97 | T50: -9.807386966e+99 | U50: 1 | V50: 0 | W50: 1 | X50: 0
A51: 4.6 | B51: 0.08028514559 | C51: 1e+99 | D51: -1.25e+101 | E51: 1.250039999e+101 | F51: -89.54164354 | G51: 0.08019892433 | H51: -0.9935681325 | I51: 1.002518633e+100 | J51: -89.54164354 | K51: 8.019892433e+97 | L51: -1.002486554e+100 | M51: -3.535590473e+50 | N51: -44.77082177 | O51: -2.51001992e+50 | P51: 2.49002008e+50 | Q51: 8.019892433e+97 | R51: -1.002486554e+100 | S51: 8.019892433e+97 | T51: -1.002486554e+100 | U51: 1 | V51: 0 | W51: 1 | X51: 0
A52: 4.7 | B52: 0.08203047484 | C52: 1e+99 | D52: -1.25e+101 | E52: 1.250039999e+101 | F52: -89.54164354 | G52: 0.08193850863 | H52: -0.9932860808 | I52: 1.024264133e+100 | J52: -89.54164354 | K52: 8.193850863e+97 | L52: -1.024231358e+100 | M52: -3.535590473e+50 | N52: -44.77082177 | O52: -2.51001992e+50 | P52: 2.49002008e+50 | Q52: 8.193850863e+97 | R52: -1.024231358e+100 | S52: 8.193850863e+97 | T52: -1.024231358e+100 | U52: 1 | V52: 0 | W52: 1 | X52: 0
A53: 4.8 | B53: 0.0837758041 | C53: 1e+99 | D53: -1.25e+101 | E53: 1.250039999e+101 | F53: -89.54164354 | G53: 0.08367784333 | H53: -0.9929980185 | I53: 1.046006512e+100 | J53: -89.54164354 | K53: 8.367784333e+97 | L53: -1.045973042e+100 | M53: -3.535590473e+50 | N53: -44.77082177 | O53: -2.51001992e+50 | P53: 2.49002008e+50 | Q53: 8.367784333e+97 | R53: -1.045973042e+100 | S53: 8.367784333e+97 | T53: -1.045973042e+100 | U53: 1 | V53: 0 | W53: 1 | X53: 0
A54: 4.9 | B54: 0.08552113335 | C54: 1e+99 | D54: -1.25e+101 | E54: 1.250039999e+101 | F54: -89.54164354 | G54: 0.08541692314 | H54: -0.9927039492 | I54: 1.067745705e+100 | J54: -89.54164354 | K54: 8.541692314e+97 | L54: -1.067711539e+100 | M54: -3.535590473e+50 | N54: -44.77082177 | O54: -2.51001992e+50 | P54: 2.49002008e+50 | Q54: 8.541692314e+97 | R54: -1.067711539e+100 | S54: 8.541692314e+97 | T54: -1.067711539e+100 | U54: 1 | V54: 0 | W54: 1 | X54: 0
A55: 5 | B55: 0.0872664626 | C55: 1e+99 | D55: -1.25e+101 | E55: 1.250039999e+101 | F55: -89.54164354 | G55: 0.08715574275 | H55: -0.9924038765 | I55: 1.089481646e+100 | J55: -89.54164354 | K55: 8.715574275e+97 | L55: -1.089446784e+100 | M55: -3.535590473e+50 | N55: -44.77082177 | O55: -2.51001992e+50 | P55: 2.49002008e+50 | Q55: 8.715574275e+97 | R55: -1.089446784e+100 | S55: 8.715574275e+97 | T55: -1.089446784e+100 | U55: 1 | V55: 0 | W55: 1 | X55: 0
A56: 5.1 | B56: 0.08901179185 | C56: 1e+99 | D56: -1.25e+101 | E56: 1.250039999e+101 | F56: -89.54164354 | G56: 0.08889429687 | H56: -0.992097804 | I56: 1.111214268e+100 | J56: -89.54164354 | K56: 8.889429687e+97 | L56: -1.111178711e+100 | M56: -3.535590473e+50 | N56: -44.77082177 | O56: -2.51001992e+50 | P56: 2.49002008e+50 | Q56: 8.889429687e+97 | R56: -1.111178711e+100 | S56: 8.889429687e+97 | T56: -1.111178711e+100 | U56: 1 | V56: 0 | W56: 1 | X56: 0
A57: 5.2 | B57: 0.0907571211 | C57: 1e+99 | D57: -1.25e+101 | E57: 1.250039999e+101 | F57: -89.54164354 | G57: 0.0906325802 | H57: -0.9917857354 | I57: 1.132943505e+100 | J57: -89.54164354 | K57: 9.06325802e+97 | L57: -1.132907252e+100 | M57: -3.535590473e+50 | N57: -44.77082177 | O57: -2.51001992e+50 | P57: 2.49002008e+50 | Q57: 9.06325802e+97 | R57: -1.132907252e+100 | S57: 9.06325802e+97 | T57: -1.132907252e+100 | U57: 1 | V57: 0 | W57: 1 | X57: 0
A58: 5.3 | B58: 0.09250245036 | C58: 1e+99 | D58: -1.25e+101 | E58: 1.250039999e+101 | F58: -89.54164354 | G58: 0.09237058745 | H58: -0.9914676746 | I58: 1.154669291e+100 | J58: -89.54164354 | K58: 9.237058745e+97 | L58: -1.154632343e+100 | M58: -3.535590473e+50 | N58: -44.77082177 | O58: -2.51001992e+50 | P58: 2.49002008e+50 | Q58: 9.237058745e+97 | R58: -1.154632343e+100 | S58: 9.237058745e+97 | T58: -1.154632343e+100 | U58: 1 | V58: 0 | W58: 1 | X58: 0
A59: 5.4 | B59: 0.09424777961 | C59: 1e+99 | D59: -1.25e+101 | E59: 1.250039999e+101 | F59: -89.54164354 | G59: 0.09410831332 | H59: -0.9911436254 | I59: 1.176391559e+100 | J59: -89.54164354 | K59: 9.410831332e+97 | L59: -1.176353916e+100 | M59: -3.535590473e+50 | N59: -44.77082177 | O59: -2.51001992e+50 | P59: 2.49002008e+50 | Q59: 9.410831332e+97 | R59: -1.176353916e+100 | S59: 9.410831332e+97 | T59: -1.176353916e+100 | U59: 1 | V59: 0 | W59: 1 | X59: 0
A60: 5.5 | B60: 0.09599310886 | C60: 1e+99 | D60: -1.25e+101 | E60: 1.250039999e+101 | F60: -89.54164354 | G60: 0.09584575252 | H60: -0.9908135917 | I60: 1.198110244e+100 | J60: -89.54164354 | K60: 9.584575252e+97 | L60: -1.198071907e+100 | M60: -3.535590473e+50 | N60: -44.77082177 | O60: -2.51001992e+50 | P60: 2.49002008e+50 | Q60: 9.584575252e+97 | R60: -1.198071907e+100 | S60: 9.584575252e+97 | T60: -1.198071907e+100 | U60: 1 | V60: 0 | W60: 1 | X60: 0
A61: 5.6 | B61: 0.09773843811 | C61: 1e+99 | D61: -1.25e+101 | E61: 1.250039999e+101 | F61: -89.54164354 | G61: 0.09758289976 | H61: -0.9904775777 | I61: 1.21982528e+100 | J61: -89.54164354 | K61: 9.758289976e+97 | L61: -1.219786247e+100 | M61: -3.535590473e+50 | N61: -44.77082177 | O61: -2.51001992e+50 | P61: 2.49002008e+50 | Q61: 9.758289976e+97 | R61: -1.219786247e+100 | S61: 9.758289976e+97 | T61: -1.219786247e+100 | U61: 1 | V61: 0 | W61: 1 | X61: 0
A62: 5.7 | B62: 0.09948376736 | C62: 1e+99 | D62: -1.25e+101 | E62: 1.250039999e+101 | F62: -89.54164354 | G62: 0.09931974974 | H62: -0.9901355873 | I62: 1.241536599e+100 | J62: -89.54164354 | K62: 9.931974974e+97 | L62: -1.241496872e+100 | M62: -3.535590473e+50 | N62: -44.77082177 | O62: -2.51001992e+50 | P62: 2.49002008e+50 | Q62: 9.931974974e+97 | R62: -1.241496872e+100 | S62: 9.931974974e+97 | T62: -1.241496872e+100 | U62: 1 | V62: 0 | W62: 1 | X62: 0
A63: 5.8 | B63: 0.1012290966 | C63: 1e+99 | D63: -1.25e+101 | E63: 1.250039999e+101 | F63: -89.54164354 | G63: 0.1010562972 | H63: -0.9897876248 | I63: 1.263244137e+100 | J63: -89.54164354 | K63: 1.010562972e+98 | L63: -1.263203715e+100 | M63: -3.535590473e+50 | N63: -44.77082177 | O63: -2.51001992e+50 | P63: 2.49002008e+50 | Q63: 1.010562972e+98 | R63: -1.263203715e+100 | S63: 1.010562972e+98 | T63: -1.263203715e+100 | U63: 1 | V63: 0 | W63: 1 | X63: 0
A64: 5.9 | B64: 0.1029744259 | C64: 1e+99 | D64: -1.25e+101 | E64: 1.250039999e+101 | F64: -89.54164354 | G64: 0.1027925368 | H64: -0.9894336944 | I64: 1.284947826e+100 | J64: -89.54164354 | K64: 1.027925368e+98 | L64: -1.28490671e+100 | M64: -3.535590473e+50 | N64: -44.77082177 | O64: -2.51001992e+50 | P64: 2.49002008e+50 | Q64: 1.027925368e+98 | R64: -1.28490671e+100 | S64: 1.027925368e+98 | T64: -1.28490671e+100 | U64: 1 | V64: 0 | W64: 1 | X64: 0
A65: 6 | B65: 0.1047197551 | C65: 1e+99 | D65: -1.25e+101 | E65: 1.250039999e+101 | F65: -89.54164354 | G65: 0.1045284633 | H65: -0.9890738004 | I65: 1.306647602e+100 | J65: -89.54164354 | K65: 1.045284633e+98 | L65: -1.306605791e+100 | M65: -3.535590473e+50 | N65: -44.77082177 | O65: -2.51001992e+50 | P65: 2.49002008e+50 | Q65: 1.045284633e+98 | R65: -1.306605791e+100 | S65: 1.045284633e+98 | T65: -1.306605791e+100 | U65: 1 | V65: 0 | W65: 1 | X65: 0
A66: 6.1 | B66: 0.1064650844 | C66: 1e+99 | D66: -1.25e+101 | E66: 1.250039999e+101 | F66: -89.54164354 | G66: 0.1062640713 | H66: -0.9887079471 | I66: 1.328343397e+100 | J66: -89.54164354 | K66: 1.062640713e+98 | L66: -1.328300892e+100 | M66: -3.535590473e+50 | N66: -44.77082177 | O66: -2.51001992e+50 | P66: 2.49002008e+50 | Q66: 1.062640713e+98 | R66: -1.328300892e+100 | S66: 1.062640713e+98 | T66: -1.328300892e+100 | U66: 1 | V66: 0 | W66: 1 | X66: 0
A67: 6.2 | B67: 0.1082104136 | C67: 1e+99 | D67: -1.25e+101 | E67: 1.250039999e+101 | F67: -89.54164354 | G67: 0.1079993557 | H67: -0.9883361392 | I67: 1.350035145e+100 | J67: -89.54164354 | K67: 1.079993557e+98 | L67: -1.349991946e+100 | M67: -3.535590473e+50 | N67: -44.77082177 | O67: -2.51001992e+50 | P67: 2.49002008e+50 | Q67: 1.079993557e+98 | R67: -1.349991946e+100 | S67: 1.079993557e+98 | T67: -1.349991946e+100 | U67: 1 | V67: 0 | W67: 1 | X67: 0
A68: 6.3 | B68: 0.1099557429 | C68: 1e+99 | D68: -1.25e+101 | E68: 1.250039999e+101 | F68: -89.54164354 | G68: 0.1097343111 | H68: -0.987958381 | I68: 1.371722782e+100 | J68: -89.54164354 | K68: 1.097343111e+98 | L68: -1.371678889e+100 | M68: -3.535590473e+50 | N68: -44.77082177 | O68: -2.51001992e+50 | P68: 2.49002008e+50 | Q68: 1.097343111e+98 | R68: -1.371678889e+100 | S68: 1.097343111e+98 | T68: -1.371678889e+100 | U68: 1 | V68: 0 | W68: 1 | X68: 0
A69: 6.4 | B69: 0.1117010721 | C69: 1e+99 | D69: -1.25e+101 | E69: 1.250039999e+101 | F69: -89.54164354 | G69: 0.1114689322 | H69: -0.9875746772 | I69: 1.393406239e+100 | J69: -89.54164354 | K69: 1.114689322e+98 | L69: -1.393361653e+100 | M69: -3.535590473e+50 | N69: -44.77082177 | O69: -2.51001992e+50 | P69: 2.49002008e+50 | Q69: 1.114689322e+98 | R69: -1.393361653e+100 | S69: 1.114689322e+98 | T69: -1.393361653e+100 | U69: =(Q69*S69+T69*R69)/((S69^2)+(T69^2)) -> 1 | V69: 0 | W69: 1 | X69: 0
A70: 6.5 | B70: =A70*PI()/180 -> 0.1134464014 | C70: =$D$1 -> 1e+99 | D70: =-(18000*$G$1/$N$1) -> -1.25e+101 | E70: =(C70^2+D70^2)^0.5 -> 1.250039999e+101 | F70: =(180/PI())*ATAN(D70/C70) -> -89.54164354 | G70: =SIN(B70) -> 0.1132032138 | H70: =-((COS(B70))^2) -> -0.9871850324 | I70: =E70*G70 -> 1.415085453e+100 | J70: =F70 -> -89.54164354 | K70: =(((I70^2)/(1+(TAN(J70*(PI()/180)))^2))^0.5) -> 1.132032138e+98 | L70: =K70*TAN(J70*(PI()/180)) -> -1.415040172e+100 | M70: =-(((((C70+H70)^2)+(D70)^2)^0.5)^0.5) -> -3.535590473e+50 | N70: =((ATAN(D70/(C70+H70)))*(180/PI()))/2 -> -44.77082177 | O70: =-(((M70^2)/(1+(TAN(N70*(PI()/180)))^2))^0.5) -> -2.51001992e+50 | P70: =O70*TAN(N70*(PI()/180)) -> 2.49002008e+50 | Q70: =K70+O70 -> 1.132032138e+98 | R70: -1.415040172e+100 | S70: =-O70+K70 -> 1.132032138e+98 | T70: =L70-P70 -> -1.415040172e+100 | U70: 1 | V70: =(R70*S70-Q70*T70)/((S70^2)+(T70^2)) -> 0 | W70: =((U70^2)+(V70^2))^0.5 -> 1 | X70: =(ACOS(U70/W70))*(180/PI()) -> 0
A71: =A70+0.1 -> 6.6 | B71: 0.1151917306 | C71: 1e+99 | D71: -1.25e+101 | E71: 1.250039999e+101 | F71: -89.54164354 | G71: 0.1149371505 | H71: -0.9867894514 | I71: 1.436760355e+100 | J71: -89.54164354 | K71: 1.149371505e+98 | L71: -1.436714381e+100 | M71: -3.535590473e+50 | N71: -44.77082177 | O71: -2.51001992e+50 | P71: 2.49002008e+50 | Q71: 1.149371505e+98 | R71: -1.436714381e+100 | S71: 1.149371505e+98 | T71: -1.436714381e+100 | U71: 1 | V71: 0 | W71: 1 | X71: 0
A72: 6.7 | B72: 0.1169370599 | C72: 1e+99 | D72: -1.25e+101 | E72: 1.250039999e+101 | F72: -89.54164354 | G72: 0.1166707371 | H72: -0.9863879391 | I72: 1.458430881e+100 | J72: -89.54164354 | K72: 1.166707371e+98 | L72: -1.458384214e+100 | M72: -3.535590473e+50 | N72: -44.77082177 | O72: -2.51001992e+50 | P72: 2.49002008e+50 | Q72: 1.166707371e+98 | R72: -1.458384214e+100 | S72: 1.166707371e+98 | T72: -1.458384214e+100 | U72: 1 | V72: 0 | W72: 1 | X72: 0
A73: 6.8 | B73: 0.1186823891 | C73: 1e+99 | D73: -1.25e+101 | E73: 1.250039999e+101 | F73: -89.54164354 | G73: 0.1184039683 | H73: -0.9859805003 | I73: 1.480096965e+100 | J73: -89.54164354 | K73: 1.184039683e+98 | L73: -1.480049604e+100 | M73: -3.535590473e+50 | N73: -44.77082177 | O73: -2.51001992e+50 | P73: 2.49002008e+50 | Q73: 1.184039683e+98 | R73: -1.480049604e+100 | S73: 1.184039683e+98 | T73: -1.480049604e+100 | U73: 1 | V73: 0 | W73: 1 | X73: 0
A74: 6.9 | B74: 0.1204277184 | C74: 1e+99 | D74: -1.25e+101 | E74: 1.250039999e+101 | F74: -89.54164354 | G74: 0.1201368388 | H74: -0.98556714 | I74: 1.501758539e+100 | J74: -89.54164354 | K74: 1.201368388e+98 | L74: -1.501710485e+100 | M74: -3.535590473e+50 | N74: -44.77082177 | O74: -2.51001992e+50 | P74: 2.49002008e+50 | Q74: 1.201368388e+98 | R74: -1.501710485e+100 | S74: 1.201368388e+98 | T74: -1.501710485e+100 | U74: 1 | V74: 0 | W74: 1 | X74: 0
A75: 7 | B75: 0.1221730476 | C75: 1e+99 | D75: -1.25e+101 | E75: 1.250039999e+101 | F75: -89.54164354 | G75: 0.1218693434 | H75: -0.9851478631 | I75: 1.52341554e+100 | J75: -89.54164354 | K75: 1.218693434e+98 | L75: -1.523366793e+100 | M75: -3.535590473e+50 | N75: -44.77082177 | O75: -2.51001992e+50 | P75: 2.49002008e+50 | Q75: 1.218693434e+98 | R75: -1.523366793e+100 | S75: 1.218693434e+98 | T75: -1.523366793e+100 | U75: 1 | V75: 0 | W75: 1 | X75: 0
A76: 7.1 | B76: 0.1239183769 | C76: 1e+99 | D76: -1.25e+101 | E76: 1.250039999e+101 | F76: -89.54164354 | G76: 0.1236014767 | H76: -0.9847226749 | I76: 1.545067899e+100 | J76: -89.54164354 | K76: 1.236014767e+98 | L76: -1.545018459e+100 | M76: -3.535590473e+50 | N76: -44.77082177 | O76: -2.51001992e+50 | P76: 2.49002008e+50 | Q76: 1.236014767e+98 | R76: -1.545018459e+100 | S76: 1.236014767e+98 | T76: -1.545018459e+100 | U76: 1 | V76: 0 | W76: 1 | X76: 0
A77: 7.2 | B77: 0.1256637061 | C77: 1e+99 | D77: -1.25e+101 | E77: 1.250039999e+101 | F77: -89.54164354 | G77: 0.1253332336 | H77: -0.9842915806 | I77: 1.566715552e+100 | J77: -89.54164354 | K77: 1.253332336e+98 | L77: -1.56666542e+100 | M77: -3.535590473e+50 | N77: -44.77082177 | O77: -2.51001992e+50 | P77: 2.49002008e+50 | Q77: 1.253332336e+98 | R77: -1.56666542e+100 | S77: 1.253332336e+98 | T77: -1.56666542e+100 | U77: 1 | V77: 0 | W77: 1 | X77: 0
A78: 7.3 | B78: 0.1274090354 | C78: 1e+99 | D78: -1.25e+101 | E78: 1.250039999e+101 | F78: -89.54164354 | G78: 0.1270646086 | H78: -0.9838545852 | I78: 1.588358433e+100 | J78: -89.54164354 | K78: 1.270646086e+98 | L78: -1.588307608e+100 | M78: -3.535590473e+50 | N78: -44.77082177 | O78: -2.51001992e+50 | P78: 2.49002008e+50 | Q78: 1.270646086e+98 | R78: -1.588307608e+100 | S78: 1.270646086e+98 | T78: -1.588307608e+100 | U78: 1 | V78: 0 | W78: 1 | X78: 0
A79: 7.4 | B79: 0.1291543646 | C79: 1e+99 | D79: -1.25e+101 | E79: 1.250039999e+101 | F79: -89.54164354 | G79: 0.1287955966 | H79: -0.9834116943 | I79: 1.609996475e+100 | J79: -89.54164354 | K79: 1.287955966e+98 | L79: -1.609944957e+100 | M79: -3.535590473e+50 | N79: -44.77082177 | O79: -2.51001992e+50 | P79: 2.49002008e+50 | Q79: 1.287955966e+98 | R79: -1.609944957e+100 | S79: 1.287955966e+98 | T79: -1.609944957e+100 | U79: 1 | V79: 0 | W79: 1 | X79: 0
A80: 7.5 | B80: 0.1308996939 | C80: 1e+99 | D80: -1.25e+101 | E80: 1.250039999e+101 | F80: -89.54164354 | G80: 0.1305261922 | H80: -0.9829629131 | I80: 1.631629612e+100 | J80: -89.54164354 | K80: 1.305261922e+98 | L80: -1.631577403e+100 | M80: -3.535590473e+50 | N80: -44.77082177 | O80: -2.51001992e+50 | P80: 2.49002008e+50 | Q80: 1.305261922e+98 | R80: -1.631577403e+100 | S80: 1.305261922e+98 | T80: -1.631577403e+100 | U80: 1 | V80: 0 | W80: 1 | X80: 0
A81: 7.6 | B81: 0.1326450232 | C81: 1e+99 | D81: -1.25e+101 | E81: 1.250039999e+101 | F81: -89.54164354 | G81: 0.1322563903 | H81: -0.9825082472 | I81: 1.65325778e+100 | J81: -89.54164354 | K81: 1.322563903e+98 | L81: -1.653204878e+100 | M81: -3.535590473e+50 | N81: -44.77082177 | O81: -2.51001992e+50 | P81: 2.49002008e+50 | Q81: 1.322563903e+98 | R81: -1.653204878e+100 | S81: 1.322563903e+98 | T81: -1.653204878e+100 | U81: 1 | V81: 0 | W81: 1 | X81: 0
A82: 7.7 | B82: 0.1343903524 | C82: 1e+99 | D82: -1.25e+101 | E82: 1.250039999e+101 | F82: -89.54164354 | G82: 0.1339861854 | H82: -0.9820477021 | I82: 1.674880911e+100 | J82: -89.54164354 | K82: 1.339861854e+98 | L82: -1.674827318e+100 | M82: -3.535590473e+50 | N82: -44.77082177 | O82: -2.51001992e+50 | P82: 2.49002008e+50 | Q82: 1.339861854e+98 | R82: -1.674827318e+100 | S82: 1.339861854e+98 | T82: -1.674827318e+100 | U82: 1 | V82: 0 | W82: 1 | X82: 0
A83: 7.8 | B83: 0.1361356817 | C83: 1e+99 | D83: -1.25e+101 | E83: 1.250039999e+101 | F83: -89.54164354 | G83: 0.1357155724 | H83: -0.9815812834 | I83: 1.696498941e+100 | J83: -89.54164354 | K83: 1.357155724e+98 | L83: -1.696444655e+100 | M83: -3.535590473e+50 | N83: -44.77082177 | O83: -2.51001992e+50 | P83: 2.49002008e+50 | Q83: 1.357155724e+98 | R83: -1.696444655e+100 | S83: 1.357155724e+98 | T83: -1.696444655e+100 | U83: 1 | V83: 0 | W83: 1 | X83: 0
A84: 7.9 | B84: 0.1378810109 | C84: 1e+99 | D84: -1.25e+101 | E84: 1.250039999e+101 | F84: -89.54164354 | G84: 0.137444546 | H84: -0.9811089968 | I84: 1.718111802e+100 | J84: -89.54164354 | K84: 1.37444546e+98 | L84: -1.718056825e+100 | M84: -3.535590473e+50 | N84: -44.77082177 | O84: -2.51001992e+50 | P84: 2.49002008e+50 | Q84: 1.37444546e+98 | R84: -1.718056825e+100 | S84: 1.37444546e+98 | T84: -1.718056825e+100 | U84: 1 | V84: 0 | W84: 1 | X84: 0
A85: 8 | B85: 0.1396263402 | C85: 1e+99 | D85: -1.25e+101 | E85: 1.250039999e+101 | F85: -89.54164354 | G85: 0.139173101 | H85: -0.980630848 | I85: 1.73971943e+100 | J85: -89.54164354 | K85: 1.39173101e+98 | L85: -1.739663762e+100 | M85: -3.535590473e+50 | N85: -44.77082177 | O85: -2.51001992e+50 | P85: 2.49002008e+50 | Q85: 1.39173101e+98 | R85: -1.739663762e+100 | S85: 1.39173101e+98 | T85: -1.739663762e+100 | U85: 1 | V85: 0 | W85: 1 | X85: 0
A86: 8.1 | B86: 0.1413716694 | C86: 1e+99 | D86: -1.25e+101 | E86: 1.250039999e+101 | F86: -89.54164354 | G86: 0.1409012319 | H86: -0.9801468428 | I86: 1.761321759e+100 | J86: -89.54164354 | K86: 1.409012319e+98 | L86: -1.761265399e+100 | M86: -3.535590473e+50 | N86: -44.77082177 | O86: -2.51001992e+50 | P86: 2.49002008e+50 | Q86: 1.409012319e+98 | R86: -1.761265399e+100 | S86: 1.409012319e+98 | T86: -1.761265399e+100 | U86: 1 | V86: 0 | W86: 1 | X86: 0
A87: 8.2 | B87: 0.1431169987 | C87: 1e+99 | D87: -1.25e+101 | E87: 1.250039999e+101 | F87: -89.54164354 | G87: 0.1426289337 | H87: -0.9796569873 | I87: 1.782918722e+100 | J87: -89.54164354 | K87: 1.426289337e+98 | L87: -1.782861671e+100 | M87: -3.535590473e+50 | N87: -44.77082177 | O87: -2.51001992e+50 | P87: 2.49002008e+50 | Q87: 1.426289337e+98 | R87: -1.782861671e+100 | S87: 1.426289337e+98 | T87: -1.782861671e+100 | U87: 1 | V87: 0 | W87: 1 | X87: 0
A88: 8.3 | B88: 0.1448623279 | C88: 1e+99 | D88: -1.25e+101 | E88: 1.250039999e+101 | F88: -89.54164354 | G88: 0.144356201 | H88: -0.9791612872 | I88: 1.804510254e+100 | J88: -89.54164354 | K88: 1.44356201e+98 | L88: -1.804452513e+100 | M88: -3.535590473e+50 | N88: -44.77082177 | O88: -2.51001992e+50 | P88: 2.49002008e+50 | Q88: 1.44356201e+98 | R88: -1.804452513e+100 | S88: 1.44356201e+98 | T88: -1.804452513e+100 | U88: 1 | V88: 0 | W88: 1 | X88: 0
A89: 8.4 | B89: 0.1466076572 | C89: 1e+99 | D89: -1.25e+101 | E89: 1.250039999e+101 | F89: -89.54164354 | G89: 0.1460830286 | H89: -0.9786597488 | I89: 1.826096289e+100 | J89: -89.54164354 | K89: 1.460830286e+98 | L89: -1.826037857e+100 | M89: -3.535590473e+50 | N89: -44.77082177 | O89: -2.51001992e+50 | P89: 2.49002008e+50 | Q89: 1.460830286e+98 | R89: -1.826037857e+100 | S89: 1.460830286e+98 | T89: -1.826037857e+100 | U89: 1 | V89: 0 | W89: 1 | X89: 0
A90: 8.5 | B90: 0.1483529864 | C90: 1e+99 | D90: -1.25e+101 | E90: 1.250039999e+101 | F90: -89.54164354 | G90: 0.1478094111 | H90: -0.978152378 | I90: 1.847676762e+100 | J90: -89.54164354 | K90: 1.478094111e+98 | L90: -1.847617639e+100 | M90: -3.535590473e+50 | N90: -44.77082177 | O90: -2.51001992e+50 | P90: 2.49002008e+50 | Q90: 1.478094111e+98 | R90: -1.847617639e+100 | S90: 1.478094111e+98 | T90: -1.847617639e+100 | U90: 1 | V90: 0 | W90: 1 | X90: 0
A91: 8.6 | B91: 0.1500983157 | C91: 1e+99 | D91: -1.25e+101 | E91: 1.250039999e+101 | F91: -89.54164354 | G91: 0.1495353434 | H91: -0.9776391811 | I91: 1.869251606e+100 | J91: -89.54164354 | K91: 1.495353434e+98 | L91: -1.869191793e+100 | M91: -3.535590473e+50 | N91: -44.77082177 | O91: -2.51001992e+50 | P91: 2.49002008e+50 | Q91: 1.495353434e+98 | R91: -1.869191793e+100 | S91: 1.495353434e+98 | T91: -1.869191793e+100 | U91: 1 | V91: 0 | W91: 1 | X91: 0
A92: 8.7 | B92: 0.1518436449 | C92: 1e+99 | D92: -1.25e+101 | E92: 1.250039999e+101 | F92: -89.54164354 | G92: 0.1512608202 | H92: -0.9771201643 | I92: 1.890820756e+100 | J92: -89.54164354 | K92: 1.512608202e+98 | L92: -1.890760253e+100 | M92: -3.535590473e+50 | N92: -44.77082177 | O92: -2.51001992e+50 | P92: 2.49002008e+50 | Q92: 1.512608202e+98 | R92: -1.890760253e+100 | S92: 1.512608202e+98 | T92: -1.890760253e+100 | U92: 1 | V92: 0 | W92: 1 | X92: 0
A93: 8.8 | B93: 0.1535889742 | C93: 1e+99 | D93: -1.25e+101 | E93: 1.250039999e+101 | F93: -89.54164354 | G93: 0.1529858363 | H93: -0.9765953339 | I93: 1.912384147e+100 | J93: -89.54164354 | K93: 1.529858363e+98 | L93: -1.912322954e+100 | M93: -3.535590473e+50 | N93: -44.77082177 | O93: -2.51001992e+50 | P93: 2.49002008e+50 | Q93: 1.529858363e+98 | R93: -1.912322954e+100 | S93: 1.529858363e+98 | T93: -1.912322954e+100 | U93: 1 | V93: 0 | W93: 1 | X93: 0
A94: 8.9 | B94: 0.1553343034 | C94: 1e+99 | D94: -1.25e+101 | E94: 1.250039999e+101 | F94: -89.54164354 | G94: 0.1547103863 | H94: -0.9760646964 | I94: 1.933941712e+100 | J94: -89.54164354 | K94: 1.547103863e+98 | L94: -1.933879829e+100 | M94: -3.535590473e+50 | N94: -44.77082177 | O94: -2.51001992e+50 | P94: 2.49002008e+50 | Q94: 1.547103863e+98 | R94: -1.933879829e+100 | S94: 1.547103863e+98 | T94: -1.933879829e+100 | U94: 1 | V94: 0 | W94: 1 | X94: 0
A95: 9 | B95: 0.1570796327 | C95: 1e+99 | D95: -1.25e+101 | E95: 1.250039999e+101 | F95: -89.54164354 | G95: 0.156434465 | H95: -0.9755282581 | I95: 1.955493386e+100 | J95: -89.54164354 | K95: 1.56434465e+98 | L95: -1.955430813e+100 | M95: -3.535590473e+50 | N95: -44.77082177 | O95: -2.51001992e+50 | P95: 2.49002008e+50 | Q95: 1.56434465e+98 | R95: -1.955430813e+100 | S95: 1.56434465e+98 | T95: -1.955430813e+100 | U95: 1 | V95: 0 | W95: 1 | X95: 0
A96: 9.1 | B96: 0.1588249619 | C96: 1e+99 | D96: -1.25e+101 | E96: 1.250039999e+101 | F96: -89.54164354 | G96: 0.1581580673 | H96: -0.9749860258 | I96: 1.977039103e+100 | J96: -89.54164354 | K96: 1.581580673e+98 | L96: -1.976975841e+100 | M96: -3.535590473e+50 | N96: -44.77082177 | O96: -2.51001992e+50 | P96: 2.49002008e+50 | Q96: 1.581580673e+98 | R96: -1.976975841e+100 | S96: 1.581580673e+98 | T96: -1.976975841e+100 | U96: 1 | V96: 0 | W96: 1 | X96: 0
A97: 9.2 | B97: 0.1605702912 | C97: 1e+99 | D97: -1.25e+101 | E97: 1.250039999e+101 | F97: -89.54164354 | G97: 0.1598811877 | H97: -0.9744380058 | I97: 1.998578798e+100 | J97: -89.54164354 | K97: 1.598811877e+98 | L97: -1.998514846e+100 | M97: -3.535590473e+50 | N97: -44.77082177 | O97: -2.51001992e+50 | P97: 2.49002008e+50 | Q97: =K97+O97 -> 1.598811877e+98 | R97: -1.998514846e+100 | S97: 1.598811877e+98 | T97: -1.998514846e+100 | U97: 1 | V97: 0 | W97: 1 | X97: 0
A98: 9.3 | B98: 0.1623156204 | C98: 1e+99 | D98: -1.25e+101 | E98: 1.250039999e+101 | F98: -89.54164354 | G98: 0.1616038211 | H98: -0.973884205 | I98: 2.020112404e+100 | J98: -89.54164354 | K98: 1.616038211e+98 | L98: -2.020047764e+100 | M98: -3.535590473e+50 | N98: -44.77082177 | O98: -2.51001992e+50 | P98: 2.49002008e+50 | Q98: 1.616038211e+98 | R98: -2.020047764e+100 | S98: 1.616038211e+98 | T98: -2.020047764e+100 | U98: 1 | V98: 0 | W98: 1 | X98: 0
A99: 9.4 | B99: 0.1640609497 | C99: 1e+99 | D99: -1.25e+101 | E99: 1.250039999e+101 | F99: -89.54164354 | G99: 0.1633259622 | H99: -0.9733246301 | I99: 2.041639857e+100 | J99: -89.54164354 | K99: 1.633259622e+98 | L99: -2.041574528e+100 | M99: -3.535590473e+50 | N99: -44.77082177 | O99: -2.51001992e+50 | P99: 2.49002008e+50 | Q99: 1.633259622e+98 | R99: -2.041574528e+100 | S99: 1.633259622e+98 | T99: -2.041574528e+100 | U99: 1 | V99: 0 | W99: 1 | X99: 0
A100: 9.5 | B100: 0.1658062789 | C100: 1e+99 | D100: -1.25e+101 | E100: 1.250039999e+101 | F100: -89.54164354 | G100: 0.1650476059 | H100: -0.9727592878 | I100: 2.063161091e+100 | J100: -89.54164354 | K100: 1.650476059e+98 | L100: -2.063095073e+100 | M100: -3.535590473e+50 | N100: -44.77082177 | O100: -2.51001992e+50 | P100: 2.49002008e+50 | Q100: 1.650476059e+98 | R100: -2.063095073e+100 | S100: 1.650476059e+98 | T100: -2.063095073e+100 | U100: 1 | V100: 0 | W100: 1 | X100: 0
A101: 9.6 | B101: 0.1675516082 | C101: 1e+99 | D101: -1.25e+101 | E101: 1.250039999e+101 | F101: -89.54164354 | G101: 0.1667687467 | H101: -0.9721881851 | I101: 2.08467604e+100 | J101: -89.54164354 | K101: 1.667687467e+98 | L101: -2.084609334e+100 | M101: -3.535590473e+50 | N101: -44.77082177 | O101: -2.51001992e+50 | P101: 2.49002008e+50 | Q101: 1.667687467e+98 | R101: -2.084609334e+100 | S101: 1.667687467e+98 | T101: -2.084609334e+100 | U101: 1 | V101: 0 | W101: 1 | X101: 0
A102: 9.7 | B102: 0.1692969374 | C102: 1e+99 | D102: -1.25e+101 | E102: 1.250039999e+101 | F102: -89.54164354 | G102: 0.1684893796 | H102: -0.971611329 | I102: 2.106184639e+100 | J102: -89.54164354 | K102: 1.684893796e+98 | L102: -2.106117245e+100 | M102: -3.535590473e+50 | N102: -44.77082177 | O102: -2.51001992e+50 | P102: 2.49002008e+50 | Q102: 1.684893796e+98 | R102: -2.106117245e+100 | S102: 1.684893796e+98 | T102: -2.106117245e+100 | U102: 1 | V102: 0 | W102: 1 | X102: 0
A103: 9.8 | B103: 0.1710422667 | C103: 1e+99 | D103: -1.25e+101 | E103: 1.250039999e+101 | F103: -89.54164354 | G103: 0.1702094992 | H103: -0.9710287264 | I103: 2.127686822e+100 | J103: -89.54164354 | K103: 1.702094992e+98 | L103: -2.12761874e+100 | M103: -3.535590473e+50 | N103: -44.77082177 | O103: -2.51001992e+50 | P103: 2.49002008e+50 | Q103: 1.702094992e+98 | R103: -2.12761874e+100 | S103: 1.702094992e+98 | T103: -2.12761874e+100 | U103: 1 | V103: 0 | W103: 1 | X103: 0
A104: 9.9 | B104: 0.1727875959 | C104: 1e+99 | D104: -1.25e+101 | E104: 1.250039999e+101 | F104: -89.54164354 | G104: 0.1719291003 | H104: -0.9704403845 | I104: 2.149182524e+100 | J104: -89.54164354 | K104: 1.719291003e+98 | L104: -2.149113753e+100 | M104: -3.535590473e+50 | N104: -44.77082177 | O104: -2.51001992e+50 | P104: 2.49002008e+50 | Q104: 1.719291003e+98 | R104: -2.149113753e+100 | S104: 1.719291003e+98 | T104: -2.149113753e+100 | U104: 1 | V104: 0 | W104: 1 | X104: 0
A105: 10 | B105: 0.1745329252 | C105: 1e+99 | D105: -1.25e+101 | E105: 1.250039999e+101 | F105: -89.54164354 | G105: 0.1736481777 | H105: -0.9698463104 | I105: 2.170671679e+100 | J105: -89.54164354 | K105: 1.736481777e+98 | L105: -2.170602221e+100 | M105: -3.535590473e+50 | N105: -44.77082177 | O105: -2.51001992e+50 | P105: 2.49002008e+50 | Q105: 1.736481777e+98 | R105: -2.170602221e+100 | S105: 1.736481777e+98 | T105: -2.170602221e+100 | U105: 1 | V105: 0 | W105: 1 | X105: 0
A106: 10.1 | B106: 0.1762782545 | C106: 1e+99 | D106: -1.25e+101 | E106: 1.250039999e+101 | F106: -89.54164354 | G106: 0.1753667261 | H106: -0.9692465114 | I106: 2.192154222e+100 | J106: -89.54164354 | K106: 1.753667261e+98 | L106: -2.192084076e+100 | M106: -3.535590473e+50 | N106: -44.77082177 | O106: -2.51001992e+50 | P106: 2.49002008e+50 | Q106: 1.753667261e+98 | R106: -2.192084076e+100 | S106: 1.753667261e+98 | T106: -2.192084076e+100 | U106: 1 | V106: 0 | W106: 1 | X106: 0
A107: 10.2 | B107: 0.1780235837 | C107: 1e+99 | D107: -1.25e+101 | E107: 1.250039999e+101 | F107: -89.54164354 | G107: 0.1770847403 | H107: -0.9686409947 | I107: 2.213630087e+100 | J107: -89.54164354 | K107: 1.770847403e+98 | L107: -2.213559254e+100 | M107: -3.535590473e+50 | N107: -44.77082177 | O107: -2.51001992e+50 | P107: 2.49002008e+50 | Q107: 1.770847403e+98 | R107: -2.213559254e+100 | S107: 1.770847403e+98 | T107: -2.213559254e+100 | U107: 1 | V107: 0 | W107: 1 | X107: 0
A108: 10.3 | B108: 0.179768913 | C108: 1e+99 | D108: -1.25e+101 | E108: 1.250039999e+101 | F108: -89.54164354 | G108: 0.1788022151 | H108: -0.9680297679 | I108: 2.235099209e+100 | J108: -89.54164354 | K108: 1.788022151e+98 | L108: -2.235027689e+100 | M108: -3.535590473e+50 | N108: -44.77082177 | O108: -2.51001992e+50 | P108: 2.49002008e+50 | Q108: 1.788022151e+98 | R108: -2.235027689e+100 | S108: 1.788022151e+98 | T108: -2.235027689e+100 | U108: 1 | V108: 0 | W108: 1 | X108: 0
A109: 10.4 | B109: 0.1815142422 | C109: 1e+99 | D109: -1.25e+101 | E109: 1.250039999e+101 | F109: -89.54164354 | G109: 0.1805191453 | H109: -0.9674128382 | I109: 2.256561522e+100 | J109: -89.54164354 | K109: 1.805191453e+98 | L109: -2.256489316e+100 | M109: -3.535590473e+50 | N109: -44.77082177 | O109: -2.51001992e+50 | P109: 2.49002008e+50 | Q109: 1.805191453e+98 | R109: -2.256489316e+100 | S109: 1.805191453e+98 | T109: -2.256489316e+100 | U109: 1 | V109: 0 | W109: 1 | X109: 0
A110: 10.5 | B110: 0.1832595715 | C110: 1e+99 | D110: -1.25e+101 | E110: 1.250039999e+101 | F110: -89.54164354 | G110: 0.1822355255 | H110: -0.9667902132 | I110: 2.278016962e+100 | J110: -89.54164354 | K110: 1.822355255e+98 | L110: -2.277944069e+100 | M110: -3.535590473e+50 | N110: -44.77082177 | O110: -2.51001992e+50 | P110: 2.49002008e+50 | Q110: 1.822355255e+98 | R110: -2.277944069e+100 | S110: 1.822355255e+98 | T110: -2.277944069e+100 | U110: 1 | V110: 0 | W110: 1 | X110: 0
A111: 10.6 | B111: 0.1850049007 | C111: 1e+99 | D111: -1.25e+101 | E111: 1.250039999e+101 | F111: -89.54164354 | G111: 0.1839513506 | H111: -0.9661619006 | I111: 2.299465462e+100 | J111: -89.54164354 | K111: 1.839513506e+98 | L111: -2.299391883e+100 | M111: -3.535590473e+50 | N111: -44.77082177 | O111: -2.51001992e+50 | P111: 2.49002008e+50 | Q111: 1.839513506e+98 | R111: -2.299391883e+100 | S111: 1.839513506e+98 | T111: -2.299391883e+100 | U111: 1 | V111: 0 | W111: 1 | X111: 0
A112: 10.7 | B112: 0.18675023 | C112: 1e+99 | D112: -1.25e+101 | E112: 1.250039999e+101 | F112: -89.54164354 | G112: 0.1856666154 | H112: -0.9655279079 | I112: 2.320906958e+100 | J112: -89.54164354 | K112: 1.856666154e+98 | L112: -2.320832692e+100 | M112: -3.535590473e+50 | N112: -44.77082177 | O112: -2.51001992e+50 | P112: 2.49002008e+50 | Q112: 1.856666154e+98 | R112: -2.320832692e+100 | S112: 1.856666154e+98 | T112: -2.320832692e+100 | U112: 1 | V112: 0 | W112: 1 | X112: 0
A113: 10.8 | B113: 0.1884955592 | C113: 1e+99 | D113: -1.25e+101 | E113: 1.250039999e+101 | F113: -89.54164354 | G113: 0.1873813146 | H113: -0.9648882429 | I113: 2.342341384e+100 | J113: -89.54164354 | K113: 1.873813146e+98 | L113: -2.342266432e+100 | M113: -3.535590473e+50 | N113: -44.77082177 | O113: -2.51001992e+50 | P113: 2.49002008e+50 | Q113: 1.873813146e+98 | R113: -2.342266432e+100 | S113: 1.873813146e+98 | T113: -2.342266432e+100 | U113: 1 | V113: 0 | W113: 1 | X113: 0
A114: 10.9 | B114: 0.1902408885 | C114: 1e+99 | D114: -1.25e+101 | E114: 1.250039999e+101 | F114: -89.54164354 | G114: 0.189095443 | H114: -0.9642429134 | I114: 2.363768674e+100 | J114: -89.54164354 | K114: 1.89095443e+98 | L114: -2.363693037e+100 | M114: -3.535590473e+50 | N114: -44.77082177 | O114: -2.51001992e+50 | P114: 2.49002008e+50 | Q114: 1.89095443e+98 | R114: -2.363693037e+100 | S114: 1.89095443e+98 | T114: -2.363693037e+100 | U114: 1 | V114: 0 | W114: 1 | X114: 0
A115: 11 | B115: 0.1919862177 | C115: 1e+99 | D115: -1.25e+101 | E115: 1.250039999e+101 | F115: -89.54164354 | G115: 0.1908089954 | H115: -0.9635919273 | I115: 2.385188765e+100 | J115: -89.54164354 | K115: 1.908089954e+98 | L115: -2.385112442e+100 | M115: -3.535590473e+50 | N115: -44.77082177 | O115: -2.51001992e+50 | P115: 2.49002008e+50 | Q115: 1.908089954e+98 | R115: -2.385112442e+100 | S115: 1.908089954e+98 | T115: -2.385112442e+100 | U115: 1 | V115: 0 | W115: 1 | X115: 0
A116: 11.1 | B116: 0.193731547 | C116: 1e+99 | D116: -1.25e+101 | E116: 1.250039999e+101 | F116: -89.54164354 | G116: 0.1925219665 | H116: -0.9629352924 | I116: 2.406601589e+100 | J116: -89.54164354 | K116: 1.925219665e+98 | L116: -2.406524582e+100 | M116: -3.535590473e+50 | N116: -44.77082177 | O116: -2.51001992e+50 | P116: 2.49002008e+50 | Q116: 1.925219665e+98 | R116: -2.406524582e+100 | S116: 1.925219665e+98 | T116: -2.406524582e+100 | U116: 1 | V116: 0 | W116: 1 | X116: 0
A117: 11.2 | B117: 0.1954768762 | C117: 1e+99 | D117: -1.25e+101 | E117: 1.250039999e+101 | F117: -89.54164354 | G117: 0.1942343512 | H117: -0.9622730168 | I117: 2.428007083e+100 | J117: -89.54164354 | K117: 1.942343512e+98 | L117: -2.42792939e+100 | M117: -3.535590473e+50 | N117: -44.77082177 | O117: -2.51001992e+50 | P117: 2.49002008e+50 | Q117: 1.942343512e+98 | R117: -2.42792939e+100 | S117: 1.942343512e+98 | T117: -2.42792939e+100 | U117: 1 | V117: 0 | W117: 1 | X117: 0
A118: 11.3 | B118: 0.1972222055 | C118: 1e+99 | D118: -1.25e+101 | E118: 1.250039999e+101 | F118: -89.54164354 | G118: 0.1959461442 | H118: -0.9616051086 | I118: 2.44940518e+100 | J118: -89.54164354 | K118: 1.959461442e+98 | L118: -2.449326803e+100 | M118: -3.535590473e+50 | N118: -44.77082177 | O118: -2.51001992e+50 | P118: 2.49002008e+50 | Q118: 1.959461442e+98 | R118: -2.449326803e+100 | S118: 1.959461442e+98 | T118: -2.449326803e+100 | U118: 1 | V118: 0 | W118: 1 | X118: 0
A119: 11.4 | B119: 0.1989675347 | C119: 1e+99 | D119: -1.25e+101 | E119: 1.250039999e+101 | F119: -89.54164354 | G119: 0.1976573404 | H119: -0.9609315758 | I119: 2.470795816e+100 | J119: -89.54164354 | K119: 1.976573404e+98 | L119: -2.470716755e+100 | M119: -3.535590473e+50 | N119: -44.77082177 | O119: -2.51001992e+50 | P119: 2.49002008e+50 | Q119: 1.976573404e+98 | R119: -2.470716755e+100 | S119: 1.976573404e+98 | T119: -2.470716755e+100 | U119: 1 | V119: 0 | W119: 1 | X119: 0
A120: 11.5 | B120: 0.200712864 | C120: 1e+99 | D120: -1.25e+101 | E120: 1.250039999e+101 | F120: -89.54164354 | G120: 0.1993679344 | H120: -0.9602524267 | I120: 2.492178926e+100 | J120: -89.54164354 | K120: 1.993679344e+98 | L120: -2.49209918e+100 | M120: -3.535590473e+50 | N120: -44.77082177 | O120: -2.51001992e+50 | P120: 2.49002008e+50 | Q120: 1.993679344e+98 | R120: -2.49209918e+100 | S120: 1.993679344e+98 | T120: -2.49209918e+100 | U120: 1 | V120: 0 | W120: 1 | X120: 0
A121: 11.6 | B121: 0.2024581932 | C121: 1e+99 | D121: -1.25e+101 | E121: 1.250039999e+101 | F121: -89.54164354 | G121: 0.2010779211 | H121: -0.9595676696 | I121: 2.513554444e+100 | J121: -89.54164354 | K121: 2.010779211e+98 | L121: -2.513474014e+100 | M121: -3.535590473e+50 | N121: -44.77082177 | O121: -2.51001992e+50 | P121: 2.49002008e+50 | Q121: 2.010779211e+98 | R121: -2.513474014e+100 | S121: 2.010779211e+98 | T121: -2.513474014e+100 | U121: 1 | V121: 0 | W121: 1 | X121: 0
A122: 11.7 | B122: 0.2042035225 | C122: 1e+99 | D122: -1.25e+101 | E122: 1.250039999e+101 | F122: -89.54164354 | G122: 0.2027872954 | H122: -0.9588773128 | I122: 2.534922306e+100 | J122: -89.54164354 | K122: 2.027872954e+98 | L122: -2.534841192e+100 | M122: -3.535590473e+50 | N122: -44.77082177 | O122: -2.51001992e+50 | P122: 2.49002008e+50 | Q122: 2.027872954e+98 | R122: -2.534841192e+100 | S122: 2.027872954e+98 | T122: -2.534841192e+100 | U122: 1 | V122: 0 | W122: 1 | X122: 0
A123: 11.8 | B123: 0.2059488517 | C123: 1e+99 | D123: -1.25e+101 | E123: 1.250039999e+101 | F123: -89.54164354 | G123: 0.2044960518 | H123: -0.9581813648 | I123: 2.556282445e+100 | J123: -89.54164354 | K123: 2.044960518e+98 | L123: -2.556200648e+100 | M123: -3.535590473e+50 | N123: -44.77082177 | O123: -2.51001992e+50 | P123: 2.49002008e+50 | Q123: 2.044960518e+98 | R123: -2.556200648e+100 | S123: 2.044960518e+98 | T123: -2.556200648e+100 | U123: 1 | V123: 0 | W123: 1 | X123: 0
A124: 11.9 | B124: 0.207694181 | C124: 1e+99 | D124: -1.25e+101 | E124: 1.250039999e+101 | F124: -89.54164354 | G124: 0.2062041854 | H124: -0.9574798339 | I124: 2.577634798e+100 | J124: -89.54164354 | K124: 2.062041854e+98 | L124: -2.577552317e+100 | M124: -3.535590473e+50 | N124: -44.77082177 | O124: -2.51001992e+50 | P124: 2.49002008e+50 | Q124: 2.062041854e+98 | R124: -2.577552317e+100 | S124: 2.062041854e+98 | T124: -2.577552317e+100 | U124: 1 | V124: 0 | W124: 1 | X124: 0
A125: 12 | B125: 0.2094395102 | C125: 1e+99 | D125: -1.25e+101 | E125: 1.250039999e+101 | F125: -89.54164354 | G125: 0.2079116908 | H125: -0.9567727288 | I125: 2.598979299e+100 | J125: -89.54164354 | K125: 2.079116908e+98 | L125: -2.598896135e+100 | M125: -3.535590473e+50 | N125: -44.77082177 | O125: -2.51001992e+50 | P125: 2.49002008e+50 | Q125: 2.079116908e+98 | R125: -2.598896135e+100 | S125: 2.079116908e+98 | T125: -2.598896135e+100 | U125: 1 | V125: 0 | W125: 1 | X125: 0
A126: 12.1 | B126: 0.2111848395 | C126: 1e+99 | D126: -1.25e+101 | E126: 1.250039999e+101 | F126: -89.54164354 | G126: 0.2096185629 | H126: -0.9560600581 | I126: 2.620315882e+100 | J126: -89.54164354 | K126: 2.096185629e+98 | L126: -2.620232036e+100 | M126: -3.535590473e+50 | N126: -44.77082177 | O126: -2.51001992e+50 | P126: 2.49002008e+50 | Q126: 2.096185629e+98 | R126: -2.620232036e+100 | S126: 2.096185629e+98 | T126: -2.620232036e+100 | U126: 1 | V126: 0 | W126: 1 | X126: 0
A127: 12.2 | B127: 0.2129301687 | C127: 1e+99 | D127: -1.25e+101 | E127: 1.250039999e+101 | F127: -89.54164354 | G127: 0.2113247965 | H127: -0.9553418304 | I127: 2.641644484e+100 | J127: -89.54164354 | K127: 2.113247965e+98 | L127: -2.641559956e+100 | M127: -3.535590473e+50 | N127: -44.77082177 | O127: -2.51001992e+50 | P127: 2.49002008e+50 | Q127: 2.113247965e+98 | R127: -2.641559956e+100 | S127: 2.113247965e+98 | T127: -2.641559956e+100 | U127: 1 | V127: 0 | W127: 1 | X127: 0
A128: 12.3 | B128: 0.214675498 | C128: 1e+99 | D128: -1.25e+101 | E128: 1.250039999e+101 | F128: -89.54164354 | G128: 0.2130303863 | H128: -0.9546180545 | I128: 2.662965039e+100 | J128: -89.54164354 | K128: 2.130303863e+98 | L128: -2.662879828e+100 | M128: -3.535590473e+50 | N128: -44.77082177 | O128: -2.51001992e+50 | P128: 2.49002008e+50 | Q128: 2.130303863e+98 | R128: -2.662879828e+100 | S128: 2.130303863e+98 | T128: -2.662879828e+100 | U128: 1 | V128: 0 | W128: 1 | X128: 0
A129: 12.4 | B129: 0.2164208272 | C129: 1e+99 | D129: -1.25e+101 | E129: 1.250039999e+101 | F129: -89.54164354 | G129: 0.2147353272 | H129: -0.9538887393 | I129: 2.684277482e+100 | J129: -89.54164354 | K129: 2.147353272e+98 | L129: -2.68419159e+100 | M129: -3.535590473e+50 | N129: -44.77082177 | O129: -2.51001992e+50 | P129: 2.49002008e+50 | Q129: 2.147353272e+98 | R129: -2.68419159e+100 | S129: 2.147353272e+98 | T129: -2.68419159e+100 | U129: 1 | V129: 0 | W129: 1 | X129: 0
A130: 12.5 | B130: 0.2181661565 | C130: 1e+99 | D130: -1.25e+101 | E130: 1.250039999e+101 | F130: -89.54164354 | G130: 0.2164396139 | H130: -0.9531538935 | I130: 2.705581749e+100 | J130: -89.54164354 | K130: 2.164396139e+98 | L130: -2.705495174e+100 | M130: -3.535590473e+50 | N130: -44.77082177 | O130: -2.51001992e+50 | P130: 2.49002008e+50 | Q130: 2.164396139e+98 | R130: -2.705495174e+100 | S130: 2.164396139e+98 | T130: -2.705495174e+100 | U130: 1 | V130: 0 | W130: 1 | X130: 0
A131: 12.6 | B131: 0.2199114858 | C131: 1e+99 | D131: -1.25e+101 | E131: 1.250039999e+101 | F131: -89.54164354 | G131: 0.2181432414 | H131: -0.9524135262 | I131: 2.726877773e+100 | J131: -89.54164354 | K131: 2.181432414e+98 | L131: -2.726790517e+100 | M131: -3.535590473e+50 | N131: -44.77082177 | O131: -2.51001992e+50 | P131: 2.49002008e+50 | Q131: 2.181432414e+98 | R131: -2.726790517e+100 | S131: 2.181432414e+98 | T131: -2.726790517e+100 | U131: 1 | V131: 0 | W131: 1 | X131: 0
A132: 12.7 | B132: 0.221656815 | C132: 1e+99 | D132: -1.25e+101 | E132: 1.250039999e+101 | F132: -89.54164354 | G132: 0.2198462044 | H132: -0.9516676464 | I132: 2.748165491e+100 | J132: -89.54164354 | K132: 2.198462044e+98 | L132: -2.748077554e+100 | M132: -3.535590473e+50 | N132: -44.77082177 | O132: -2.51001992e+50 | P132: 2.49002008e+50 | Q132: 2.198462044e+98 | R132: -2.748077554e+100 | S132: 2.198462044e+98 | T132: -2.748077554e+100 | U132: 1 | V132: 0 | W132: 1 | X132: 0
A133: 12.8 | B133: 0.2234021443 | C133: 1e+99 | D133: -1.25e+101 | E133: 1.250039999e+101 | F133: -89.54164354 | G133: 0.2215484976 | H133: -0.9509162632 | I133: 2.769444838e+100 | J133: -89.54164354 | K133: 2.215484976e+98 | L133: -2.76935622e+100 | M133: -3.535590473e+50 | N133: -44.77082177 | O133: -2.51001992e+50 | P133: 2.49002008e+50 | Q133: 2.215484976e+98 | R133: -2.76935622e+100 | S133: 2.215484976e+98 | T133: -2.76935622e+100 | U133: =(Q133*S133+T133*R133)/((S133^2)+(T133^2)) -> 1 | V133: 0 | W133: 1 | X133: 0
A134: 12.9 | B134: =A134*PI()/180 -> 0.2251474735 | C134: =$D$1 -> 1e+99 | D134: =-(18000*$G$1/$N$1) -> -1.25e+101 | E134: =(C134^2+D134^2)^0.5 -> 1.250039999e+101 | F134: =(180/PI())*ATAN(D134/C134) -> -89.54164354 | G134: =SIN(B134) -> 0.223250116 | H134: =-((COS(B134))^2) -> -0.9501593857 | I134: =E134*G134 -> 2.790715749e+100 | J134: =F134 -> -89.54164354 | K134: =(((I134^2)/(1+(TAN(J134*(PI()/180)))^2))^0.5) -> 2.23250116e+98 | L134: =K134*TAN(J134*(PI()/180)) -> -2.79062645e+100 | M134: =-(((((C134+H134)^2)+(D134)^2)^0.5)^0.5) -> -3.535590473e+50 | N134: =((ATAN(D134/(C134+H134)))*(180/PI()))/2 -> -44.77082177 | O134: =-(((M134^2)/(1+(TAN(N134*(PI()/180)))^2))^0.5) -> -2.51001992e+50 | P134: =O134*TAN(N134*(PI()/180)) -> 2.49002008e+50 | Q134: 2.23250116e+98 | R134: -2.79062645e+100 | S134: =-O134+K134 -> 2.23250116e+98 | T134: =L134-P134 -> -2.79062645e+100 | U134: 1 | V134: =(R134*S134-Q134*T134)/((S134^2)+(T134^2)) -> 0 | W134: =((U134^2)+(V134^2))^0.5 -> 1 | X134: =(ACOS(U134/W134))*(180/PI()) -> 0
A135: =A134+0.1 -> 13 | B135: 0.2268928028 | C135: 1e+99 | D135: -1.25e+101 | E135: 1.250039999e+101 | F135: -89.54164354 | G135: 0.2249510543 | H135: -0.9493970231 | I135: 2.811978158e+100 | J135: -89.54164354 | K135: 2.249510543e+98 | L135: -2.811888179e+100 | M135: -3.535590473e+50 | N135: -44.77082177 | O135: -2.51001992e+50 | P135: 2.49002008e+50 | Q135: 2.249510543e+98 | R135: -2.811888179e+100 | S135: 2.249510543e+98 | T135: -2.811888179e+100 | U135: 1 | V135: 0 | W135: 1 | X135: 0
A136: 13.1 | B136: 0.228638132 | C136: 1e+99 | D136: -1.25e+101 | E136: 1.250039999e+101 | F136: -89.54164354 | G136: 0.2266513074 | H136: -0.9486291848 | I136: 2.833232002e+100 | J136: -89.54164354 | K136: 2.266513074e+98 | L136: -2.833141343e+100 | M136: -3.535590473e+50 | N136: -44.77082177 | O136: -2.51001992e+50 | P136: 2.49002008e+50 | Q136: 2.266513074e+98 | R136: -2.833141343e+100 | S136: 2.266513074e+98 | T136: -2.833141343e+100 | U136: 1 | V136: 0 | W136: 1 | X136: 0
A137: 13.2 | B137: 0.2303834613 | C137: 1e+99 | D137: -1.25e+101 | E137: 1.250039999e+101 | F137: -89.54164354 | G137: 0.2283508701 | H137: -0.9478558801 | I137: 2.854477215e+100 | J137: -89.54164354 | K137: 2.283508701e+98 | L137: -2.854385876e+100 | M137: -3.535590473e+50 | N137: -44.77082177 | O137: -2.51001992e+50 | P137: 2.49002008e+50 | Q137: 2.283508701e+98 | R137: -2.854385876e+100 | S137: 2.283508701e+98 | T137: -2.854385876e+100 | U137: 1 | V137: 0 | W137: 1 | X137: 0
A138: 13.3 | B138: 0.2321287905 | C138: 1e+99 | D138: -1.25e+101 | E138: 1.250039999e+101 | F138: -89.54164354 | G138: 0.2300497372 | H138: -0.9470771184 | I138: 2.875713733e+100 | J138: -89.54164354 | K138: 2.300497372e+98 | L138: -2.875621715e+100 | M138: -3.535590473e+50 | N138: -44.77082177 | O138: -2.51001992e+50 | P138: 2.49002008e+50 | Q138: 2.300497372e+98 | R138: -2.875621715e+100 | S138: 2.300497372e+98 | T138: -2.875621715e+100 | U138: 1 | V138: 0 | W138: 1 | X138: 0
A139: 13.4 | B139: 0.2338741198 | C139: 1e+99 | D139: -1.25e+101 | E139: 1.250039999e+101 | F139: -89.54164354 | G139: 0.2317479035 | H139: -0.9462929092 | I139: 2.896941491e+100 | J139: -89.54164354 | K139: 2.317479035e+98 | L139: -2.896848794e+100 | M139: -3.535590473e+50 | N139: -44.77082177 | O139: -2.51001992e+50 | P139: 2.49002008e+50 | Q139: 2.317479035e+98 | R139: -2.896848794e+100 | S139: 2.317479035e+98 | T139: -2.896848794e+100 | U139: 1 | V139: 0 | W139: 1 | X139: 0
A140: 13.5 | B140: 0.235619449 | C140: 1e+99 | D140: -1.25e+101 | E140: 1.250039999e+101 | F140: -89.54164354 | G140: 0.2334453639 | H140: -0.9455032621 | I140: 2.918160425e+100 | J140: -89.54164354 | K140: 2.334453639e+98 | L140: -2.918067048e+100 | M140: -3.535590473e+50 | N140: -44.77082177 | O140: -2.51001992e+50 | P140: 2.49002008e+50 | Q140: 2.334453639e+98 | R140: -2.918067048e+100 | S140: 2.334453639e+98 | T140: -2.918067048e+100 | U140: 1 | V140: 0 | W140: 1 | X140: 0
A141: 13.6 | B141: 0.2373647783 | C141: 1e+99 | D141: -1.25e+101 | E141: 1.250039999e+101 | F141: -89.54164354 | G141: 0.2351421131 | H141: -0.9447081866 | I141: 2.939370469e+100 | J141: -89.54164354 | K141: 2.351421131e+98 | L141: -2.939276414e+100 | M141: -3.535590473e+50 | N141: -44.77082177 | O141: -2.51001992e+50 | P141: 2.49002008e+50 | Q141: 2.351421131e+98 | R141: -2.939276414e+100 | S141: 2.351421131e+98 | T141: -2.939276414e+100 | U141: 1 | V141: 0 | W141: 1 | X141: 0
A142: 13.7 | B142: 0.2391101075 | C142: 1e+99 | D142: -1.25e+101 | E142: 1.250039999e+101 | F142: -89.54164354 | G142: 0.2368381461 | H142: -0.9439076926 | I142: 2.96057156e+100 | J142: -89.54164354 | K142: 2.368381461e+98 | L142: -2.960476826e+100 | M142: -3.535590473e+50 | N142: -44.77082177 | O142: -2.51001992e+50 | P142: 2.49002008e+50 | Q142: 2.368381461e+98 | R142: -2.960476826e+100 | S142: 2.368381461e+98 | T142: -2.960476826e+100 | U142: 1 | V142: 0 | W142: 1 | X142: 0
A143: 13.8 | B143: 0.2408554368 | C143: 1e+99 | D143: -1.25e+101 | E143: 1.250039999e+101 | F143: -89.54164354 | G143: 0.2385334576 | H143: -0.9431017896 | I143: 2.981763632e+100 | J143: -89.54164354 | K143: 2.385334576e+98 | L143: -2.98166822e+100 | M143: -3.535590473e+50 | N143: -44.77082177 | O143: -2.51001992e+50 | P143: 2.49002008e+50 | Q143: 2.385334576e+98 | R143: -2.98166822e+100 | S143: 2.385334576e+98 | T143: -2.98166822e+100 | U143: 1 | V143: 0 | W143: 1 | X143: 0
A144: 13.9 | B144: 0.242600766 | C144: 1e+99 | D144: -1.25e+101 | E144: 1.250039999e+101 | F144: -89.54164354 | G144: 0.2402280425 | H144: -0.9422904876 | I144: 3.002946621e+100 | J144: -89.54164354 | K144: 2.402280425e+98 | L144: -3.002850531e+100 | M144: -3.535590473e+50 | N144: -44.77082177 | O144: -2.51001992e+50 | P144: 2.49002008e+50 | Q144: 2.402280425e+98 | R144: -3.002850531e+100 | S144: 2.402280425e+98 | T144: -3.002850531e+100 | U144: 1 | V144: 0 | W144: 1 | X144: 0
A145: 14 | B145: 0.2443460953 | C145: 1e+99 | D145: -1.25e+101 | E145: 1.250039999e+101 | F145: -89.54164354 | G145: 0.2419218956 | H145: -0.9414737964 | I145: 3.024120462e+100 | J145: -89.54164354 | K145: 2.419218956e+98 | L145: -3.024023695e+100 | M145: -3.535590473e+50 | N145: -44.77082177 | O145: -2.51001992e+50 | P145: 2.49002008e+50 | Q145: 2.419218956e+98 | R145: -3.024023695e+100 | S145: 2.419218956e+98 | T145: -3.024023695e+100 | U145: 1 | V145: 0 | W145: 1 | X145: 0
A146: 14.1 | B146: 0.2460914245 | C146: 1e+99 | D146: -1.25e+101 | E146: 1.250039999e+101 | F146: -89.54164354 | G146: 0.2436150118 | H146: -0.940651726 | I146: 3.045285092e+100 | J146: -89.54164354 | K146: 2.436150118e+98 | L146: -3.045187647e+100 | M146: -3.535590473e+50 | N146: -44.77082177 | O146: -2.51001992e+50 | P146: 2.49002008e+50 | Q146: 2.436150118e+98 | R146: -3.045187647e+100 | S146: 2.436150118e+98 | T146: -3.045187647e+100 | U146: 1 | V146: 0 | W146: 1 | X146: 0
A147: 14.2 | B147: 0.2478367538 | C147: 1e+99 | D147: -1.25e+101 | E147: 1.250039999e+101 | F147: -89.54164354 | G147: 0.2453073859 | H147: -0.9398242864 | I147: 3.066440445e+100 | J147: -89.54164354 | K147: 2.453073859e+98 | L147: -3.066342323e+100 | M147: -3.535590473e+50 | N147: -44.77082177 | O147: -2.51001992e+50 | P147: 2.49002008e+50 | Q147: 2.453073859e+98 | R147: -3.066342323e+100 | S147: 2.453073859e+98 | T147: -3.066342323e+100 | U147: 1 | V147: 0 | W147: 1 | X147: 0
A148: 14.3 | B148: 0.249582083 | C148: 1e+99 | D148: -1.25e+101 | E148: 1.250039999e+101 | F148: -89.54164354 | G148: 0.2469990127 | H148: -0.9389914877 | I148: 3.087586457e+100 | J148: -89.54164354 | K148: 2.469990127e+98 | L148: -3.087487659e+100 | M148: -3.535590473e+50 | N148: -44.77082177 | O148: -2.51001992e+50 | P148: 2.49002008e+50 | Q148: 2.469990127e+98 | R148: -3.087487659e+100 | S148: 2.469990127e+98 | T148: -3.087487659e+100 | U148: 1 | V148: 0 | W148: 1 | X148: 0
A149: 14.4 | B149: 0.2513274123 | C149: 1e+99 | D149: -1.25e+101 | E149: 1.250039999e+101 | F149: -89.54164354 | G149: 0.2486898872 | H149: -0.93815334 | I149: 3.108723064e+100 | J149: -89.54164354 | K149: 2.486898872e+98 | L149: -3.10862359e+100 | M149: -3.535590473e+50 | N149: -44.77082177 | O149: -2.51001992e+50 | P149: 2.49002008e+50 | Q149: 2.486898872e+98 | R149: -3.10862359e+100 | S149: 2.486898872e+98 | T149: -3.10862359e+100 | U149: 1 | V149: 0 | W149: 1 | X149: 0
A150: 14.5 | B150: 0.2530727415 | C150: 1e+99 | D150: -1.25e+101 | E150: 1.250039999e+101 | F150: -89.54164354 | G150: 0.2503800041 | H150: -0.9373098536 | I150: 3.129850201e+100 | J150: -89.54164354 | K150: 2.503800041e+98 | L150: -3.129750051e+100 | M150: -3.535590473e+50 | N150: -44.77082177 | O150: -2.51001992e+50 | P150: 2.49002008e+50 | Q150: 2.503800041e+98 | R150: -3.129750051e+100 | S150: 2.503800041e+98 | T150: -3.129750051e+100 | U150: 1 | V150: 0 | W150: 1 | X150: 0
A151: 14.6 | B151: 0.2548180708 | C151: 1e+99 | D151: -1.25e+101 | E151: 1.250039999e+101 | F151: -89.54164354 | G151: 0.2520693582 | H151: -0.9364610386 | I151: 3.150967804e+100 | J151: -89.54164354 | K151: 2.520693582e+98 | L151: -3.150866978e+100 | M151: -3.535590473e+50 | N151: -44.77082177 | O151: -2.51001992e+50 | P151: 2.49002008e+50 | Q151: 2.520693582e+98 | R151: -3.150866978e+100 | S151: 2.520693582e+98 | T151: -3.150866978e+100 | U151: 1 | V151: 0 | W151: 1 | X151: 0
A152: 14.7 | B152: 0.2565634 | C152: 1e+99 | D152: -1.25e+101 | E152: 1.250039999e+101 | F152: -89.54164354 | G152: 0.2537579446 | H152: -0.9356069056 | I152: 3.172075809e+100 | J152: -89.54164354 | K152: 2.537579446e+98 | L152: -3.171974307e+100 | M152: -3.535590473e+50 | N152: -44.77082177 | O152: -2.51001992e+50 | P152: 2.49002008e+50 | Q152: 2.537579446e+98 | R152: -3.171974307e+100 | S152: 2.537579446e+98 | T152: -3.171974307e+100 | U152: 1 | V152: 0 | W152: 1 | X152: 0
A153: 14.8 | B153: 0.2583087293 | C153: 1e+99 | D153: -1.25e+101 | E153: 1.250039999e+101 | F153: -89.54164354 | G153: 0.2554457579 | H153: -0.9347474648 | I153: 3.193174151e+100 | J153: -89.54164354 | K153: 2.554457579e+98 | L153: -3.193071974e+100 | M153: -3.535590473e+50 | N153: -44.77082177 | O153: -2.51001992e+50 | P153: 2.49002008e+50 | Q153: 2.554457579e+98 | R153: -3.193071974e+100 | S153: 2.554457579e+98 | T153: -3.193071974e+100 | U153: 1 | V153: 0 | W153: 1 | X153: 0
A154: 14.9 | B154: 0.2600540585 | C154: 1e+99 | D154: -1.25e+101 | E154: 1.250039999e+101 | F154: -89.54164354 | G154: 0.2571327932 | H154: -0.9338827267 | I154: 3.214262766e+100 | J154: -89.54164354 | K154: 2.571327932e+98 | L154: -3.214159914e+100 | M154: -3.535590473e+50 | N154: -44.77082177 | O154: -2.51001992e+50 | P154: 2.49002008e+50 | Q154: 2.571327932e+98 | R154: -3.214159914e+100 | S154: 2.571327932e+98 | T154: -3.214159914e+100 | U154: 1 | V154: 0 | W154: 1 | X154: 0
A155: 15 | B155: 0.2617993878 | C155: 1e+99 | D155: -1.25e+101 | E155: 1.250039999e+101 | F155: -89.54164354 | G155: 0.2588190451 | H155: -0.9330127019 | I155: 3.23534159e+100 | J155: -89.54164354 | K155: 2.588190451e+98 | L155: -3.235238064e+100 | M155: -3.535590473e+50 | N155: -44.77082177 | O155: -2.51001992e+50 | P155: 2.49002008e+50 | Q155: 2.588190451e+98 | R155: -3.235238064e+100 | S155: 2.588190451e+98 | T155: -3.235238064e+100 | U155: 1 | V155: 0 | W155: 1 | X155: 0
A156: 15.1 | B156: 0.2635447171 | C156: 1e+99 | D156: -1.25e+101 | E156: 1.250039999e+101 | F156: -89.54164354 | G156: 0.2605045086 | H156: -0.932137401 | I156: 3.256410558e+100 | J156: -89.54164354 | K156: 2.605045086e+98 | L156: -3.256306358e+100 | M156: -3.535590473e+50 | N156: -44.77082177 | O156: -2.51001992e+50 | P156: 2.49002008e+50 | Q156: 2.605045086e+98 | R156: -3.256306358e+100 | S156: 2.605045086e+98 | T156: -3.256306358e+100 | U156: 1 | V156: 0 | W156: 1 | X156: 0
A157: 15.2 | B157: 0.2652900463 | C157: 1e+99 | D157: -1.25e+101 | E157: 1.250039999e+101 | F157: -89.54164354 | G157: 0.2621891786 | H157: -0.9312568346 | I157: 3.277469607e+100 | J157: -89.54164354 | K157: 2.621891786e+98 | L157: -3.277364733e+100 | M157: -3.535590473e+50 | N157: -44.77082177 | O157: -2.51001992e+50 | P157: 2.49002008e+50 | Q157: 2.621891786e+98 | R157: -3.277364733e+100 | S157: 2.621891786e+98 | T157: -3.277364733e+100 | U157: 1 | V157: 0 | W157: 1 | X157: 0
A158: 15.3 | B158: 0.2670353756 | C158: 1e+99 | D158: -1.25e+101 | E158: 1.250039999e+101 | F158: -89.54164354 | G158: 0.26387305 | H158: -0.9303710135 | I158: 3.298518672e+100 | J158: -89.54164354 | K158: 2.6387305e+98 | L158: -3.298413125e+100 | M158: -3.535590473e+50 | N158: -44.77082177 | O158: -2.51001992e+50 | P158: 2.49002008e+50 | Q158: 2.6387305e+98 | R158: -3.298413125e+100 | S158: 2.6387305e+98 | T158: -3.298413125e+100 | U158: 1 | V158: 0 | W158: 1 | X158: 0
A159: 15.4 | B159: 0.2687807048 | C159: 1e+99 | D159: -1.25e+101 | E159: 1.250039999e+101 | F159: -89.54164354 | G159: 0.2655561175 | H159: -0.9294799485 | I159: 3.319557689e+100 | J159: -89.54164354 | K159: 2.655561175e+98 | L159: -3.319451469e+100 | M159: -3.535590473e+50 | N159: -44.77082177 | O159: -2.51001992e+50 | P159: 2.49002008e+50 | Q159: 2.655561175e+98 | R159: -3.319451469e+100 | S159: 2.655561175e+98 | T159: -3.319451469e+100 | U159: 1 | V159: 0 | W159: 1 | X159: 0
A160: 15.5 | B160: 0.2705260341 | C160: 1e+99 | D160: -1.25e+101 | E160: 1.250039999e+101 | F160: -89.54164354 | G160: 0.2672383761 | H160: -0.9285836504 | I160: 3.340586595e+100 | J160: -89.54164354 | K160: 2.672383761e+98 | L160: -3.340479701e+100 | M160: -3.535590473e+50 | N160: -44.77082177 | O160: -2.51001992e+50 | P160: 2.49002008e+50 | Q160: 2.672383761e+98 | R160: -3.340479701e+100 | S160: 2.672383761e+98 | T160: -3.340479701e+100 | U160: 1 | V160: 0 | W160: 1 | X160: 0
A161: 15.6 | B161: 0.2722713633 | C161: 1e+99 | D161: -1.25e+101 | E161: 1.250039999e+101 | F161: -89.54164354 | G161: 0.2689198206 | H161: -0.9276821301 | I161: 3.361605324e+100 | J161: -89.54164354 | K161: 2.689198206e+98 | L161: -3.361497758e+100 | M161: -3.535590473e+50 | N161: -44.77082177 | O161: -2.51001992e+50 | P161: 2.49002008e+50 | Q161: =K161+O161 -> 2.689198206e+98 | R161: -3.361497758e+100 | S161: 2.689198206e+98 | T161: -3.361497758e+100 | U161: 1 | V161: 0 | W161: 1 | X161: 0
A162: 15.7 | B162: 0.2740166926 | C162: 1e+99 | D162: -1.25e+101 | E162: 1.250039999e+101 | F162: -89.54164354 | G162: 0.270600446 | H162: -0.9267753986 | I162: 3.382613813e+100 | J162: -89.54164354 | K162: 2.70600446e+98 | L162: -3.382505575e+100 | M162: -3.535590473e+50 | N162: -44.77082177 | O162: -2.51001992e+50 | P162: 2.49002008e+50 | Q162: 2.70600446e+98 | R162: -3.382505575e+100 | S162: 2.70600446e+98 | T162: -3.382505575e+100 | U162: 1 | V162: 0 | W162: 1 | X162: 0
A163: 15.8 | B163: 0.2757620218 | C163: 1e+99 | D163: -1.25e+101 | E163: 1.250039999e+101 | F163: -89.54164354 | G163: 0.272280247 | H163: -0.9258634671 | I163: 3.403611998e+100 | J163: -89.54164354 | K163: 2.72280247e+98 | L163: -3.403503088e+100 | M163: -3.535590473e+50 | N163: -44.77082177 | O163: -2.51001992e+50 | P163: 2.49002008e+50 | Q163: 2.72280247e+98 | R163: -3.403503088e+100 | S163: 2.72280247e+98 | T163: -3.403503088e+100 | U163: 1 | V163: 0 | W163: 1 | X163: 0
A164: 15.9 | B164: 0.2775073511 | C164: 1e+99 | D164: -1.25e+101 | E164: 1.250039999e+101 | F164: -89.54164354 | G164: 0.2739592187 | H164: -0.9249463465 | I164: 3.424599816e+100 | J164: -89.54164354 | K164: 2.739592187e+98 | L164: -3.424490234e+100 | M164: -3.535590473e+50 | N164: -44.77082177 | O164: -2.51001992e+50 | P164: 2.49002008e+50 | Q164: 2.739592187e+98 | R164: -3.424490234e+100 | S164: 2.739592187e+98 | T164: -3.424490234e+100 | U164: 1 | V164: 0 | W164: 1 | X164: 0
A165: 16 | B165: 0.2792526803 | C165: 1e+99 | D165: -1.25e+101 | E165: 1.250039999e+101 | F165: -89.54164354 | G165: 0.2756373558 | H165: -0.9240240481 | I165: 3.445577201e+100 | J165: -89.54164354 | K165: 2.756373558e+98 | L165: -3.445466948e+100 | M165: -3.535590473e+50 | N165: -44.77082177 | O165: -2.51001992e+50 | P165: 2.49002008e+50 | Q165: 2.756373558e+98 | R165: -3.445466948e+100 | S165: 2.756373558e+98 | T165: -3.445466948e+100 | U165: 1 | V165: 0 | W165: 1 | X165: 0
A166: 16.1 | B166: 0.2809980096 | C166: 1e+99 | D166: -1.25e+101 | E166: 1.250039999e+101 | F166: -89.54164354 | G166: 0.2773146533 | H166: -0.9230965831 | I166: 3.46654409e+100 | J166: -89.54164354 | K166: 2.773146533e+98 | L166: -3.466433166e+100 | M166: -3.535590473e+50 | N166: -44.77082177 | O166: -2.51001992e+50 | P166: 2.49002008e+50 | Q166: 2.773146533e+98 | R166: -3.466433166e+100 | S166: 2.773146533e+98 | T166: -3.466433166e+100 | U166: 1 | V166: 0 | W166: 1 | X166: 0
A167: 16.2 | B167: 0.2827433388 | C167: 1e+99 | D167: -1.25e+101 | E167: 1.250039999e+101 | F167: -89.54164354 | G167: 0.278991106 | H167: -0.9221639628 | I167: 3.48750042e+100 | J167: -89.54164354 | K167: 2.78991106e+98 | L167: -3.487388825e+100 | M167: -3.535590473e+50 | N167: -44.77082177 | O167: -2.51001992e+50 | P167: 2.49002008e+50 | Q167: 2.78991106e+98 | R167: -3.487388825e+100 | S167: 2.78991106e+98 | T167: -3.487388825e+100 | U167: 1 | V167: 0 | W167: 1 | X167: 0
A168: 16.3 | B168: 0.2844886681 | C168: 1e+99 | D168: -1.25e+101 | E168: 1.250039999e+101 | F168: -89.54164354 | G168: 0.2806667089 | H168: -0.9212261985 | I168: 3.508446126e+100 | J168: -89.54164354 | K168: 2.806667089e+98 | L168: -3.508333862e+100 | M168: -3.535590473e+50 | N168: -44.77082177 | O168: -2.51001992e+50 | P168: 2.49002008e+50 | Q168: 2.806667089e+98 | R168: -3.508333862e+100 | S168: 2.806667089e+98 | T168: -3.508333862e+100 | U168: 1 | V168: 0 | W168: 1 | X168: 0
A169: 16.4 | B169: 0.2862339973 | C169: 1e+99 | D169: -1.25e+101 | E169: 1.250039999e+101 | F169: -89.54164354 | G169: 0.2823414568 | H169: -0.9202833017 | I169: 3.529381145e+100 | J169: -89.54164354 | K169: 2.823414568e+98 | L169: -3.529268211e+100 | M169: -3.535590473e+50 | N169: -44.77082177 | O169: -2.51001992e+50 | P169: 2.49002008e+50 | Q169: 2.823414568e+98 | R169: -3.529268211e+100 | S169: 2.823414568e+98 | T169: -3.529268211e+100 | U169: 1 | V169: 0 | W169: 1 | X169: 0
A170: 16.5 | B170: 0.2879793266 | C170: 1e+99 | D170: -1.25e+101 | E170: 1.250039999e+101 | F170: -89.54164354 | G170: 0.2840153447 | H170: -0.919335284 | I170: 3.550305413e+100 | J170: -89.54164354 | K170: 2.840153447e+98 | L170: -3.550191809e+100 | M170: -3.535590473e+50 | N170: -44.77082177 | O170: -2.51001992e+50 | P170: 2.49002008e+50 | Q170: 2.840153447e+98 | R170: -3.550191809e+100 | S170: 2.840153447e+98 | T170: -3.550191809e+100 | U170: 1 | V170: 0 | W170: 1 | X170: 0
